Workbook

Sheet Front page
A1: =RIGHT(CELL("filename", $A$1), LEN(CELL("filename", $A$1)) - SEARCH("]", CELL("filename", $A$1))) -> Front page
B3: Model name: | C3: Company-Specific Adjustment Cost Benefit Model
B4: Version number: | C4: 3.0
B5: Filename: | C5: =SUBSTITUTE(LEFT(CELL("filename"),FIND("]",CELL("filename"))-1),"[","") -> C:\Personal\Projects\e) CSA tests\PR19 Final model\Final publication outputs\Company-Specific Adjustment CBA Model (Final for publication).xlsm
B6: Date: | C6: 2019-01-05
B8: Contact information: | C8: Martin Malinowski
C9: martin.malinowski@ofwat.gsi.gov.uk
B11: Summary of model: | C11: The purpose of this model is to forecast potential long-term benchmarking benefits which may arise from allowing a small water only company a Company-Specific Adjustment to its allowed cost of debt. The model also forecasts costs to customers of allowing this uplift, and combines the two figures into a 2017/18 net present value.
B13: Instructions: | C13: Users should alter user-defined inputs in the control sheet and then operate macros 1) and 2) in the tab 'Control Sheet'.
C14: It is recommended to shut down other workbooks and instances of Excel before running macros on the Control sheet
C15: The runtime of the model depends on how many trials are selected when prompted immediately after running Macro 1) and processor speed. It is advised to try a small number of trials to begin with.

Sheet Model Summary
A1: =RIGHT(CELL("filename", $A$1), LEN(CELL("filename", $A$1)) - SEARCH("]", CELL("filename", $A$1))) -> Model Summary
A2: This worksheet contains a high level explanation of every worksheet in the model and what its function is
B4: Tab: | C4: Purpose:
B5: Front page | C5: Contact details, model build version.
B6: Model Summary | C6: Explanations of the different worksheets.
B7: Model Formatting | C7: Explanation of colour coding key used in the model
B8: Control Sheet | C8: Contains user-defined inputs required to run modelling simulations and gives an overview of the latest modelling run.
B9: CBA Summary | C9: Brings together cost and benefits data. Discounting and scaling of benefits is applied in this tab.
B10: Benefits | C10: Macro-written output sheet containing customer benefits impacts of merger permutations for all price controls across all trials.
B11: Costs | C11: Calculates cost of providing proposed cost of debt uplift across 5 price controls
B12: Outputs | C12: Macro-written output sheet containing rank transitions data and efficiency scores for all price controls across all trials.
B14: Feeder calcs
B15: RCV & totex growth rates | C15: Source of assumptions about company-level RCV and water wholesale totex growth rates
B16: RCV & totex projections | C16: Extrapolates the future level of company-level RCV and industry base water totex, based on growth rate assumptions.
B17: RCV weights | C17: Uses RCV projections to provide weights used to derive RCV-weighted average efficiency scores.
B18: Merger weightings | C18: Contains probabilities of each permutation of merger, adjusted for user-defined multipliers to reflect various contributory factors.
B20: Simulation calcs
B21: Merger calcs | C21: Macro-assisted sheet calculating totex benchmarking benefits from each possible permutation of merger and turns this into a probability-weighted benefits figure for each price control.
B22: Modelled efficiency (detailed) | C22: Source of the probability distribution used to simulate efficiency scores at future price controls
B23: Simulation (Ascending) | C23: Macro-assisted sheet which uses the probability matrices from the 'Live matrices' tab to determine changes of rank since the last control, starting from the 16th ranked company, and finishing at the 1st ranked company.
B24: Simulation (Descending) | C24: Macro-assisted sheet which uses the probability matrices from the 'Live matrices' tab to determine changes of rank since the last control, starting from the 1st ranked company, and finishing at the 16th ranked company.
B26: Probability matrix calcs
B27: P. matrix (16 cos) | C27: Contains the starting matrix used in the 'Simulation (Ascending)' and 'Simulation (Descending)' tabs to generate rank transitions.
B28: Live matrices | C28: Contains the matrices derived using the changes approach and transitions approach. Which the model uses is determined by a setting in the control sheet.
B29: TOTEX | C29: Contains the probability distribution of granular totex ranking changes used to populate the Changes matrix
B30: OPEX | C30: Contains the probability distribution of granular opex ranking changes used to derive the totex probability distribution.
B31: CAPEX | C31: Contains the probability distribution of granular capex ranking changes used to derive the totex probability distribution.
B32: TOTEX (Q) | C32: Contains the probability distribution of quartile totex ranking changes used to populate the Changes matrix
B33: OPEX (Q) | C33: Contains the probability distribution of quartile opex ranking changes used to derive the totex probability distribution.
B34: CAPEX (Q) | C34: Contains the probability distribution of quartile capex ranking changes used to derive the totex probability distribution.
B36: Base data
B37: Totex inputs PR99-PR09 | C37: Opex and capex cost data from previous price controls used to derive rank change frequencies.
B38: PR14 efficiency rank | C38: PR14 efficiency scores derived using our econometric cost assessment models
B39: PR19 efficiency rank | C39: PR19 efficiency scores derived using our econometric cost assessment models

Sheet Model Formatting
A1: =RIGHT(CELL("filename", $A$1), LEN(CELL("filename", $A$1)) - SEARCH("]", CELL("filename", $A$1))) -> Model Formatting
A2: Explains use of colour coding in the model
A4: CELL / ROW / COLUMN / TAB COLOUR
B8: Blue Font (no shade) | D8: Imported from another sheet / section
B9: Green font (no shade) | D9: Explanatory text
B10: Red Font (no shade) | D10: Exported to another sheet/section *
B12: Black Font (no shade) | D12: Neither imported nor exported
D15: Input
D17: Copy
D19: Calculation
D21: Pre populated
D23: Macro-written cell or output sheet

Sheet Control sheet
A1: =RIGHT(CELL("filename", $A$1), LEN(CELL("filename", $A$1)) - SEARCH("]", CELL("filename", $A$1))) -> Control sheet
C3: < This macro populates the 'Outputs' sheet with data for 5 price controls ahead forecasting a) The distribution of efficiency scores, and b) Company changes in rank.(Tabs:'Simulation Ascending/Descending') Each 'trial' is 5 price controls.
C6: < This macro uses the trials in the 'Outputs' sheet to assess what impact the target company would have on the UQ threshold if it were to merge another company by running a macro on the 'Merger calcs' sheet.
C7: The outputs of this exercise for each price control in a 'trial' are a) a probability-weighted financial figure of 'avoided cost', and b) The company's rank. Each of these is written to the 'Benefits' tab.
C8: This macro must be run each time a new company is selected, to properly model the benefits of retaining that company as a comparator.
B12: Facts about the current modelling run | C12: PR19 | D12: PR24 | E12: PR29 | F12: PR34 | G12: PR39 | H12: PR44
C13: actual | D13: forecast | E13: forecast | F13: forecast | G13: forecast | H13: forecast
B14: Average rank | C14: ='CBA Summary'!C23 ->  | D14: ='CBA Summary'!D23 ->  | E14: ='CBA Summary'!E23 ->  | F14: ='CBA Summary'!F23 ->  | G14: ='CBA Summary'!G23 ->  | H14: ='CBA Summary'!H23 -> 
B17: Number of trials: | C17: =Outputs!H1 -> 0
B18: ="PV of costs (£m "&C43&" prices)" -> PV of costs (£m 2017/18 prices) | C18: ='CBA Summary'!C20 -> 
D20: Scaled 1/4 | E20: Scaled 2/4
B21: ="PV of benefits (£m "&C43&" prices)" -> PV of benefits (£m 2017/18 prices) | C21: ='CBA Summary'!C18 ->  | D21: ='CBA Summary'!D18 ->  | E21: ='CBA Summary'!E18 -> 
B22: ="NPV (£m, "&C43&" values and prices)" -> NPV (£m, 2017/18 values and prices) | C22: =C21-C18 ->  | D22: =D21-C18 ->  | E22: =E21-C18 -> 
B24: User-defined inputs:
D25: Defaults for Ofwat base run:
B26: Matrix derivation approach: | D26: Either Changes or Transitions
B27: Post-merger efficiency score derivation: | D27: RCV-weighted
B28: Company seeking a Company-Specific Adjustment:
B30: PR19 pre-efficiency challenge water wholesale totex (£,m 2017/18 prices) | C30: ='PR19 Efficiency Rank'!I22 -> 16482.54715
B31: PR24 RCV and totex annual growth rate as % of PR19 | D31: 0.9
B32: PR29 RCV and totex annual growth rate as % of PR19 | D32: 0.8
B33: PR34 RCV and totex annual growth rate as % of PR19 | D33: 0.7
B34: PR39 RCV and totex annual growth rate as % of PR19 | D34: 0.6
B35: PR44 RCV and totex annual growth rate as % of PR19 | D35: 0.5
B37: Notional gearing level | D37: 0.6
B38: Share of embedded debt in total | D38: 0.7
B39: CSA uplift on embedded debt
B40: CSA uplift on new debt
B41: Implied overall uplift on cost of debt | C41: =(C38*C39)+((1-C38)*C40) -> 0
B43: Base year (for PV calcs) | C43: 2017/18 | D43: 2017/18
B44: Real discount rate | C44: 0.035 | D44: 0.035
B45: Share of capex in totex | C45: 0.6 | D45: 0.6
B48: User-defined multipliers for merger probabilities:
B50: Same company multiplier | C50: 0 | D50: 0% = companies cannot merge with themselves
B51: WaSC-WoC multiplier | C51: 1 | D51: 100% = No higher or lower probability of WaSC-WoC merger
B52: Adjoining/within multiplier | C52: 1 | D52: 100% = No higher or lower probability of mergers involving companies with overlapping or touching service areas
B53: Gearing >70% multiplier | C53: 1 | D53: 100% = No higher or lower probability of merger with a company geared above 70% in 2017/18
B54: Small company merger multiplier | C54: 0 | D54: 0% = small companies will not merge with each other
C57: List of independent comparators (do not change)
C58: ANH
C59: NES
C60: SRN
C61: SVE
C62: SWB
C63: TMS
C64: UUW
C65: WSH
C66: WSX
C67: YKY
C68: AFW
C69: BRL
C70: PRT
C71: SES
C72: SEW
C73: SSC
B74: Number of independent comparators, PR24-PR44 | C74: =COUNTA(C58:C73) -> 16

Sheet CBA Summary
A1: =RIGHT(CELL("filename", $A$1), LEN(CELL("filename", $A$1)) - SEARCH("]", CELL("filename", $A$1))) -> CBA Summary
A2: This sheet presents discounted cost-benefit results after both modelling macros have been run which are used to inform the estimate of net benefits to providing an uplift in NPV terms.
A4: Company | B4: ='Control sheet'!C28 -> 0
A5: Discount rate | B5: ='Control sheet'!C44 -> 0.035
A6: Base year | B6: ='Control sheet'!C43 -> 2017/18
C8: PR19 | D8: PR24 | E8: PR29 | F8: PR34 | G8: PR39 | H8: PR44
B9: Midpoint | C9: 2022/23 | D9: 2027/28 | E9: 2032/33 | F9: 2037/38 | G9: 2042/43 | H9: 2047/48
B10: Years from base year | C10: =LEFT(C9,4)-LEFT($B$6,4) -> 5 | D10: 10 | E10: 15 | F10: 20 | G10: 25 | H10: 30
B11: Discount factor | C11: =(1/(1+$B$5)^C10) -> 0.8419731669 | D11: 0.7089188137 | E11: 0.5968906186 | F11: 0.5025658844 | G11: 0.4231469893 | H11: 0.3562784106
B13: Cashflows
B14: Benefits | C14: 0 | D14: =AVERAGEIF(Benefits!$B:$B,"Benefits",Benefits!C:C) ->  | E14: =AVERAGEIF(Benefits!$B:$B,"Benefits",Benefits!D:D) ->  | F14: =AVERAGEIF(Benefits!$B:$B,"Benefits",Benefits!E:E) ->  | G14: =AVERAGEIF(Benefits!$B:$B,"Benefits",Benefits!F:F) ->  | H14: =AVERAGEIF(Benefits!$B:$B,"Benefits",Benefits!G:G) -> 
B15: Cost | C15: =TRANSPOSE(Costs!B16:B21) -> 
C17: Unadjusted | D17: Scaled 1/4 | E17: Scaled: 2/4
B18: ="PV Benefits ("&B6&" prices & values)" -> PV Benefits (2017/18 prices & values) | C18: =SUMPRODUCT(C11:H11,C14:H14) ->  | D18: =C18*(1/4) ->  | E18: =C18*(2/4) -> 
B20: ="PV Costs ("&B6&" prices & values)" -> PV Costs (2017/18 prices & values) | C20: =SUMPRODUCT(C11:H11,C15:H15) ->  | D20: =SUMPRODUCT(C11:H11,C15:H15) ->  | E20: =SUMPRODUCT(C11:H11,C15:H15) -> 
B21: NPV | C21: =C18-C20 ->  | D21: =D18-D20 ->  | E21: =E18-E20 -> 
B23: Average rank | C23: =MATCH(B4,'Merger calcs'!G7:G22,0) ->  | D23: =AVERAGEIF(Benefits!$B:$B,"Rank",Benefits!C:C) ->  | E23: =AVERAGEIF(Benefits!$B:$B,"Rank",Benefits!D:D) ->  | F23: =AVERAGEIF(Benefits!$B:$B,"Rank",Benefits!E:E) ->  | G23: =AVERAGEIF(Benefits!$B:$B,"Rank",Benefits!F:F) ->  | H23: =AVERAGEIF(Benefits!$B:$B,"Rank",Benefits!G:G) -> 

Sheet Benefits
A1: This sheet uses a macro to write the benefits of each CSA company for each trial and price control as well as the corresponding rank.

Sheet Costs
A1: =RIGHT(CELL("filename", $A$1), LEN(CELL("filename", $A$1)) - SEARCH("]", CELL("filename", $A$1))) -> Costs
A2: This sheet forecasts the cost of providing each company's proposed uplift for price controls PR19 - PR44
A4: Company | B4: ='Control sheet'!C28 -> 0 | C4: PR19 | H4: PR24 | M4: PR29 | R4: PR34 | W4: PR39 | AB4: PR44
C5: 1 | D5: =C5+1 -> 2 | E5: =D5+1 -> 3 | F5: 4 | G5: 5 | H5: 6 | I5: 7 | J5: 8 | K5: 9 | L5: 10 | M5: 11 | N5: 12 | O5: 13 | P5: 14 | Q5: 15 | R5: 16 | S5: 17 | T5: 18 | U5: 19 | V5: 20 | W5: 21 | X5: 22 | Y5: 23 | Z5: 24 | AA5: 25 | AB5: 26 | AC5: 27 | AD5: 28 | AE5: 29 | AF5: 30
B6: Units: | C6: 2020/21 | D6: 2021/22 | E6: 2022/23 | F6: 2023/24 | G6: 2024/25 | H6: 2025-26 | I6: 2026-27 | J6: 2027-28 | K6: 2028-29 | L6: 2029-30 | M6: 2030-31 | N6: 2031-32 | O6: 2032-33 | P6: 2033-34 | Q6: 2034-35 | R6: 2035-36 | S6: 2036-37 | T6: 2037-38 | U6: 2038-39 | V6: 2039-40 | W6: 2040-41 | X6: 2041-42 | Y6: 2042-43 | Z6: 2043-44 | AA6: 2044-45 | AB6: 2045-46 | AC6: 2046-47 | AD6: 2047-48 | AE6: 2048-49 | AF6: 2049-50
A7: RCV | B7: £m, 2017/18 prices | C7: =VLOOKUP($B$4,'RCV & totex projections'!$B$10:$AK$29,C5+6,FALSE) ->  | D7: =VLOOKUP($B$4,'RCV & totex projections'!$B$10:$AK$29,D5+6,FALSE) ->  | E7: =VLOOKUP($B$4,'RCV & totex projections'!$B$10:$AK$29,E5+6,FALSE) ->  | F7: =VLOOKUP($B$4,'RCV & totex projections'!$B$10:$AK$29,F5+6,FALSE) ->  | G7: =VLOOKUP($B$4,'RCV & totex projections'!$B$10:$AK$29,G5+6,FALSE) ->  | H7: =VLOOKUP($B$4,'RCV & totex projections'!$B$10:$AK$29,H5+6,FALSE) ->  | I7: =VLOOKUP($B$4,'RCV & totex projections'!$B$10:$AK$29,I5+6,FALSE) ->  | J7: =VLOOKUP($B$4,'RCV & totex projections'!$B$10:$AK$29,J5+6,FALSE) ->  | K7: =VLOOKUP($B$4,'RCV & totex projections'!$B$10:$AK$29,K5+6,FALSE) ->  | L7: =VLOOKUP($B$4,'RCV & totex projections'!$B$10:$AK$29,L5+6,FALSE) ->  | M7: =VLOOKUP($B$4,'RCV & totex projections'!$B$10:$AK$29,M5+6,FALSE) ->  | N7: =VLOOKUP($B$4,'RCV & totex projections'!$B$10:$AK$29,N5+6,FALSE) ->  | O7: =VLOOKUP($B$4,'RCV & totex projections'!$B$10:$AK$29,O5+6,FALSE) ->  | P7: =VLOOKUP($B$4,'RCV & totex projections'!$B$10:$AK$29,P5+6,FALSE) ->  | Q7: =VLOOKUP($B$4,'RCV & totex projections'!$B$10:$AK$29,Q5+6,FALSE) ->  | R7: =VLOOKUP($B$4,'RCV & totex projections'!$B$10:$AK$29,R5+6,FALSE) ->  | S7: =VLOOKUP($B$4,'RCV & totex projections'!$B$10:$AK$29,S5+6,FALSE) ->  | T7: =VLOOKUP($B$4,'RCV & totex projections'!$B$10:$AK$29,T5+6,FALSE) ->  | U7: =VLOOKUP($B$4,'RCV & totex projections'!$B$10:$AK$29,U5+6,FALSE) ->  | V7: =VLOOKUP($B$4,'RCV & totex projections'!$B$10:$AK$29,V5+6,FALSE) ->  | W7: =VLOOKUP($B$4,'RCV & totex projections'!$B$10:$AK$29,W5+6,FALSE) ->  | X7: =VLOOKUP($B$4,'RCV & totex projections'!$B$10:$AK$29,X5+6,FALSE) ->  | Y7: =VLOOKUP($B$4,'RCV & totex projections'!$B$10:$AK$29,Y5+6,FALSE) ->  | Z7: =VLOOKUP($B$4,'RCV & totex projections'!$B$10:$AK$29,Z5+6,FALSE) ->  | AA7: =VLOOKUP($B$4,'RCV & totex projections'!$B$10:$AK$29,AA5+6,FALSE) ->  | AB7: =VLOOKUP($B$4,'RCV & totex projections'!$B$10:$AK$29,AB5+6,FALSE) ->  | AC7: =VLOOKUP($B$4,'RCV & totex projections'!$B$10:$AK$29,AC5+6,FALSE) ->  | AD7: =VLOOKUP($B$4,'RCV & totex projections'!$B$10:$AK$29,AD5+6,FALSE) ->  | AE7: =VLOOKUP($B$4,'RCV & totex projections'!$B$10:$AK$29,AE5+6,FALSE) ->  | AF7: =VLOOKUP($B$4,'RCV & totex projections'!$B$10:$AK$29,AF5+6,FALSE) -> 
A8: Notional gearing | B8: % | C8: ='Control sheet'!$C$37 -> 0 | D8: ='Control sheet'!$C$37 -> 0 | E8: ='Control sheet'!$C$37 -> 0 | F8: ='Control sheet'!$C$37 -> 0 | G8: ='Control sheet'!$C$37 -> 0 | H8: ='Control sheet'!$C$37 -> 0 | I8: ='Control sheet'!$C$37 -> 0 | J8: ='Control sheet'!$C$37 -> 0 | K8: ='Control sheet'!$C$37 -> 0 | L8: ='Control sheet'!$C$37 -> 0 | M8: ='Control sheet'!$C$37 -> 0 | N8: ='Control sheet'!$C$37 -> 0 | O8: ='Control sheet'!$C$37 -> 0 | P8: ='Control sheet'!$C$37 -> 0 | Q8: ='Control sheet'!$C$37 -> 0 | R8: ='Control sheet'!$C$37 -> 0 | S8: ='Control sheet'!$C$37 -> 0 | T8: ='Control sheet'!$C$37 -> 0 | U8: ='Control sheet'!$C$37 -> 0 | V8: ='Control sheet'!$C$37 -> 0 | W8: ='Control sheet'!$C$37 -> 0 | X8: ='Control sheet'!$C$37 -> 0 | Y8: ='Control sheet'!$C$37 -> 0 | Z8: ='Control sheet'!$C$37 -> 0 | AA8: ='Control sheet'!$C$37 -> 0 | AB8: ='Control sheet'!$C$37 -> 0 | AC8: ='Control sheet'!$C$37 -> 0 | AD8: ='Control sheet'!$C$37 -> 0 | AE8: ='Control sheet'!$C$37 -> 0 | AF8: ='Control sheet'!$C$37 -> 0
A9: Share of embedded debt | B9: % | C9: ='Control sheet'!$C$38 -> 0 | D9: ='Control sheet'!$C$38 -> 0 | E9: ='Control sheet'!$C$38 -> 0 | F9: ='Control sheet'!$C$38 -> 0 | G9: ='Control sheet'!$C$38 -> 0 | H9: ='Control sheet'!$C$38 -> 0 | I9: ='Control sheet'!$C$38 -> 0 | J9: ='Control sheet'!$C$38 -> 0 | K9: ='Control sheet'!$C$38 -> 0 | L9: ='Control sheet'!$C$38 -> 0 | M9: ='Control sheet'!$C$38 -> 0 | N9: ='Control sheet'!$C$38 -> 0 | O9: ='Control sheet'!$C$38 -> 0 | P9: ='Control sheet'!$C$38 -> 0 | Q9: ='Control sheet'!$C$38 -> 0 | R9: ='Control sheet'!$C$38 -> 0 | S9: ='Control sheet'!$C$38 -> 0 | T9: ='Control sheet'!$C$38 -> 0 | U9: ='Control sheet'!$C$38 -> 0 | V9: ='Control sheet'!$C$38 -> 0 | W9: ='Control sheet'!$C$38 -> 0 | X9: ='Control sheet'!$C$38 -> 0 | Y9: ='Control sheet'!$C$38 -> 0 | Z9: ='Control sheet'!$C$38 -> 0 | AA9: ='Control sheet'!$C$38 -> 0 | AB9: ='Control sheet'!$C$38 -> 0 | AC9: ='Control sheet'!$C$38 -> 0 | AD9: ='Control sheet'!$C$38 -> 0 | AE9: ='Control sheet'!$C$38 -> 0 | AF9: ='Control sheet'!$C$38 -> 0
A10: Uplift to embedded debt | B10: % | C10: ='Control sheet'!$C$39 -> 0 | D10: ='Control sheet'!$C$39 -> 0 | E10: ='Control sheet'!$C$39 -> 0 | F10: ='Control sheet'!$C$39 -> 0 | G10: ='Control sheet'!$C$39 -> 0 | H10: ='Control sheet'!$C$39 -> 0 | I10: ='Control sheet'!$C$39 -> 0 | J10: ='Control sheet'!$C$39 -> 0 | K10: ='Control sheet'!$C$39 -> 0 | L10: ='Control sheet'!$C$39 -> 0 | M10: ='Control sheet'!$C$39 -> 0 | N10: ='Control sheet'!$C$39 -> 0 | O10: ='Control sheet'!$C$39 -> 0 | P10: ='Control sheet'!$C$39 -> 0 | Q10: ='Control sheet'!$C$39 -> 0 | R10: ='Control sheet'!$C$39 -> 0 | S10: ='Control sheet'!$C$39 -> 0 | T10: ='Control sheet'!$C$39 -> 0 | U10: ='Control sheet'!$C$39 -> 0 | V10: ='Control sheet'!$C$39 -> 0 | W10: ='Control sheet'!$C$39 -> 0 | X10: ='Control sheet'!$C$39 -> 0 | Y10: ='Control sheet'!$C$39 -> 0 | Z10: ='Control sheet'!$C$39 -> 0 | AA10: ='Control sheet'!$C$39 -> 0 | AB10: ='Control sheet'!$C$39 -> 0 | AC10: ='Control sheet'!$C$39 -> 0 | AD10: ='Control sheet'!$C$39 -> 0 | AE10: ='Control sheet'!$C$39 -> 0 | AF10: ='Control sheet'!$C$39 -> 0
A11: Uplift to new debt | B11: % | C11: ='Control sheet'!$C$40 -> 0 | D11: ='Control sheet'!$C$40 -> 0 | E11: ='Control sheet'!$C$40 -> 0 | F11: ='Control sheet'!$C$40 -> 0 | G11: ='Control sheet'!$C$40 -> 0 | H11: ='Control sheet'!$C$40 -> 0 | I11: ='Control sheet'!$C$40 -> 0 | J11: ='Control sheet'!$C$40 -> 0 | K11: ='Control sheet'!$C$40 -> 0 | L11: ='Control sheet'!$C$40 -> 0 | M11: ='Control sheet'!$C$40 -> 0 | N11: ='Control sheet'!$C$40 -> 0 | O11: ='Control sheet'!$C$40 -> 0 | P11: ='Control sheet'!$C$40 -> 0 | Q11: ='Control sheet'!$C$40 -> 0 | R11: ='Control sheet'!$C$40 -> 0 | S11: ='Control sheet'!$C$40 -> 0 | T11: ='Control sheet'!$C$40 -> 0 | U11: ='Control sheet'!$C$40 -> 0 | V11: ='Control sheet'!$C$40 -> 0 | W11: ='Control sheet'!$C$40 -> 0 | X11: ='Control sheet'!$C$40 -> 0 | Y11: ='Control sheet'!$C$40 -> 0 | Z11: ='Control sheet'!$C$40 -> 0 | AA11: ='Control sheet'!$C$40 -> 0 | AB11: ='Control sheet'!$C$40 -> 0 | AC11: ='Control sheet'!$C$40 -> 0 | AD11: ='Control sheet'!$C$40 -> 0 | AE11: ='Control sheet'!$C$40 -> 0 | AF11: ='Control sheet'!$C$40 -> 0
A12: Cost (embedded debt only) | B12: £m, 2017/18 prices | C12: =C7*C8*C9*C10 ->  | D12: =D7*D8*D9*D10 ->  | E12: =E7*E8*E9*E10 ->  | F12: =F7*F8*F9*F10 ->  | G12: =G7*G8*G9*G10 ->  | H12: =H7*H8*H9*H10 -> 
A13: Cost (new debt only) | B13: £m, 2017/18 prices | C13: =C7*C8*(1-C9)*C11 ->  | D13: =D7*D8*(1-D9)*D11 ->  | E13: =E7*E8*(1-E9)*E11 ->  | F13: =F7*F8*(1-F9)*F11 ->  | G13: =G7*G8*(1-G9)*G11 ->  | H13: =H7*H8*(1-H9)*H11 -> 
A14: Total cost | B14: £m, 2017/18 prices | C14: =SUM(C12:C13) ->  | D14: =SUM(D12:D13) ->  | E14: =SUM(E12:E13) ->  | F14: =SUM(F12:F13) ->  | G14: =SUM(G12:G13) ->  | H14: =SUM(H12:H13) -> 
A16: PR19 costs | B16: =SUM(C14:G14) -> 
A17: PR24 costs | B17: =SUM(H14:L14) -> 
A18: PR29 costs | B18: =SUM(M14:Q14) -> 
A19: PR34 costs | B19: =SUM(R14:V14) -> 
A20: PR39 costs | B20: =SUM(W14:AA14) -> 
A21: PR44 costs | B21: =SUM(AB14:AF14) -> 

Sheet Outputs
A1: This sheet uses a macro to write the rank transitions and efficiency scores for the 5 price controls of each trial

Sheet Modification feeder calcs->

Sheet RCV & totex growth rates
A1: =RIGHT(CELL("filename", $A$1), LEN(CELL("filename", $A$1)) - SEARCH("]", CELL("filename", $A$1))) -> RCV & totex growth rates
A2: This sheet uses input assumptions to generate RCV and totex growth rates based on the forecast 2020-25 trend
B4: PR19 Growth rates (nominal) | J4: PR24 Growth rates | L4: PR29 Growth rates | N4: PR34 Growth rates | P4: PR39 Growth rates | R4: PR44 Growth rates
J5: Scaling w.r.t. PR19 | K5: ='Control sheet'!C31 -> 0 | L5: Scaling w.r.t. PR19 | M5: ='Control sheet'!C32 -> 0 | N5: Scaling w.r.t. PR19 | O5: ='Control sheet'!C33 -> 0 | P5: Scaling w.r.t. PR19 | Q5: ='Control sheet'!C34 -> 0 | R5: Scaling w.r.t. PR19 | S5: ='Control sheet'!C35 -> 0
B6: 1 | C6: =B6+1 -> 2 | D6: =C6+1 -> 3 | E6: 4 | F6: 5 | G6: 6 | H6: 7 | I6: 8 | J6: =I6+1 -> 9 | K6: 10 | L6: 11 | M6: 12 | N6: 13 | O6: 14 | P6: 15 | Q6: 16 | R6: 17 | S6: 18
B7: Company | C7: Company | D7: 2020-21 | E7: 2021-22 | F7: 2022-23 | G7: 2023-24 | H7: 2024-25 | I7: CAGR | K7: CAGR | M7: CAGR | O7: CAGR | Q7: CAGR | S7: CAGR
B8: AFW | C8: AFW | D8: =VLOOKUP($B8,'RCV & totex projections'!$B$10:$M$30,7,FALSE) -> 1207.576918 | E8: =VLOOKUP($B8,'RCV & totex projections'!$B$10:$M$30,8,FALSE) -> 1264.304856 | F8: =VLOOKUP($B8,'RCV & totex projections'!$B$10:$M$30,9,FALSE) -> 1307.000892 | G8: =VLOOKUP($B8,'RCV & totex projections'!$B$10:$M$30,10,FALSE) -> 1327.57028 | H8: =VLOOKUP($B8,'RCV & totex projections'!$B$10:$M$30,11,FALSE) -> 1324.461347 | I8: =((H8/D8)^(1/5))-1 -> 0.01864978306 | K8: =$I8*$K$5 -> 0 | M8: =$I8*$M$5 -> 0 | O8: =$I8*$O$5 -> 0 | Q8: =$I8*$Q$5 -> 0 | S8: =$I8*$S$5 -> 0
B9: BRL | C9: BRL | D9: =VLOOKUP($B9,'RCV & totex projections'!$B$10:$M$30,7,FALSE) -> 526.4254844 | E9: =VLOOKUP($B9,'RCV & totex projections'!$B$10:$M$30,8,FALSE) -> 524.7439178 | F9: =VLOOKUP($B9,'RCV & totex projections'!$B$10:$M$30,9,FALSE) -> 523.6775104 | G9: =VLOOKUP($B9,'RCV & totex projections'!$B$10:$M$30,10,FALSE) -> 522.4160922 | H9: =VLOOKUP($B9,'RCV & totex projections'!$B$10:$M$30,11,FALSE) -> 521.9686441 | I9: =((H9/D9)^(1/5))-1 -> -0.001699009876 | K9: =$I9*$K$5 -> 0 | M9: =$I9*$M$5 -> 0 | O9: =$I9*$O$5 -> 0 | Q9: =$I9*$Q$5 -> 0 | S9: =$I9*$S$5 -> 0
B10: DVW | C10: DVW
B11: PRT | C11: PRT | D11: =VLOOKUP($B11,'RCV & totex projections'!$B$10:$M$30,7,FALSE) -> 157.2707671 | E11: =VLOOKUP($B11,'RCV & totex projections'!$B$10:$M$30,8,FALSE) -> 165.7006166 | F11: =VLOOKUP($B11,'RCV & totex projections'!$B$10:$M$30,9,FALSE) -> 174.6397362 | G11: =VLOOKUP($B11,'RCV & totex projections'!$B$10:$M$30,10,FALSE) -> 196.0193042 | H11: =VLOOKUP($B11,'RCV & totex projections'!$B$10:$M$30,11,FALSE) -> 220.2655931 | I11: 0.06969442299 | K11: =$I11*$K$5 -> 0 | M11: 0 | O11: 0 | Q11: 0 | S11: 0
B12: SES | C12: SES | D12: =VLOOKUP($B12,'RCV & totex projections'!$B$10:$M$30,7,FALSE) -> 259.3660387 | E12: =VLOOKUP($B12,'RCV & totex projections'!$B$10:$M$30,8,FALSE) -> 271.5360035 | F12: =VLOOKUP($B12,'RCV & totex projections'!$B$10:$M$30,9,FALSE) -> 278.2760735 | G12: =VLOOKUP($B12,'RCV & totex projections'!$B$10:$M$30,10,FALSE) -> 279.2186075 | H12: =VLOOKUP($B12,'RCV & totex projections'!$B$10:$M$30,11,FALSE) -> 279.0526761 | I12: 0.01473961769 | K12: 0 | M12: 0 | O12: 0 | Q12: 0 | S12: 0
B13: SEW | C13: SEW | D13: =VLOOKUP($B13,'RCV & totex projections'!$B$10:$M$30,7,FALSE) -> 1339.038107 | E13: =VLOOKUP($B13,'RCV & totex projections'!$B$10:$M$30,8,FALSE) -> 1370.677306 | F13: =VLOOKUP($B13,'RCV & totex projections'!$B$10:$M$30,9,FALSE) -> 1409.956357 | G13: =VLOOKUP($B13,'RCV & totex projections'!$B$10:$M$30,10,FALSE) -> 1426.166172 | H13: =VLOOKUP($B13,'RCV & totex projections'!$B$10:$M$30,11,FALSE) -> 1449.209445 | I13: 0.0159390267 | K13: 0 | M13: 0 | O13: 0 | Q13: 0 | S13: 0
B14: SSC | C14: SSC | D14: =VLOOKUP($B14,'RCV & totex projections'!$B$10:$M$30,7,FALSE) -> 393.2295378 | E14: =VLOOKUP($B14,'RCV & totex projections'!$B$10:$M$30,8,FALSE) -> 419.3651989 | F14: =VLOOKUP($B14,'RCV & totex projections'!$B$10:$M$30,9,FALSE) -> 445.2213818 | G14: =VLOOKUP($B14,'RCV & totex projections'!$B$10:$M$30,10,FALSE) -> 446.8717521 | H14: =VLOOKUP($B14,'RCV & totex projections'!$B$10:$M$30,11,FALSE) -> 451.5233645 | I14: 0.02803243964 | K14: 0 | M14: 0 | O14: 0 | Q14: 0 | S14: 0
B15: ANH | C15: ANH | D15: =VLOOKUP($B15,'RCV & totex projections'!$B$10:$M$30,7,FALSE) -> 7717.359027 | E15: =VLOOKUP($B15,'RCV & totex projections'!$B$10:$M$30,8,FALSE) -> 7981.023251 | F15: =VLOOKUP($B15,'RCV & totex projections'!$B$10:$M$30,9,FALSE) -> 8291.733643 | G15: =VLOOKUP($B15,'RCV & totex projections'!$B$10:$M$30,10,FALSE) -> 8681.845321 | H15: =VLOOKUP($B15,'RCV & totex projections'!$B$10:$M$30,11,FALSE) -> 8866.071504 | I15: 0.02814058975 | K15: 0 | M15: 0 | O15: 0 | Q15: 0 | S15: 0
B16: NES | C16: NES | D16: =VLOOKUP($B16,'RCV & totex projections'!$B$10:$M$30,7,FALSE) -> 4008.488583 | E16: =VLOOKUP($B16,'RCV & totex projections'!$B$10:$M$30,8,FALSE) -> 4080.882907 | F16: =VLOOKUP($B16,'RCV & totex projections'!$B$10:$M$30,9,FALSE) -> 4175.933089 | G16: =VLOOKUP($B16,'RCV & totex projections'!$B$10:$M$30,10,FALSE) -> 4310.480341 | H16: =VLOOKUP($B16,'RCV & totex projections'!$B$10:$M$30,11,FALSE) -> 4360.035263 | I16: 0.01695531429 | K16: 0 | M16: 0 | O16: 0 | Q16: 0 | S16: 0
B17: SRN | C17: SRN | D17: =VLOOKUP($B17,'RCV & totex projections'!$B$10:$M$30,7,FALSE) -> 4911.931774 | E17: =VLOOKUP($B17,'RCV & totex projections'!$B$10:$M$30,8,FALSE) -> 5124.147153 | F17: =VLOOKUP($B17,'RCV & totex projections'!$B$10:$M$30,9,FALSE) -> 5342.678418 | G17: =VLOOKUP($B17,'RCV & totex projections'!$B$10:$M$30,10,FALSE) -> 5417.496258 | H17: =VLOOKUP($B17,'RCV & totex projections'!$B$10:$M$30,11,FALSE) -> 5440.553595 | I17: 0.02065308693 | K17: 0 | M17: 0 | O17: 0 | Q17: 0 | S17: 0
B18: SVE | C18: SVT | D18: =VLOOKUP($B18,'RCV & totex projections'!$B$10:$M$30,7,FALSE) -> 8950.995579 | E18: =VLOOKUP($B18,'RCV & totex projections'!$B$10:$M$30,8,FALSE) -> 8979.626858 | F18: =VLOOKUP($B18,'RCV & totex projections'!$B$10:$M$30,9,FALSE) -> 9030.550338 | G18: =VLOOKUP($B18,'RCV & totex projections'!$B$10:$M$30,10,FALSE) -> 9075.038836 | H18: =VLOOKUP($B18,'RCV & totex projections'!$B$10:$M$30,11,FALSE) -> 9051.903159 | I18: 0.002244568369 | K18: 0 | M18: 0 | O18: 0 | Q18: 0 | S18: 0
B19: SWT | C19: SWT
B20: BWH | C20: BWH
B21: SWB | C21: SWB | D21: =VLOOKUP($B21,'RCV & totex projections'!$B$10:$M$30,7,FALSE) -> 3243.888232 | E21: =VLOOKUP($B21,'RCV & totex projections'!$B$10:$M$30,8,FALSE) -> 3239.112512 | F21: =VLOOKUP($B21,'RCV & totex projections'!$B$10:$M$30,9,FALSE) -> 3239.027497 | G21: =VLOOKUP($B21,'RCV & totex projections'!$B$10:$M$30,10,FALSE) -> 3230.728896 | H21: =VLOOKUP($B21,'RCV & totex projections'!$B$10:$M$30,11,FALSE) -> 3207.822635 | I21: -0.002233558235 | K21: 0 | M21: 0 | O21: 0 | Q21: 0 | S21: 0
B22: TMS | C22: TMS | D22: =VLOOKUP($B22,'RCV & totex projections'!$B$10:$M$30,7,FALSE) -> 14437.48499 | E22: =VLOOKUP($B22,'RCV & totex projections'!$B$10:$M$30,8,FALSE) -> 15221.5004 | F22: =VLOOKUP($B22,'RCV & totex projections'!$B$10:$M$30,9,FALSE) -> 15954.29873 | G22: =VLOOKUP($B22,'RCV & totex projections'!$B$10:$M$30,10,FALSE) -> 16437.66353 | H22: =VLOOKUP($B22,'RCV & totex projections'!$B$10:$M$30,11,FALSE) -> 16820.92531 | I22: 0.03103086691 | K22: 0 | M22: 0 | O22: 0 | Q22: 0 | S22: 0
B23: UUW | C23: UUW | D23: =VLOOKUP($B23,'RCV & totex projections'!$B$10:$M$30,7,FALSE) -> 11163.49753 | E23: =VLOOKUP($B23,'RCV & totex projections'!$B$10:$M$30,8,FALSE) -> 11054.6141 | F23: =VLOOKUP($B23,'RCV & totex projections'!$B$10:$M$30,9,FALSE) -> 10888.93085 | G23: =VLOOKUP($B23,'RCV & totex projections'!$B$10:$M$30,10,FALSE) -> 10870.5977 | H23: =VLOOKUP($B23,'RCV & totex projections'!$B$10:$M$30,11,FALSE) -> 10770.69058 | I23: -0.007138538198 | K23: 0 | M23: 0 | O23: 0 | Q23: 0 | S23: 0
B24: WSH | C24: WSH | D24: =VLOOKUP($B24,'RCV & totex projections'!$B$10:$M$30,7,FALSE) -> 5817.169637 | E24: =VLOOKUP($B24,'RCV & totex projections'!$B$10:$M$30,8,FALSE) -> 5941.708557 | F24: =VLOOKUP($B24,'RCV & totex projections'!$B$10:$M$30,9,FALSE) -> 6064.235155 | G24: =VLOOKUP($B24,'RCV & totex projections'!$B$10:$M$30,10,FALSE) -> 6160.687508 | H24: =VLOOKUP($B24,'RCV & totex projections'!$B$10:$M$30,11,FALSE) -> 6243.283721 | I24: 0.01423891208 | K24: 0 | M24: 0 | O24: 0 | Q24: 0 | S24: 0
B25: WSX | C25: WSX | D25: =VLOOKUP($B25,'RCV & totex projections'!$B$10:$M$30,7,FALSE) -> 3187.641345 | E25: =VLOOKUP($B25,'RCV & totex projections'!$B$10:$M$30,8,FALSE) -> 3275.720094 | F25: =VLOOKUP($B25,'RCV & totex projections'!$B$10:$M$30,9,FALSE) -> 3369.862379 | G25: =VLOOKUP($B25,'RCV & totex projections'!$B$10:$M$30,10,FALSE) -> 3435.608721 | H25: =VLOOKUP($B25,'RCV & totex projections'!$B$10:$M$30,11,FALSE) -> 3472.985755 | I25: 0.01729453202 | K25: 0 | M25: 0 | O25: 0 | Q25: 0 | S25: 0
B26: YKY | C26: YKY | D26: =VLOOKUP($B26,'RCV & totex projections'!$B$10:$M$30,7,FALSE) -> 6867.186124 | E26: =VLOOKUP($B26,'RCV & totex projections'!$B$10:$M$30,8,FALSE) -> 7200.757161 | F26: =VLOOKUP($B26,'RCV & totex projections'!$B$10:$M$30,9,FALSE) -> 7423.963405 | G26: =VLOOKUP($B26,'RCV & totex projections'!$B$10:$M$30,10,FALSE) -> 7500.951851 | H26: =VLOOKUP($B26,'RCV & totex projections'!$B$10:$M$30,11,FALSE) -> 7424.879132 | I26: 0.01573896765 | K26: 0 | M26: 0 | O26: 0 | Q26: 0 | S26: 0
C27: SECTOR | D27: =SUM(D8:D26)-D21 -> 70944.66145 | E27: =SUM(E8:E26)-E21 -> 72876.30837 | F27: =SUM(F8:F26)-F21 -> 74680.95796 | G27: =SUM(G8:G26)-G21 -> 76088.63227 | H27: =SUM(H8:H26)-H21 -> 76697.80909 | I27: 0.01571682756 | K27: 0 | M27: 0 | O27: 0 | Q27: 0 | S27: 0
F39: `

Sheet RCV & totex projections
A1: =RIGHT(CELL("filename", $A$1), LEN(CELL("filename", $A$1)) - SEARCH("]", CELL("filename", $A$1))) -> RCV & totex projections
A2: This sheet uses assumptions on RCV and totex growth to generate a forecast profile of RCV growth and pre-efficiency challeng totex for each control
C5: PR14 | H5: PR19 | M5: PR24 | R5: PR29 | W5: PR34 | AB5: PR39 | AG5: PR44
B6: RCV | E6: Outturn | F6: Extrapolation | G6: Extrapolation | H6: Business plan submission | I6: Business plan submission | J6: Business plan submission | K6: Business plan submission | L6: Business plan submission | M6: Extrapolated forecast | N6: Extrapolated forecast | O6: Extrapolated forecast | P6: Extrapolated forecast | Q6: Extrapolated forecast | R6: Extrapolated forecast | S6: Extrapolated forecast | T6: Extrapolated forecast | U6: Extrapolated forecast | V6: Extrapolated forecast | W6: Extrapolated forecast | X6: Extrapolated forecast | Y6: Extrapolated forecast | Z6: Extrapolated forecast | AA6: Extrapolated forecast | AB6: Extrapolated forecast | AC6: Extrapolated forecast | AD6: Extrapolated forecast | AE6: Extrapolated forecast | AF6: Extrapolated forecast | AG6: Extrapolated forecast | AH6: Extrapolated forecast | AI6: Extrapolated forecast | AJ6: Extrapolated forecast | AK6: Extrapolated forecast
E7: (£m, March 2018 prices) | H7: (£m, 2017/18 prices) | I7: (£m, 2017/18 prices) | J7: (£m, 2017/18 prices) | K7: (£m, 2017/18 prices) | L7: (£m, 2017/18 prices) | M7: (£m, 2017/18 prices) | N7: (£m, 2017/18 prices) | O7: (£m, 2017/18 prices) | P7: (£m, 2017/18 prices) | Q7: (£m, 2017/18 prices) | R7: (£m, 2017/18 prices) | S7: (£m, 2017/18 prices) | T7: (£m, 2017/18 prices) | U7: (£m, 2017/18 prices) | V7: (£m, 2017/18 prices) | W7: (£m, 2017/18 prices) | X7: (£m, 2017/18 prices) | Y7: (£m, 2017/18 prices) | Z7: (£m, 2017/18 prices) | AA7: (£m, 2017/18 prices) | AB7: (£m, 2017/18 prices) | AC7: (£m, 2017/18 prices) | AD7: (£m, 2017/18 prices) | AE7: (£m, 2017/18 prices) | AF7: (£m, 2017/18 prices) | AG7: (£m, 2017/18 prices) | AH7: (£m, 2017/18 prices) | AI7: (£m, 2017/18 prices) | AJ7: (£m, 2017/18 prices) | AK7: (£m, 2017/18 prices)
B8: 1 | C8: 2 | D8: 3 | E8: 4 | F8: 5 | G8: =F8+1 -> 6 | H8: 7 | I8: 8 | J8: 9 | K8: 10 | L8: 11 | M8: 12 | N8: 13 | O8: 14 | P8: 15 | Q8: 16 | R8: 17 | S8: 18 | T8: 19 | U8: 20 | V8: 21 | W8: 22 | X8: 23 | Y8: 24 | Z8: 25 | AA8: 26 | AB8: 27 | AC8: 28 | AD8: 29 | AE8: 30 | AF8: 31 | AG8: 32 | AH8: 33 | AI8: 34 | AJ8: 35 | AK8: 36
C9: 2015-16 | D9: 2016-17 | E9: 2017-18 | F9: 2018-19 | G9: 2019-20 | H9: 2020-21 | I9: 2021-22 | J9: 2022-23 | K9: 2023-24 | L9: 2024-25 | M9: 2025-26 | N9: 2026-27 | O9: 2027-28 | P9: 2028-29 | Q9: 2029-30 | R9: 2030-31 | S9: 2031-32 | T9: 2032-33 | U9: 2033-34 | V9: 2034-35 | W9: 2035-36 | X9: 2036-37 | Y9: 2037-38 | Z9: 2038-39 | AA9: 2039-40 | AB9: 2040-41 | AC9: 2041-42 | AD9: 2042-43 | AE9: 2043-44 | AF9: 2044-45 | AG9: 2045-46 | AH9: 2046-47 | AI9: 2047-48 | AJ9: 2048-49 | AK9: 2049-50
B10: AFW | E10: 1207.134957 | F10: =E10*(1+VLOOKUP(B10,'RCV & totex growth rates'!$B$8:$X$27,8,FALSE)) -> 1229.647762 | G10: =F10*(1+VLOOKUP(B10,'RCV & totex growth rates'!$B$8:$X$27,8,FALSE)) -> 1252.580426 | H10: 1207.576918 | I10: 1264.304856 | J10: 1307.000892 | K10: 1327.57028 | L10: 1324.461347 | M10: =L10*(1+VLOOKUP($B10,'RCV & totex growth rates'!$B$8:$S$27,10,FALSE)) -> 1324.461347 | N10: =M10*(1+VLOOKUP($B10,'RCV & totex growth rates'!$B$8:$S$27,10,FALSE)) -> 1324.461347 | O10: =N10*(1+VLOOKUP($B10,'RCV & totex growth rates'!$B$8:$S$27,10,FALSE)) -> 1324.461347 | P10: =O10*(1+VLOOKUP($B10,'RCV & totex growth rates'!$B$8:$S$27,10,FALSE)) -> 1324.461347 | Q10: =P10*(1+VLOOKUP($B10,'RCV & totex growth rates'!$B$8:$S$27,10,FALSE)) -> 1324.461347 | R10: =Q10*(1+VLOOKUP($B10,'RCV & totex growth rates'!$B$8:$S$27,12,FALSE)) -> 1324.461347 | S10: =R10*(1+VLOOKUP($B10,'RCV & totex growth rates'!$B$8:$S$27,12,FALSE)) -> 1324.461347 | T10: =S10*(1+VLOOKUP($B10,'RCV & totex growth rates'!$B$8:$S$27,12,FALSE)) -> 1324.461347 | U10: =T10*(1+VLOOKUP($B10,'RCV & totex growth rates'!$B$8:$S$27,12,FALSE)) -> 1324.461347 | V10: =U10*(1+VLOOKUP($B10,'RCV & totex growth rates'!$B$8:$S$27,12,FALSE)) -> 1324.461347 | W10: =V10*(1+VLOOKUP($B10,'RCV & totex growth rates'!$B$8:$S$27,14,FALSE)) -> 1324.461347 | X10: =W10*(1+VLOOKUP($B10,'RCV & totex growth rates'!$B$8:$S$27,14,FALSE)) -> 1324.461347 | Y10: =X10*(1+VLOOKUP($B10,'RCV & totex growth rates'!$B$8:$S$27,14,FALSE)) -> 1324.461347 | Z10: =Y10*(1+VLOOKUP($B10,'RCV & totex growth rates'!$B$8:$S$27,14,FALSE)) -> 1324.461347 | AA10: =Z10*(1+VLOOKUP($B10,'RCV & totex growth rates'!$B$8:$S$27,14,FALSE)) -> 1324.461347 | AB10: =AA10*(1+VLOOKUP($B10,'RCV & totex growth rates'!$B$8:$S$27,16,FALSE)) -> 1324.461347 | AC10: =AB10*(1+VLOOKUP($B10,'RCV & totex growth rates'!$B$8:$S$27,16,FALSE)) -> 1324.461347 | AD10: =AC10*(1+VLOOKUP($B10,'RCV & totex growth rates'!$B$8:$S$27,16,FALSE)) -> 1324.461347 | AE10: =AD10*(1+VLOOKUP($B10,'RCV & totex growth rates'!$B$8:$S$27,16,FALSE)) -> 1324.461347 | AF10: =AE10*(1+VLOOKUP($B10,'RCV & totex growth rates'!$B$8:$S$27,16,FALSE)) -> 1324.461347 | AG10: =AF10*(1+VLOOKUP($B10,'RCV & totex growth rates'!$B$8:$S$27,18,FALSE)) -> 1324.461347 | AH10: =AG10*(1+VLOOKUP($B10,'RCV & totex growth rates'!$B$8:$S$27,18,FALSE)) -> 1324.461347 | AI10: =AH10*(1+VLOOKUP($B10,'RCV & totex growth rates'!$B$8:$S$27,18,FALSE)) -> 1324.461347 | AJ10: =AI10*(1+VLOOKUP($B10,'RCV & totex growth rates'!$B$8:$S$27,18,FALSE)) -> 1324.461347 | AK10: =AJ10*(1+VLOOKUP($B10,'RCV & totex growth rates'!$B$8:$S$27,18,FALSE)) -> 1324.461347
B11: BRL | E11: 502.2697259 | F11: =E11*(1+VLOOKUP(B11,'RCV & totex growth rates'!$B$8:$X$27,8,FALSE)) -> 501.4163647 | G11: =F11*(1+VLOOKUP(B11,'RCV & totex growth rates'!$B$8:$X$27,8,FALSE)) -> 500.5644533 | H11: 526.4254844 | I11: 524.7439178 | J11: 523.6775104 | K11: 522.4160922 | L11: 521.9686441 | M11: =L11*(1+VLOOKUP($B11,'RCV & totex growth rates'!$B$8:$S$27,10,FALSE)) -> 521.9686441 | N11: =M11*(1+VLOOKUP($B11,'RCV & totex growth rates'!$B$8:$S$27,10,FALSE)) -> 521.9686441 | O11: =N11*(1+VLOOKUP($B11,'RCV & totex growth rates'!$B$8:$S$27,10,FALSE)) -> 521.9686441 | P11: =O11*(1+VLOOKUP($B11,'RCV & totex growth rates'!$B$8:$S$27,10,FALSE)) -> 521.9686441 | Q11: =P11*(1+VLOOKUP($B11,'RCV & totex growth rates'!$B$8:$S$27,10,FALSE)) -> 521.9686441 | R11: =Q11*(1+VLOOKUP($B11,'RCV & totex growth rates'!$B$8:$S$27,12,FALSE)) -> 521.9686441 | S11: =R11*(1+VLOOKUP($B11,'RCV & totex growth rates'!$B$8:$S$27,12,FALSE)) -> 521.9686441 | T11: =S11*(1+VLOOKUP($B11,'RCV & totex growth rates'!$B$8:$S$27,12,FALSE)) -> 521.9686441 | U11: =T11*(1+VLOOKUP($B11,'RCV & totex growth rates'!$B$8:$S$27,12,FALSE)) -> 521.9686441 | V11: =U11*(1+VLOOKUP($B11,'RCV & totex growth rates'!$B$8:$S$27,12,FALSE)) -> 521.9686441 | W11: =V11*(1+VLOOKUP($B11,'RCV & totex growth rates'!$B$8:$S$27,14,FALSE)) -> 521.9686441 | X11: =W11*(1+VLOOKUP($B11,'RCV & totex growth rates'!$B$8:$S$27,14,FALSE)) -> 521.9686441 | Y11: =X11*(1+VLOOKUP($B11,'RCV & totex growth rates'!$B$8:$S$27,14,FALSE)) -> 521.9686441 | Z11: =Y11*(1+VLOOKUP($B11,'RCV & totex growth rates'!$B$8:$S$27,14,FALSE)) -> 521.9686441 | AA11: =Z11*(1+VLOOKUP($B11,'RCV & totex growth rates'!$B$8:$S$27,14,FALSE)) -> 521.9686441 | AB11: =AA11*(1+VLOOKUP($B11,'RCV & totex growth rates'!$B$8:$S$27,16,FALSE)) -> 521.9686441 | AC11: =AB11*(1+VLOOKUP($B11,'RCV & totex growth rates'!$B$8:$S$27,16,FALSE)) -> 521.9686441 | AD11: =AC11*(1+VLOOKUP($B11,'RCV & totex growth rates'!$B$8:$S$27,16,FALSE)) -> 521.9686441 | AE11: =AD11*(1+VLOOKUP($B11,'RCV & totex growth rates'!$B$8:$S$27,16,FALSE)) -> 521.9686441 | AF11: =AE11*(1+VLOOKUP($B11,'RCV & totex growth rates'!$B$8:$S$27,16,FALSE)) -> 521.9686441 | AG11: =AF11*(1+VLOOKUP($B11,'RCV & totex growth rates'!$B$8:$S$27,18,FALSE)) -> 521.9686441 | AH11: =AG11*(1+VLOOKUP($B11,'RCV & totex growth rates'!$B$8:$S$27,18,FALSE)) -> 521.9686441 | AI11: =AH11*(1+VLOOKUP($B11,'RCV & totex growth rates'!$B$8:$S$27,18,FALSE)) -> 521.9686441 | AJ11: =AI11*(1+VLOOKUP($B11,'RCV & totex growth rates'!$B$8:$S$27,18,FALSE)) -> 521.9686441 | AK11: =AJ11*(1+VLOOKUP($B11,'RCV & totex growth rates'!$B$8:$S$27,18,FALSE)) -> 521.9686441
B12: DVW | E12: 98.95341892
B13: PRT | E13: 144.2110224 | F13: =E13*(1+VLOOKUP(B13,'RCV & totex growth rates'!$B$8:$X$27,8,FALSE)) -> 154.2617264 | G13: =F13*(1+VLOOKUP(B13,'RCV & totex growth rates'!$B$8:$X$27,8,FALSE)) -> 165.0129084 | H13: 157.2707671 | I13: 165.7006166 | J13: 174.6397362 | K13: 196.0193042 | L13: 220.2655931 | M13: =L13*(1+VLOOKUP($B13,'RCV & totex growth rates'!$B$8:$S$27,10,FALSE)) -> 220.2655931 | N13: =M13*(1+VLOOKUP($B13,'RCV & totex growth rates'!$B$8:$S$27,10,FALSE)) -> 220.2655931 | O13: =N13*(1+VLOOKUP($B13,'RCV & totex growth rates'!$B$8:$S$27,10,FALSE)) -> 220.2655931 | P13: =O13*(1+VLOOKUP($B13,'RCV & totex growth rates'!$B$8:$S$27,10,FALSE)) -> 220.2655931 | Q13: =P13*(1+VLOOKUP($B13,'RCV & totex growth rates'!$B$8:$S$27,10,FALSE)) -> 220.2655931 | R13: =Q13*(1+VLOOKUP($B13,'RCV & totex growth rates'!$B$8:$S$27,12,FALSE)) -> 220.2655931 | S13: =R13*(1+VLOOKUP($B13,'RCV & totex growth rates'!$B$8:$S$27,12,FALSE)) -> 220.2655931 | T13: =S13*(1+VLOOKUP($B13,'RCV & totex growth rates'!$B$8:$S$27,12,FALSE)) -> 220.2655931 | U13: =T13*(1+VLOOKUP($B13,'RCV & totex growth rates'!$B$8:$S$27,12,FALSE)) -> 220.2655931 | V13: =U13*(1+VLOOKUP($B13,'RCV & totex growth rates'!$B$8:$S$27,12,FALSE)) -> 220.2655931 | W13: =V13*(1+VLOOKUP($B13,'RCV & totex growth rates'!$B$8:$S$27,14,FALSE)) -> 220.2655931 | X13: =W13*(1+VLOOKUP($B13,'RCV & totex growth rates'!$B$8:$S$27,14,FALSE)) -> 220.2655931 | Y13: =X13*(1+VLOOKUP($B13,'RCV & totex growth rates'!$B$8:$S$27,14,FALSE)) -> 220.2655931 | Z13: =Y13*(1+VLOOKUP($B13,'RCV & totex growth rates'!$B$8:$S$27,14,FALSE)) -> 220.2655931 | AA13: =Z13*(1+VLOOKUP($B13,'RCV & totex growth rates'!$B$8:$S$27,14,FALSE)) -> 220.2655931 | AB13: =AA13*(1+VLOOKUP($B13,'RCV & totex growth rates'!$B$8:$S$27,16,FALSE)) -> 220.2655931 | AC13: =AB13*(1+VLOOKUP($B13,'RCV & totex growth rates'!$B$8:$S$27,16,FALSE)) -> 220.2655931 | AD13: =AC13*(1+VLOOKUP($B13,'RCV & totex growth rates'!$B$8:$S$27,16,FALSE)) -> 220.2655931 | AE13: =AD13*(1+VLOOKUP($B13,'RCV & totex growth rates'!$B$8:$S$27,16,FALSE)) -> 220.2655931 | AF13: =AE13*(1+VLOOKUP($B13,'RCV & totex growth rates'!$B$8:$S$27,16,FALSE)) -> 220.2655931 | AG13: =AF13*(1+VLOOKUP($B13,'RCV & totex growth rates'!$B$8:$S$27,18,FALSE)) -> 220.2655931 | AH13: =AG13*(1+VLOOKUP($B13,'RCV & totex growth rates'!$B$8:$S$27,18,FALSE)) -> 220.2655931 | AI13: =AH13*(1+VLOOKUP($B13,'RCV & totex growth rates'!$B$8:$S$27,18,FALSE)) -> 220.2655931 | AJ13: =AI13*(1+VLOOKUP($B13,'RCV & totex growth rates'!$B$8:$S$27,18,FALSE)) -> 220.2655931 | AK13: =AJ13*(1+VLOOKUP($B13,'RCV & totex growth rates'!$B$8:$S$27,18,FALSE)) -> 220.2655931
B14: SES | E14: 250.030695 | F14: =E14*(1+VLOOKUP(B14,'RCV & totex growth rates'!$B$8:$X$27,8,FALSE)) -> 253.7160519 | G14: =F14*(1+VLOOKUP(B14,'RCV & totex growth rates'!$B$8:$X$27,8,FALSE)) -> 257.4557295 | H14: 259.3660387 | I14: 271.5360035 | J14: 278.2760735 | K14: 279.2186075 | L14: 279.0526761 | M14: =L14*(1+VLOOKUP($B14,'RCV & totex growth rates'!$B$8:$S$27,10,FALSE)) -> 279.0526761 | N14: =M14*(1+VLOOKUP($B14,'RCV & totex growth rates'!$B$8:$S$27,10,FALSE)) -> 279.0526761 | O14: =N14*(1+VLOOKUP($B14,'RCV & totex growth rates'!$B$8:$S$27,10,FALSE)) -> 279.0526761 | P14: =O14*(1+VLOOKUP($B14,'RCV & totex growth rates'!$B$8:$S$27,10,FALSE)) -> 279.0526761 | Q14: =P14*(1+VLOOKUP($B14,'RCV & totex growth rates'!$B$8:$S$27,10,FALSE)) -> 279.0526761 | R14: =Q14*(1+VLOOKUP($B14,'RCV & totex growth rates'!$B$8:$S$27,12,FALSE)) -> 279.0526761 | S14: =R14*(1+VLOOKUP($B14,'RCV & totex growth rates'!$B$8:$S$27,12,FALSE)) -> 279.0526761 | T14: =S14*(1+VLOOKUP($B14,'RCV & totex growth rates'!$B$8:$S$27,12,FALSE)) -> 279.0526761 | U14: =T14*(1+VLOOKUP($B14,'RCV & totex growth rates'!$B$8:$S$27,12,FALSE)) -> 279.0526761 | V14: =U14*(1+VLOOKUP($B14,'RCV & totex growth rates'!$B$8:$S$27,12,FALSE)) -> 279.0526761 | W14: =V14*(1+VLOOKUP($B14,'RCV & totex growth rates'!$B$8:$S$27,14,FALSE)) -> 279.0526761 | X14: =W14*(1+VLOOKUP($B14,'RCV & totex growth rates'!$B$8:$S$27,14,FALSE)) -> 279.0526761 | Y14: =X14*(1+VLOOKUP($B14,'RCV & totex growth rates'!$B$8:$S$27,14,FALSE)) -> 279.0526761 | Z14: =Y14*(1+VLOOKUP($B14,'RCV & totex growth rates'!$B$8:$S$27,14,FALSE)) -> 279.0526761 | AA14: =Z14*(1+VLOOKUP($B14,'RCV & totex growth rates'!$B$8:$S$27,14,FALSE)) -> 279.0526761 | AB14: =AA14*(1+VLOOKUP($B14,'RCV & totex growth rates'!$B$8:$S$27,16,FALSE)) -> 279.0526761 | AC14: =AB14*(1+VLOOKUP($B14,'RCV & totex growth rates'!$B$8:$S$27,16,FALSE)) -> 279.0526761 | AD14: =AC14*(1+VLOOKUP($B14,'RCV & totex growth rates'!$B$8:$S$27,16,FALSE)) -> 279.0526761 | AE14: =AD14*(1+VLOOKUP($B14,'RCV & totex growth rates'!$B$8:$S$27,16,FALSE)) -> 279.0526761 | AF14: =AE14*(1+VLOOKUP($B14,'RCV & totex growth rates'!$B$8:$S$27,16,FALSE)) -> 279.0526761 | AG14: =AF14*(1+VLOOKUP($B14,'RCV & totex growth rates'!$B$8:$S$27,18,FALSE)) -> 279.0526761 | AH14: =AG14*(1+VLOOKUP($B14,'RCV & totex growth rates'!$B$8:$S$27,18,FALSE)) -> 279.0526761 | AI14: =AH14*(1+VLOOKUP($B14,'RCV & totex growth rates'!$B$8:$S$27,18,FALSE)) -> 279.0526761 | AJ14: =AI14*(1+VLOOKUP($B14,'RCV & totex growth rates'!$B$8:$S$27,18,FALSE)) -> 279.0526761 | AK14: =AJ14*(1+VLOOKUP($B14,'RCV & totex growth rates'!$B$8:$S$27,18,FALSE)) -> 279.0526761
B15: SEW | E15: 1307.508572 | F15: =E15*(1+VLOOKUP(B15,'RCV & totex growth rates'!$B$8:$X$27,8,FALSE)) -> 1328.348986 | G15: =F15*(1+VLOOKUP(B15,'RCV & totex growth rates'!$B$8:$X$27,8,FALSE)) -> 1349.521576 | H15: 1339.038107 | I15: 1370.677306 | J15: 1409.956357 | K15: 1426.166172 | L15: 1449.209445 | M15: =L15*(1+VLOOKUP($B15,'RCV & totex growth rates'!$B$8:$S$27,10,FALSE)) -> 1449.209445 | N15: =M15*(1+VLOOKUP($B15,'RCV & totex growth rates'!$B$8:$S$27,10,FALSE)) -> 1449.209445 | O15: =N15*(1+VLOOKUP($B15,'RCV & totex growth rates'!$B$8:$S$27,10,FALSE)) -> 1449.209445 | P15: =O15*(1+VLOOKUP($B15,'RCV & totex growth rates'!$B$8:$S$27,10,FALSE)) -> 1449.209445 | Q15: =P15*(1+VLOOKUP($B15,'RCV & totex growth rates'!$B$8:$S$27,10,FALSE)) -> 1449.209445 | R15: =Q15*(1+VLOOKUP($B15,'RCV & totex growth rates'!$B$8:$S$27,12,FALSE)) -> 1449.209445 | S15: =R15*(1+VLOOKUP($B15,'RCV & totex growth rates'!$B$8:$S$27,12,FALSE)) -> 1449.209445 | T15: =S15*(1+VLOOKUP($B15,'RCV & totex growth rates'!$B$8:$S$27,12,FALSE)) -> 1449.209445 | U15: =T15*(1+VLOOKUP($B15,'RCV & totex growth rates'!$B$8:$S$27,12,FALSE)) -> 1449.209445 | V15: =U15*(1+VLOOKUP($B15,'RCV & totex growth rates'!$B$8:$S$27,12,FALSE)) -> 1449.209445 | W15: =V15*(1+VLOOKUP($B15,'RCV & totex growth rates'!$B$8:$S$27,14,FALSE)) -> 1449.209445 | X15: =W15*(1+VLOOKUP($B15,'RCV & totex growth rates'!$B$8:$S$27,14,FALSE)) -> 1449.209445 | Y15: =X15*(1+VLOOKUP($B15,'RCV & totex growth rates'!$B$8:$S$27,14,FALSE)) -> 1449.209445 | Z15: =Y15*(1+VLOOKUP($B15,'RCV & totex growth rates'!$B$8:$S$27,14,FALSE)) -> 1449.209445 | AA15: =Z15*(1+VLOOKUP($B15,'RCV & totex growth rates'!$B$8:$S$27,14,FALSE)) -> 1449.209445 | AB15: =AA15*(1+VLOOKUP($B15,'RCV & totex growth rates'!$B$8:$S$27,16,FALSE)) -> 1449.209445 | AC15: =AB15*(1+VLOOKUP($B15,'RCV & totex growth rates'!$B$8:$S$27,16,FALSE)) -> 1449.209445 | AD15: =AC15*(1+VLOOKUP($B15,'RCV & totex growth rates'!$B$8:$S$27,16,FALSE)) -> 1449.209445 | AE15: =AD15*(1+VLOOKUP($B15,'RCV & totex growth rates'!$B$8:$S$27,16,FALSE)) -> 1449.209445 | AF15: =AE15*(1+VLOOKUP($B15,'RCV & totex growth rates'!$B$8:$S$27,16,FALSE)) -> 1449.209445 | AG15: =AF15*(1+VLOOKUP($B15,'RCV & totex growth rates'!$B$8:$S$27,18,FALSE)) -> 1449.209445 | AH15: =AG15*(1+VLOOKUP($B15,'RCV & totex growth rates'!$B$8:$S$27,18,FALSE)) -> 1449.209445 | AI15: =AH15*(1+VLOOKUP($B15,'RCV & totex growth rates'!$B$8:$S$27,18,FALSE)) -> 1449.209445 | AJ15: =AI15*(1+VLOOKUP($B15,'RCV & totex growth rates'!$B$8:$S$27,18,FALSE)) -> 1449.209445 | AK15: =AJ15*(1+VLOOKUP($B15,'RCV & totex growth rates'!$B$8:$S$27,18,FALSE)) -> 1449.209445
B16: SSC | E16: 364.3509385 | F16: =E16*(1+VLOOKUP(B16,'RCV & totex growth rates'!$B$8:$X$27,8,FALSE)) -> 374.5645842 | G16: =F16*(1+VLOOKUP(B16,'RCV & totex growth rates'!$B$8:$X$27,8,FALSE)) -> 385.0645433 | H16: 393.2295378 | I16: 419.3651989 | J16: 445.2213818 | K16: 446.8717521 | L16: 451.5233645 | M16: =L16*(1+VLOOKUP($B16,'RCV & totex growth rates'!$B$8:$S$27,10,FALSE)) -> 451.5233645 | N16: =M16*(1+VLOOKUP($B16,'RCV & totex growth rates'!$B$8:$S$27,10,FALSE)) -> 451.5233645 | O16: =N16*(1+VLOOKUP($B16,'RCV & totex growth rates'!$B$8:$S$27,10,FALSE)) -> 451.5233645 | P16: =O16*(1+VLOOKUP($B16,'RCV & totex growth rates'!$B$8:$S$27,10,FALSE)) -> 451.5233645 | Q16: =P16*(1+VLOOKUP($B16,'RCV & totex growth rates'!$B$8:$S$27,10,FALSE)) -> 451.5233645 | R16: =Q16*(1+VLOOKUP($B16,'RCV & totex growth rates'!$B$8:$S$27,12,FALSE)) -> 451.5233645 | S16: =R16*(1+VLOOKUP($B16,'RCV & totex growth rates'!$B$8:$S$27,12,FALSE)) -> 451.5233645 | T16: =S16*(1+VLOOKUP($B16,'RCV & totex growth rates'!$B$8:$S$27,12,FALSE)) -> 451.5233645 | U16: =T16*(1+VLOOKUP($B16,'RCV & totex growth rates'!$B$8:$S$27,12,FALSE)) -> 451.5233645 | V16: =U16*(1+VLOOKUP($B16,'RCV & totex growth rates'!$B$8:$S$27,12,FALSE)) -> 451.5233645 | W16: =V16*(1+VLOOKUP($B16,'RCV & totex growth rates'!$B$8:$S$27,14,FALSE)) -> 451.5233645 | X16: =W16*(1+VLOOKUP($B16,'RCV & totex growth rates'!$B$8:$S$27,14,FALSE)) -> 451.5233645 | Y16: =X16*(1+VLOOKUP($B16,'RCV & totex growth rates'!$B$8:$S$27,14,FALSE)) -> 451.5233645 | Z16: =Y16*(1+VLOOKUP($B16,'RCV & totex growth rates'!$B$8:$S$27,14,FALSE)) -> 451.5233645 | AA16: =Z16*(1+VLOOKUP($B16,'RCV & totex growth rates'!$B$8:$S$27,14,FALSE)) -> 451.5233645 | AB16: =AA16*(1+VLOOKUP($B16,'RCV & totex growth rates'!$B$8:$S$27,16,FALSE)) -> 451.5233645 | AC16: =AB16*(1+VLOOKUP($B16,'RCV & totex growth rates'!$B$8:$S$27,16,FALSE)) -> 451.5233645 | AD16: =AC16*(1+VLOOKUP($B16,'RCV & totex growth rates'!$B$8:$S$27,16,FALSE)) -> 451.5233645 | AE16: =AD16*(1+VLOOKUP($B16,'RCV & totex growth rates'!$B$8:$S$27,16,FALSE)) -> 451.5233645 | AF16: =AE16*(1+VLOOKUP($B16,'RCV & totex growth rates'!$B$8:$S$27,16,FALSE)) -> 451.5233645 | AG16: =AF16*(1+VLOOKUP($B16,'RCV & totex growth rates'!$B$8:$S$27,18,FALSE)) -> 451.5233645 | AH16: =AG16*(1+VLOOKUP($B16,'RCV & totex growth rates'!$B$8:$S$27,18,FALSE)) -> 451.5233645 | AI16: =AH16*(1+VLOOKUP($B16,'RCV & totex growth rates'!$B$8:$S$27,18,FALSE)) -> 451.5233645 | AJ16: =AI16*(1+VLOOKUP($B16,'RCV & totex growth rates'!$B$8:$S$27,18,FALSE)) -> 451.5233645 | AK16: =AJ16*(1+VLOOKUP($B16,'RCV & totex growth rates'!$B$8:$S$27,18,FALSE)) -> 451.5233645
B17: ANH | E17: 7722.209221 | F17: =E17*(1+VLOOKUP(B17,'RCV & totex growth rates'!$B$8:$X$27,8,FALSE)) -> 7939.516743 | G17: =F17*(1+VLOOKUP(B17,'RCV & totex growth rates'!$B$8:$X$27,8,FALSE)) -> 8162.939427 | H17: 7717.359027 | I17: 7981.023251 | J17: 8291.733643 | K17: 8681.845321 | L17: 8866.071504 | M17: =L17*(1+VLOOKUP($B17,'RCV & totex growth rates'!$B$8:$S$27,10,FALSE)) -> 8866.071504 | N17: =M17*(1+VLOOKUP($B17,'RCV & totex growth rates'!$B$8:$S$27,10,FALSE)) -> 8866.071504 | O17: =N17*(1+VLOOKUP($B17,'RCV & totex growth rates'!$B$8:$S$27,10,FALSE)) -> 8866.071504 | P17: =O17*(1+VLOOKUP($B17,'RCV & totex growth rates'!$B$8:$S$27,10,FALSE)) -> 8866.071504 | Q17: =P17*(1+VLOOKUP($B17,'RCV & totex growth rates'!$B$8:$S$27,10,FALSE)) -> 8866.071504 | R17: =Q17*(1+VLOOKUP($B17,'RCV & totex growth rates'!$B$8:$S$27,12,FALSE)) -> 8866.071504 | S17: =R17*(1+VLOOKUP($B17,'RCV & totex growth rates'!$B$8:$S$27,12,FALSE)) -> 8866.071504 | T17: =S17*(1+VLOOKUP($B17,'RCV & totex growth rates'!$B$8:$S$27,12,FALSE)) -> 8866.071504 | U17: =T17*(1+VLOOKUP($B17,'RCV & totex growth rates'!$B$8:$S$27,12,FALSE)) -> 8866.071504 | V17: =U17*(1+VLOOKUP($B17,'RCV & totex growth rates'!$B$8:$S$27,12,FALSE)) -> 8866.071504 | W17: =V17*(1+VLOOKUP($B17,'RCV & totex growth rates'!$B$8:$S$27,14,FALSE)) -> 8866.071504 | X17: =W17*(1+VLOOKUP($B17,'RCV & totex growth rates'!$B$8:$S$27,14,FALSE)) -> 8866.071504 | Y17: =X17*(1+VLOOKUP($B17,'RCV & totex growth rates'!$B$8:$S$27,14,FALSE)) -> 8866.071504 | Z17: =Y17*(1+VLOOKUP($B17,'RCV & totex growth rates'!$B$8:$S$27,14,FALSE)) -> 8866.071504 | AA17: =Z17*(1+VLOOKUP($B17,'RCV & totex growth rates'!$B$8:$S$27,14,FALSE)) -> 8866.071504 | AB17: =AA17*(1+VLOOKUP($B17,'RCV & totex growth rates'!$B$8:$S$27,16,FALSE)) -> 8866.071504 | AC17: =AB17*(1+VLOOKUP($B17,'RCV & totex growth rates'!$B$8:$S$27,16,FALSE)) -> 8866.071504 | AD17: =AC17*(1+VLOOKUP($B17,'RCV & totex growth rates'!$B$8:$S$27,16,FALSE)) -> 8866.071504 | AE17: =AD17*(1+VLOOKUP($B17,'RCV & totex growth rates'!$B$8:$S$27,16,FALSE)) -> 8866.071504 | AF17: =AE17*(1+VLOOKUP($B17,'RCV & totex growth rates'!$B$8:$S$27,16,FALSE)) -> 8866.071504 | AG17: =AF17*(1+VLOOKUP($B17,'RCV & totex growth rates'!$B$8:$S$27,18,FALSE)) -> 8866.071504 | AH17: =AG17*(1+VLOOKUP($B17,'RCV & totex growth rates'!$B$8:$S$27,18,FALSE)) -> 8866.071504 | AI17: =AH17*(1+VLOOKUP($B17,'RCV & totex growth rates'!$B$8:$S$27,18,FALSE)) -> 8866.071504 | AJ17: =AI17*(1+VLOOKUP($B17,'RCV & totex growth rates'!$B$8:$S$27,18,FALSE)) -> 8866.071504 | AK17: =AJ17*(1+VLOOKUP($B17,'RCV & totex growth rates'!$B$8:$S$27,18,FALSE)) -> 8866.071504
B18: NES | E18: 4182.254924 | F18: =E18*(1+VLOOKUP(B18,'RCV & totex growth rates'!$B$8:$X$27,8,FALSE)) -> 4253.166371 | G18: =F18*(1+VLOOKUP(B18,'RCV & totex growth rates'!$B$8:$X$27,8,FALSE)) -> 4325.280143 | H18: 4008.488583 | I18: 4080.882907 | J18: 4175.933089 | K18: 4310.480341 | L18: 4360.035263 | M18: =L18*(1+VLOOKUP($B18,'RCV & totex growth rates'!$B$8:$S$27,10,FALSE)) -> 4360.035263 | N18: =M18*(1+VLOOKUP($B18,'RCV & totex growth rates'!$B$8:$S$27,10,FALSE)) -> 4360.035263 | O18: =N18*(1+VLOOKUP($B18,'RCV & totex growth rates'!$B$8:$S$27,10,FALSE)) -> 4360.035263 | P18: =O18*(1+VLOOKUP($B18,'RCV & totex growth rates'!$B$8:$S$27,10,FALSE)) -> 4360.035263 | Q18: =P18*(1+VLOOKUP($B18,'RCV & totex growth rates'!$B$8:$S$27,10,FALSE)) -> 4360.035263 | R18: =Q18*(1+VLOOKUP($B18,'RCV & totex growth rates'!$B$8:$S$27,12,FALSE)) -> 4360.035263 | S18: =R18*(1+VLOOKUP($B18,'RCV & totex growth rates'!$B$8:$S$27,12,FALSE)) -> 4360.035263 | T18: =S18*(1+VLOOKUP($B18,'RCV & totex growth rates'!$B$8:$S$27,12,FALSE)) -> 4360.035263 | U18: =T18*(1+VLOOKUP($B18,'RCV & totex growth rates'!$B$8:$S$27,12,FALSE)) -> 4360.035263 | V18: =U18*(1+VLOOKUP($B18,'RCV & totex growth rates'!$B$8:$S$27,12,FALSE)) -> 4360.035263 | W18: =V18*(1+VLOOKUP($B18,'RCV & totex growth rates'!$B$8:$S$27,14,FALSE)) -> 4360.035263 | X18: =W18*(1+VLOOKUP($B18,'RCV & totex growth rates'!$B$8:$S$27,14,FALSE)) -> 4360.035263 | Y18: =X18*(1+VLOOKUP($B18,'RCV & totex growth rates'!$B$8:$S$27,14,FALSE)) -> 4360.035263 | Z18: =Y18*(1+VLOOKUP($B18,'RCV & totex growth rates'!$B$8:$S$27,14,FALSE)) -> 4360.035263 | AA18: =Z18*(1+VLOOKUP($B18,'RCV & totex growth rates'!$B$8:$S$27,14,FALSE)) -> 4360.035263 | AB18: =AA18*(1+VLOOKUP($B18,'RCV & totex growth rates'!$B$8:$S$27,16,FALSE)) -> 4360.035263 | AC18: =AB18*(1+VLOOKUP($B18,'RCV & totex growth rates'!$B$8:$S$27,16,FALSE)) -> 4360.035263 | AD18: =AC18*(1+VLOOKUP($B18,'RCV & totex growth rates'!$B$8:$S$27,16,FALSE)) -> 4360.035263 | AE18: =AD18*(1+VLOOKUP($B18,'RCV & totex growth rates'!$B$8:$S$27,16,FALSE)) -> 4360.035263 | AF18: =AE18*(1+VLOOKUP($B18,'RCV & totex growth rates'!$B$8:$S$27,16,FALSE)) -> 4360.035263 | AG18: =AF18*(1+VLOOKUP($B18,'RCV & totex growth rates'!$B$8:$S$27,18,FALSE)) -> 4360.035263 | AH18: =AG18*(1+VLOOKUP($B18,'RCV & totex growth rates'!$B$8:$S$27,18,FALSE)) -> 4360.035263 | AI18: =AH18*(1+VLOOKUP($B18,'RCV & totex growth rates'!$B$8:$S$27,18,FALSE)) -> 4360.035263 | AJ18: =AI18*(1+VLOOKUP($B18,'RCV & totex growth rates'!$B$8:$S$27,18,FALSE)) -> 4360.035263 | AK18: =AJ18*(1+VLOOKUP($B18,'RCV & totex growth rates'!$B$8:$S$27,18,FALSE)) -> 4360.035263
B19: SRN | E19: 4864.742424 | F19: =E19*(1+VLOOKUP(B19,'RCV & totex growth rates'!$B$8:$X$27,8,FALSE)) -> 4965.214373 | G19: =F19*(1+VLOOKUP(B19,'RCV & totex growth rates'!$B$8:$X$27,8,FALSE)) -> 5067.761377 | H19: 4911.931774 | I19: 5124.147153 | J19: 5342.678418 | K19: 5417.496258 | L19: 5440.553595 | M19: =L19*(1+VLOOKUP($B19,'RCV & totex growth rates'!$B$8:$S$27,10,FALSE)) -> 5440.553595 | N19: =M19*(1+VLOOKUP($B19,'RCV & totex growth rates'!$B$8:$S$27,10,FALSE)) -> 5440.553595 | O19: =N19*(1+VLOOKUP($B19,'RCV & totex growth rates'!$B$8:$S$27,10,FALSE)) -> 5440.553595 | P19: =O19*(1+VLOOKUP($B19,'RCV & totex growth rates'!$B$8:$S$27,10,FALSE)) -> 5440.553595 | Q19: =P19*(1+VLOOKUP($B19,'RCV & totex growth rates'!$B$8:$S$27,10,FALSE)) -> 5440.553595 | R19: =Q19*(1+VLOOKUP($B19,'RCV & totex growth rates'!$B$8:$S$27,12,FALSE)) -> 5440.553595 | S19: =R19*(1+VLOOKUP($B19,'RCV & totex growth rates'!$B$8:$S$27,12,FALSE)) -> 5440.553595 | T19: =S19*(1+VLOOKUP($B19,'RCV & totex growth rates'!$B$8:$S$27,12,FALSE)) -> 5440.553595 | U19: =T19*(1+VLOOKUP($B19,'RCV & totex growth rates'!$B$8:$S$27,12,FALSE)) -> 5440.553595 | V19: =U19*(1+VLOOKUP($B19,'RCV & totex growth rates'!$B$8:$S$27,12,FALSE)) -> 5440.553595 | W19: =V19*(1+VLOOKUP($B19,'RCV & totex growth rates'!$B$8:$S$27,14,FALSE)) -> 5440.553595 | X19: =W19*(1+VLOOKUP($B19,'RCV & totex growth rates'!$B$8:$S$27,14,FALSE)) -> 5440.553595 | Y19: =X19*(1+VLOOKUP($B19,'RCV & totex growth rates'!$B$8:$S$27,14,FALSE)) -> 5440.553595 | Z19: =Y19*(1+VLOOKUP($B19,'RCV & totex growth rates'!$B$8:$S$27,14,FALSE)) -> 5440.553595 | AA19: =Z19*(1+VLOOKUP($B19,'RCV & totex growth rates'!$B$8:$S$27,14,FALSE)) -> 5440.553595 | AB19: =AA19*(1+VLOOKUP($B19,'RCV & totex growth rates'!$B$8:$S$27,16,FALSE)) -> 5440.553595 | AC19: =AB19*(1+VLOOKUP($B19,'RCV & totex growth rates'!$B$8:$S$27,16,FALSE)) -> 5440.553595 | AD19: =AC19*(1+VLOOKUP($B19,'RCV & totex growth rates'!$B$8:$S$27,16,FALSE)) -> 5440.553595 | AE19: =AD19*(1+VLOOKUP($B19,'RCV & totex growth rates'!$B$8:$S$27,16,FALSE)) -> 5440.553595 | AF19: =AE19*(1+VLOOKUP($B19,'RCV & totex growth rates'!$B$8:$S$27,16,FALSE)) -> 5440.553595 | AG19: =AF19*(1+VLOOKUP($B19,'RCV & totex growth rates'!$B$8:$S$27,18,FALSE)) -> 5440.553595 | AH19: =AG19*(1+VLOOKUP($B19,'RCV & totex growth rates'!$B$8:$S$27,18,FALSE)) -> 5440.553595 | AI19: =AH19*(1+VLOOKUP($B19,'RCV & totex growth rates'!$B$8:$S$27,18,FALSE)) -> 5440.553595 | AJ19: =AI19*(1+VLOOKUP($B19,'RCV & totex growth rates'!$B$8:$S$27,18,FALSE)) -> 5440.553595 | AK19: =AJ19*(1+VLOOKUP($B19,'RCV & totex growth rates'!$B$8:$S$27,18,FALSE)) -> 5440.553595
B20: SVT | E20: 8739.95764
B21: SVE | E21: =E12+E20 -> 8838.911059 | F21: =E21*(1+VLOOKUP(B21,'RCV & totex growth rates'!$B$8:$X$27,8,FALSE)) -> 8858.750599 | G21: =F21*(1+VLOOKUP(B21,'RCV & totex growth rates'!$B$8:$X$27,8,FALSE)) -> 8878.634671 | H21: 8950.995579 | I21: 8979.626858 | J21: 9030.550338 | K21: 9075.038836 | L21: 9051.903159 | M21: =L21*(1+VLOOKUP($B21,'RCV & totex growth rates'!$B$8:$S$27,10,FALSE)) -> 9051.903159 | N21: =M21*(1+VLOOKUP($B21,'RCV & totex growth rates'!$B$8:$S$27,10,FALSE)) -> 9051.903159 | O21: =N21*(1+VLOOKUP($B21,'RCV & totex growth rates'!$B$8:$S$27,10,FALSE)) -> 9051.903159 | P21: =O21*(1+VLOOKUP($B21,'RCV & totex growth rates'!$B$8:$S$27,10,FALSE)) -> 9051.903159 | Q21: =P21*(1+VLOOKUP($B21,'RCV & totex growth rates'!$B$8:$S$27,10,FALSE)) -> 9051.903159 | R21: =Q21*(1+VLOOKUP($B21,'RCV & totex growth rates'!$B$8:$S$27,12,FALSE)) -> 9051.903159 | S21: =R21*(1+VLOOKUP($B21,'RCV & totex growth rates'!$B$8:$S$27,12,FALSE)) -> 9051.903159 | T21: =S21*(1+VLOOKUP($B21,'RCV & totex growth rates'!$B$8:$S$27,12,FALSE)) -> 9051.903159 | U21: =T21*(1+VLOOKUP($B21,'RCV & totex growth rates'!$B$8:$S$27,12,FALSE)) -> 9051.903159 | V21: =U21*(1+VLOOKUP($B21,'RCV & totex growth rates'!$B$8:$S$27,12,FALSE)) -> 9051.903159 | W21: =V21*(1+VLOOKUP($B21,'RCV & totex growth rates'!$B$8:$S$27,14,FALSE)) -> 9051.903159 | X21: =W21*(1+VLOOKUP($B21,'RCV & totex growth rates'!$B$8:$S$27,14,FALSE)) -> 9051.903159 | Y21: =X21*(1+VLOOKUP($B21,'RCV & totex growth rates'!$B$8:$S$27,14,FALSE)) -> 9051.903159 | Z21: =Y21*(1+VLOOKUP($B21,'RCV & totex growth rates'!$B$8:$S$27,14,FALSE)) -> 9051.903159 | AA21: =Z21*(1+VLOOKUP($B21,'RCV & totex growth rates'!$B$8:$S$27,14,FALSE)) -> 9051.903159 | AB21: =AA21*(1+VLOOKUP($B21,'RCV & totex growth rates'!$B$8:$S$27,16,FALSE)) -> 9051.903159 | AC21: =AB21*(1+VLOOKUP($B21,'RCV & totex growth rates'!$B$8:$S$27,16,FALSE)) -> 9051.903159 | AD21: =AC21*(1+VLOOKUP($B21,'RCV & totex growth rates'!$B$8:$S$27,16,FALSE)) -> 9051.903159 | AE21: =AD21*(1+VLOOKUP($B21,'RCV & totex growth rates'!$B$8:$S$27,16,FALSE)) -> 9051.903159 | AF21: =AE21*(1+VLOOKUP($B21,'RCV & totex growth rates'!$B$8:$S$27,16,FALSE)) -> 9051.903159 | AG21: =AF21*(1+VLOOKUP($B21,'RCV & totex growth rates'!$B$8:$S$27,18,FALSE)) -> 9051.903159 | AH21: =AG21*(1+VLOOKUP($B21,'RCV & totex growth rates'!$B$8:$S$27,18,FALSE)) -> 9051.903159 | AI21: =AH21*(1+VLOOKUP($B21,'RCV & totex growth rates'!$B$8:$S$27,18,FALSE)) -> 9051.903159 | AJ21: =AI21*(1+VLOOKUP($B21,'RCV & totex growth rates'!$B$8:$S$27,18,FALSE)) -> 9051.903159 | AK21: =AJ21*(1+VLOOKUP($B21,'RCV & totex growth rates'!$B$8:$S$27,18,FALSE)) -> 9051.903159
B22: SWT
B23: BWH
B24: SWB | E24: 3431.214136 | F24: =E24*(1+VLOOKUP(B24,'RCV & totex growth rates'!$B$8:$X$27,8,FALSE)) -> 3423.550319 | G24: =F24*(1+VLOOKUP(B24,'RCV & totex growth rates'!$B$8:$X$27,8,FALSE)) -> 3415.90362 | H24: 3243.888232 | I24: 3239.112512 | J24: 3239.027497 | K24: 3230.728896 | L24: 3207.822635 | M24: =L24*(1+VLOOKUP($B24,'RCV & totex growth rates'!$B$8:$S$27,10,FALSE)) -> 3207.822635 | N24: =M24*(1+VLOOKUP($B24,'RCV & totex growth rates'!$B$8:$S$27,10,FALSE)) -> 3207.822635 | O24: =N24*(1+VLOOKUP($B24,'RCV & totex growth rates'!$B$8:$S$27,10,FALSE)) -> 3207.822635 | P24: =O24*(1+VLOOKUP($B24,'RCV & totex growth rates'!$B$8:$S$27,10,FALSE)) -> 3207.822635 | Q24: =P24*(1+VLOOKUP($B24,'RCV & totex growth rates'!$B$8:$S$27,10,FALSE)) -> 3207.822635 | R24: =Q24*(1+VLOOKUP($B24,'RCV & totex growth rates'!$B$8:$S$27,12,FALSE)) -> 3207.822635 | S24: =R24*(1+VLOOKUP($B24,'RCV & totex growth rates'!$B$8:$S$27,12,FALSE)) -> 3207.822635 | T24: =S24*(1+VLOOKUP($B24,'RCV & totex growth rates'!$B$8:$S$27,12,FALSE)) -> 3207.822635 | U24: =T24*(1+VLOOKUP($B24,'RCV & totex growth rates'!$B$8:$S$27,12,FALSE)) -> 3207.822635 | V24: =U24*(1+VLOOKUP($B24,'RCV & totex growth rates'!$B$8:$S$27,12,FALSE)) -> 3207.822635 | W24: =V24*(1+VLOOKUP($B24,'RCV & totex growth rates'!$B$8:$S$27,14,FALSE)) -> 3207.822635 | X24: =W24*(1+VLOOKUP($B24,'RCV & totex growth rates'!$B$8:$S$27,14,FALSE)) -> 3207.822635 | Y24: =X24*(1+VLOOKUP($B24,'RCV & totex growth rates'!$B$8:$S$27,14,FALSE)) -> 3207.822635 | Z24: =Y24*(1+VLOOKUP($B24,'RCV & totex growth rates'!$B$8:$S$27,14,FALSE)) -> 3207.822635 | AA24: =Z24*(1+VLOOKUP($B24,'RCV & totex growth rates'!$B$8:$S$27,14,FALSE)) -> 3207.822635 | AB24: =AA24*(1+VLOOKUP($B24,'RCV & totex growth rates'!$B$8:$S$27,16,FALSE)) -> 3207.822635 | AC24: =AB24*(1+VLOOKUP($B24,'RCV & totex growth rates'!$B$8:$S$27,16,FALSE)) -> 3207.822635 | AD24: =AC24*(1+VLOOKUP($B24,'RCV & totex growth rates'!$B$8:$S$27,16,FALSE)) -> 3207.822635 | AE24: =AD24*(1+VLOOKUP($B24,'RCV & totex growth rates'!$B$8:$S$27,16,FALSE)) -> 3207.822635 | AF24: =AE24*(1+VLOOKUP($B24,'RCV & totex growth rates'!$B$8:$S$27,16,FALSE)) -> 3207.822635 | AG24: =AF24*(1+VLOOKUP($B24,'RCV & totex growth rates'!$B$8:$S$27,18,FALSE)) -> 3207.822635 | AH24: =AG24*(1+VLOOKUP($B24,'RCV & totex growth rates'!$B$8:$S$27,18,FALSE)) -> 3207.822635 | AI24: =AH24*(1+VLOOKUP($B24,'RCV & totex growth rates'!$B$8:$S$27,18,FALSE)) -> 3207.822635 | AJ24: =AI24*(1+VLOOKUP($B24,'RCV & totex growth rates'!$B$8:$S$27,18,FALSE)) -> 3207.822635 | AK24: =AJ24*(1+VLOOKUP($B24,'RCV & totex growth rates'!$B$8:$S$27,18,FALSE)) -> 3207.822635
B25: TMS | E25: 13704.80681 | F25: =E25*(1+VLOOKUP(B25,'RCV & totex growth rates'!$B$8:$X$27,8,FALSE)) -> 14130.07884 | G25: =F25*(1+VLOOKUP(B25,'RCV & totex growth rates'!$B$8:$X$27,8,FALSE)) -> 14568.54744 | H25: 14437.48499 | I25: 15221.5004 | J25: 15954.29873 | K25: 16437.66353 | L25: 16820.92531 | M25: =L25*(1+VLOOKUP($B25,'RCV & totex growth rates'!$B$8:$S$27,10,FALSE)) -> 16820.92531 | N25: =M25*(1+VLOOKUP($B25,'RCV & totex growth rates'!$B$8:$S$27,10,FALSE)) -> 16820.92531 | O25: =N25*(1+VLOOKUP($B25,'RCV & totex growth rates'!$B$8:$S$27,10,FALSE)) -> 16820.92531 | P25: =O25*(1+VLOOKUP($B25,'RCV & totex growth rates'!$B$8:$S$27,10,FALSE)) -> 16820.92531 | Q25: =P25*(1+VLOOKUP($B25,'RCV & totex growth rates'!$B$8:$S$27,10,FALSE)) -> 16820.92531 | R25: =Q25*(1+VLOOKUP($B25,'RCV & totex growth rates'!$B$8:$S$27,12,FALSE)) -> 16820.92531 | S25: =R25*(1+VLOOKUP($B25,'RCV & totex growth rates'!$B$8:$S$27,12,FALSE)) -> 16820.92531 | T25: =S25*(1+VLOOKUP($B25,'RCV & totex growth rates'!$B$8:$S$27,12,FALSE)) -> 16820.92531 | U25: =T25*(1+VLOOKUP($B25,'RCV & totex growth rates'!$B$8:$S$27,12,FALSE)) -> 16820.92531 | V25: =U25*(1+VLOOKUP($B25,'RCV & totex growth rates'!$B$8:$S$27,12,FALSE)) -> 16820.92531 | W25: =V25*(1+VLOOKUP($B25,'RCV & totex growth rates'!$B$8:$S$27,14,FALSE)) -> 16820.92531 | X25: =W25*(1+VLOOKUP($B25,'RCV & totex growth rates'!$B$8:$S$27,14,FALSE)) -> 16820.92531 | Y25: =X25*(1+VLOOKUP($B25,'RCV & totex growth rates'!$B$8:$S$27,14,FALSE)) -> 16820.92531 | Z25: =Y25*(1+VLOOKUP($B25,'RCV & totex growth rates'!$B$8:$S$27,14,FALSE)) -> 16820.92531 | AA25: =Z25*(1+VLOOKUP($B25,'RCV & totex growth rates'!$B$8:$S$27,14,FALSE)) -> 16820.92531 | AB25: =AA25*(1+VLOOKUP($B25,'RCV & totex growth rates'!$B$8:$S$27,16,FALSE)) -> 16820.92531 | AC25: =AB25*(1+VLOOKUP($B25,'RCV & totex growth rates'!$B$8:$S$27,16,FALSE)) -> 16820.92531 | AD25: =AC25*(1+VLOOKUP($B25,'RCV & totex growth rates'!$B$8:$S$27,16,FALSE)) -> 16820.92531 | AE25: =AD25*(1+VLOOKUP($B25,'RCV & totex growth rates'!$B$8:$S$27,16,FALSE)) -> 16820.92531 | AF25: =AE25*(1+VLOOKUP($B25,'RCV & totex growth rates'!$B$8:$S$27,16,FALSE)) -> 16820.92531 | AG25: =AF25*(1+VLOOKUP($B25,'RCV & totex growth rates'!$B$8:$S$27,18,FALSE)) -> 16820.92531 | AH25: =AG25*(1+VLOOKUP($B25,'RCV & totex growth rates'!$B$8:$S$27,18,FALSE)) -> 16820.92531 | AI25: =AH25*(1+VLOOKUP($B25,'RCV & totex growth rates'!$B$8:$S$27,18,FALSE)) -> 16820.92531 | AJ25: =AI25*(1+VLOOKUP($B25,'RCV & totex growth rates'!$B$8:$S$27,18,FALSE)) -> 16820.92531 | AK25: =AJ25*(1+VLOOKUP($B25,'RCV & totex growth rates'!$B$8:$S$27,18,FALSE)) -> 16820.92531
B26: UUW | E26: 11009.9427 | F26: =E26*(1+VLOOKUP(B26,'RCV & totex growth rates'!$B$8:$X$27,8,FALSE)) -> 10931.34781 | G26: =F26*(1+VLOOKUP(B26,'RCV & totex growth rates'!$B$8:$X$27,8,FALSE)) -> 10853.31396 | H26: 11163.49753 | I26: 11054.6141 | J26: 10888.93085 | K26: 10870.5977 | L26: 10770.69058 | M26: =L26*(1+VLOOKUP($B26,'RCV & totex growth rates'!$B$8:$S$27,10,FALSE)) -> 10770.69058 | N26: =M26*(1+VLOOKUP($B26,'RCV & totex growth rates'!$B$8:$S$27,10,FALSE)) -> 10770.69058 | O26: =N26*(1+VLOOKUP($B26,'RCV & totex growth rates'!$B$8:$S$27,10,FALSE)) -> 10770.69058 | P26: =O26*(1+VLOOKUP($B26,'RCV & totex growth rates'!$B$8:$S$27,10,FALSE)) -> 10770.69058 | Q26: =P26*(1+VLOOKUP($B26,'RCV & totex growth rates'!$B$8:$S$27,10,FALSE)) -> 10770.69058 | R26: =Q26*(1+VLOOKUP($B26,'RCV & totex growth rates'!$B$8:$S$27,12,FALSE)) -> 10770.69058 | S26: =R26*(1+VLOOKUP($B26,'RCV & totex growth rates'!$B$8:$S$27,12,FALSE)) -> 10770.69058 | T26: =S26*(1+VLOOKUP($B26,'RCV & totex growth rates'!$B$8:$S$27,12,FALSE)) -> 10770.69058 | U26: =T26*(1+VLOOKUP($B26,'RCV & totex growth rates'!$B$8:$S$27,12,FALSE)) -> 10770.69058 | V26: =U26*(1+VLOOKUP($B26,'RCV & totex growth rates'!$B$8:$S$27,12,FALSE)) -> 10770.69058 | W26: =V26*(1+VLOOKUP($B26,'RCV & totex growth rates'!$B$8:$S$27,14,FALSE)) -> 10770.69058 | X26: =W26*(1+VLOOKUP($B26,'RCV & totex growth rates'!$B$8:$S$27,14,FALSE)) -> 10770.69058 | Y26: =X26*(1+VLOOKUP($B26,'RCV & totex growth rates'!$B$8:$S$27,14,FALSE)) -> 10770.69058 | Z26: =Y26*(1+VLOOKUP($B26,'RCV & totex growth rates'!$B$8:$S$27,14,FALSE)) -> 10770.69058 | AA26: =Z26*(1+VLOOKUP($B26,'RCV & totex growth rates'!$B$8:$S$27,14,FALSE)) -> 10770.69058 | AB26: =AA26*(1+VLOOKUP($B26,'RCV & totex growth rates'!$B$8:$S$27,16,FALSE)) -> 10770.69058 | AC26: =AB26*(1+VLOOKUP($B26,'RCV & totex growth rates'!$B$8:$S$27,16,FALSE)) -> 10770.69058 | AD26: =AC26*(1+VLOOKUP($B26,'RCV & totex growth rates'!$B$8:$S$27,16,FALSE)) -> 10770.69058 | AE26: =AD26*(1+VLOOKUP($B26,'RCV & totex growth rates'!$B$8:$S$27,16,FALSE)) -> 10770.69058 | AF26: =AE26*(1+VLOOKUP($B26,'RCV & totex growth rates'!$B$8:$S$27,16,FALSE)) -> 10770.69058 | AG26: =AF26*(1+VLOOKUP($B26,'RCV & totex growth rates'!$B$8:$S$27,18,FALSE)) -> 10770.69058 | AH26: =AG26*(1+VLOOKUP($B26,'RCV & totex growth rates'!$B$8:$S$27,18,FALSE)) -> 10770.69058 | AI26: =AH26*(1+VLOOKUP($B26,'RCV & totex growth rates'!$B$8:$S$27,18,FALSE)) -> 10770.69058 | AJ26: =AI26*(1+VLOOKUP($B26,'RCV & totex growth rates'!$B$8:$S$27,18,FALSE)) -> 10770.69058 | AK26: =AJ26*(1+VLOOKUP($B26,'RCV & totex growth rates'!$B$8:$S$27,18,FALSE)) -> 10770.69058
B27: WSH | E27: 5468.545367 | F27: =E27*(1+VLOOKUP(B27,'RCV & totex growth rates'!$B$8:$X$27,8,FALSE)) -> 5546.411504 | G27: =F27*(1+VLOOKUP(B27,'RCV & totex growth rates'!$B$8:$X$27,8,FALSE)) -> 5625.38637 | H27: 5817.169637 | I27: 5941.708557 | J27: 6064.235155 | K27: 6160.687508 | L27: 6243.283721 | M27: =L27*(1+VLOOKUP($B27,'RCV & totex growth rates'!$B$8:$S$27,10,FALSE)) -> 6243.283721 | N27: =M27*(1+VLOOKUP($B27,'RCV & totex growth rates'!$B$8:$S$27,10,FALSE)) -> 6243.283721 | O27: =N27*(1+VLOOKUP($B27,'RCV & totex growth rates'!$B$8:$S$27,10,FALSE)) -> 6243.283721 | P27: =O27*(1+VLOOKUP($B27,'RCV & totex growth rates'!$B$8:$S$27,10,FALSE)) -> 6243.283721 | Q27: =P27*(1+VLOOKUP($B27,'RCV & totex growth rates'!$B$8:$S$27,10,FALSE)) -> 6243.283721 | R27: =Q27*(1+VLOOKUP($B27,'RCV & totex growth rates'!$B$8:$S$27,12,FALSE)) -> 6243.283721 | S27: =R27*(1+VLOOKUP($B27,'RCV & totex growth rates'!$B$8:$S$27,12,FALSE)) -> 6243.283721 | T27: =S27*(1+VLOOKUP($B27,'RCV & totex growth rates'!$B$8:$S$27,12,FALSE)) -> 6243.283721 | U27: =T27*(1+VLOOKUP($B27,'RCV & totex growth rates'!$B$8:$S$27,12,FALSE)) -> 6243.283721 | V27: =U27*(1+VLOOKUP($B27,'RCV & totex growth rates'!$B$8:$S$27,12,FALSE)) -> 6243.283721 | W27: =V27*(1+VLOOKUP($B27,'RCV & totex growth rates'!$B$8:$S$27,14,FALSE)) -> 6243.283721 | X27: =W27*(1+VLOOKUP($B27,'RCV & totex growth rates'!$B$8:$S$27,14,FALSE)) -> 6243.283721 | Y27: =X27*(1+VLOOKUP($B27,'RCV & totex growth rates'!$B$8:$S$27,14,FALSE)) -> 6243.283721 | Z27: =Y27*(1+VLOOKUP($B27,'RCV & totex growth rates'!$B$8:$S$27,14,FALSE)) -> 6243.283721 | AA27: =Z27*(1+VLOOKUP($B27,'RCV & totex growth rates'!$B$8:$S$27,14,FALSE)) -> 6243.283721 | AB27: =AA27*(1+VLOOKUP($B27,'RCV & totex growth rates'!$B$8:$S$27,16,FALSE)) -> 6243.283721 | AC27: =AB27*(1+VLOOKUP($B27,'RCV & totex growth rates'!$B$8:$S$27,16,FALSE)) -> 6243.283721 | AD27: =AC27*(1+VLOOKUP($B27,'RCV & totex growth rates'!$B$8:$S$27,16,FALSE)) -> 6243.283721 | AE27: =AD27*(1+VLOOKUP($B27,'RCV & totex growth rates'!$B$8:$S$27,16,FALSE)) -> 6243.283721 | AF27: =AE27*(1+VLOOKUP($B27,'RCV & totex growth rates'!$B$8:$S$27,16,FALSE)) -> 6243.283721 | AG27: =AF27*(1+VLOOKUP($B27,'RCV & totex growth rates'!$B$8:$S$27,18,FALSE)) -> 6243.283721 | AH27: =AG27*(1+VLOOKUP($B27,'RCV & totex growth rates'!$B$8:$S$27,18,FALSE)) -> 6243.283721 | AI27: =AH27*(1+VLOOKUP($B27,'RCV & totex growth rates'!$B$8:$S$27,18,FALSE)) -> 6243.283721 | AJ27: =AI27*(1+VLOOKUP($B27,'RCV & totex growth rates'!$B$8:$S$27,18,FALSE)) -> 6243.283721 | AK27: =AJ27*(1+VLOOKUP($B27,'RCV & totex growth rates'!$B$8:$S$27,18,FALSE)) -> 6243.283721
B28: WSX | E28: 3109.450449 | F28: =E28*(1+VLOOKUP(B28,'RCV & totex growth rates'!$B$8:$X$27,8,FALSE)) -> 3163.226939 | G28: =F28*(1+VLOOKUP(B28,'RCV & totex growth rates'!$B$8:$X$27,8,FALSE)) -> 3217.933469 | H28: 3187.641345 | I28: 3275.720094 | J28: 3369.862379 | K28: 3435.608721 | L28: 3472.985755 | M28: =L28*(1+VLOOKUP($B28,'RCV & totex growth rates'!$B$8:$S$27,10,FALSE)) -> 3472.985755 | N28: =M28*(1+VLOOKUP($B28,'RCV & totex growth rates'!$B$8:$S$27,10,FALSE)) -> 3472.985755 | O28: =N28*(1+VLOOKUP($B28,'RCV & totex growth rates'!$B$8:$S$27,10,FALSE)) -> 3472.985755 | P28: =O28*(1+VLOOKUP($B28,'RCV & totex growth rates'!$B$8:$S$27,10,FALSE)) -> 3472.985755 | Q28: =P28*(1+VLOOKUP($B28,'RCV & totex growth rates'!$B$8:$S$27,10,FALSE)) -> 3472.985755 | R28: =Q28*(1+VLOOKUP($B28,'RCV & totex growth rates'!$B$8:$S$27,12,FALSE)) -> 3472.985755 | S28: =R28*(1+VLOOKUP($B28,'RCV & totex growth rates'!$B$8:$S$27,12,FALSE)) -> 3472.985755 | T28: =S28*(1+VLOOKUP($B28,'RCV & totex growth rates'!$B$8:$S$27,12,FALSE)) -> 3472.985755 | U28: =T28*(1+VLOOKUP($B28,'RCV & totex growth rates'!$B$8:$S$27,12,FALSE)) -> 3472.985755 | V28: =U28*(1+VLOOKUP($B28,'RCV & totex growth rates'!$B$8:$S$27,12,FALSE)) -> 3472.985755 | W28: =V28*(1+VLOOKUP($B28,'RCV & totex growth rates'!$B$8:$S$27,14,FALSE)) -> 3472.985755 | X28: =W28*(1+VLOOKUP($B28,'RCV & totex growth rates'!$B$8:$S$27,14,FALSE)) -> 3472.985755 | Y28: =X28*(1+VLOOKUP($B28,'RCV & totex growth rates'!$B$8:$S$27,14,FALSE)) -> 3472.985755 | Z28: =Y28*(1+VLOOKUP($B28,'RCV & totex growth rates'!$B$8:$S$27,14,FALSE)) -> 3472.985755 | AA28: =Z28*(1+VLOOKUP($B28,'RCV & totex growth rates'!$B$8:$S$27,14,FALSE)) -> 3472.985755 | AB28: =AA28*(1+VLOOKUP($B28,'RCV & totex growth rates'!$B$8:$S$27,16,FALSE)) -> 3472.985755 | AC28: =AB28*(1+VLOOKUP($B28,'RCV & totex growth rates'!$B$8:$S$27,16,FALSE)) -> 3472.985755 | AD28: =AC28*(1+VLOOKUP($B28,'RCV & totex growth rates'!$B$8:$S$27,16,FALSE)) -> 3472.985755 | AE28: =AD28*(1+VLOOKUP($B28,'RCV & totex growth rates'!$B$8:$S$27,16,FALSE)) -> 3472.985755 | AF28: =AE28*(1+VLOOKUP($B28,'RCV & totex growth rates'!$B$8:$S$27,16,FALSE)) -> 3472.985755 | AG28: =AF28*(1+VLOOKUP($B28,'RCV & totex growth rates'!$B$8:$S$27,18,FALSE)) -> 3472.985755 | AH28: =AG28*(1+VLOOKUP($B28,'RCV & totex growth rates'!$B$8:$S$27,18,FALSE)) -> 3472.985755 | AI28: =AH28*(1+VLOOKUP($B28,'RCV & totex growth rates'!$B$8:$S$27,18,FALSE)) -> 3472.985755 | AJ28: =AI28*(1+VLOOKUP($B28,'RCV & totex growth rates'!$B$8:$S$27,18,FALSE)) -> 3472.985755 | AK28: =AJ28*(1+VLOOKUP($B28,'RCV & totex growth rates'!$B$8:$S$27,18,FALSE)) -> 3472.985755
B29: YKY | E29: 6446.324882 | F29: =E29*(1+VLOOKUP(B29,'RCV & totex growth rates'!$B$8:$X$27,8,FALSE)) -> 6547.783381 | G29: =F29*(1+VLOOKUP(B29,'RCV & totex growth rates'!$B$8:$X$27,8,FALSE)) -> 6650.838732 | H29: 6867.186124 | I29: 7200.757161 | J29: 7423.963405 | K29: 7500.951851 | L29: 7424.879132 | M29: =L29*(1+VLOOKUP($B29,'RCV & totex growth rates'!$B$8:$S$27,10,FALSE)) -> 7424.879132 | N29: =M29*(1+VLOOKUP($B29,'RCV & totex growth rates'!$B$8:$S$27,10,FALSE)) -> 7424.879132 | O29: =N29*(1+VLOOKUP($B29,'RCV & totex growth rates'!$B$8:$S$27,10,FALSE)) -> 7424.879132 | P29: =O29*(1+VLOOKUP($B29,'RCV & totex growth rates'!$B$8:$S$27,10,FALSE)) -> 7424.879132 | Q29: =P29*(1+VLOOKUP($B29,'RCV & totex growth rates'!$B$8:$S$27,10,FALSE)) -> 7424.879132 | R29: =Q29*(1+VLOOKUP($B29,'RCV & totex growth rates'!$B$8:$S$27,12,FALSE)) -> 7424.879132 | S29: =R29*(1+VLOOKUP($B29,'RCV & totex growth rates'!$B$8:$S$27,12,FALSE)) -> 7424.879132 | T29: =S29*(1+VLOOKUP($B29,'RCV & totex growth rates'!$B$8:$S$27,12,FALSE)) -> 7424.879132 | U29: =T29*(1+VLOOKUP($B29,'RCV & totex growth rates'!$B$8:$S$27,12,FALSE)) -> 7424.879132 | V29: =U29*(1+VLOOKUP($B29,'RCV & totex growth rates'!$B$8:$S$27,12,FALSE)) -> 7424.879132 | W29: =V29*(1+VLOOKUP($B29,'RCV & totex growth rates'!$B$8:$S$27,14,FALSE)) -> 7424.879132 | X29: =W29*(1+VLOOKUP($B29,'RCV & totex growth rates'!$B$8:$S$27,14,FALSE)) -> 7424.879132 | Y29: =X29*(1+VLOOKUP($B29,'RCV & totex growth rates'!$B$8:$S$27,14,FALSE)) -> 7424.879132 | Z29: =Y29*(1+VLOOKUP($B29,'RCV & totex growth rates'!$B$8:$S$27,14,FALSE)) -> 7424.879132 | AA29: =Z29*(1+VLOOKUP($B29,'RCV & totex growth rates'!$B$8:$S$27,14,FALSE)) -> 7424.879132 | AB29: =AA29*(1+VLOOKUP($B29,'RCV & totex growth rates'!$B$8:$S$27,16,FALSE)) -> 7424.879132 | AC29: =AB29*(1+VLOOKUP($B29,'RCV & totex growth rates'!$B$8:$S$27,16,FALSE)) -> 7424.879132 | AD29: =AC29*(1+VLOOKUP($B29,'RCV & totex growth rates'!$B$8:$S$27,16,FALSE)) -> 7424.879132 | AE29: =AD29*(1+VLOOKUP($B29,'RCV & totex growth rates'!$B$8:$S$27,16,FALSE)) -> 7424.879132 | AF29: =AE29*(1+VLOOKUP($B29,'RCV & totex growth rates'!$B$8:$S$27,16,FALSE)) -> 7424.879132 | AG29: =AF29*(1+VLOOKUP($B29,'RCV & totex growth rates'!$B$8:$S$27,18,FALSE)) -> 7424.879132 | AH29: =AG29*(1+VLOOKUP($B29,'RCV & totex growth rates'!$B$8:$S$27,18,FALSE)) -> 7424.879132 | AI29: =AH29*(1+VLOOKUP($B29,'RCV & totex growth rates'!$B$8:$S$27,18,FALSE)) -> 7424.879132 | AJ29: =AI29*(1+VLOOKUP($B29,'RCV & totex growth rates'!$B$8:$S$27,18,FALSE)) -> 7424.879132 | AK29: =AJ29*(1+VLOOKUP($B29,'RCV & totex growth rates'!$B$8:$S$27,18,FALSE)) -> 7424.879132
B30: SECTOR | C30: =SUM(C10:C29)-C24 -> 0 | E30: =SUM(E10:E29)-E12-E20 -> 72553.90788 | F30: =SUM(F10:F29) -> 73601.00235 | G30: 74676.73885 | H30: 74188.54968 | I30: 76115.42089 | J30: 77919.98546 | K30: 79319.36116 | L30: 79905.63172 | M30: 79905.63172 | N30: 79905.63172 | O30: 79905.63172 | P30: 79905.63172 | Q30: 79905.63172 | R30: 79905.63172 | S30: 79905.63172 | T30: 79905.63172 | U30: 79905.63172 | V30: 79905.63172 | W30: =SUM(W10:W29) -> 79905.63172 | X30: 79905.63172 | Y30: 79905.63172 | Z30: 79905.63172 | AA30: 79905.63172 | AB30: 79905.63172 | AC30: 79905.63172 | AD30: 79905.63172 | AE30: 79905.63172 | AF30: 79905.63172 | AG30: 79905.63172 | AH30: 79905.63172 | AI30: 79905.63172 | AJ30: 79905.63172 | AK30: 79905.63172
E31: =E30-D30 -> 72553.90788 | F31: 1047.09447 | G31: 1075.736492 | H31: -488.1891675 | I31: 1926.871207 | J31: 1804.564572 | K31: 1399.375705 | L31: 586.2705606 | M31: 0 | N31: 0 | O31: 0 | P31: 0 | Q31: 0 | R31: 0 | S31: 0 | T31: 0 | U31: 0 | V31: 0 | W31: =W30-V30 -> 0 | X31: 0 | Y31: 0 | Z31: 0 | AA31: 0 | AB31: 0 | AC31: 0 | AD31: 0 | AE31: 0 | AF31: 0 | AG31: 0 | AH31: 0 | AI31: 0 | AJ31: 0 | AK31: 0
B33: Pre-efficiency challenge Totex | C33: ='PR14 Efficiency Rank'!N32 -> 19452.15359 | H33: ='Control sheet'!C30 -> 16482.54715 | M33: =H33*(1+'RCV & totex growth rates'!K27)^5 -> 16482.54715 | R33: =M33*(1+'RCV & totex growth rates'!M27)^5 -> 16482.54715 | W33: =R33*(1+'RCV & totex growth rates'!O27)^5 -> 16482.54715 | AB33: =W33*(1+'RCV & totex growth rates'!Q27)^5 -> 16482.54715 | AG33: =AB33*(1+'RCV & totex growth rates'!S27)^5 -> 16482.54715
B34: (£m, 2017/18 prices)

Sheet RCV weights
A1: =RIGHT(CELL("filename", $A$1), LEN(CELL("filename", $A$1)) - SEARCH("]", CELL("filename", $A$1))) -> RCV weights
A2: This sheet is used to derive RCV-weighted average efficiency scores
D3: 1 | E3: 2 | F3: 3 | G3: 4 | H3: 5 | I3: 6 | J3: 7 | K3: 8 | L3: 9 | M3: 10 | N3: 11 | O3: 12 | P3: 13 | Q3: 14 | R3: 15 | S3: 16
E4: PR24 | H4: PR29 | K4: PR34 | N4: PR39 | Q4: PR44
B5: Company 1 | C5: Company 2 | D5: Merged entity | E5: Midpoint. weight 1 | F5: Midpoint weight 2 | G5: Total (to derive final average) | H5: Midpoint. weight 1 | I5: Midpoint weight 2 | J5: Total (to derive final average) | K5: Midpoint. weight 1 | L5: Midpoint weight 2 | M5: Total (to derive final average) | N5: Midpoint. weight 1 | O5: Midpoint weight 2 | P5: Total (to derive final average) | Q5: Midpoint. weight 1 | R5: Midpoint weight 2 | S5: Total (to derive final average)
B6: SWB | C6: SWB | D6: =CONCATENATE(B6,C6) -> SWBSWB | E6: =VLOOKUP($B6,'RCV & totex projections'!$B$10:$AK$29,14,FALSE) -> 3207.822635 | F6: =VLOOKUP($C6,'RCV & totex projections'!$B$10:$AK$29,14,FALSE) -> 3207.822635 | G6: =E6+F6 -> 6415.64527 | H6: =VLOOKUP($B6,'RCV & totex projections'!$B$10:$AK$29,19,FALSE) -> 3207.822635 | I6: =VLOOKUP($C6,'RCV & totex projections'!$B$10:$AK$29,19,FALSE) -> 3207.822635 | J6: =H6+I6 -> 6415.64527 | K6: =VLOOKUP($B6,'RCV & totex projections'!$B$10:$AK$29,24,FALSE) -> 3207.822635 | L6: =VLOOKUP($C6,'RCV & totex projections'!$B$10:$AK$29,24,FALSE) -> 3207.822635 | M6: =K6+L6 -> 6415.64527 | N6: =VLOOKUP($B6,'RCV & totex projections'!$B$10:$AK$29,29,FALSE) -> 3207.822635 | O6: =VLOOKUP($C6,'RCV & totex projections'!$B$10:$AK$29,29,FALSE) -> 3207.822635 | P6: =N6+O6 -> 6415.64527 | Q6: =VLOOKUP($B6,'RCV & totex projections'!$B$10:$AK$29,34,FALSE) -> 3207.822635 | R6: =VLOOKUP($C6,'RCV & totex projections'!$B$10:$AK$29,34,FALSE) -> 3207.822635 | S6: =Q6+R6 -> 6415.64527
B7: SWB | C7: YKY | D7: SWBYKY | E7: =VLOOKUP($B7,'RCV & totex projections'!$B$10:$AK$29,14,FALSE) -> 3207.822635 | F7: =VLOOKUP($C7,'RCV & totex projections'!$B$10:$AK$29,14,FALSE) -> 7424.879132 | G7: =E7+F7 -> 10632.70177 | H7: =VLOOKUP($B7,'RCV & totex projections'!$B$10:$AK$29,19,FALSE) -> 3207.822635 | I7: =VLOOKUP($C7,'RCV & totex projections'!$B$10:$AK$29,19,FALSE) -> 7424.879132 | J7: =H7+I7 -> 10632.70177 | K7: =VLOOKUP($B7,'RCV & totex projections'!$B$10:$AK$29,24,FALSE) -> 3207.822635 | L7: =VLOOKUP($C7,'RCV & totex projections'!$B$10:$AK$29,24,FALSE) -> 7424.879132 | M7: =K7+L7 -> 10632.70177 | N7: =VLOOKUP($B7,'RCV & totex projections'!$B$10:$AK$29,29,FALSE) -> 3207.822635 | O7: =VLOOKUP($C7,'RCV & totex projections'!$B$10:$AK$29,29,FALSE) -> 7424.879132 | P7: =N7+O7 -> 10632.70177 | Q7: =VLOOKUP($B7,'RCV & totex projections'!$B$10:$AK$29,34,FALSE) -> 3207.822635 | R7: =VLOOKUP($C7,'RCV & totex projections'!$B$10:$AK$29,34,FALSE) -> 7424.879132 | S7: =Q7+R7 -> 10632.70177
B8: SWB | C8: AFW | D8: SWBAFW | E8: =VLOOKUP($B8,'RCV & totex projections'!$B$10:$AK$29,14,FALSE) -> 3207.822635 | F8: =VLOOKUP($C8,'RCV & totex projections'!$B$10:$AK$29,14,FALSE) -> 1324.461347 | G8: 4532.283982 | H8: =VLOOKUP($B8,'RCV & totex projections'!$B$10:$AK$29,19,FALSE) -> 3207.822635 | I8: =VLOOKUP($C8,'RCV & totex projections'!$B$10:$AK$29,19,FALSE) -> 1324.461347 | J8: 4532.283982 | K8: =VLOOKUP($B8,'RCV & totex projections'!$B$10:$AK$29,24,FALSE) -> 3207.822635 | L8: =VLOOKUP($C8,'RCV & totex projections'!$B$10:$AK$29,24,FALSE) -> 1324.461347 | M8: 4532.283982 | N8: =VLOOKUP($B8,'RCV & totex projections'!$B$10:$AK$29,29,FALSE) -> 3207.822635 | O8: =VLOOKUP($C8,'RCV & totex projections'!$B$10:$AK$29,29,FALSE) -> 1324.461347 | P8: 4532.283982 | Q8: =VLOOKUP($B8,'RCV & totex projections'!$B$10:$AK$29,34,FALSE) -> 3207.822635 | R8: =VLOOKUP($C8,'RCV & totex projections'!$B$10:$AK$29,34,FALSE) -> 1324.461347 | S8: 4532.283982
B9: SWB | C9: TMS | D9: SWBTMS | E9: =VLOOKUP($B9,'RCV & totex projections'!$B$10:$AK$29,14,FALSE) -> 3207.822635 | F9: =VLOOKUP($C9,'RCV & totex projections'!$B$10:$AK$29,14,FALSE) -> 16820.92531 | G9: 20028.74795 | H9: =VLOOKUP($B9,'RCV & totex projections'!$B$10:$AK$29,19,FALSE) -> 3207.822635 | I9: =VLOOKUP($C9,'RCV & totex projections'!$B$10:$AK$29,19,FALSE) -> 16820.92531 | J9: 20028.74795 | K9: =VLOOKUP($B9,'RCV & totex projections'!$B$10:$AK$29,24,FALSE) -> 3207.822635 | L9: =VLOOKUP($C9,'RCV & totex projections'!$B$10:$AK$29,24,FALSE) -> 16820.92531 | M9: 20028.74795 | N9: =VLOOKUP($B9,'RCV & totex projections'!$B$10:$AK$29,29,FALSE) -> 3207.822635 | O9: =VLOOKUP($C9,'RCV & totex projections'!$B$10:$AK$29,29,FALSE) -> 16820.92531 | P9: 20028.74795 | Q9: =VLOOKUP($B9,'RCV & totex projections'!$B$10:$AK$29,34,FALSE) -> 3207.822635 | R9: =VLOOKUP($C9,'RCV & totex projections'!$B$10:$AK$29,34,FALSE) -> 16820.92531 | S9: 20028.74795
B10: SWB | C10: PRT | D10: SWBPRT | E10: =VLOOKUP($B10,'RCV & totex projections'!$B$10:$AK$29,14,FALSE) -> 3207.822635 | F10: =VLOOKUP($C10,'RCV & totex projections'!$B$10:$AK$29,14,FALSE) -> 220.2655931 | G10: 3428.088228 | H10: =VLOOKUP($B10,'RCV & totex projections'!$B$10:$AK$29,19,FALSE) -> 3207.822635 | I10: =VLOOKUP($C10,'RCV & totex projections'!$B$10:$AK$29,19,FALSE) -> 220.2655931 | J10: 3428.088228 | K10: =VLOOKUP($B10,'RCV & totex projections'!$B$10:$AK$29,24,FALSE) -> 3207.822635 | L10: =VLOOKUP($C10,'RCV & totex projections'!$B$10:$AK$29,24,FALSE) -> 220.2655931 | M10: 3428.088228 | N10: =VLOOKUP($B10,'RCV & totex projections'!$B$10:$AK$29,29,FALSE) -> 3207.822635 | O10: =VLOOKUP($C10,'RCV & totex projections'!$B$10:$AK$29,29,FALSE) -> 220.2655931 | P10: 3428.088228 | Q10: =VLOOKUP($B10,'RCV & totex projections'!$B$10:$AK$29,34,FALSE) -> 3207.822635 | R10: =VLOOKUP($C10,'RCV & totex projections'!$B$10:$AK$29,34,FALSE) -> 220.2655931 | S10: 3428.088228
B11: SWB | C11: NES | D11: SWBNES | E11: =VLOOKUP($B11,'RCV & totex projections'!$B$10:$AK$29,14,FALSE) -> 3207.822635 | F11: =VLOOKUP($C11,'RCV & totex projections'!$B$10:$AK$29,14,FALSE) -> 4360.035263 | G11: 7567.857898 | H11: =VLOOKUP($B11,'RCV & totex projections'!$B$10:$AK$29,19,FALSE) -> 3207.822635 | I11: =VLOOKUP($C11,'RCV & totex projections'!$B$10:$AK$29,19,FALSE) -> 4360.035263 | J11: 7567.857898 | K11: =VLOOKUP($B11,'RCV & totex projections'!$B$10:$AK$29,24,FALSE) -> 3207.822635 | L11: =VLOOKUP($C11,'RCV & totex projections'!$B$10:$AK$29,24,FALSE) -> 4360.035263 | M11: 7567.857898 | N11: =VLOOKUP($B11,'RCV & totex projections'!$B$10:$AK$29,29,FALSE) -> 3207.822635 | O11: =VLOOKUP($C11,'RCV & totex projections'!$B$10:$AK$29,29,FALSE) -> 4360.035263 | P11: 7567.857898 | Q11: =VLOOKUP($B11,'RCV & totex projections'!$B$10:$AK$29,34,FALSE) -> 3207.822635 | R11: =VLOOKUP($C11,'RCV & totex projections'!$B$10:$AK$29,34,FALSE) -> 4360.035263 | S11: 7567.857898
B12: SWB | C12: WSH | D12: SWBWSH | E12: =VLOOKUP($B12,'RCV & totex projections'!$B$10:$AK$29,14,FALSE) -> 3207.822635 | F12: =VLOOKUP($C12,'RCV & totex projections'!$B$10:$AK$29,14,FALSE) -> 6243.283721 | G12: 9451.106356 | H12: =VLOOKUP($B12,'RCV & totex projections'!$B$10:$AK$29,19,FALSE) -> 3207.822635 | I12: =VLOOKUP($C12,'RCV & totex projections'!$B$10:$AK$29,19,FALSE) -> 6243.283721 | J12: 9451.106356 | K12: =VLOOKUP($B12,'RCV & totex projections'!$B$10:$AK$29,24,FALSE) -> 3207.822635 | L12: =VLOOKUP($C12,'RCV & totex projections'!$B$10:$AK$29,24,FALSE) -> 6243.283721 | M12: 9451.106356 | N12: =VLOOKUP($B12,'RCV & totex projections'!$B$10:$AK$29,29,FALSE) -> 3207.822635 | O12: =VLOOKUP($C12,'RCV & totex projections'!$B$10:$AK$29,29,FALSE) -> 6243.283721 | P12: 9451.106356 | Q12: =VLOOKUP($B12,'RCV & totex projections'!$B$10:$AK$29,34,FALSE) -> 3207.822635 | R12: =VLOOKUP($C12,'RCV & totex projections'!$B$10:$AK$29,34,FALSE) -> 6243.283721 | S12: 9451.106356
B13: SWB | C13: UUW | D13: SWBUUW | E13: =VLOOKUP($B13,'RCV & totex projections'!$B$10:$AK$29,14,FALSE) -> 3207.822635 | F13: =VLOOKUP($C13,'RCV & totex projections'!$B$10:$AK$29,14,FALSE) -> 10770.69058 | G13: 13978.51321 | H13: =VLOOKUP($B13,'RCV & totex projections'!$B$10:$AK$29,19,FALSE) -> 3207.822635 | I13: =VLOOKUP($C13,'RCV & totex projections'!$B$10:$AK$29,19,FALSE) -> 10770.69058 | J13: 13978.51321 | K13: =VLOOKUP($B13,'RCV & totex projections'!$B$10:$AK$29,24,FALSE) -> 3207.822635 | L13: =VLOOKUP($C13,'RCV & totex projections'!$B$10:$AK$29,24,FALSE) -> 10770.69058 | M13: 13978.51321 | N13: =VLOOKUP($B13,'RCV & totex projections'!$B$10:$AK$29,29,FALSE) -> 3207.822635 | O13: =VLOOKUP($C13,'RCV & totex projections'!$B$10:$AK$29,29,FALSE) -> 10770.69058 | P13: 13978.51321 | Q13: =VLOOKUP($B13,'RCV & totex projections'!$B$10:$AK$29,34,FALSE) -> 3207.822635 | R13: =VLOOKUP($C13,'RCV & totex projections'!$B$10:$AK$29,34,FALSE) -> 10770.69058 | S13: 13978.51321
B14: SWB | C14: SES | D14: SWBSES | E14: =VLOOKUP($B14,'RCV & totex projections'!$B$10:$AK$29,14,FALSE) -> 3207.822635 | F14: =VLOOKUP($C14,'RCV & totex projections'!$B$10:$AK$29,14,FALSE) -> 279.0526761 | G14: 3486.875311 | H14: =VLOOKUP($B14,'RCV & totex projections'!$B$10:$AK$29,19,FALSE) -> 3207.822635 | I14: =VLOOKUP($C14,'RCV & totex projections'!$B$10:$AK$29,19,FALSE) -> 279.0526761 | J14: 3486.875311 | K14: =VLOOKUP($B14,'RCV & totex projections'!$B$10:$AK$29,24,FALSE) -> 3207.822635 | L14: =VLOOKUP($C14,'RCV & totex projections'!$B$10:$AK$29,24,FALSE) -> 279.0526761 | M14: 3486.875311 | N14: =VLOOKUP($B14,'RCV & totex projections'!$B$10:$AK$29,29,FALSE) -> 3207.822635 | O14: =VLOOKUP($C14,'RCV & totex projections'!$B$10:$AK$29,29,FALSE) -> 279.0526761 | P14: 3486.875311 | Q14: =VLOOKUP($B14,'RCV & totex projections'!$B$10:$AK$29,34,FALSE) -> 3207.822635 | R14: =VLOOKUP($C14,'RCV & totex projections'!$B$10:$AK$29,34,FALSE) -> 279.0526761 | S14: 3486.875311
B15: SWB | C15: ANH | D15: SWBANH | E15: =VLOOKUP($B15,'RCV & totex projections'!$B$10:$AK$29,14,FALSE) -> 3207.822635 | F15: =VLOOKUP($C15,'RCV & totex projections'!$B$10:$AK$29,14,FALSE) -> 8866.071504 | G15: 12073.89414 | H15: =VLOOKUP($B15,'RCV & totex projections'!$B$10:$AK$29,19,FALSE) -> 3207.822635 | I15: =VLOOKUP($C15,'RCV & totex projections'!$B$10:$AK$29,19,FALSE) -> 8866.071504 | J15: 12073.89414 | K15: =VLOOKUP($B15,'RCV & totex projections'!$B$10:$AK$29,24,FALSE) -> 3207.822635 | L15: =VLOOKUP($C15,'RCV & totex projections'!$B$10:$AK$29,24,FALSE) -> 8866.071504 | M15: 12073.89414 | N15: =VLOOKUP($B15,'RCV & totex projections'!$B$10:$AK$29,29,FALSE) -> 3207.822635 | O15: =VLOOKUP($C15,'RCV & totex projections'!$B$10:$AK$29,29,FALSE) -> 8866.071504 | P15: 12073.89414 | Q15: =VLOOKUP($B15,'RCV & totex projections'!$B$10:$AK$29,34,FALSE) -> 3207.822635 | R15: =VLOOKUP($C15,'RCV & totex projections'!$B$10:$AK$29,34,FALSE) -> 8866.071504 | S15: 12073.89414
B16: SWB | C16: SEW | D16: SWBSEW | E16: =VLOOKUP($B16,'RCV & totex projections'!$B$10:$AK$29,14,FALSE) -> 3207.822635 | F16: =VLOOKUP($C16,'RCV & totex projections'!$B$10:$AK$29,14,FALSE) -> 1449.209445 | G16: 4657.03208 | H16: =VLOOKUP($B16,'RCV & totex projections'!$B$10:$AK$29,19,FALSE) -> 3207.822635 | I16: =VLOOKUP($C16,'RCV & totex projections'!$B$10:$AK$29,19,FALSE) -> 1449.209445 | J16: 4657.03208 | K16: =VLOOKUP($B16,'RCV & totex projections'!$B$10:$AK$29,24,FALSE) -> 3207.822635 | L16: =VLOOKUP($C16,'RCV & totex projections'!$B$10:$AK$29,24,FALSE) -> 1449.209445 | M16: 4657.03208 | N16: =VLOOKUP($B16,'RCV & totex projections'!$B$10:$AK$29,29,FALSE) -> 3207.822635 | O16: =VLOOKUP($C16,'RCV & totex projections'!$B$10:$AK$29,29,FALSE) -> 1449.209445 | P16: 4657.03208 | Q16: =VLOOKUP($B16,'RCV & totex projections'!$B$10:$AK$29,34,FALSE) -> 3207.822635 | R16: =VLOOKUP($C16,'RCV & totex projections'!$B$10:$AK$29,34,FALSE) -> 1449.209445 | S16: 4657.03208
B17: SWB | C17: SSC | D17: SWBSSC | E17: =VLOOKUP($B17,'RCV & totex projections'!$B$10:$AK$29,14,FALSE) -> 3207.822635 | F17: =VLOOKUP($C17,'RCV & totex projections'!$B$10:$AK$29,14,FALSE) -> 451.5233645 | G17: 3659.346 | H17: =VLOOKUP($B17,'RCV & totex projections'!$B$10:$AK$29,19,FALSE) -> 3207.822635 | I17: =VLOOKUP($C17,'RCV & totex projections'!$B$10:$AK$29,19,FALSE) -> 451.5233645 | J17: 3659.346 | K17: =VLOOKUP($B17,'RCV & totex projections'!$B$10:$AK$29,24,FALSE) -> 3207.822635 | L17: =VLOOKUP($C17,'RCV & totex projections'!$B$10:$AK$29,24,FALSE) -> 451.5233645 | M17: 3659.346 | N17: =VLOOKUP($B17,'RCV & totex projections'!$B$10:$AK$29,29,FALSE) -> 3207.822635 | O17: =VLOOKUP($C17,'RCV & totex projections'!$B$10:$AK$29,29,FALSE) -> 451.5233645 | P17: 3659.346 | Q17: =VLOOKUP($B17,'RCV & totex projections'!$B$10:$AK$29,34,FALSE) -> 3207.822635 | R17: =VLOOKUP($C17,'RCV & totex projections'!$B$10:$AK$29,34,FALSE) -> 451.5233645 | S17: 3659.346
B18: SWB | C18: SVE | D18: SWBSVE | E18: =VLOOKUP($B18,'RCV & totex projections'!$B$10:$AK$29,14,FALSE) -> 3207.822635 | F18: =VLOOKUP($C18,'RCV & totex projections'!$B$10:$AK$29,14,FALSE) -> 9051.903159 | G18: 12259.72579 | H18: =VLOOKUP($B18,'RCV & totex projections'!$B$10:$AK$29,19,FALSE) -> 3207.822635 | I18: =VLOOKUP($C18,'RCV & totex projections'!$B$10:$AK$29,19,FALSE) -> 9051.903159 | J18: 12259.72579 | K18: =VLOOKUP($B18,'RCV & totex projections'!$B$10:$AK$29,24,FALSE) -> 3207.822635 | L18: =VLOOKUP($C18,'RCV & totex projections'!$B$10:$AK$29,24,FALSE) -> 9051.903159 | M18: 12259.72579 | N18: =VLOOKUP($B18,'RCV & totex projections'!$B$10:$AK$29,29,FALSE) -> 3207.822635 | O18: =VLOOKUP($C18,'RCV & totex projections'!$B$10:$AK$29,29,FALSE) -> 9051.903159 | P18: 12259.72579 | Q18: =VLOOKUP($B18,'RCV & totex projections'!$B$10:$AK$29,34,FALSE) -> 3207.822635 | R18: =VLOOKUP($C18,'RCV & totex projections'!$B$10:$AK$29,34,FALSE) -> 9051.903159 | S18: 12259.72579
B19: SWB | C19: WSX | D19: SWBWSX | E19: =VLOOKUP($B19,'RCV & totex projections'!$B$10:$AK$29,14,FALSE) -> 3207.822635 | F19: =VLOOKUP($C19,'RCV & totex projections'!$B$10:$AK$29,14,FALSE) -> 3472.985755 | G19: 6680.80839 | H19: =VLOOKUP($B19,'RCV & totex projections'!$B$10:$AK$29,19,FALSE) -> 3207.822635 | I19: =VLOOKUP($C19,'RCV & totex projections'!$B$10:$AK$29,19,FALSE) -> 3472.985755 | J19: 6680.80839 | K19: =VLOOKUP($B19,'RCV & totex projections'!$B$10:$AK$29,24,FALSE) -> 3207.822635 | L19: =VLOOKUP($C19,'RCV & totex projections'!$B$10:$AK$29,24,FALSE) -> 3472.985755 | M19: 6680.80839 | N19: =VLOOKUP($B19,'RCV & totex projections'!$B$10:$AK$29,29,FALSE) -> 3207.822635 | O19: =VLOOKUP($C19,'RCV & totex projections'!$B$10:$AK$29,29,FALSE) -> 3472.985755 | P19: 6680.80839 | Q19: =VLOOKUP($B19,'RCV & totex projections'!$B$10:$AK$29,34,FALSE) -> 3207.822635 | R19: =VLOOKUP($C19,'RCV & totex projections'!$B$10:$AK$29,34,FALSE) -> 3472.985755 | S19: 6680.80839
B20: SWB | C20: SRN | D20: SWBSRN | E20: =VLOOKUP($B20,'RCV & totex projections'!$B$10:$AK$29,14,FALSE) -> 3207.822635 | F20: =VLOOKUP($C20,'RCV & totex projections'!$B$10:$AK$29,14,FALSE) -> 5440.553595 | G20: 8648.376231 | H20: =VLOOKUP($B20,'RCV & totex projections'!$B$10:$AK$29,19,FALSE) -> 3207.822635 | I20: =VLOOKUP($C20,'RCV & totex projections'!$B$10:$AK$29,19,FALSE) -> 5440.553595 | J20: 8648.376231 | K20: =VLOOKUP($B20,'RCV & totex projections'!$B$10:$AK$29,24,FALSE) -> 3207.822635 | L20: =VLOOKUP($C20,'RCV & totex projections'!$B$10:$AK$29,24,FALSE) -> 5440.553595 | M20: 8648.376231 | N20: =VLOOKUP($B20,'RCV & totex projections'!$B$10:$AK$29,29,FALSE) -> 3207.822635 | O20: =VLOOKUP($C20,'RCV & totex projections'!$B$10:$AK$29,29,FALSE) -> 5440.553595 | P20: 8648.376231 | Q20: =VLOOKUP($B20,'RCV & totex projections'!$B$10:$AK$29,34,FALSE) -> 3207.822635 | R20: =VLOOKUP($C20,'RCV & totex projections'!$B$10:$AK$29,34,FALSE) -> 5440.553595 | S20: 8648.376231
B21: SWB | C21: BRL | D21: SWBBRL | E21: =VLOOKUP($B21,'RCV & totex projections'!$B$10:$AK$29,14,FALSE) -> 3207.822635 | F21: =VLOOKUP($C21,'RCV & totex projections'!$B$10:$AK$29,14,FALSE) -> 521.9686441 | G21: 3729.791279 | H21: =VLOOKUP($B21,'RCV & totex projections'!$B$10:$AK$29,19,FALSE) -> 3207.822635 | I21: =VLOOKUP($C21,'RCV & totex projections'!$B$10:$AK$29,19,FALSE) -> 521.9686441 | J21: 3729.791279 | K21: =VLOOKUP($B21,'RCV & totex projections'!$B$10:$AK$29,24,FALSE) -> 3207.822635 | L21: =VLOOKUP($C21,'RCV & totex projections'!$B$10:$AK$29,24,FALSE) -> 521.9686441 | M21: 3729.791279 | N21: =VLOOKUP($B21,'RCV & totex projections'!$B$10:$AK$29,29,FALSE) -> 3207.822635 | O21: =VLOOKUP($C21,'RCV & totex projections'!$B$10:$AK$29,29,FALSE) -> 521.9686441 | P21: 3729.791279 | Q21: =VLOOKUP($B21,'RCV & totex projections'!$B$10:$AK$29,34,FALSE) -> 3207.822635 | R21: =VLOOKUP($C21,'RCV & totex projections'!$B$10:$AK$29,34,FALSE) -> 521.9686441 | S21: 3729.791279
B22: YKY | C22: SWB | D22: YKYSWB | E22: =VLOOKUP($B22,'RCV & totex projections'!$B$10:$AK$29,14,FALSE) -> 7424.879132 | F22: =VLOOKUP($C22,'RCV & totex projections'!$B$10:$AK$29,14,FALSE) -> 3207.822635 | G22: 10632.70177 | H22: =VLOOKUP($B22,'RCV & totex projections'!$B$10:$AK$29,19,FALSE) -> 7424.879132 | I22: =VLOOKUP($C22,'RCV & totex projections'!$B$10:$AK$29,19,FALSE) -> 3207.822635 | J22: 10632.70177 | K22: =VLOOKUP($B22,'RCV & totex projections'!$B$10:$AK$29,24,FALSE) -> 7424.879132 | L22: =VLOOKUP($C22,'RCV & totex projections'!$B$10:$AK$29,24,FALSE) -> 3207.822635 | M22: 10632.70177 | N22: =VLOOKUP($B22,'RCV & totex projections'!$B$10:$AK$29,29,FALSE) -> 7424.879132 | O22: =VLOOKUP($C22,'RCV & totex projections'!$B$10:$AK$29,29,FALSE) -> 3207.822635 | P22: 10632.70177 | Q22: =VLOOKUP($B22,'RCV & totex projections'!$B$10:$AK$29,34,FALSE) -> 7424.879132 | R22: =VLOOKUP($C22,'RCV & totex projections'!$B$10:$AK$29,34,FALSE) -> 3207.822635 | S22: 10632.70177
B23: YKY | C23: YKY | D23: YKYYKY | E23: =VLOOKUP($B23,'RCV & totex projections'!$B$10:$AK$29,14,FALSE) -> 7424.879132 | F23: =VLOOKUP($C23,'RCV & totex projections'!$B$10:$AK$29,14,FALSE) -> 7424.879132 | G23: 14849.75826 | H23: =VLOOKUP($B23,'RCV & totex projections'!$B$10:$AK$29,19,FALSE) -> 7424.879132 | I23: =VLOOKUP($C23,'RCV & totex projections'!$B$10:$AK$29,19,FALSE) -> 7424.879132 | J23: 14849.75826 | K23: =VLOOKUP($B23,'RCV & totex projections'!$B$10:$AK$29,24,FALSE) -> 7424.879132 | L23: =VLOOKUP($C23,'RCV & totex projections'!$B$10:$AK$29,24,FALSE) -> 7424.879132 | M23: 14849.75826 | N23: =VLOOKUP($B23,'RCV & totex projections'!$B$10:$AK$29,29,FALSE) -> 7424.879132 | O23: =VLOOKUP($C23,'RCV & totex projections'!$B$10:$AK$29,29,FALSE) -> 7424.879132 | P23: 14849.75826 | Q23: =VLOOKUP($B23,'RCV & totex projections'!$B$10:$AK$29,34,FALSE) -> 7424.879132 | R23: =VLOOKUP($C23,'RCV & totex projections'!$B$10:$AK$29,34,FALSE) -> 7424.879132 | S23: 14849.75826
B24: YKY | C24: AFW | D24: YKYAFW | E24: =VLOOKUP($B24,'RCV & totex projections'!$B$10:$AK$29,14,FALSE) -> 7424.879132 | F24: =VLOOKUP($C24,'RCV & totex projections'!$B$10:$AK$29,14,FALSE) -> 1324.461347 | G24: 8749.340479 | H24: =VLOOKUP($B24,'RCV & totex projections'!$B$10:$AK$29,19,FALSE) -> 7424.879132 | I24: =VLOOKUP($C24,'RCV & totex projections'!$B$10:$AK$29,19,FALSE) -> 1324.461347 | J24: 8749.340479 | K24: =VLOOKUP($B24,'RCV & totex projections'!$B$10:$AK$29,24,FALSE) -> 7424.879132 | L24: =VLOOKUP($C24,'RCV & totex projections'!$B$10:$AK$29,24,FALSE) -> 1324.461347 | M24: 8749.340479 | N24: =VLOOKUP($B24,'RCV & totex projections'!$B$10:$AK$29,29,FALSE) -> 7424.879132 | O24: =VLOOKUP($C24,'RCV & totex projections'!$B$10:$AK$29,29,FALSE) -> 1324.461347 | P24: 8749.340479 | Q24: =VLOOKUP($B24,'RCV & totex projections'!$B$10:$AK$29,34,FALSE) -> 7424.879132 | R24: =VLOOKUP($C24,'RCV & totex projections'!$B$10:$AK$29,34,FALSE) -> 1324.461347 | S24: 8749.340479
B25: YKY | C25: TMS | D25: YKYTMS | E25: =VLOOKUP($B25,'RCV & totex projections'!$B$10:$AK$29,14,FALSE) -> 7424.879132 | F25: =VLOOKUP($C25,'RCV & totex projections'!$B$10:$AK$29,14,FALSE) -> 16820.92531 | G25: 24245.80445 | H25: =VLOOKUP($B25,'RCV & totex projections'!$B$10:$AK$29,19,FALSE) -> 7424.879132 | I25: =VLOOKUP($C25,'RCV & totex projections'!$B$10:$AK$29,19,FALSE) -> 16820.92531 | J25: 24245.80445 | K25: =VLOOKUP($B25,'RCV & totex projections'!$B$10:$AK$29,24,FALSE) -> 7424.879132 | L25: =VLOOKUP($C25,'RCV & totex projections'!$B$10:$AK$29,24,FALSE) -> 16820.92531 | M25: 24245.80445 | N25: =VLOOKUP($B25,'RCV & totex projections'!$B$10:$AK$29,29,FALSE) -> 7424.879132 | O25: =VLOOKUP($C25,'RCV & totex projections'!$B$10:$AK$29,29,FALSE) -> 16820.92531 | P25: 24245.80445 | Q25: =VLOOKUP($B25,'RCV & totex projections'!$B$10:$AK$29,34,FALSE) -> 7424.879132 | R25: =VLOOKUP($C25,'RCV & totex projections'!$B$10:$AK$29,34,FALSE) -> 16820.92531 | S25: 24245.80445
B26: YKY | C26: PRT | D26: YKYPRT | E26: =VLOOKUP($B26,'RCV & totex projections'!$B$10:$AK$29,14,FALSE) -> 7424.879132 | F26: =VLOOKUP($C26,'RCV & totex projections'!$B$10:$AK$29,14,FALSE) -> 220.2655931 | G26: 7645.144725 | H26: =VLOOKUP($B26,'RCV & totex projections'!$B$10:$AK$29,19,FALSE) -> 7424.879132 | I26: =VLOOKUP($C26,'RCV & totex projections'!$B$10:$AK$29,19,FALSE) -> 220.2655931 | J26: 7645.144725 | K26: =VLOOKUP($B26,'RCV & totex projections'!$B$10:$AK$29,24,FALSE) -> 7424.879132 | L26: =VLOOKUP($C26,'RCV & totex projections'!$B$10:$AK$29,24,FALSE) -> 220.2655931 | M26: 7645.144725 | N26: =VLOOKUP($B26,'RCV & totex projections'!$B$10:$AK$29,29,FALSE) -> 7424.879132 | O26: =VLOOKUP($C26,'RCV & totex projections'!$B$10:$AK$29,29,FALSE) -> 220.2655931 | P26: 7645.144725 | Q26: =VLOOKUP($B26,'RCV & totex projections'!$B$10:$AK$29,34,FALSE) -> 7424.879132 | R26: =VLOOKUP($C26,'RCV & totex projections'!$B$10:$AK$29,34,FALSE) -> 220.2655931 | S26: 7645.144725
B27: YKY | C27: NES | D27: YKYNES | E27: =VLOOKUP($B27,'RCV & totex projections'!$B$10:$AK$29,14,FALSE) -> 7424.879132 | F27: =VLOOKUP($C27,'RCV & totex projections'!$B$10:$AK$29,14,FALSE) -> 4360.035263 | G27: 11784.91439 | H27: =VLOOKUP($B27,'RCV & totex projections'!$B$10:$AK$29,19,FALSE) -> 7424.879132 | I27: =VLOOKUP($C27,'RCV & totex projections'!$B$10:$AK$29,19,FALSE) -> 4360.035263 | J27: 11784.91439 | K27: =VLOOKUP($B27,'RCV & totex projections'!$B$10:$AK$29,24,FALSE) -> 7424.879132 | L27: =VLOOKUP($C27,'RCV & totex projections'!$B$10:$AK$29,24,FALSE) -> 4360.035263 | M27: 11784.91439 | N27: =VLOOKUP($B27,'RCV & totex projections'!$B$10:$AK$29,29,FALSE) -> 7424.879132 | O27: =VLOOKUP($C27,'RCV & totex projections'!$B$10:$AK$29,29,FALSE) -> 4360.035263 | P27: 11784.91439 | Q27: =VLOOKUP($B27,'RCV & totex projections'!$B$10:$AK$29,34,FALSE) -> 7424.879132 | R27: =VLOOKUP($C27,'RCV & totex projections'!$B$10:$AK$29,34,FALSE) -> 4360.035263 | S27: 11784.91439
B28: YKY | C28: WSH | D28: YKYWSH | E28: =VLOOKUP($B28,'RCV & totex projections'!$B$10:$AK$29,14,FALSE) -> 7424.879132 | F28: =VLOOKUP($C28,'RCV & totex projections'!$B$10:$AK$29,14,FALSE) -> 6243.283721 | G28: 13668.16285 | H28: =VLOOKUP($B28,'RCV & totex projections'!$B$10:$AK$29,19,FALSE) -> 7424.879132 | I28: =VLOOKUP($C28,'RCV & totex projections'!$B$10:$AK$29,19,FALSE) -> 6243.283721 | J28: 13668.16285 | K28: =VLOOKUP($B28,'RCV & totex projections'!$B$10:$AK$29,24,FALSE) -> 7424.879132 | L28: =VLOOKUP($C28,'RCV & totex projections'!$B$10:$AK$29,24,FALSE) -> 6243.283721 | M28: 13668.16285 | N28: =VLOOKUP($B28,'RCV & totex projections'!$B$10:$AK$29,29,FALSE) -> 7424.879132 | O28: =VLOOKUP($C28,'RCV & totex projections'!$B$10:$AK$29,29,FALSE) -> 6243.283721 | P28: 13668.16285 | Q28: =VLOOKUP($B28,'RCV & totex projections'!$B$10:$AK$29,34,FALSE) -> 7424.879132 | R28: =VLOOKUP($C28,'RCV & totex projections'!$B$10:$AK$29,34,FALSE) -> 6243.283721 | S28: 13668.16285
B29: YKY | C29: UUW | D29: YKYUUW | E29: =VLOOKUP($B29,'RCV & totex projections'!$B$10:$AK$29,14,FALSE) -> 7424.879132 | F29: =VLOOKUP($C29,'RCV & totex projections'!$B$10:$AK$29,14,FALSE) -> 10770.69058 | G29: 18195.56971 | H29: =VLOOKUP($B29,'RCV & totex projections'!$B$10:$AK$29,19,FALSE) -> 7424.879132 | I29: =VLOOKUP($C29,'RCV & totex projections'!$B$10:$AK$29,19,FALSE) -> 10770.69058 | J29: 18195.56971 | K29: =VLOOKUP($B29,'RCV & totex projections'!$B$10:$AK$29,24,FALSE) -> 7424.879132 | L29: =VLOOKUP($C29,'RCV & totex projections'!$B$10:$AK$29,24,FALSE) -> 10770.69058 | M29: 18195.56971 | N29: =VLOOKUP($B29,'RCV & totex projections'!$B$10:$AK$29,29,FALSE) -> 7424.879132 | O29: =VLOOKUP($C29,'RCV & totex projections'!$B$10:$AK$29,29,FALSE) -> 10770.69058 | P29: 18195.56971 | Q29: =VLOOKUP($B29,'RCV & totex projections'!$B$10:$AK$29,34,FALSE) -> 7424.879132 | R29: =VLOOKUP($C29,'RCV & totex projections'!$B$10:$AK$29,34,FALSE) -> 10770.69058 | S29: 18195.56971
B30: YKY | C30: SES | D30: YKYSES | E30: =VLOOKUP($B30,'RCV & totex projections'!$B$10:$AK$29,14,FALSE) -> 7424.879132 | F30: =VLOOKUP($C30,'RCV & totex projections'!$B$10:$AK$29,14,FALSE) -> 279.0526761 | G30: 7703.931808 | H30: =VLOOKUP($B30,'RCV & totex projections'!$B$10:$AK$29,19,FALSE) -> 7424.879132 | I30: =VLOOKUP($C30,'RCV & totex projections'!$B$10:$AK$29,19,FALSE) -> 279.0526761 | J30: 7703.931808 | K30: =VLOOKUP($B30,'RCV & totex projections'!$B$10:$AK$29,24,FALSE) -> 7424.879132 | L30: =VLOOKUP($C30,'RCV & totex projections'!$B$10:$AK$29,24,FALSE) -> 279.0526761 | M30: 7703.931808 | N30: =VLOOKUP($B30,'RCV & totex projections'!$B$10:$AK$29,29,FALSE) -> 7424.879132 | O30: =VLOOKUP($C30,'RCV & totex projections'!$B$10:$AK$29,29,FALSE) -> 279.0526761 | P30: 7703.931808 | Q30: =VLOOKUP($B30,'RCV & totex projections'!$B$10:$AK$29,34,FALSE) -> 7424.879132 | R30: =VLOOKUP($C30,'RCV & totex projections'!$B$10:$AK$29,34,FALSE) -> 279.0526761 | S30: 7703.931808
B31: YKY | C31: ANH | D31: YKYANH | E31: =VLOOKUP($B31,'RCV & totex projections'!$B$10:$AK$29,14,FALSE) -> 7424.879132 | F31: =VLOOKUP($C31,'RCV & totex projections'!$B$10:$AK$29,14,FALSE) -> 8866.071504 | G31: 16290.95064 | H31: =VLOOKUP($B31,'RCV & totex projections'!$B$10:$AK$29,19,FALSE) -> 7424.879132 | I31: =VLOOKUP($C31,'RCV & totex projections'!$B$10:$AK$29,19,FALSE) -> 8866.071504 | J31: 16290.95064 | K31: =VLOOKUP($B31,'RCV & totex projections'!$B$10:$AK$29,24,FALSE) -> 7424.879132 | L31: =VLOOKUP($C31,'RCV & totex projections'!$B$10:$AK$29,24,FALSE) -> 8866.071504 | M31: 16290.95064 | N31: =VLOOKUP($B31,'RCV & totex projections'!$B$10:$AK$29,29,FALSE) -> 7424.879132 | O31: =VLOOKUP($C31,'RCV & totex projections'!$B$10:$AK$29,29,FALSE) -> 8866.071504 | P31: 16290.95064 | Q31: =VLOOKUP($B31,'RCV & totex projections'!$B$10:$AK$29,34,FALSE) -> 7424.879132 | R31: =VLOOKUP($C31,'RCV & totex projections'!$B$10:$AK$29,34,FALSE) -> 8866.071504 | S31: 16290.95064
B32: YKY | C32: SEW | D32: YKYSEW | E32: =VLOOKUP($B32,'RCV & totex projections'!$B$10:$AK$29,14,FALSE) -> 7424.879132 | F32: =VLOOKUP($C32,'RCV & totex projections'!$B$10:$AK$29,14,FALSE) -> 1449.209445 | G32: 8874.088577 | H32: =VLOOKUP($B32,'RCV & totex projections'!$B$10:$AK$29,19,FALSE) -> 7424.879132 | I32: =VLOOKUP($C32,'RCV & totex projections'!$B$10:$AK$29,19,FALSE) -> 1449.209445 | J32: 8874.088577 | K32: =VLOOKUP($B32,'RCV & totex projections'!$B$10:$AK$29,24,FALSE) -> 7424.879132 | L32: =VLOOKUP($C32,'RCV & totex projections'!$B$10:$AK$29,24,FALSE) -> 1449.209445 | M32: 8874.088577 | N32: =VLOOKUP($B32,'RCV & totex projections'!$B$10:$AK$29,29,FALSE) -> 7424.879132 | O32: =VLOOKUP($C32,'RCV & totex projections'!$B$10:$AK$29,29,FALSE) -> 1449.209445 | P32: 8874.088577 | Q32: =VLOOKUP($B32,'RCV & totex projections'!$B$10:$AK$29,34,FALSE) -> 7424.879132 | R32: =VLOOKUP($C32,'RCV & totex projections'!$B$10:$AK$29,34,FALSE) -> 1449.209445 | S32: 8874.088577
B33: YKY | C33: SSC | D33: YKYSSC | E33: =VLOOKUP($B33,'RCV & totex projections'!$B$10:$AK$29,14,FALSE) -> 7424.879132 | F33: =VLOOKUP($C33,'RCV & totex projections'!$B$10:$AK$29,14,FALSE) -> 451.5233645 | G33: 7876.402496 | H33: =VLOOKUP($B33,'RCV & totex projections'!$B$10:$AK$29,19,FALSE) -> 7424.879132 | I33: =VLOOKUP($C33,'RCV & totex projections'!$B$10:$AK$29,19,FALSE) -> 451.5233645 | J33: 7876.402496 | K33: =VLOOKUP($B33,'RCV & totex projections'!$B$10:$AK$29,24,FALSE) -> 7424.879132 | L33: =VLOOKUP($C33,'RCV & totex projections'!$B$10:$AK$29,24,FALSE) -> 451.5233645 | M33: 7876.402496 | N33: =VLOOKUP($B33,'RCV & totex projections'!$B$10:$AK$29,29,FALSE) -> 7424.879132 | O33: =VLOOKUP($C33,'RCV & totex projections'!$B$10:$AK$29,29,FALSE) -> 451.5233645 | P33: 7876.402496 | Q33: =VLOOKUP($B33,'RCV & totex projections'!$B$10:$AK$29,34,FALSE) -> 7424.879132 | R33: =VLOOKUP($C33,'RCV & totex projections'!$B$10:$AK$29,34,FALSE) -> 451.5233645 | S33: 7876.402496
B34: YKY | C34: SVE | D34: YKYSVE | E34: =VLOOKUP($B34,'RCV & totex projections'!$B$10:$AK$29,14,FALSE) -> 7424.879132 | F34: =VLOOKUP($C34,'RCV & totex projections'!$B$10:$AK$29,14,FALSE) -> 9051.903159 | G34: 16476.78229 | H34: =VLOOKUP($B34,'RCV & totex projections'!$B$10:$AK$29,19,FALSE) -> 7424.879132 | I34: =VLOOKUP($C34,'RCV & totex projections'!$B$10:$AK$29,19,FALSE) -> 9051.903159 | J34: 16476.78229 | K34: =VLOOKUP($B34,'RCV & totex projections'!$B$10:$AK$29,24,FALSE) -> 7424.879132 | L34: =VLOOKUP($C34,'RCV & totex projections'!$B$10:$AK$29,24,FALSE) -> 9051.903159 | M34: 16476.78229 | N34: =VLOOKUP($B34,'RCV & totex projections'!$B$10:$AK$29,29,FALSE) -> 7424.879132 | O34: =VLOOKUP($C34,'RCV & totex projections'!$B$10:$AK$29,29,FALSE) -> 9051.903159 | P34: 16476.78229 | Q34: =VLOOKUP($B34,'RCV & totex projections'!$B$10:$AK$29,34,FALSE) -> 7424.879132 | R34: =VLOOKUP($C34,'RCV & totex projections'!$B$10:$AK$29,34,FALSE) -> 9051.903159 | S34: 16476.78229
B35: YKY | C35: WSX | D35: YKYWSX | E35: =VLOOKUP($B35,'RCV & totex projections'!$B$10:$AK$29,14,FALSE) -> 7424.879132 | F35: =VLOOKUP($C35,'RCV & totex projections'!$B$10:$AK$29,14,FALSE) -> 3472.985755 | G35: 10897.86489 | H35: =VLOOKUP($B35,'RCV & totex projections'!$B$10:$AK$29,19,FALSE) -> 7424.879132 | I35: =VLOOKUP($C35,'RCV & totex projections'!$B$10:$AK$29,19,FALSE) -> 3472.985755 | J35: 10897.86489 | K35: =VLOOKUP($B35,'RCV & totex projections'!$B$10:$AK$29,24,FALSE) -> 7424.879132 | L35: =VLOOKUP($C35,'RCV & totex projections'!$B$10:$AK$29,24,FALSE) -> 3472.985755 | M35: 10897.86489 | N35: =VLOOKUP($B35,'RCV & totex projections'!$B$10:$AK$29,29,FALSE) -> 7424.879132 | O35: =VLOOKUP($C35,'RCV & totex projections'!$B$10:$AK$29,29,FALSE) -> 3472.985755 | P35: 10897.86489 | Q35: =VLOOKUP($B35,'RCV & totex projections'!$B$10:$AK$29,34,FALSE) -> 7424.879132 | R35: =VLOOKUP($C35,'RCV & totex projections'!$B$10:$AK$29,34,FALSE) -> 3472.985755 | S35: 10897.86489
B36: YKY | C36: SRN | D36: YKYSRN | E36: =VLOOKUP($B36,'RCV & totex projections'!$B$10:$AK$29,14,FALSE) -> 7424.879132 | F36: =VLOOKUP($C36,'RCV & totex projections'!$B$10:$AK$29,14,FALSE) -> 5440.553595 | G36: 12865.43273 | H36: =VLOOKUP($B36,'RCV & totex projections'!$B$10:$AK$29,19,FALSE) -> 7424.879132 | I36: =VLOOKUP($C36,'RCV & totex projections'!$B$10:$AK$29,19,FALSE) -> 5440.553595 | J36: 12865.43273 | K36: =VLOOKUP($B36,'RCV & totex projections'!$B$10:$AK$29,24,FALSE) -> 7424.879132 | L36: =VLOOKUP($C36,'RCV & totex projections'!$B$10:$AK$29,24,FALSE) -> 5440.553595 | M36: 12865.43273 | N36: =VLOOKUP($B36,'RCV & totex projections'!$B$10:$AK$29,29,FALSE) -> 7424.879132 | O36: =VLOOKUP($C36,'RCV & totex projections'!$B$10:$AK$29,29,FALSE) -> 5440.553595 | P36: 12865.43273 | Q36: =VLOOKUP($B36,'RCV & totex projections'!$B$10:$AK$29,34,FALSE) -> 7424.879132 | R36: =VLOOKUP($C36,'RCV & totex projections'!$B$10:$AK$29,34,FALSE) -> 5440.553595 | S36: 12865.43273
B37: YKY | C37: BRL | D37: YKYBRL | E37: =VLOOKUP($B37,'RCV & totex projections'!$B$10:$AK$29,14,FALSE) -> 7424.879132 | F37: =VLOOKUP($C37,'RCV & totex projections'!$B$10:$AK$29,14,FALSE) -> 521.9686441 | G37: 7946.847776 | H37: =VLOOKUP($B37,'RCV & totex projections'!$B$10:$AK$29,19,FALSE) -> 7424.879132 | I37: =VLOOKUP($C37,'RCV & totex projections'!$B$10:$AK$29,19,FALSE) -> 521.9686441 | J37: 7946.847776 | K37: =VLOOKUP($B37,'RCV & totex projections'!$B$10:$AK$29,24,FALSE) -> 7424.879132 | L37: =VLOOKUP($C37,'RCV & totex projections'!$B$10:$AK$29,24,FALSE) -> 521.9686441 | M37: 7946.847776 | N37: =VLOOKUP($B37,'RCV & totex projections'!$B$10:$AK$29,29,FALSE) -> 7424.879132 | O37: =VLOOKUP($C37,'RCV & totex projections'!$B$10:$AK$29,29,FALSE) -> 521.9686441 | P37: 7946.847776 | Q37: =VLOOKUP($B37,'RCV & totex projections'!$B$10:$AK$29,34,FALSE) -> 7424.879132 | R37: =VLOOKUP($C37,'RCV & totex projections'!$B$10:$AK$29,34,FALSE) -> 521.9686441 | S37: 7946.847776
B38: AFW | C38: SWB | D38: AFWSWB | E38: =VLOOKUP($B38,'RCV & totex projections'!$B$10:$AK$29,14,FALSE) -> 1324.461347 | F38: =VLOOKUP($C38,'RCV & totex projections'!$B$10:$AK$29,14,FALSE) -> 3207.822635 | G38: 4532.283982 | H38: =VLOOKUP($B38,'RCV & totex projections'!$B$10:$AK$29,19,FALSE) -> 1324.461347 | I38: =VLOOKUP($C38,'RCV & totex projections'!$B$10:$AK$29,19,FALSE) -> 3207.822635 | J38: 4532.283982 | K38: =VLOOKUP($B38,'RCV & totex projections'!$B$10:$AK$29,24,FALSE) -> 1324.461347 | L38: =VLOOKUP($C38,'RCV & totex projections'!$B$10:$AK$29,24,FALSE) -> 3207.822635 | M38: 4532.283982 | N38: =VLOOKUP($B38,'RCV & totex projections'!$B$10:$AK$29,29,FALSE) -> 1324.461347 | O38: =VLOOKUP($C38,'RCV & totex projections'!$B$10:$AK$29,29,FALSE) -> 3207.822635 | P38: 4532.283982 | Q38: =VLOOKUP($B38,'RCV & totex projections'!$B$10:$AK$29,34,FALSE) -> 1324.461347 | R38: =VLOOKUP($C38,'RCV & totex projections'!$B$10:$AK$29,34,FALSE) -> 3207.822635 | S38: 4532.283982
B39: AFW | C39: YKY | D39: AFWYKY | E39: =VLOOKUP($B39,'RCV & totex projections'!$B$10:$AK$29,14,FALSE) -> 1324.461347 | F39: =VLOOKUP($C39,'RCV & totex projections'!$B$10:$AK$29,14,FALSE) -> 7424.879132 | G39: 8749.340479 | H39: =VLOOKUP($B39,'RCV & totex projections'!$B$10:$AK$29,19,FALSE) -> 1324.461347 | I39: =VLOOKUP($C39,'RCV & totex projections'!$B$10:$AK$29,19,FALSE) -> 7424.879132 | J39: 8749.340479 | K39: =VLOOKUP($B39,'RCV & totex projections'!$B$10:$AK$29,24,FALSE) -> 1324.461347 | L39: =VLOOKUP($C39,'RCV & totex projections'!$B$10:$AK$29,24,FALSE) -> 7424.879132 | M39: 8749.340479 | N39: =VLOOKUP($B39,'RCV & totex projections'!$B$10:$AK$29,29,FALSE) -> 1324.461347 | O39: =VLOOKUP($C39,'RCV & totex projections'!$B$10:$AK$29,29,FALSE) -> 7424.879132 | P39: 8749.340479 | Q39: =VLOOKUP($B39,'RCV & totex projections'!$B$10:$AK$29,34,FALSE) -> 1324.461347 | R39: =VLOOKUP($C39,'RCV & totex projections'!$B$10:$AK$29,34,FALSE) -> 7424.879132 | S39: 8749.340479
B40: AFW | C40: AFW | D40: AFWAFW | E40: =VLOOKUP($B40,'RCV & totex projections'!$B$10:$AK$29,14,FALSE) -> 1324.461347 | F40: =VLOOKUP($C40,'RCV & totex projections'!$B$10:$AK$29,14,FALSE) -> 1324.461347 | G40: 2648.922693 | H40: =VLOOKUP($B40,'RCV & totex projections'!$B$10:$AK$29,19,FALSE) -> 1324.461347 | I40: =VLOOKUP($C40,'RCV & totex projections'!$B$10:$AK$29,19,FALSE) -> 1324.461347 | J40: 2648.922693 | K40: =VLOOKUP($B40,'RCV & totex projections'!$B$10:$AK$29,24,FALSE) -> 1324.461347 | L40: =VLOOKUP($C40,'RCV & totex projections'!$B$10:$AK$29,24,FALSE) -> 1324.461347 | M40: 2648.922693 | N40: =VLOOKUP($B40,'RCV & totex projections'!$B$10:$AK$29,29,FALSE) -> 1324.461347 | O40: =VLOOKUP($C40,'RCV & totex projections'!$B$10:$AK$29,29,FALSE) -> 1324.461347 | P40: 2648.922693 | Q40: =VLOOKUP($B40,'RCV & totex projections'!$B$10:$AK$29,34,FALSE) -> 1324.461347 | R40: =VLOOKUP($C40,'RCV & totex projections'!$B$10:$AK$29,34,FALSE) -> 1324.461347 | S40: 2648.922693
B41: AFW | C41: TMS | D41: AFWTMS | E41: =VLOOKUP($B41,'RCV & totex projections'!$B$10:$AK$29,14,FALSE) -> 1324.461347 | F41: =VLOOKUP($C41,'RCV & totex projections'!$B$10:$AK$29,14,FALSE) -> 16820.92531 | G41: 18145.38666 | H41: =VLOOKUP($B41,'RCV & totex projections'!$B$10:$AK$29,19,FALSE) -> 1324.461347 | I41: =VLOOKUP($C41,'RCV & totex projections'!$B$10:$AK$29,19,FALSE) -> 16820.92531 | J41: 18145.38666 | K41: =VLOOKUP($B41,'RCV & totex projections'!$B$10:$AK$29,24,FALSE) -> 1324.461347 | L41: =VLOOKUP($C41,'RCV & totex projections'!$B$10:$AK$29,24,FALSE) -> 16820.92531 | M41: 18145.38666 | N41: =VLOOKUP($B41,'RCV & totex projections'!$B$10:$AK$29,29,FALSE) -> 1324.461347 | O41: =VLOOKUP($C41,'RCV & totex projections'!$B$10:$AK$29,29,FALSE) -> 16820.92531 | P41: 18145.38666 | Q41: =VLOOKUP($B41,'RCV & totex projections'!$B$10:$AK$29,34,FALSE) -> 1324.461347 | R41: =VLOOKUP($C41,'RCV & totex projections'!$B$10:$AK$29,34,FALSE) -> 16820.92531 | S41: 18145.38666
B42: AFW | C42: PRT | D42: AFWPRT | E42: =VLOOKUP($B42,'RCV & totex projections'!$B$10:$AK$29,14,FALSE) -> 1324.461347 | F42: =VLOOKUP($C42,'RCV & totex projections'!$B$10:$AK$29,14,FALSE) -> 220.2655931 | G42: 1544.72694 | H42: =VLOOKUP($B42,'RCV & totex projections'!$B$10:$AK$29,19,FALSE) -> 1324.461347 | I42: =VLOOKUP($C42,'RCV & totex projections'!$B$10:$AK$29,19,FALSE) -> 220.2655931 | J42: 1544.72694 | K42: =VLOOKUP($B42,'RCV & totex projections'!$B$10:$AK$29,24,FALSE) -> 1324.461347 | L42: =VLOOKUP($C42,'RCV & totex projections'!$B$10:$AK$29,24,FALSE) -> 220.2655931 | M42: 1544.72694 | N42: =VLOOKUP($B42,'RCV & totex projections'!$B$10:$AK$29,29,FALSE) -> 1324.461347 | O42: =VLOOKUP($C42,'RCV & totex projections'!$B$10:$AK$29,29,FALSE) -> 220.2655931 | P42: 1544.72694 | Q42: =VLOOKUP($B42,'RCV & totex projections'!$B$10:$AK$29,34,FALSE) -> 1324.461347 | R42: =VLOOKUP($C42,'RCV & totex projections'!$B$10:$AK$29,34,FALSE) -> 220.2655931 | S42: 1544.72694
B43: AFW | C43: NES | D43: AFWNES | E43: =VLOOKUP($B43,'RCV & totex projections'!$B$10:$AK$29,14,FALSE) -> 1324.461347 | F43: =VLOOKUP($C43,'RCV & totex projections'!$B$10:$AK$29,14,FALSE) -> 4360.035263 | G43: 5684.49661 | H43: =VLOOKUP($B43,'RCV & totex projections'!$B$10:$AK$29,19,FALSE) -> 1324.461347 | I43: =VLOOKUP($C43,'RCV & totex projections'!$B$10:$AK$29,19,FALSE) -> 4360.035263 | J43: 5684.49661 | K43: =VLOOKUP($B43,'RCV & totex projections'!$B$10:$AK$29,24,FALSE) -> 1324.461347 | L43: =VLOOKUP($C43,'RCV & totex projections'!$B$10:$AK$29,24,FALSE) -> 4360.035263 | M43: 5684.49661 | N43: =VLOOKUP($B43,'RCV & totex projections'!$B$10:$AK$29,29,FALSE) -> 1324.461347 | O43: =VLOOKUP($C43,'RCV & totex projections'!$B$10:$AK$29,29,FALSE) -> 4360.035263 | P43: 5684.49661 | Q43: =VLOOKUP($B43,'RCV & totex projections'!$B$10:$AK$29,34,FALSE) -> 1324.461347 | R43: =VLOOKUP($C43,'RCV & totex projections'!$B$10:$AK$29,34,FALSE) -> 4360.035263 | S43: 5684.49661
B44: AFW | C44: WSH | D44: AFWWSH | E44: =VLOOKUP($B44,'RCV & totex projections'!$B$10:$AK$29,14,FALSE) -> 1324.461347 | F44: =VLOOKUP($C44,'RCV & totex projections'!$B$10:$AK$29,14,FALSE) -> 6243.283721 | G44: 7567.745068 | H44: =VLOOKUP($B44,'RCV & totex projections'!$B$10:$AK$29,19,FALSE) -> 1324.461347 | I44: =VLOOKUP($C44,'RCV & totex projections'!$B$10:$AK$29,19,FALSE) -> 6243.283721 | J44: 7567.745068 | K44: =VLOOKUP($B44,'RCV & totex projections'!$B$10:$AK$29,24,FALSE) -> 1324.461347 | L44: =VLOOKUP($C44,'RCV & totex projections'!$B$10:$AK$29,24,FALSE) -> 6243.283721 | M44: 7567.745068 | N44: =VLOOKUP($B44,'RCV & totex projections'!$B$10:$AK$29,29,FALSE) -> 1324.461347 | O44: =VLOOKUP($C44,'RCV & totex projections'!$B$10:$AK$29,29,FALSE) -> 6243.283721 | P44: 7567.745068 | Q44: =VLOOKUP($B44,'RCV & totex projections'!$B$10:$AK$29,34,FALSE) -> 1324.461347 | R44: =VLOOKUP($C44,'RCV & totex projections'!$B$10:$AK$29,34,FALSE) -> 6243.283721 | S44: 7567.745068
B45: AFW | C45: UUW | D45: AFWUUW | E45: =VLOOKUP($B45,'RCV & totex projections'!$B$10:$AK$29,14,FALSE) -> 1324.461347 | F45: =VLOOKUP($C45,'RCV & totex projections'!$B$10:$AK$29,14,FALSE) -> 10770.69058 | G45: 12095.15192 | H45: =VLOOKUP($B45,'RCV & totex projections'!$B$10:$AK$29,19,FALSE) -> 1324.461347 | I45: =VLOOKUP($C45,'RCV & totex projections'!$B$10:$AK$29,19,FALSE) -> 10770.69058 | J45: 12095.15192 | K45: =VLOOKUP($B45,'RCV & totex projections'!$B$10:$AK$29,24,FALSE) -> 1324.461347 | L45: =VLOOKUP($C45,'RCV & totex projections'!$B$10:$AK$29,24,FALSE) -> 10770.69058 | M45: 12095.15192 | N45: =VLOOKUP($B45,'RCV & totex projections'!$B$10:$AK$29,29,FALSE) -> 1324.461347 | O45: =VLOOKUP($C45,'RCV & totex projections'!$B$10:$AK$29,29,FALSE) -> 10770.69058 | P45: 12095.15192 | Q45: =VLOOKUP($B45,'RCV & totex projections'!$B$10:$AK$29,34,FALSE) -> 1324.461347 | R45: =VLOOKUP($C45,'RCV & totex projections'!$B$10:$AK$29,34,FALSE) -> 10770.69058 | S45: 12095.15192
B46: AFW | C46: SES | D46: AFWSES | E46: =VLOOKUP($B46,'RCV & totex projections'!$B$10:$AK$29,14,FALSE) -> 1324.461347 | F46: =VLOOKUP($C46,'RCV & totex projections'!$B$10:$AK$29,14,FALSE) -> 279.0526761 | G46: 1603.514023 | H46: =VLOOKUP($B46,'RCV & totex projections'!$B$10:$AK$29,19,FALSE) -> 1324.461347 | I46: =VLOOKUP($C46,'RCV & totex projections'!$B$10:$AK$29,19,FALSE) -> 279.0526761 | J46: 1603.514023 | K46: =VLOOKUP($B46,'RCV & totex projections'!$B$10:$AK$29,24,FALSE) -> 1324.461347 | L46: =VLOOKUP($C46,'RCV & totex projections'!$B$10:$AK$29,24,FALSE) -> 279.0526761 | M46: 1603.514023 | N46: =VLOOKUP($B46,'RCV & totex projections'!$B$10:$AK$29,29,FALSE) -> 1324.461347 | O46: =VLOOKUP($C46,'RCV & totex projections'!$B$10:$AK$29,29,FALSE) -> 279.0526761 | P46: 1603.514023 | Q46: =VLOOKUP($B46,'RCV & totex projections'!$B$10:$AK$29,34,FALSE) -> 1324.461347 | R46: =VLOOKUP($C46,'RCV & totex projections'!$B$10:$AK$29,34,FALSE) -> 279.0526761 | S46: 1603.514023
B47: AFW | C47: ANH | D47: AFWANH | E47: =VLOOKUP($B47,'RCV & totex projections'!$B$10:$AK$29,14,FALSE) -> 1324.461347 | F47: =VLOOKUP($C47,'RCV & totex projections'!$B$10:$AK$29,14,FALSE) -> 8866.071504 | G47: 10190.53285 | H47: =VLOOKUP($B47,'RCV & totex projections'!$B$10:$AK$29,19,FALSE) -> 1324.461347 | I47: =VLOOKUP($C47,'RCV & totex projections'!$B$10:$AK$29,19,FALSE) -> 8866.071504 | J47: 10190.53285 | K47: =VLOOKUP($B47,'RCV & totex projections'!$B$10:$AK$29,24,FALSE) -> 1324.461347 | L47: =VLOOKUP($C47,'RCV & totex projections'!$B$10:$AK$29,24,FALSE) -> 8866.071504 | M47: 10190.53285 | N47: =VLOOKUP($B47,'RCV & totex projections'!$B$10:$AK$29,29,FALSE) -> 1324.461347 | O47: =VLOOKUP($C47,'RCV & totex projections'!$B$10:$AK$29,29,FALSE) -> 8866.071504 | P47: 10190.53285 | Q47: =VLOOKUP($B47,'RCV & totex projections'!$B$10:$AK$29,34,FALSE) -> 1324.461347 | R47: =VLOOKUP($C47,'RCV & totex projections'!$B$10:$AK$29,34,FALSE) -> 8866.071504 | S47: 10190.53285
B48: AFW | C48: SEW | D48: AFWSEW | E48: =VLOOKUP($B48,'RCV & totex projections'!$B$10:$AK$29,14,FALSE) -> 1324.461347 | F48: =VLOOKUP($C48,'RCV & totex projections'!$B$10:$AK$29,14,FALSE) -> 1449.209445 | G48: 2773.670791 | H48: =VLOOKUP($B48,'RCV & totex projections'!$B$10:$AK$29,19,FALSE) -> 1324.461347 | I48: =VLOOKUP($C48,'RCV & totex projections'!$B$10:$AK$29,19,FALSE) -> 1449.209445 | J48: 2773.670791 | K48: =VLOOKUP($B48,'RCV & totex projections'!$B$10:$AK$29,24,FALSE) -> 1324.461347 | L48: =VLOOKUP($C48,'RCV & totex projections'!$B$10:$AK$29,24,FALSE) -> 1449.209445 | M48: 2773.670791 | N48: =VLOOKUP($B48,'RCV & totex projections'!$B$10:$AK$29,29,FALSE) -> 1324.461347 | O48: =VLOOKUP($C48,'RCV & totex projections'!$B$10:$AK$29,29,FALSE) -> 1449.209445 | P48: 2773.670791 | Q48: =VLOOKUP($B48,'RCV & totex projections'!$B$10:$AK$29,34,FALSE) -> 1324.461347 | R48: =VLOOKUP($C48,'RCV & totex projections'!$B$10:$AK$29,34,FALSE) -> 1449.209445 | S48: 2773.670791
B49: AFW | C49: SSC | D49: AFWSSC | E49: =VLOOKUP($B49,'RCV & totex projections'!$B$10:$AK$29,14,FALSE) -> 1324.461347 | F49: =VLOOKUP($C49,'RCV & totex projections'!$B$10:$AK$29,14,FALSE) -> 451.5233645 | G49: 1775.984711 | H49: =VLOOKUP($B49,'RCV & totex projections'!$B$10:$AK$29,19,FALSE) -> 1324.461347 | I49: =VLOOKUP($C49,'RCV & totex projections'!$B$10:$AK$29,19,FALSE) -> 451.5233645 | J49: 1775.984711 | K49: =VLOOKUP($B49,'RCV & totex projections'!$B$10:$AK$29,24,FALSE) -> 1324.461347 | L49: =VLOOKUP($C49,'RCV & totex projections'!$B$10:$AK$29,24,FALSE) -> 451.5233645 | M49: 1775.984711 | N49: =VLOOKUP($B49,'RCV & totex projections'!$B$10:$AK$29,29,FALSE) -> 1324.461347 | O49: =VLOOKUP($C49,'RCV & totex projections'!$B$10:$AK$29,29,FALSE) -> 451.5233645 | P49: 1775.984711 | Q49: =VLOOKUP($B49,'RCV & totex projections'!$B$10:$AK$29,34,FALSE) -> 1324.461347 | R49: =VLOOKUP($C49,'RCV & totex projections'!$B$10:$AK$29,34,FALSE) -> 451.5233645 | S49: 1775.984711
B50: AFW | C50: SVE | D50: AFWSVE | E50: =VLOOKUP($B50,'RCV & totex projections'!$B$10:$AK$29,14,FALSE) -> 1324.461347 | F50: =VLOOKUP($C50,'RCV & totex projections'!$B$10:$AK$29,14,FALSE) -> 9051.903159 | G50: 10376.36451 | H50: =VLOOKUP($B50,'RCV & totex projections'!$B$10:$AK$29,19,FALSE) -> 1324.461347 | I50: =VLOOKUP($C50,'RCV & totex projections'!$B$10:$AK$29,19,FALSE) -> 9051.903159 | J50: 10376.36451 | K50: =VLOOKUP($B50,'RCV & totex projections'!$B$10:$AK$29,24,FALSE) -> 1324.461347 | L50: =VLOOKUP($C50,'RCV & totex projections'!$B$10:$AK$29,24,FALSE) -> 9051.903159 | M50: 10376.36451 | N50: =VLOOKUP($B50,'RCV & totex projections'!$B$10:$AK$29,29,FALSE) -> 1324.461347 | O50: =VLOOKUP($C50,'RCV & totex projections'!$B$10:$AK$29,29,FALSE) -> 9051.903159 | P50: 10376.36451 | Q50: =VLOOKUP($B50,'RCV & totex projections'!$B$10:$AK$29,34,FALSE) -> 1324.461347 | R50: =VLOOKUP($C50,'RCV & totex projections'!$B$10:$AK$29,34,FALSE) -> 9051.903159 | S50: 10376.36451
B51: AFW | C51: WSX | D51: AFWWSX | E51: =VLOOKUP($B51,'RCV & totex projections'!$B$10:$AK$29,14,FALSE) -> 1324.461347 | F51: =VLOOKUP($C51,'RCV & totex projections'!$B$10:$AK$29,14,FALSE) -> 3472.985755 | G51: 4797.447102 | H51: =VLOOKUP($B51,'RCV & totex projections'!$B$10:$AK$29,19,FALSE) -> 1324.461347 | I51: =VLOOKUP($C51,'RCV & totex projections'!$B$10:$AK$29,19,FALSE) -> 3472.985755 | J51: 4797.447102 | K51: =VLOOKUP($B51,'RCV & totex projections'!$B$10:$AK$29,24,FALSE) -> 1324.461347 | L51: =VLOOKUP($C51,'RCV & totex projections'!$B$10:$AK$29,24,FALSE) -> 3472.985755 | M51: 4797.447102 | N51: =VLOOKUP($B51,'RCV & totex projections'!$B$10:$AK$29,29,FALSE) -> 1324.461347 | O51: =VLOOKUP($C51,'RCV & totex projections'!$B$10:$AK$29,29,FALSE) -> 3472.985755 | P51: 4797.447102 | Q51: =VLOOKUP($B51,'RCV & totex projections'!$B$10:$AK$29,34,FALSE) -> 1324.461347 | R51: =VLOOKUP($C51,'RCV & totex projections'!$B$10:$AK$29,34,FALSE) -> 3472.985755 | S51: 4797.447102
B52: AFW | C52: SRN | D52: AFWSRN | E52: =VLOOKUP($B52,'RCV & totex projections'!$B$10:$AK$29,14,FALSE) -> 1324.461347 | F52: =VLOOKUP($C52,'RCV & totex projections'!$B$10:$AK$29,14,FALSE) -> 5440.553595 | G52: 6765.014942 | H52: =VLOOKUP($B52,'RCV & totex projections'!$B$10:$AK$29,19,FALSE) -> 1324.461347 | I52: =VLOOKUP($C52,'RCV & totex projections'!$B$10:$AK$29,19,FALSE) -> 5440.553595 | J52: 6765.014942 | K52: =VLOOKUP($B52,'RCV & totex projections'!$B$10:$AK$29,24,FALSE) -> 1324.461347 | L52: =VLOOKUP($C52,'RCV & totex projections'!$B$10:$AK$29,24,FALSE) -> 5440.553595 | M52: 6765.014942 | N52: =VLOOKUP($B52,'RCV & totex projections'!$B$10:$AK$29,29,FALSE) -> 1324.461347 | O52: =VLOOKUP($C52,'RCV & totex projections'!$B$10:$AK$29,29,FALSE) -> 5440.553595 | P52: 6765.014942 | Q52: =VLOOKUP($B52,'RCV & totex projections'!$B$10:$AK$29,34,FALSE) -> 1324.461347 | R52: =VLOOKUP($C52,'RCV & totex projections'!$B$10:$AK$29,34,FALSE) -> 5440.553595 | S52: 6765.014942
B53: AFW | C53: BRL | D53: AFWBRL | E53: =VLOOKUP($B53,'RCV & totex projections'!$B$10:$AK$29,14,FALSE) -> 1324.461347 | F53: =VLOOKUP($C53,'RCV & totex projections'!$B$10:$AK$29,14,FALSE) -> 521.9686441 | G53: 1846.429991 | H53: =VLOOKUP($B53,'RCV & totex projections'!$B$10:$AK$29,19,FALSE) -> 1324.461347 | I53: =VLOOKUP($C53,'RCV & totex projections'!$B$10:$AK$29,19,FALSE) -> 521.9686441 | J53: 1846.429991 | K53: =VLOOKUP($B53,'RCV & totex projections'!$B$10:$AK$29,24,FALSE) -> 1324.461347 | L53: =VLOOKUP($C53,'RCV & totex projections'!$B$10:$AK$29,24,FALSE) -> 521.9686441 | M53: 1846.429991 | N53: =VLOOKUP($B53,'RCV & totex projections'!$B$10:$AK$29,29,FALSE) -> 1324.461347 | O53: =VLOOKUP($C53,'RCV & totex projections'!$B$10:$AK$29,29,FALSE) -> 521.9686441 | P53: 1846.429991 | Q53: =VLOOKUP($B53,'RCV & totex projections'!$B$10:$AK$29,34,FALSE) -> 1324.461347 | R53: =VLOOKUP($C53,'RCV & totex projections'!$B$10:$AK$29,34,FALSE) -> 521.9686441 | S53: 1846.429991
B54: TMS | C54: SWB | D54: TMSSWB | E54: =VLOOKUP($B54,'RCV & totex projections'!$B$10:$AK$29,14,FALSE) -> 16820.92531 | F54: =VLOOKUP($C54,'RCV & totex projections'!$B$10:$AK$29,14,FALSE) -> 3207.822635 | G54: 20028.74795 | H54: =VLOOKUP($B54,'RCV & totex projections'!$B$10:$AK$29,19,FALSE) -> 16820.92531 | I54: =VLOOKUP($C54,'RCV & totex projections'!$B$10:$AK$29,19,FALSE) -> 3207.822635 | J54: 20028.74795 | K54: =VLOOKUP($B54,'RCV & totex projections'!$B$10:$AK$29,24,FALSE) -> 16820.92531 | L54: =VLOOKUP($C54,'RCV & totex projections'!$B$10:$AK$29,24,FALSE) -> 3207.822635 | M54: 20028.74795 | N54: =VLOOKUP($B54,'RCV & totex projections'!$B$10:$AK$29,29,FALSE) -> 16820.92531 | O54: =VLOOKUP($C54,'RCV & totex projections'!$B$10:$AK$29,29,FALSE) -> 3207.822635 | P54: 20028.74795 | Q54: =VLOOKUP($B54,'RCV & totex projections'!$B$10:$AK$29,34,FALSE) -> 16820.92531 | R54: =VLOOKUP($C54,'RCV & totex projections'!$B$10:$AK$29,34,FALSE) -> 3207.822635 | S54: 20028.74795
B55: TMS | C55: YKY | D55: TMSYKY | E55: =VLOOKUP($B55,'RCV & totex projections'!$B$10:$AK$29,14,FALSE) -> 16820.92531 | F55: =VLOOKUP($C55,'RCV & totex projections'!$B$10:$AK$29,14,FALSE) -> 7424.879132 | G55: 24245.80445 | H55: =VLOOKUP($B55,'RCV & totex projections'!$B$10:$AK$29,19,FALSE) -> 16820.92531 | I55: =VLOOKUP($C55,'RCV & totex projections'!$B$10:$AK$29,19,FALSE) -> 7424.879132 | J55: 24245.80445 | K55: =VLOOKUP($B55,'RCV & totex projections'!$B$10:$AK$29,24,FALSE) -> 16820.92531 | L55: =VLOOKUP($C55,'RCV & totex projections'!$B$10:$AK$29,24,FALSE) -> 7424.879132 | M55: 24245.80445 | N55: =VLOOKUP($B55,'RCV & totex projections'!$B$10:$AK$29,29,FALSE) -> 16820.92531 | O55: =VLOOKUP($C55,'RCV & totex projections'!$B$10:$AK$29,29,FALSE) -> 7424.879132 | P55: 24245.80445 | Q55: =VLOOKUP($B55,'RCV & totex projections'!$B$10:$AK$29,34,FALSE) -> 16820.92531 | R55: =VLOOKUP($C55,'RCV & totex projections'!$B$10:$AK$29,34,FALSE) -> 7424.879132 | S55: 24245.80445
B56: TMS | C56: AFW | D56: TMSAFW | E56: =VLOOKUP($B56,'RCV & totex projections'!$B$10:$AK$29,14,FALSE) -> 16820.92531 | F56: =VLOOKUP($C56,'RCV & totex projections'!$B$10:$AK$29,14,FALSE) -> 1324.461347 | G56: 18145.38666 | H56: =VLOOKUP($B56,'RCV & totex projections'!$B$10:$AK$29,19,FALSE) -> 16820.92531 | I56: =VLOOKUP($C56,'RCV & totex projections'!$B$10:$AK$29,19,FALSE) -> 1324.461347 | J56: 18145.38666 | K56: =VLOOKUP($B56,'RCV & totex projections'!$B$10:$AK$29,24,FALSE) -> 16820.92531 | L56: =VLOOKUP($C56,'RCV & totex projections'!$B$10:$AK$29,24,FALSE) -> 1324.461347 | M56: 18145.38666 | N56: =VLOOKUP($B56,'RCV & totex projections'!$B$10:$AK$29,29,FALSE) -> 16820.92531 | O56: =VLOOKUP($C56,'RCV & totex projections'!$B$10:$AK$29,29,FALSE) -> 1324.461347 | P56: 18145.38666 | Q56: =VLOOKUP($B56,'RCV & totex projections'!$B$10:$AK$29,34,FALSE) -> 16820.92531 | R56: =VLOOKUP($C56,'RCV & totex projections'!$B$10:$AK$29,34,FALSE) -> 1324.461347 | S56: 18145.38666
B57: TMS | C57: TMS | D57: TMSTMS | E57: =VLOOKUP($B57,'RCV & totex projections'!$B$10:$AK$29,14,FALSE) -> 16820.92531 | F57: =VLOOKUP($C57,'RCV & totex projections'!$B$10:$AK$29,14,FALSE) -> 16820.92531 | G57: 33641.85063 | H57: =VLOOKUP($B57,'RCV & totex projections'!$B$10:$AK$29,19,FALSE) -> 16820.92531 | I57: =VLOOKUP($C57,'RCV & totex projections'!$B$10:$AK$29,19,FALSE) -> 16820.92531 | J57: 33641.85063 | K57: =VLOOKUP($B57,'RCV & totex projections'!$B$10:$AK$29,24,FALSE) -> 16820.92531 | L57: =VLOOKUP($C57,'RCV & totex projections'!$B$10:$AK$29,24,FALSE) -> 16820.92531 | M57: 33641.85063 | N57: =VLOOKUP($B57,'RCV & totex projections'!$B$10:$AK$29,29,FALSE) -> 16820.92531 | O57: =VLOOKUP($C57,'RCV & totex projections'!$B$10:$AK$29,29,FALSE) -> 16820.92531 | P57: 33641.85063 | Q57: =VLOOKUP($B57,'RCV & totex projections'!$B$10:$AK$29,34,FALSE) -> 16820.92531 | R57: =VLOOKUP($C57,'RCV & totex projections'!$B$10:$AK$29,34,FALSE) -> 16820.92531 | S57: 33641.85063
B58: TMS | C58: PRT | D58: TMSPRT | E58: =VLOOKUP($B58,'RCV & totex projections'!$B$10:$AK$29,14,FALSE) -> 16820.92531 | F58: =VLOOKUP($C58,'RCV & totex projections'!$B$10:$AK$29,14,FALSE) -> 220.2655931 | G58: 17041.19091 | H58: =VLOOKUP($B58,'RCV & totex projections'!$B$10:$AK$29,19,FALSE) -> 16820.92531 | I58: =VLOOKUP($C58,'RCV & totex projections'!$B$10:$AK$29,19,FALSE) -> 220.2655931 | J58: 17041.19091 | K58: =VLOOKUP($B58,'RCV & totex projections'!$B$10:$AK$29,24,FALSE) -> 16820.92531 | L58: =VLOOKUP($C58,'RCV & totex projections'!$B$10:$AK$29,24,FALSE) -> 220.2655931 | M58: 17041.19091 | N58: =VLOOKUP($B58,'RCV & totex projections'!$B$10:$AK$29,29,FALSE) -> 16820.92531 | O58: =VLOOKUP($C58,'RCV & totex projections'!$B$10:$AK$29,29,FALSE) -> 220.2655931 | P58: 17041.19091 | Q58: =VLOOKUP($B58,'RCV & totex projections'!$B$10:$AK$29,34,FALSE) -> 16820.92531 | R58: =VLOOKUP($C58,'RCV & totex projections'!$B$10:$AK$29,34,FALSE) -> 220.2655931 | S58: 17041.19091
B59: TMS | C59: NES | D59: TMSNES | E59: =VLOOKUP($B59,'RCV & totex projections'!$B$10:$AK$29,14,FALSE) -> 16820.92531 | F59: =VLOOKUP($C59,'RCV & totex projections'!$B$10:$AK$29,14,FALSE) -> 4360.035263 | G59: 21180.96058 | H59: =VLOOKUP($B59,'RCV & totex projections'!$B$10:$AK$29,19,FALSE) -> 16820.92531 | I59: =VLOOKUP($C59,'RCV & totex projections'!$B$10:$AK$29,19,FALSE) -> 4360.035263 | J59: 21180.96058 | K59: =VLOOKUP($B59,'RCV & totex projections'!$B$10:$AK$29,24,FALSE) -> 16820.92531 | L59: =VLOOKUP($C59,'RCV & totex projections'!$B$10:$AK$29,24,FALSE) -> 4360.035263 | M59: 21180.96058 | N59: =VLOOKUP($B59,'RCV & totex projections'!$B$10:$AK$29,29,FALSE) -> 16820.92531 | O59: =VLOOKUP($C59,'RCV & totex projections'!$B$10:$AK$29,29,FALSE) -> 4360.035263 | P59: 21180.96058 | Q59: =VLOOKUP($B59,'RCV & totex projections'!$B$10:$AK$29,34,FALSE) -> 16820.92531 | R59: =VLOOKUP($C59,'RCV & totex projections'!$B$10:$AK$29,34,FALSE) -> 4360.035263 | S59: 21180.96058
B60: TMS | C60: WSH | D60: TMSWSH | E60: =VLOOKUP($B60,'RCV & totex projections'!$B$10:$AK$29,14,FALSE) -> 16820.92531 | F60: =VLOOKUP($C60,'RCV & totex projections'!$B$10:$AK$29,14,FALSE) -> 6243.283721 | G60: 23064.20904 | H60: =VLOOKUP($B60,'RCV & totex projections'!$B$10:$AK$29,19,FALSE) -> 16820.92531 | I60: =VLOOKUP($C60,'RCV & totex projections'!$B$10:$AK$29,19,FALSE) -> 6243.283721 | J60: 23064.20904 | K60: =VLOOKUP($B60,'RCV & totex projections'!$B$10:$AK$29,24,FALSE) -> 16820.92531 | L60: =VLOOKUP($C60,'RCV & totex projections'!$B$10:$AK$29,24,FALSE) -> 6243.283721 | M60: 23064.20904 | N60: =VLOOKUP($B60,'RCV & totex projections'!$B$10:$AK$29,29,FALSE) -> 16820.92531 | O60: =VLOOKUP($C60,'RCV & totex projections'!$B$10:$AK$29,29,FALSE) -> 6243.283721 | P60: 23064.20904 | Q60: =VLOOKUP($B60,'RCV & totex projections'!$B$10:$AK$29,34,FALSE) -> 16820.92531 | R60: =VLOOKUP($C60,'RCV & totex projections'!$B$10:$AK$29,34,FALSE) -> 6243.283721 | S60: 23064.20904
B61: TMS | C61: UUW | D61: TMSUUW | E61: =VLOOKUP($B61,'RCV & totex projections'!$B$10:$AK$29,14,FALSE) -> 16820.92531 | F61: =VLOOKUP($C61,'RCV & totex projections'!$B$10:$AK$29,14,FALSE) -> 10770.69058 | G61: 27591.61589 | H61: =VLOOKUP($B61,'RCV & totex projections'!$B$10:$AK$29,19,FALSE) -> 16820.92531 | I61: =VLOOKUP($C61,'RCV & totex projections'!$B$10:$AK$29,19,FALSE) -> 10770.69058 | J61: 27591.61589 | K61: =VLOOKUP($B61,'RCV & totex projections'!$B$10:$AK$29,24,FALSE) -> 16820.92531 | L61: =VLOOKUP($C61,'RCV & totex projections'!$B$10:$AK$29,24,FALSE) -> 10770.69058 | M61: 27591.61589 | N61: =VLOOKUP($B61,'RCV & totex projections'!$B$10:$AK$29,29,FALSE) -> 16820.92531 | O61: =VLOOKUP($C61,'RCV & totex projections'!$B$10:$AK$29,29,FALSE) -> 10770.69058 | P61: 27591.61589 | Q61: =VLOOKUP($B61,'RCV & totex projections'!$B$10:$AK$29,34,FALSE) -> 16820.92531 | R61: =VLOOKUP($C61,'RCV & totex projections'!$B$10:$AK$29,34,FALSE) -> 10770.69058 | S61: 27591.61589
B62: TMS | C62: SES | D62: TMSSES | E62: =VLOOKUP($B62,'RCV & totex projections'!$B$10:$AK$29,14,FALSE) -> 16820.92531 | F62: =VLOOKUP($C62,'RCV & totex projections'!$B$10:$AK$29,14,FALSE) -> 279.0526761 | G62: 17099.97799 | H62: =VLOOKUP($B62,'RCV & totex projections'!$B$10:$AK$29,19,FALSE) -> 16820.92531 | I62: =VLOOKUP($C62,'RCV & totex projections'!$B$10:$AK$29,19,FALSE) -> 279.0526761 | J62: 17099.97799 | K62: =VLOOKUP($B62,'RCV & totex projections'!$B$10:$AK$29,24,FALSE) -> 16820.92531 | L62: =VLOOKUP($C62,'RCV & totex projections'!$B$10:$AK$29,24,FALSE) -> 279.0526761 | M62: 17099.97799 | N62: =VLOOKUP($B62,'RCV & totex projections'!$B$10:$AK$29,29,FALSE) -> 16820.92531 | O62: =VLOOKUP($C62,'RCV & totex projections'!$B$10:$AK$29,29,FALSE) -> 279.0526761 | P62: 17099.97799 | Q62: =VLOOKUP($B62,'RCV & totex projections'!$B$10:$AK$29,34,FALSE) -> 16820.92531 | R62: =VLOOKUP($C62,'RCV & totex projections'!$B$10:$AK$29,34,FALSE) -> 279.0526761 | S62: 17099.97799
B63: TMS | C63: ANH | D63: TMSANH | E63: =VLOOKUP($B63,'RCV & totex projections'!$B$10:$AK$29,14,FALSE) -> 16820.92531 | F63: =VLOOKUP($C63,'RCV & totex projections'!$B$10:$AK$29,14,FALSE) -> 8866.071504 | G63: 25686.99682 | H63: =VLOOKUP($B63,'RCV & totex projections'!$B$10:$AK$29,19,FALSE) -> 16820.92531 | I63: =VLOOKUP($C63,'RCV & totex projections'!$B$10:$AK$29,19,FALSE) -> 8866.071504 | J63: 25686.99682 | K63: =VLOOKUP($B63,'RCV & totex projections'!$B$10:$AK$29,24,FALSE) -> 16820.92531 | L63: =VLOOKUP($C63,'RCV & totex projections'!$B$10:$AK$29,24,FALSE) -> 8866.071504 | M63: 25686.99682 | N63: =VLOOKUP($B63,'RCV & totex projections'!$B$10:$AK$29,29,FALSE) -> 16820.92531 | O63: =VLOOKUP($C63,'RCV & totex projections'!$B$10:$AK$29,29,FALSE) -> 8866.071504 | P63: 25686.99682 | Q63: =VLOOKUP($B63,'RCV & totex projections'!$B$10:$AK$29,34,FALSE) -> 16820.92531 | R63: =VLOOKUP($C63,'RCV & totex projections'!$B$10:$AK$29,34,FALSE) -> 8866.071504 | S63: 25686.99682
B64: TMS | C64: SEW | D64: TMSSEW | E64: =VLOOKUP($B64,'RCV & totex projections'!$B$10:$AK$29,14,FALSE) -> 16820.92531 | F64: =VLOOKUP($C64,'RCV & totex projections'!$B$10:$AK$29,14,FALSE) -> 1449.209445 | G64: 18270.13476 | H64: =VLOOKUP($B64,'RCV & totex projections'!$B$10:$AK$29,19,FALSE) -> 16820.92531 | I64: =VLOOKUP($C64,'RCV & totex projections'!$B$10:$AK$29,19,FALSE) -> 1449.209445 | J64: 18270.13476 | K64: =VLOOKUP($B64,'RCV & totex projections'!$B$10:$AK$29,24,FALSE) -> 16820.92531 | L64: =VLOOKUP($C64,'RCV & totex projections'!$B$10:$AK$29,24,FALSE) -> 1449.209445 | M64: 18270.13476 | N64: =VLOOKUP($B64,'RCV & totex projections'!$B$10:$AK$29,29,FALSE) -> 16820.92531 | O64: =VLOOKUP($C64,'RCV & totex projections'!$B$10:$AK$29,29,FALSE) -> 1449.209445 | P64: 18270.13476 | Q64: =VLOOKUP($B64,'RCV & totex projections'!$B$10:$AK$29,34,FALSE) -> 16820.92531 | R64: =VLOOKUP($C64,'RCV & totex projections'!$B$10:$AK$29,34,FALSE) -> 1449.209445 | S64: 18270.13476
B65: TMS | C65: SSC | D65: TMSSSC | E65: =VLOOKUP($B65,'RCV & totex projections'!$B$10:$AK$29,14,FALSE) -> 16820.92531 | F65: =VLOOKUP($C65,'RCV & totex projections'!$B$10:$AK$29,14,FALSE) -> 451.5233645 | G65: 17272.44868 | H65: =VLOOKUP($B65,'RCV & totex projections'!$B$10:$AK$29,19,FALSE) -> 16820.92531 | I65: =VLOOKUP($C65,'RCV & totex projections'!$B$10:$AK$29,19,FALSE) -> 451.5233645 | J65: 17272.44868 | K65: =VLOOKUP($B65,'RCV & totex projections'!$B$10:$AK$29,24,FALSE) -> 16820.92531 | L65: =VLOOKUP($C65,'RCV & totex projections'!$B$10:$AK$29,24,FALSE) -> 451.5233645 | M65: 17272.44868 | N65: =VLOOKUP($B65,'RCV & totex projections'!$B$10:$AK$29,29,FALSE) -> 16820.92531 | O65: =VLOOKUP($C65,'RCV & totex projections'!$B$10:$AK$29,29,FALSE) -> 451.5233645 | P65: 17272.44868 | Q65: =VLOOKUP($B65,'RCV & totex projections'!$B$10:$AK$29,34,FALSE) -> 16820.92531 | R65: =VLOOKUP($C65,'RCV & totex projections'!$B$10:$AK$29,34,FALSE) -> 451.5233645 | S65: 17272.44868
B66: TMS | C66: SVE | D66: TMSSVE | E66: =VLOOKUP($B66,'RCV & totex projections'!$B$10:$AK$29,14,FALSE) -> 16820.92531 | F66: =VLOOKUP($C66,'RCV & totex projections'!$B$10:$AK$29,14,FALSE) -> 9051.903159 | G66: 25872.82847 | H66: =VLOOKUP($B66,'RCV & totex projections'!$B$10:$AK$29,19,FALSE) -> 16820.92531 | I66: =VLOOKUP($C66,'RCV & totex projections'!$B$10:$AK$29,19,FALSE) -> 9051.903159 | J66: 25872.82847 | K66: =VLOOKUP($B66,'RCV & totex projections'!$B$10:$AK$29,24,FALSE) -> 16820.92531 | L66: =VLOOKUP($C66,'RCV & totex projections'!$B$10:$AK$29,24,FALSE) -> 9051.903159 | M66: 25872.82847 | N66: =VLOOKUP($B66,'RCV & totex projections'!$B$10:$AK$29,29,FALSE) -> 16820.92531 | O66: =VLOOKUP($C66,'RCV & totex projections'!$B$10:$AK$29,29,FALSE) -> 9051.903159 | P66: 25872.82847 | Q66: =VLOOKUP($B66,'RCV & totex projections'!$B$10:$AK$29,34,FALSE) -> 16820.92531 | R66: =VLOOKUP($C66,'RCV & totex projections'!$B$10:$AK$29,34,FALSE) -> 9051.903159 | S66: 25872.82847
B67: TMS | C67: WSX | D67: TMSWSX | E67: =VLOOKUP($B67,'RCV & totex projections'!$B$10:$AK$29,14,FALSE) -> 16820.92531 | F67: =VLOOKUP($C67,'RCV & totex projections'!$B$10:$AK$29,14,FALSE) -> 3472.985755 | G67: 20293.91107 | H67: =VLOOKUP($B67,'RCV & totex projections'!$B$10:$AK$29,19,FALSE) -> 16820.92531 | I67: =VLOOKUP($C67,'RCV & totex projections'!$B$10:$AK$29,19,FALSE) -> 3472.985755 | J67: 20293.91107 | K67: =VLOOKUP($B67,'RCV & totex projections'!$B$10:$AK$29,24,FALSE) -> 16820.92531 | L67: =VLOOKUP($C67,'RCV & totex projections'!$B$10:$AK$29,24,FALSE) -> 3472.985755 | M67: 20293.91107 | N67: =VLOOKUP($B67,'RCV & totex projections'!$B$10:$AK$29,29,FALSE) -> 16820.92531 | O67: =VLOOKUP($C67,'RCV & totex projections'!$B$10:$AK$29,29,FALSE) -> 3472.985755 | P67: 20293.91107 | Q67: =VLOOKUP($B67,'RCV & totex projections'!$B$10:$AK$29,34,FALSE) -> 16820.92531 | R67: =VLOOKUP($C67,'RCV & totex projections'!$B$10:$AK$29,34,FALSE) -> 3472.985755 | S67: 20293.91107
B68: TMS | C68: SRN | D68: TMSSRN | E68: =VLOOKUP($B68,'RCV & totex projections'!$B$10:$AK$29,14,FALSE) -> 16820.92531 | F68: =VLOOKUP($C68,'RCV & totex projections'!$B$10:$AK$29,14,FALSE) -> 5440.553595 | G68: 22261.47891 | H68: =VLOOKUP($B68,'RCV & totex projections'!$B$10:$AK$29,19,FALSE) -> 16820.92531 | I68: =VLOOKUP($C68,'RCV & totex projections'!$B$10:$AK$29,19,FALSE) -> 5440.553595 | J68: 22261.47891 | K68: =VLOOKUP($B68,'RCV & totex projections'!$B$10:$AK$29,24,FALSE) -> 16820.92531 | L68: =VLOOKUP($C68,'RCV & totex projections'!$B$10:$AK$29,24,FALSE) -> 5440.553595 | M68: 22261.47891 | N68: =VLOOKUP($B68,'RCV & totex projections'!$B$10:$AK$29,29,FALSE) -> 16820.92531 | O68: =VLOOKUP($C68,'RCV & totex projections'!$B$10:$AK$29,29,FALSE) -> 5440.553595 | P68: 22261.47891 | Q68: =VLOOKUP($B68,'RCV & totex projections'!$B$10:$AK$29,34,FALSE) -> 16820.92531 | R68: =VLOOKUP($C68,'RCV & totex projections'!$B$10:$AK$29,34,FALSE) -> 5440.553595 | S68: 22261.47891
B69: TMS | C69: BRL | D69: TMSBRL | E69: =VLOOKUP($B69,'RCV & totex projections'!$B$10:$AK$29,14,FALSE) -> 16820.92531 | F69: =VLOOKUP($C69,'RCV & totex projections'!$B$10:$AK$29,14,FALSE) -> 521.9686441 | G69: 17342.89396 | H69: =VLOOKUP($B69,'RCV & totex projections'!$B$10:$AK$29,19,FALSE) -> 16820.92531 | I69: =VLOOKUP($C69,'RCV & totex projections'!$B$10:$AK$29,19,FALSE) -> 521.9686441 | J69: 17342.89396 | K69: =VLOOKUP($B69,'RCV & totex projections'!$B$10:$AK$29,24,FALSE) -> 16820.92531 | L69: =VLOOKUP($C69,'RCV & totex projections'!$B$10:$AK$29,24,FALSE) -> 521.9686441 | M69: 17342.89396 | N69: =VLOOKUP($B69,'RCV & totex projections'!$B$10:$AK$29,29,FALSE) -> 16820.92531 | O69: =VLOOKUP($C69,'RCV & totex projections'!$B$10:$AK$29,29,FALSE) -> 521.9686441 | P69: 17342.89396 | Q69: =VLOOKUP($B69,'RCV & totex projections'!$B$10:$AK$29,34,FALSE) -> 16820.92531 | R69: =VLOOKUP($C69,'RCV & totex projections'!$B$10:$AK$29,34,FALSE) -> 521.9686441 | S69: 17342.89396
B70: PRT | C70: SWB | D70: =CONCATENATE(B70,C70) -> PRTSWB | E70: =VLOOKUP($B70,'RCV & totex projections'!$B$10:$AK$29,14,FALSE) -> 220.2655931 | F70: =VLOOKUP($C70,'RCV & totex projections'!$B$10:$AK$29,14,FALSE) -> 3207.822635 | G70: 3428.088228 | H70: =VLOOKUP($B70,'RCV & totex projections'!$B$10:$AK$29,19,FALSE) -> 220.2655931 | I70: =VLOOKUP($C70,'RCV & totex projections'!$B$10:$AK$29,19,FALSE) -> 3207.822635 | J70: 3428.088228 | K70: =VLOOKUP($B70,'RCV & totex projections'!$B$10:$AK$29,24,FALSE) -> 220.2655931 | L70: =VLOOKUP($C70,'RCV & totex projections'!$B$10:$AK$29,24,FALSE) -> 3207.822635 | M70: 3428.088228 | N70: =VLOOKUP($B70,'RCV & totex projections'!$B$10:$AK$29,29,FALSE) -> 220.2655931 | O70: =VLOOKUP($C70,'RCV & totex projections'!$B$10:$AK$29,29,FALSE) -> 3207.822635 | P70: 3428.088228 | Q70: =VLOOKUP($B70,'RCV & totex projections'!$B$10:$AK$29,34,FALSE) -> 220.2655931 | R70: =VLOOKUP($C70,'RCV & totex projections'!$B$10:$AK$29,34,FALSE) -> 3207.822635 | S70: 3428.088228
B71: PRT | C71: YKY | D71: PRTYKY | E71: =VLOOKUP($B71,'RCV & totex projections'!$B$10:$AK$29,14,FALSE) -> 220.2655931 | F71: =VLOOKUP($C71,'RCV & totex projections'!$B$10:$AK$29,14,FALSE) -> 7424.879132 | G71: =E71+F71 -> 7645.144725 | H71: =VLOOKUP($B71,'RCV & totex projections'!$B$10:$AK$29,19,FALSE) -> 220.2655931 | I71: =VLOOKUP($C71,'RCV & totex projections'!$B$10:$AK$29,19,FALSE) -> 7424.879132 | J71: =H71+I71 -> 7645.144725 | K71: =VLOOKUP($B71,'RCV & totex projections'!$B$10:$AK$29,24,FALSE) -> 220.2655931 | L71: =VLOOKUP($C71,'RCV & totex projections'!$B$10:$AK$29,24,FALSE) -> 7424.879132 | M71: =K71+L71 -> 7645.144725 | N71: =VLOOKUP($B71,'RCV & totex projections'!$B$10:$AK$29,29,FALSE) -> 220.2655931 | O71: =VLOOKUP($C71,'RCV & totex projections'!$B$10:$AK$29,29,FALSE) -> 7424.879132 | P71: =N71+O71 -> 7645.144725 | Q71: =VLOOKUP($B71,'RCV & totex projections'!$B$10:$AK$29,34,FALSE) -> 220.2655931 | R71: =VLOOKUP($C71,'RCV & totex projections'!$B$10:$AK$29,34,FALSE) -> 7424.879132 | S71: =Q71+R71 -> 7645.144725
B72: PRT | C72: AFW | D72: PRTAFW | E72: =VLOOKUP($B72,'RCV & totex projections'!$B$10:$AK$29,14,FALSE) -> 220.2655931 | F72: =VLOOKUP($C72,'RCV & totex projections'!$B$10:$AK$29,14,FALSE) -> 1324.461347 | G72: 1544.72694 | H72: =VLOOKUP($B72,'RCV & totex projections'!$B$10:$AK$29,19,FALSE) -> 220.2655931 | I72: =VLOOKUP($C72,'RCV & totex projections'!$B$10:$AK$29,19,FALSE) -> 1324.461347 | J72: 1544.72694 | K72: =VLOOKUP($B72,'RCV & totex projections'!$B$10:$AK$29,24,FALSE) -> 220.2655931 | L72: =VLOOKUP($C72,'RCV & totex projections'!$B$10:$AK$29,24,FALSE) -> 1324.461347 | M72: 1544.72694 | N72: =VLOOKUP($B72,'RCV & totex projections'!$B$10:$AK$29,29,FALSE) -> 220.2655931 | O72: =VLOOKUP($C72,'RCV & totex projections'!$B$10:$AK$29,29,FALSE) -> 1324.461347 | P72: 1544.72694 | Q72: =VLOOKUP($B72,'RCV & totex projections'!$B$10:$AK$29,34,FALSE) -> 220.2655931 | R72: =VLOOKUP($C72,'RCV & totex projections'!$B$10:$AK$29,34,FALSE) -> 1324.461347 | S72: 1544.72694
B73: PRT | C73: TMS | D73: PRTTMS | E73: =VLOOKUP($B73,'RCV & totex projections'!$B$10:$AK$29,14,FALSE) -> 220.2655931 | F73: =VLOOKUP($C73,'RCV & totex projections'!$B$10:$AK$29,14,FALSE) -> 16820.92531 | G73: 17041.19091 | H73: =VLOOKUP($B73,'RCV & totex projections'!$B$10:$AK$29,19,FALSE) -> 220.2655931 | I73: =VLOOKUP($C73,'RCV & totex projections'!$B$10:$AK$29,19,FALSE) -> 16820.92531 | J73: 17041.19091 | K73: =VLOOKUP($B73,'RCV & totex projections'!$B$10:$AK$29,24,FALSE) -> 220.2655931 | L73: =VLOOKUP($C73,'RCV & totex projections'!$B$10:$AK$29,24,FALSE) -> 16820.92531 | M73: 17041.19091 | N73: =VLOOKUP($B73,'RCV & totex projections'!$B$10:$AK$29,29,FALSE) -> 220.2655931 | O73: =VLOOKUP($C73,'RCV & totex projections'!$B$10:$AK$29,29,FALSE) -> 16820.92531 | P73: 17041.19091 | Q73: =VLOOKUP($B73,'RCV & totex projections'!$B$10:$AK$29,34,FALSE) -> 220.2655931 | R73: =VLOOKUP($C73,'RCV & totex projections'!$B$10:$AK$29,34,FALSE) -> 16820.92531 | S73: 17041.19091
B74: PRT | C74: PRT | D74: PRTPRT | E74: =VLOOKUP($B74,'RCV & totex projections'!$B$10:$AK$29,14,FALSE) -> 220.2655931 | F74: =VLOOKUP($C74,'RCV & totex projections'!$B$10:$AK$29,14,FALSE) -> 220.2655931 | G74: 440.5311862 | H74: =VLOOKUP($B74,'RCV & totex projections'!$B$10:$AK$29,19,FALSE) -> 220.2655931 | I74: =VLOOKUP($C74,'RCV & totex projections'!$B$10:$AK$29,19,FALSE) -> 220.2655931 | J74: 440.5311862 | K74: =VLOOKUP($B74,'RCV & totex projections'!$B$10:$AK$29,24,FALSE) -> 220.2655931 | L74: =VLOOKUP($C74,'RCV & totex projections'!$B$10:$AK$29,24,FALSE) -> 220.2655931 | M74: 440.5311862 | N74: =VLOOKUP($B74,'RCV & totex projections'!$B$10:$AK$29,29,FALSE) -> 220.2655931 | O74: =VLOOKUP($C74,'RCV & totex projections'!$B$10:$AK$29,29,FALSE) -> 220.2655931 | P74: 440.5311862 | Q74: =VLOOKUP($B74,'RCV & totex projections'!$B$10:$AK$29,34,FALSE) -> 220.2655931 | R74: =VLOOKUP($C74,'RCV & totex projections'!$B$10:$AK$29,34,FALSE) -> 220.2655931 | S74: 440.5311862
B75: PRT | C75: NES | D75: PRTNES | E75: =VLOOKUP($B75,'RCV & totex projections'!$B$10:$AK$29,14,FALSE) -> 220.2655931 | F75: =VLOOKUP($C75,'RCV & totex projections'!$B$10:$AK$29,14,FALSE) -> 4360.035263 | G75: 4580.300856 | H75: =VLOOKUP($B75,'RCV & totex projections'!$B$10:$AK$29,19,FALSE) -> 220.2655931 | I75: =VLOOKUP($C75,'RCV & totex projections'!$B$10:$AK$29,19,FALSE) -> 4360.035263 | J75: 4580.300856 | K75: =VLOOKUP($B75,'RCV & totex projections'!$B$10:$AK$29,24,FALSE) -> 220.2655931 | L75: =VLOOKUP($C75,'RCV & totex projections'!$B$10:$AK$29,24,FALSE) -> 4360.035263 | M75: 4580.300856 | N75: =VLOOKUP($B75,'RCV & totex projections'!$B$10:$AK$29,29,FALSE) -> 220.2655931 | O75: =VLOOKUP($C75,'RCV & totex projections'!$B$10:$AK$29,29,FALSE) -> 4360.035263 | P75: 4580.300856 | Q75: =VLOOKUP($B75,'RCV & totex projections'!$B$10:$AK$29,34,FALSE) -> 220.2655931 | R75: =VLOOKUP($C75,'RCV & totex projections'!$B$10:$AK$29,34,FALSE) -> 4360.035263 | S75: 4580.300856
B76: PRT | C76: WSH | D76: PRTWSH | E76: =VLOOKUP($B76,'RCV & totex projections'!$B$10:$AK$29,14,FALSE) -> 220.2655931 | F76: =VLOOKUP($C76,'RCV & totex projections'!$B$10:$AK$29,14,FALSE) -> 6243.283721 | G76: 6463.549314 | H76: =VLOOKUP($B76,'RCV & totex projections'!$B$10:$AK$29,19,FALSE) -> 220.2655931 | I76: =VLOOKUP($C76,'RCV & totex projections'!$B$10:$AK$29,19,FALSE) -> 6243.283721 | J76: 6463.549314 | K76: =VLOOKUP($B76,'RCV & totex projections'!$B$10:$AK$29,24,FALSE) -> 220.2655931 | L76: =VLOOKUP($C76,'RCV & totex projections'!$B$10:$AK$29,24,FALSE) -> 6243.283721 | M76: 6463.549314 | N76: =VLOOKUP($B76,'RCV & totex projections'!$B$10:$AK$29,29,FALSE) -> 220.2655931 | O76: =VLOOKUP($C76,'RCV & totex projections'!$B$10:$AK$29,29,FALSE) -> 6243.283721 | P76: 6463.549314 | Q76: =VLOOKUP($B76,'RCV & totex projections'!$B$10:$AK$29,34,FALSE) -> 220.2655931 | R76: =VLOOKUP($C76,'RCV & totex projections'!$B$10:$AK$29,34,FALSE) -> 6243.283721 | S76: 6463.549314
B77: PRT | C77: UUW | D77: PRTUUW | E77: =VLOOKUP($B77,'RCV & totex projections'!$B$10:$AK$29,14,FALSE) -> 220.2655931 | F77: =VLOOKUP($C77,'RCV & totex projections'!$B$10:$AK$29,14,FALSE) -> 10770.69058 | G77: 10990.95617 | H77: =VLOOKUP($B77,'RCV & totex projections'!$B$10:$AK$29,19,FALSE) -> 220.2655931 | I77: =VLOOKUP($C77,'RCV & totex projections'!$B$10:$AK$29,19,FALSE) -> 10770.69058 | J77: 10990.95617 | K77: =VLOOKUP($B77,'RCV & totex projections'!$B$10:$AK$29,24,FALSE) -> 220.2655931 | L77: =VLOOKUP($C77,'RCV & totex projections'!$B$10:$AK$29,24,FALSE) -> 10770.69058 | M77: 10990.95617 | N77: =VLOOKUP($B77,'RCV & totex projections'!$B$10:$AK$29,29,FALSE) -> 220.2655931 | O77: =VLOOKUP($C77,'RCV & totex projections'!$B$10:$AK$29,29,FALSE) -> 10770.69058 | P77: 10990.95617 | Q77: =VLOOKUP($B77,'RCV & totex projections'!$B$10:$AK$29,34,FALSE) -> 220.2655931 | R77: =VLOOKUP($C77,'RCV & totex projections'!$B$10:$AK$29,34,FALSE) -> 10770.69058 | S77: 10990.95617
B78: PRT | C78: SES | D78: PRTSES | E78: =VLOOKUP($B78,'RCV & totex projections'!$B$10:$AK$29,14,FALSE) -> 220.2655931 | F78: =VLOOKUP($C78,'RCV & totex projections'!$B$10:$AK$29,14,FALSE) -> 279.0526761 | G78: 499.3182692 | H78: =VLOOKUP($B78,'RCV & totex projections'!$B$10:$AK$29,19,FALSE) -> 220.2655931 | I78: =VLOOKUP($C78,'RCV & totex projections'!$B$10:$AK$29,19,FALSE) -> 279.0526761 | J78: 499.3182692 | K78: =VLOOKUP($B78,'RCV & totex projections'!$B$10:$AK$29,24,FALSE) -> 220.2655931 | L78: =VLOOKUP($C78,'RCV & totex projections'!$B$10:$AK$29,24,FALSE) -> 279.0526761 | M78: 499.3182692 | N78: =VLOOKUP($B78,'RCV & totex projections'!$B$10:$AK$29,29,FALSE) -> 220.2655931 | O78: =VLOOKUP($C78,'RCV & totex projections'!$B$10:$AK$29,29,FALSE) -> 279.0526761 | P78: 499.3182692 | Q78: =VLOOKUP($B78,'RCV & totex projections'!$B$10:$AK$29,34,FALSE) -> 220.2655931 | R78: =VLOOKUP($C78,'RCV & totex projections'!$B$10:$AK$29,34,FALSE) -> 279.0526761 | S78: 499.3182692
B79: PRT | C79: ANH | D79: PRTANH | E79: =VLOOKUP($B79,'RCV & totex projections'!$B$10:$AK$29,14,FALSE) -> 220.2655931 | F79: =VLOOKUP($C79,'RCV & totex projections'!$B$10:$AK$29,14,FALSE) -> 8866.071504 | G79: 9086.337098 | H79: =VLOOKUP($B79,'RCV & totex projections'!$B$10:$AK$29,19,FALSE) -> 220.2655931 | I79: =VLOOKUP($C79,'RCV & totex projections'!$B$10:$AK$29,19,FALSE) -> 8866.071504 | J79: 9086.337098 | K79: =VLOOKUP($B79,'RCV & totex projections'!$B$10:$AK$29,24,FALSE) -> 220.2655931 | L79: =VLOOKUP($C79,'RCV & totex projections'!$B$10:$AK$29,24,FALSE) -> 8866.071504 | M79: 9086.337098 | N79: =VLOOKUP($B79,'RCV & totex projections'!$B$10:$AK$29,29,FALSE) -> 220.2655931 | O79: =VLOOKUP($C79,'RCV & totex projections'!$B$10:$AK$29,29,FALSE) -> 8866.071504 | P79: 9086.337098 | Q79: =VLOOKUP($B79,'RCV & totex projections'!$B$10:$AK$29,34,FALSE) -> 220.2655931 | R79: =VLOOKUP($C79,'RCV & totex projections'!$B$10:$AK$29,34,FALSE) -> 8866.071504 | S79: 9086.337098
B80: PRT | C80: SEW | D80: PRTSEW | E80: =VLOOKUP($B80,'RCV & totex projections'!$B$10:$AK$29,14,FALSE) -> 220.2655931 | F80: =VLOOKUP($C80,'RCV & totex projections'!$B$10:$AK$29,14,FALSE) -> 1449.209445 | G80: 1669.475038 | H80: =VLOOKUP($B80,'RCV & totex projections'!$B$10:$AK$29,19,FALSE) -> 220.2655931 | I80: =VLOOKUP($C80,'RCV & totex projections'!$B$10:$AK$29,19,FALSE) -> 1449.209445 | J80: 1669.475038 | K80: =VLOOKUP($B80,'RCV & totex projections'!$B$10:$AK$29,24,FALSE) -> 220.2655931 | L80: =VLOOKUP($C80,'RCV & totex projections'!$B$10:$AK$29,24,FALSE) -> 1449.209445 | M80: 1669.475038 | N80: =VLOOKUP($B80,'RCV & totex projections'!$B$10:$AK$29,29,FALSE) -> 220.2655931 | O80: =VLOOKUP($C80,'RCV & totex projections'!$B$10:$AK$29,29,FALSE) -> 1449.209445 | P80: 1669.475038 | Q80: =VLOOKUP($B80,'RCV & totex projections'!$B$10:$AK$29,34,FALSE) -> 220.2655931 | R80: =VLOOKUP($C80,'RCV & totex projections'!$B$10:$AK$29,34,FALSE) -> 1449.209445 | S80: 1669.475038
B81: PRT | C81: SSC | D81: PRTSSC | E81: =VLOOKUP($B81,'RCV & totex projections'!$B$10:$AK$29,14,FALSE) -> 220.2655931 | F81: =VLOOKUP($C81,'RCV & totex projections'!$B$10:$AK$29,14,FALSE) -> 451.5233645 | G81: 671.7889576 | H81: =VLOOKUP($B81,'RCV & totex projections'!$B$10:$AK$29,19,FALSE) -> 220.2655931 | I81: =VLOOKUP($C81,'RCV & totex projections'!$B$10:$AK$29,19,FALSE) -> 451.5233645 | J81: 671.7889576 | K81: =VLOOKUP($B81,'RCV & totex projections'!$B$10:$AK$29,24,FALSE) -> 220.2655931 | L81: =VLOOKUP($C81,'RCV & totex projections'!$B$10:$AK$29,24,FALSE) -> 451.5233645 | M81: 671.7889576 | N81: =VLOOKUP($B81,'RCV & totex projections'!$B$10:$AK$29,29,FALSE) -> 220.2655931 | O81: =VLOOKUP($C81,'RCV & totex projections'!$B$10:$AK$29,29,FALSE) -> 451.5233645 | P81: 671.7889576 | Q81: =VLOOKUP($B81,'RCV & totex projections'!$B$10:$AK$29,34,FALSE) -> 220.2655931 | R81: =VLOOKUP($C81,'RCV & totex projections'!$B$10:$AK$29,34,FALSE) -> 451.5233645 | S81: 671.7889576
B82: PRT | C82: SVE | D82: PRTSVE | E82: =VLOOKUP($B82,'RCV & totex projections'!$B$10:$AK$29,14,FALSE) -> 220.2655931 | F82: =VLOOKUP($C82,'RCV & totex projections'!$B$10:$AK$29,14,FALSE) -> 9051.903159 | G82: 9272.168753 | H82: =VLOOKUP($B82,'RCV & totex projections'!$B$10:$AK$29,19,FALSE) -> 220.2655931 | I82: =VLOOKUP($C82,'RCV & totex projections'!$B$10:$AK$29,19,FALSE) -> 9051.903159 | J82: 9272.168753 | K82: =VLOOKUP($B82,'RCV & totex projections'!$B$10:$AK$29,24,FALSE) -> 220.2655931 | L82: =VLOOKUP($C82,'RCV & totex projections'!$B$10:$AK$29,24,FALSE) -> 9051.903159 | M82: 9272.168753 | N82: =VLOOKUP($B82,'RCV & totex projections'!$B$10:$AK$29,29,FALSE) -> 220.2655931 | O82: =VLOOKUP($C82,'RCV & totex projections'!$B$10:$AK$29,29,FALSE) -> 9051.903159 | P82: 9272.168753 | Q82: =VLOOKUP($B82,'RCV & totex projections'!$B$10:$AK$29,34,FALSE) -> 220.2655931 | R82: =VLOOKUP($C82,'RCV & totex projections'!$B$10:$AK$29,34,FALSE) -> 9051.903159 | S82: 9272.168753
B83: PRT | C83: WSX | D83: PRTWSX | E83: =VLOOKUP($B83,'RCV & totex projections'!$B$10:$AK$29,14,FALSE) -> 220.2655931 | F83: =VLOOKUP($C83,'RCV & totex projections'!$B$10:$AK$29,14,FALSE) -> 3472.985755 | G83: 3693.251348 | H83: =VLOOKUP($B83,'RCV & totex projections'!$B$10:$AK$29,19,FALSE) -> 220.2655931 | I83: =VLOOKUP($C83,'RCV & totex projections'!$B$10:$AK$29,19,FALSE) -> 3472.985755 | J83: 3693.251348 | K83: =VLOOKUP($B83,'RCV & totex projections'!$B$10:$AK$29,24,FALSE) -> 220.2655931 | L83: =VLOOKUP($C83,'RCV & totex projections'!$B$10:$AK$29,24,FALSE) -> 3472.985755 | M83: 3693.251348 | N83: =VLOOKUP($B83,'RCV & totex projections'!$B$10:$AK$29,29,FALSE) -> 220.2655931 | O83: =VLOOKUP($C83,'RCV & totex projections'!$B$10:$AK$29,29,FALSE) -> 3472.985755 | P83: 3693.251348 | Q83: =VLOOKUP($B83,'RCV & totex projections'!$B$10:$AK$29,34,FALSE) -> 220.2655931 | R83: =VLOOKUP($C83,'RCV & totex projections'!$B$10:$AK$29,34,FALSE) -> 3472.985755 | S83: 3693.251348
B84: PRT | C84: SRN | D84: PRTSRN | E84: =VLOOKUP($B84,'RCV & totex projections'!$B$10:$AK$29,14,FALSE) -> 220.2655931 | F84: =VLOOKUP($C84,'RCV & totex projections'!$B$10:$AK$29,14,FALSE) -> 5440.553595 | G84: 5660.819188 | H84: =VLOOKUP($B84,'RCV & totex projections'!$B$10:$AK$29,19,FALSE) -> 220.2655931 | I84: =VLOOKUP($C84,'RCV & totex projections'!$B$10:$AK$29,19,FALSE) -> 5440.553595 | J84: 5660.819188 | K84: =VLOOKUP($B84,'RCV & totex projections'!$B$10:$AK$29,24,FALSE) -> 220.2655931 | L84: =VLOOKUP($C84,'RCV & totex projections'!$B$10:$AK$29,24,FALSE) -> 5440.553595 | M84: 5660.819188 | N84: =VLOOKUP($B84,'RCV & totex projections'!$B$10:$AK$29,29,FALSE) -> 220.2655931 | O84: =VLOOKUP($C84,'RCV & totex projections'!$B$10:$AK$29,29,FALSE) -> 5440.553595 | P84: 5660.819188 | Q84: =VLOOKUP($B84,'RCV & totex projections'!$B$10:$AK$29,34,FALSE) -> 220.2655931 | R84: =VLOOKUP($C84,'RCV & totex projections'!$B$10:$AK$29,34,FALSE) -> 5440.553595 | S84: 5660.819188
B85: PRT | C85: BRL | D85: PRTBRL | E85: =VLOOKUP($B85,'RCV & totex projections'!$B$10:$AK$29,14,FALSE) -> 220.2655931 | F85: =VLOOKUP($C85,'RCV & totex projections'!$B$10:$AK$29,14,FALSE) -> 521.9686441 | G85: 742.2342372 | H85: =VLOOKUP($B85,'RCV & totex projections'!$B$10:$AK$29,19,FALSE) -> 220.2655931 | I85: =VLOOKUP($C85,'RCV & totex projections'!$B$10:$AK$29,19,FALSE) -> 521.9686441 | J85: 742.2342372 | K85: =VLOOKUP($B85,'RCV & totex projections'!$B$10:$AK$29,24,FALSE) -> 220.2655931 | L85: =VLOOKUP($C85,'RCV & totex projections'!$B$10:$AK$29,24,FALSE) -> 521.9686441 | M85: 742.2342372 | N85: =VLOOKUP($B85,'RCV & totex projections'!$B$10:$AK$29,29,FALSE) -> 220.2655931 | O85: =VLOOKUP($C85,'RCV & totex projections'!$B$10:$AK$29,29,FALSE) -> 521.9686441 | P85: 742.2342372 | Q85: =VLOOKUP($B85,'RCV & totex projections'!$B$10:$AK$29,34,FALSE) -> 220.2655931 | R85: =VLOOKUP($C85,'RCV & totex projections'!$B$10:$AK$29,34,FALSE) -> 521.9686441 | S85: 742.2342372
B86: NES | C86: SWB | D86: NESSWB | E86: =VLOOKUP($B86,'RCV & totex projections'!$B$10:$AK$29,14,FALSE) -> 4360.035263 | F86: =VLOOKUP($C86,'RCV & totex projections'!$B$10:$AK$29,14,FALSE) -> 3207.822635 | G86: 7567.857898 | H86: =VLOOKUP($B86,'RCV & totex projections'!$B$10:$AK$29,19,FALSE) -> 4360.035263 | I86: =VLOOKUP($C86,'RCV & totex projections'!$B$10:$AK$29,19,FALSE) -> 3207.822635 | J86: 7567.857898 | K86: =VLOOKUP($B86,'RCV & totex projections'!$B$10:$AK$29,24,FALSE) -> 4360.035263 | L86: =VLOOKUP($C86,'RCV & totex projections'!$B$10:$AK$29,24,FALSE) -> 3207.822635 | M86: 7567.857898 | N86: =VLOOKUP($B86,'RCV & totex projections'!$B$10:$AK$29,29,FALSE) -> 4360.035263 | O86: =VLOOKUP($C86,'RCV & totex projections'!$B$10:$AK$29,29,FALSE) -> 3207.822635 | P86: 7567.857898 | Q86: =VLOOKUP($B86,'RCV & totex projections'!$B$10:$AK$29,34,FALSE) -> 4360.035263 | R86: =VLOOKUP($C86,'RCV & totex projections'!$B$10:$AK$29,34,FALSE) -> 3207.822635 | S86: 7567.857898
B87: NES | C87: YKY | D87: NESYKY | E87: =VLOOKUP($B87,'RCV & totex projections'!$B$10:$AK$29,14,FALSE) -> 4360.035263 | F87: =VLOOKUP($C87,'RCV & totex projections'!$B$10:$AK$29,14,FALSE) -> 7424.879132 | G87: 11784.91439 | H87: =VLOOKUP($B87,'RCV & totex projections'!$B$10:$AK$29,19,FALSE) -> 4360.035263 | I87: =VLOOKUP($C87,'RCV & totex projections'!$B$10:$AK$29,19,FALSE) -> 7424.879132 | J87: 11784.91439 | K87: =VLOOKUP($B87,'RCV & totex projections'!$B$10:$AK$29,24,FALSE) -> 4360.035263 | L87: =VLOOKUP($C87,'RCV & totex projections'!$B$10:$AK$29,24,FALSE) -> 7424.879132 | M87: 11784.91439 | N87: =VLOOKUP($B87,'RCV & totex projections'!$B$10:$AK$29,29,FALSE) -> 4360.035263 | O87: =VLOOKUP($C87,'RCV & totex projections'!$B$10:$AK$29,29,FALSE) -> 7424.879132 | P87: 11784.91439 | Q87: =VLOOKUP($B87,'RCV & totex projections'!$B$10:$AK$29,34,FALSE) -> 4360.035263 | R87: =VLOOKUP($C87,'RCV & totex projections'!$B$10:$AK$29,34,FALSE) -> 7424.879132 | S87: 11784.91439
B88: NES | C88: AFW | D88: NESAFW | E88: =VLOOKUP($B88,'RCV & totex projections'!$B$10:$AK$29,14,FALSE) -> 4360.035263 | F88: =VLOOKUP($C88,'RCV & totex projections'!$B$10:$AK$29,14,FALSE) -> 1324.461347 | G88: 5684.49661 | H88: =VLOOKUP($B88,'RCV & totex projections'!$B$10:$AK$29,19,FALSE) -> 4360.035263 | I88: =VLOOKUP($C88,'RCV & totex projections'!$B$10:$AK$29,19,FALSE) -> 1324.461347 | J88: 5684.49661 | K88: =VLOOKUP($B88,'RCV & totex projections'!$B$10:$AK$29,24,FALSE) -> 4360.035263 | L88: =VLOOKUP($C88,'RCV & totex projections'!$B$10:$AK$29,24,FALSE) -> 1324.461347 | M88: 5684.49661 | N88: =VLOOKUP($B88,'RCV & totex projections'!$B$10:$AK$29,29,FALSE) -> 4360.035263 | O88: =VLOOKUP($C88,'RCV & totex projections'!$B$10:$AK$29,29,FALSE) -> 1324.461347 | P88: 5684.49661 | Q88: =VLOOKUP($B88,'RCV & totex projections'!$B$10:$AK$29,34,FALSE) -> 4360.035263 | R88: =VLOOKUP($C88,'RCV & totex projections'!$B$10:$AK$29,34,FALSE) -> 1324.461347 | S88: 5684.49661
B89: NES | C89: TMS | D89: NESTMS | E89: =VLOOKUP($B89,'RCV & totex projections'!$B$10:$AK$29,14,FALSE) -> 4360.035263 | F89: =VLOOKUP($C89,'RCV & totex projections'!$B$10:$AK$29,14,FALSE) -> 16820.92531 | G89: 21180.96058 | H89: =VLOOKUP($B89,'RCV & totex projections'!$B$10:$AK$29,19,FALSE) -> 4360.035263 | I89: =VLOOKUP($C89,'RCV & totex projections'!$B$10:$AK$29,19,FALSE) -> 16820.92531 | J89: 21180.96058 | K89: =VLOOKUP($B89,'RCV & totex projections'!$B$10:$AK$29,24,FALSE) -> 4360.035263 | L89: =VLOOKUP($C89,'RCV & totex projections'!$B$10:$AK$29,24,FALSE) -> 16820.92531 | M89: 21180.96058 | N89: =VLOOKUP($B89,'RCV & totex projections'!$B$10:$AK$29,29,FALSE) -> 4360.035263 | O89: =VLOOKUP($C89,'RCV & totex projections'!$B$10:$AK$29,29,FALSE) -> 16820.92531 | P89: 21180.96058 | Q89: =VLOOKUP($B89,'RCV & totex projections'!$B$10:$AK$29,34,FALSE) -> 4360.035263 | R89: =VLOOKUP($C89,'RCV & totex projections'!$B$10:$AK$29,34,FALSE) -> 16820.92531 | S89: 21180.96058
B90: NES | C90: PRT | D90: NESPRT | E90: =VLOOKUP($B90,'RCV & totex projections'!$B$10:$AK$29,14,FALSE) -> 4360.035263 | F90: =VLOOKUP($C90,'RCV & totex projections'!$B$10:$AK$29,14,FALSE) -> 220.2655931 | G90: 4580.300856 | H90: =VLOOKUP($B90,'RCV & totex projections'!$B$10:$AK$29,19,FALSE) -> 4360.035263 | I90: =VLOOKUP($C90,'RCV & totex projections'!$B$10:$AK$29,19,FALSE) -> 220.2655931 | J90: 4580.300856 | K90: =VLOOKUP($B90,'RCV & totex projections'!$B$10:$AK$29,24,FALSE) -> 4360.035263 | L90: =VLOOKUP($C90,'RCV & totex projections'!$B$10:$AK$29,24,FALSE) -> 220.2655931 | M90: 4580.300856 | N90: =VLOOKUP($B90,'RCV & totex projections'!$B$10:$AK$29,29,FALSE) -> 4360.035263 | O90: =VLOOKUP($C90,'RCV & totex projections'!$B$10:$AK$29,29,FALSE) -> 220.2655931 | P90: 4580.300856 | Q90: =VLOOKUP($B90,'RCV & totex projections'!$B$10:$AK$29,34,FALSE) -> 4360.035263 | R90: =VLOOKUP($C90,'RCV & totex projections'!$B$10:$AK$29,34,FALSE) -> 220.2655931 | S90: 4580.300856
B91: NES | C91: NES | D91: NESNES | E91: =VLOOKUP($B91,'RCV & totex projections'!$B$10:$AK$29,14,FALSE) -> 4360.035263 | F91: =VLOOKUP($C91,'RCV & totex projections'!$B$10:$AK$29,14,FALSE) -> 4360.035263 | G91: 8720.070526 | H91: =VLOOKUP($B91,'RCV & totex projections'!$B$10:$AK$29,19,FALSE) -> 4360.035263 | I91: =VLOOKUP($C91,'RCV & totex projections'!$B$10:$AK$29,19,FALSE) -> 4360.035263 | J91: 8720.070526 | K91: =VLOOKUP($B91,'RCV & totex projections'!$B$10:$AK$29,24,FALSE) -> 4360.035263 | L91: =VLOOKUP($C91,'RCV & totex projections'!$B$10:$AK$29,24,FALSE) -> 4360.035263 | M91: 8720.070526 | N91: =VLOOKUP($B91,'RCV & totex projections'!$B$10:$AK$29,29,FALSE) -> 4360.035263 | O91: =VLOOKUP($C91,'RCV & totex projections'!$B$10:$AK$29,29,FALSE) -> 4360.035263 | P91: 8720.070526 | Q91: =VLOOKUP($B91,'RCV & totex projections'!$B$10:$AK$29,34,FALSE) -> 4360.035263 | R91: =VLOOKUP($C91,'RCV & totex projections'!$B$10:$AK$29,34,FALSE) -> 4360.035263 | S91: 8720.070526
B92: NES | C92: WSH | D92: NESWSH | E92: =VLOOKUP($B92,'RCV & totex projections'!$B$10:$AK$29,14,FALSE) -> 4360.035263 | F92: =VLOOKUP($C92,'RCV & totex projections'!$B$10:$AK$29,14,FALSE) -> 6243.283721 | G92: 10603.31898 | H92: =VLOOKUP($B92,'RCV & totex projections'!$B$10:$AK$29,19,FALSE) -> 4360.035263 | I92: =VLOOKUP($C92,'RCV & totex projections'!$B$10:$AK$29,19,FALSE) -> 6243.283721 | J92: 10603.31898 | K92: =VLOOKUP($B92,'RCV & totex projections'!$B$10:$AK$29,24,FALSE) -> 4360.035263 | L92: =VLOOKUP($C92,'RCV & totex projections'!$B$10:$AK$29,24,FALSE) -> 6243.283721 | M92: 10603.31898 | N92: =VLOOKUP($B92,'RCV & totex projections'!$B$10:$AK$29,29,FALSE) -> 4360.035263 | O92: =VLOOKUP($C92,'RCV & totex projections'!$B$10:$AK$29,29,FALSE) -> 6243.283721 | P92: 10603.31898 | Q92: =VLOOKUP($B92,'RCV & totex projections'!$B$10:$AK$29,34,FALSE) -> 4360.035263 | R92: =VLOOKUP($C92,'RCV & totex projections'!$B$10:$AK$29,34,FALSE) -> 6243.283721 | S92: 10603.31898
B93: NES | C93: UUW | D93: NESUUW | E93: =VLOOKUP($B93,'RCV & totex projections'!$B$10:$AK$29,14,FALSE) -> 4360.035263 | F93: =VLOOKUP($C93,'RCV & totex projections'!$B$10:$AK$29,14,FALSE) -> 10770.69058 | G93: 15130.72584 | H93: =VLOOKUP($B93,'RCV & totex projections'!$B$10:$AK$29,19,FALSE) -> 4360.035263 | I93: =VLOOKUP($C93,'RCV & totex projections'!$B$10:$AK$29,19,FALSE) -> 10770.69058 | J93: 15130.72584 | K93: =VLOOKUP($B93,'RCV & totex projections'!$B$10:$AK$29,24,FALSE) -> 4360.035263 | L93: =VLOOKUP($C93,'RCV & totex projections'!$B$10:$AK$29,24,FALSE) -> 10770.69058 | M93: 15130.72584 | N93: =VLOOKUP($B93,'RCV & totex projections'!$B$10:$AK$29,29,FALSE) -> 4360.035263 | O93: =VLOOKUP($C93,'RCV & totex projections'!$B$10:$AK$29,29,FALSE) -> 10770.69058 | P93: 15130.72584 | Q93: =VLOOKUP($B93,'RCV & totex projections'!$B$10:$AK$29,34,FALSE) -> 4360.035263 | R93: =VLOOKUP($C93,'RCV & totex projections'!$B$10:$AK$29,34,FALSE) -> 10770.69058 | S93: 15130.72584
B94: NES | C94: SES | D94: NESSES | E94: =VLOOKUP($B94,'RCV & totex projections'!$B$10:$AK$29,14,FALSE) -> 4360.035263 | F94: =VLOOKUP($C94,'RCV & totex projections'!$B$10:$AK$29,14,FALSE) -> 279.0526761 | G94: 4639.087939 | H94: =VLOOKUP($B94,'RCV & totex projections'!$B$10:$AK$29,19,FALSE) -> 4360.035263 | I94: =VLOOKUP($C94,'RCV & totex projections'!$B$10:$AK$29,19,FALSE) -> 279.0526761 | J94: 4639.087939 | K94: =VLOOKUP($B94,'RCV & totex projections'!$B$10:$AK$29,24,FALSE) -> 4360.035263 | L94: =VLOOKUP($C94,'RCV & totex projections'!$B$10:$AK$29,24,FALSE) -> 279.0526761 | M94: 4639.087939 | N94: =VLOOKUP($B94,'RCV & totex projections'!$B$10:$AK$29,29,FALSE) -> 4360.035263 | O94: =VLOOKUP($C94,'RCV & totex projections'!$B$10:$AK$29,29,FALSE) -> 279.0526761 | P94: 4639.087939 | Q94: =VLOOKUP($B94,'RCV & totex projections'!$B$10:$AK$29,34,FALSE) -> 4360.035263 | R94: =VLOOKUP($C94,'RCV & totex projections'!$B$10:$AK$29,34,FALSE) -> 279.0526761 | S94: 4639.087939
B95: NES | C95: ANH | D95: NESANH | E95: =VLOOKUP($B95,'RCV & totex projections'!$B$10:$AK$29,14,FALSE) -> 4360.035263 | F95: =VLOOKUP($C95,'RCV & totex projections'!$B$10:$AK$29,14,FALSE) -> 8866.071504 | G95: 13226.10677 | H95: =VLOOKUP($B95,'RCV & totex projections'!$B$10:$AK$29,19,FALSE) -> 4360.035263 | I95: =VLOOKUP($C95,'RCV & totex projections'!$B$10:$AK$29,19,FALSE) -> 8866.071504 | J95: 13226.10677 | K95: =VLOOKUP($B95,'RCV & totex projections'!$B$10:$AK$29,24,FALSE) -> 4360.035263 | L95: =VLOOKUP($C95,'RCV & totex projections'!$B$10:$AK$29,24,FALSE) -> 8866.071504 | M95: 13226.10677 | N95: =VLOOKUP($B95,'RCV & totex projections'!$B$10:$AK$29,29,FALSE) -> 4360.035263 | O95: =VLOOKUP($C95,'RCV & totex projections'!$B$10:$AK$29,29,FALSE) -> 8866.071504 | P95: 13226.10677 | Q95: =VLOOKUP($B95,'RCV & totex projections'!$B$10:$AK$29,34,FALSE) -> 4360.035263 | R95: =VLOOKUP($C95,'RCV & totex projections'!$B$10:$AK$29,34,FALSE) -> 8866.071504 | S95: 13226.10677
B96: NES | C96: SEW | D96: NESSEW | E96: =VLOOKUP($B96,'RCV & totex projections'!$B$10:$AK$29,14,FALSE) -> 4360.035263 | F96: =VLOOKUP($C96,'RCV & totex projections'!$B$10:$AK$29,14,FALSE) -> 1449.209445 | G96: 5809.244708 | H96: =VLOOKUP($B96,'RCV & totex projections'!$B$10:$AK$29,19,FALSE) -> 4360.035263 | I96: =VLOOKUP($C96,'RCV & totex projections'!$B$10:$AK$29,19,FALSE) -> 1449.209445 | J96: 5809.244708 | K96: =VLOOKUP($B96,'RCV & totex projections'!$B$10:$AK$29,24,FALSE) -> 4360.035263 | L96: =VLOOKUP($C96,'RCV & totex projections'!$B$10:$AK$29,24,FALSE) -> 1449.209445 | M96: 5809.244708 | N96: =VLOOKUP($B96,'RCV & totex projections'!$B$10:$AK$29,29,FALSE) -> 4360.035263 | O96: =VLOOKUP($C96,'RCV & totex projections'!$B$10:$AK$29,29,FALSE) -> 1449.209445 | P96: 5809.244708 | Q96: =VLOOKUP($B96,'RCV & totex projections'!$B$10:$AK$29,34,FALSE) -> 4360.035263 | R96: =VLOOKUP($C96,'RCV & totex projections'!$B$10:$AK$29,34,FALSE) -> 1449.209445 | S96: 5809.244708
B97: NES | C97: SSC | D97: NESSSC | E97: =VLOOKUP($B97,'RCV & totex projections'!$B$10:$AK$29,14,FALSE) -> 4360.035263 | F97: =VLOOKUP($C97,'RCV & totex projections'!$B$10:$AK$29,14,FALSE) -> 451.5233645 | G97: 4811.558627 | H97: =VLOOKUP($B97,'RCV & totex projections'!$B$10:$AK$29,19,FALSE) -> 4360.035263 | I97: =VLOOKUP($C97,'RCV & totex projections'!$B$10:$AK$29,19,FALSE) -> 451.5233645 | J97: 4811.558627 | K97: =VLOOKUP($B97,'RCV & totex projections'!$B$10:$AK$29,24,FALSE) -> 4360.035263 | L97: =VLOOKUP($C97,'RCV & totex projections'!$B$10:$AK$29,24,FALSE) -> 451.5233645 | M97: 4811.558627 | N97: =VLOOKUP($B97,'RCV & totex projections'!$B$10:$AK$29,29,FALSE) -> 4360.035263 | O97: =VLOOKUP($C97,'RCV & totex projections'!$B$10:$AK$29,29,FALSE) -> 451.5233645 | P97: 4811.558627 | Q97: =VLOOKUP($B97,'RCV & totex projections'!$B$10:$AK$29,34,FALSE) -> 4360.035263 | R97: =VLOOKUP($C97,'RCV & totex projections'!$B$10:$AK$29,34,FALSE) -> 451.5233645 | S97: 4811.558627
B98: NES | C98: SVE | D98: NESSVE | E98: =VLOOKUP($B98,'RCV & totex projections'!$B$10:$AK$29,14,FALSE) -> 4360.035263 | F98: =VLOOKUP($C98,'RCV & totex projections'!$B$10:$AK$29,14,FALSE) -> 9051.903159 | G98: 13411.93842 | H98: =VLOOKUP($B98,'RCV & totex projections'!$B$10:$AK$29,19,FALSE) -> 4360.035263 | I98: =VLOOKUP($C98,'RCV & totex projections'!$B$10:$AK$29,19,FALSE) -> 9051.903159 | J98: 13411.93842 | K98: =VLOOKUP($B98,'RCV & totex projections'!$B$10:$AK$29,24,FALSE) -> 4360.035263 | L98: =VLOOKUP($C98,'RCV & totex projections'!$B$10:$AK$29,24,FALSE) -> 9051.903159 | M98: 13411.93842 | N98: =VLOOKUP($B98,'RCV & totex projections'!$B$10:$AK$29,29,FALSE) -> 4360.035263 | O98: =VLOOKUP($C98,'RCV & totex projections'!$B$10:$AK$29,29,FALSE) -> 9051.903159 | P98: 13411.93842 | Q98: =VLOOKUP($B98,'RCV & totex projections'!$B$10:$AK$29,34,FALSE) -> 4360.035263 | R98: =VLOOKUP($C98,'RCV & totex projections'!$B$10:$AK$29,34,FALSE) -> 9051.903159 | S98: 13411.93842
B99: NES | C99: WSX | D99: NESWSX | E99: =VLOOKUP($B99,'RCV & totex projections'!$B$10:$AK$29,14,FALSE) -> 4360.035263 | F99: =VLOOKUP($C99,'RCV & totex projections'!$B$10:$AK$29,14,FALSE) -> 3472.985755 | G99: 7833.021018 | H99: =VLOOKUP($B99,'RCV & totex projections'!$B$10:$AK$29,19,FALSE) -> 4360.035263 | I99: =VLOOKUP($C99,'RCV & totex projections'!$B$10:$AK$29,19,FALSE) -> 3472.985755 | J99: 7833.021018 | K99: =VLOOKUP($B99,'RCV & totex projections'!$B$10:$AK$29,24,FALSE) -> 4360.035263 | L99: =VLOOKUP($C99,'RCV & totex projections'!$B$10:$AK$29,24,FALSE) -> 3472.985755 | M99: 7833.021018 | N99: =VLOOKUP($B99,'RCV & totex projections'!$B$10:$AK$29,29,FALSE) -> 4360.035263 | O99: =VLOOKUP($C99,'RCV & totex projections'!$B$10:$AK$29,29,FALSE) -> 3472.985755 | P99: 7833.021018 | Q99: =VLOOKUP($B99,'RCV & totex projections'!$B$10:$AK$29,34,FALSE) -> 4360.035263 | R99: =VLOOKUP($C99,'RCV & totex projections'!$B$10:$AK$29,34,FALSE) -> 3472.985755 | S99: 7833.021018
B100: NES | C100: SRN | D100: NESSRN | E100: =VLOOKUP($B100,'RCV & totex projections'!$B$10:$AK$29,14,FALSE) -> 4360.035263 | F100: =VLOOKUP($C100,'RCV & totex projections'!$B$10:$AK$29,14,FALSE) -> 5440.553595 | G100: 9800.588858 | H100: =VLOOKUP($B100,'RCV & totex projections'!$B$10:$AK$29,19,FALSE) -> 4360.035263 | I100: =VLOOKUP($C100,'RCV & totex projections'!$B$10:$AK$29,19,FALSE) -> 5440.553595 | J100: 9800.588858 | K100: =VLOOKUP($B100,'RCV & totex projections'!$B$10:$AK$29,24,FALSE) -> 4360.035263 | L100: =VLOOKUP($C100,'RCV & totex projections'!$B$10:$AK$29,24,FALSE) -> 5440.553595 | M100: 9800.588858 | N100: =VLOOKUP($B100,'RCV & totex projections'!$B$10:$AK$29,29,FALSE) -> 4360.035263 | O100: =VLOOKUP($C100,'RCV & totex projections'!$B$10:$AK$29,29,FALSE) -> 5440.553595 | P100: 9800.588858 | Q100: =VLOOKUP($B100,'RCV & totex projections'!$B$10:$AK$29,34,FALSE) -> 4360.035263 | R100: =VLOOKUP($C100,'RCV & totex projections'!$B$10:$AK$29,34,FALSE) -> 5440.553595 | S100: 9800.588858
B101: NES | C101: BRL | D101: NESBRL | E101: =VLOOKUP($B101,'RCV & totex projections'!$B$10:$AK$29,14,FALSE) -> 4360.035263 | F101: =VLOOKUP($C101,'RCV & totex projections'!$B$10:$AK$29,14,FALSE) -> 521.9686441 | G101: 4882.003907 | H101: =VLOOKUP($B101,'RCV & totex projections'!$B$10:$AK$29,19,FALSE) -> 4360.035263 | I101: =VLOOKUP($C101,'RCV & totex projections'!$B$10:$AK$29,19,FALSE) -> 521.9686441 | J101: 4882.003907 | K101: =VLOOKUP($B101,'RCV & totex projections'!$B$10:$AK$29,24,FALSE) -> 4360.035263 | L101: =VLOOKUP($C101,'RCV & totex projections'!$B$10:$AK$29,24,FALSE) -> 521.9686441 | M101: 4882.003907 | N101: =VLOOKUP($B101,'RCV & totex projections'!$B$10:$AK$29,29,FALSE) -> 4360.035263 | O101: =VLOOKUP($C101,'RCV & totex projections'!$B$10:$AK$29,29,FALSE) -> 521.9686441 | P101: 4882.003907 | Q101: =VLOOKUP($B101,'RCV & totex projections'!$B$10:$AK$29,34,FALSE) -> 4360.035263 | R101: =VLOOKUP($C101,'RCV & totex projections'!$B$10:$AK$29,34,FALSE) -> 521.9686441 | S101: 4882.003907
B102: WSH | C102: SWB | D102: WSHSWB | E102: =VLOOKUP($B102,'RCV & totex projections'!$B$10:$AK$29,14,FALSE) -> 6243.283721 | F102: =VLOOKUP($C102,'RCV & totex projections'!$B$10:$AK$29,14,FALSE) -> 3207.822635 | G102: 9451.106356 | H102: =VLOOKUP($B102,'RCV & totex projections'!$B$10:$AK$29,19,FALSE) -> 6243.283721 | I102: =VLOOKUP($C102,'RCV & totex projections'!$B$10:$AK$29,19,FALSE) -> 3207.822635 | J102: 9451.106356 | K102: =VLOOKUP($B102,'RCV & totex projections'!$B$10:$AK$29,24,FALSE) -> 6243.283721 | L102: =VLOOKUP($C102,'RCV & totex projections'!$B$10:$AK$29,24,FALSE) -> 3207.822635 | M102: 9451.106356 | N102: =VLOOKUP($B102,'RCV & totex projections'!$B$10:$AK$29,29,FALSE) -> 6243.283721 | O102: =VLOOKUP($C102,'RCV & totex projections'!$B$10:$AK$29,29,FALSE) -> 3207.822635 | P102: 9451.106356 | Q102: =VLOOKUP($B102,'RCV & totex projections'!$B$10:$AK$29,34,FALSE) -> 6243.283721 | R102: =VLOOKUP($C102,'RCV & totex projections'!$B$10:$AK$29,34,FALSE) -> 3207.822635 | S102: 9451.106356
B103: WSH | C103: YKY | D103: WSHYKY | E103: =VLOOKUP($B103,'RCV & totex projections'!$B$10:$AK$29,14,FALSE) -> 6243.283721 | F103: =VLOOKUP($C103,'RCV & totex projections'!$B$10:$AK$29,14,FALSE) -> 7424.879132 | G103: 13668.16285 | H103: =VLOOKUP($B103,'RCV & totex projections'!$B$10:$AK$29,19,FALSE) -> 6243.283721 | I103: =VLOOKUP($C103,'RCV & totex projections'!$B$10:$AK$29,19,FALSE) -> 7424.879132 | J103: 13668.16285 | K103: =VLOOKUP($B103,'RCV & totex projections'!$B$10:$AK$29,24,FALSE) -> 6243.283721 | L103: =VLOOKUP($C103,'RCV & totex projections'!$B$10:$AK$29,24,FALSE) -> 7424.879132 | M103: 13668.16285 | N103: =VLOOKUP($B103,'RCV & totex projections'!$B$10:$AK$29,29,FALSE) -> 6243.283721 | O103: =VLOOKUP($C103,'RCV & totex projections'!$B$10:$AK$29,29,FALSE) -> 7424.879132 | P103: 13668.16285 | Q103: =VLOOKUP($B103,'RCV & totex projections'!$B$10:$AK$29,34,FALSE) -> 6243.283721 | R103: =VLOOKUP($C103,'RCV & totex projections'!$B$10:$AK$29,34,FALSE) -> 7424.879132 | S103: 13668.16285
B104: WSH | C104: AFW | D104: WSHAFW | E104: =VLOOKUP($B104,'RCV & totex projections'!$B$10:$AK$29,14,FALSE) -> 6243.283721 | F104: =VLOOKUP($C104,'RCV & totex projections'!$B$10:$AK$29,14,FALSE) -> 1324.461347 | G104: 7567.745068 | H104: =VLOOKUP($B104,'RCV & totex projections'!$B$10:$AK$29,19,FALSE) -> 6243.283721 | I104: =VLOOKUP($C104,'RCV & totex projections'!$B$10:$AK$29,19,FALSE) -> 1324.461347 | J104: 7567.745068 | K104: =VLOOKUP($B104,'RCV & totex projections'!$B$10:$AK$29,24,FALSE) -> 6243.283721 | L104: =VLOOKUP($C104,'RCV & totex projections'!$B$10:$AK$29,24,FALSE) -> 1324.461347 | M104: 7567.745068 | N104: =VLOOKUP($B104,'RCV & totex projections'!$B$10:$AK$29,29,FALSE) -> 6243.283721 | O104: =VLOOKUP($C104,'RCV & totex projections'!$B$10:$AK$29,29,FALSE) -> 1324.461347 | P104: 7567.745068 | Q104: =VLOOKUP($B104,'RCV & totex projections'!$B$10:$AK$29,34,FALSE) -> 6243.283721 | R104: =VLOOKUP($C104,'RCV & totex projections'!$B$10:$AK$29,34,FALSE) -> 1324.461347 | S104: 7567.745068
B105: WSH | C105: TMS | D105: WSHTMS | E105: =VLOOKUP($B105,'RCV & totex projections'!$B$10:$AK$29,14,FALSE) -> 6243.283721 | F105: =VLOOKUP($C105,'RCV & totex projections'!$B$10:$AK$29,14,FALSE) -> 16820.92531 | G105: 23064.20904 | H105: =VLOOKUP($B105,'RCV & totex projections'!$B$10:$AK$29,19,FALSE) -> 6243.283721 | I105: =VLOOKUP($C105,'RCV & totex projections'!$B$10:$AK$29,19,FALSE) -> 16820.92531 | J105: 23064.20904 | K105: =VLOOKUP($B105,'RCV & totex projections'!$B$10:$AK$29,24,FALSE) -> 6243.283721 | L105: =VLOOKUP($C105,'RCV & totex projections'!$B$10:$AK$29,24,FALSE) -> 16820.92531 | M105: 23064.20904 | N105: =VLOOKUP($B105,'RCV & totex projections'!$B$10:$AK$29,29,FALSE) -> 6243.283721 | O105: =VLOOKUP($C105,'RCV & totex projections'!$B$10:$AK$29,29,FALSE) -> 16820.92531 | P105: 23064.20904 | Q105: =VLOOKUP($B105,'RCV & totex projections'!$B$10:$AK$29,34,FALSE) -> 6243.283721 | R105: =VLOOKUP($C105,'RCV & totex projections'!$B$10:$AK$29,34,FALSE) -> 16820.92531 | S105: 23064.20904
B106: WSH | C106: PRT | D106: WSHPRT | E106: =VLOOKUP($B106,'RCV & totex projections'!$B$10:$AK$29,14,FALSE) -> 6243.283721 | F106: =VLOOKUP($C106,'RCV & totex projections'!$B$10:$AK$29,14,FALSE) -> 220.2655931 | G106: 6463.549314 | H106: =VLOOKUP($B106,'RCV & totex projections'!$B$10:$AK$29,19,FALSE) -> 6243.283721 | I106: =VLOOKUP($C106,'RCV & totex projections'!$B$10:$AK$29,19,FALSE) -> 220.2655931 | J106: 6463.549314 | K106: =VLOOKUP($B106,'RCV & totex projections'!$B$10:$AK$29,24,FALSE) -> 6243.283721 | L106: =VLOOKUP($C106,'RCV & totex projections'!$B$10:$AK$29,24,FALSE) -> 220.2655931 | M106: 6463.549314 | N106: =VLOOKUP($B106,'RCV & totex projections'!$B$10:$AK$29,29,FALSE) -> 6243.283721 | O106: =VLOOKUP($C106,'RCV & totex projections'!$B$10:$AK$29,29,FALSE) -> 220.2655931 | P106: 6463.549314 | Q106: =VLOOKUP($B106,'RCV & totex projections'!$B$10:$AK$29,34,FALSE) -> 6243.283721 | R106: =VLOOKUP($C106,'RCV & totex projections'!$B$10:$AK$29,34,FALSE) -> 220.2655931 | S106: 6463.549314
B107: WSH | C107: NES | D107: WSHNES | E107: =VLOOKUP($B107,'RCV & totex projections'!$B$10:$AK$29,14,FALSE) -> 6243.283721 | F107: =VLOOKUP($C107,'RCV & totex projections'!$B$10:$AK$29,14,FALSE) -> 4360.035263 | G107: 10603.31898 | H107: =VLOOKUP($B107,'RCV & totex projections'!$B$10:$AK$29,19,FALSE) -> 6243.283721 | I107: =VLOOKUP($C107,'RCV & totex projections'!$B$10:$AK$29,19,FALSE) -> 4360.035263 | J107: 10603.31898 | K107: =VLOOKUP($B107,'RCV & totex projections'!$B$10:$AK$29,24,FALSE) -> 6243.283721 | L107: =VLOOKUP($C107,'RCV & totex projections'!$B$10:$AK$29,24,FALSE) -> 4360.035263 | M107: 10603.31898 | N107: =VLOOKUP($B107,'RCV & totex projections'!$B$10:$AK$29,29,FALSE) -> 6243.283721 | O107: =VLOOKUP($C107,'RCV & totex projections'!$B$10:$AK$29,29,FALSE) -> 4360.035263 | P107: 10603.31898 | Q107: =VLOOKUP($B107,'RCV & totex projections'!$B$10:$AK$29,34,FALSE) -> 6243.283721 | R107: =VLOOKUP($C107,'RCV & totex projections'!$B$10:$AK$29,34,FALSE) -> 4360.035263 | S107: 10603.31898
B108: WSH | C108: WSH | D108: WSHWSH | E108: =VLOOKUP($B108,'RCV & totex projections'!$B$10:$AK$29,14,FALSE) -> 6243.283721 | F108: =VLOOKUP($C108,'RCV & totex projections'!$B$10:$AK$29,14,FALSE) -> 6243.283721 | G108: 12486.56744 | H108: =VLOOKUP($B108,'RCV & totex projections'!$B$10:$AK$29,19,FALSE) -> 6243.283721 | I108: =VLOOKUP($C108,'RCV & totex projections'!$B$10:$AK$29,19,FALSE) -> 6243.283721 | J108: 12486.56744 | K108: =VLOOKUP($B108,'RCV & totex projections'!$B$10:$AK$29,24,FALSE) -> 6243.283721 | L108: =VLOOKUP($C108,'RCV & totex projections'!$B$10:$AK$29,24,FALSE) -> 6243.283721 | M108: 12486.56744 | N108: =VLOOKUP($B108,'RCV & totex projections'!$B$10:$AK$29,29,FALSE) -> 6243.283721 | O108: =VLOOKUP($C108,'RCV & totex projections'!$B$10:$AK$29,29,FALSE) -> 6243.283721 | P108: 12486.56744 | Q108: =VLOOKUP($B108,'RCV & totex projections'!$B$10:$AK$29,34,FALSE) -> 6243.283721 | R108: =VLOOKUP($C108,'RCV & totex projections'!$B$10:$AK$29,34,FALSE) -> 6243.283721 | S108: 12486.56744
B109: WSH | C109: UUW | D109: WSHUUW | E109: =VLOOKUP($B109,'RCV & totex projections'!$B$10:$AK$29,14,FALSE) -> 6243.283721 | F109: =VLOOKUP($C109,'RCV & totex projections'!$B$10:$AK$29,14,FALSE) -> 10770.69058 | G109: 17013.9743 | H109: =VLOOKUP($B109,'RCV & totex projections'!$B$10:$AK$29,19,FALSE) -> 6243.283721 | I109: =VLOOKUP($C109,'RCV & totex projections'!$B$10:$AK$29,19,FALSE) -> 10770.69058 | J109: 17013.9743 | K109: =VLOOKUP($B109,'RCV & totex projections'!$B$10:$AK$29,24,FALSE) -> 6243.283721 | L109: =VLOOKUP($C109,'RCV & totex projections'!$B$10:$AK$29,24,FALSE) -> 10770.69058 | M109: 17013.9743 | N109: =VLOOKUP($B109,'RCV & totex projections'!$B$10:$AK$29,29,FALSE) -> 6243.283721 | O109: =VLOOKUP($C109,'RCV & totex projections'!$B$10:$AK$29,29,FALSE) -> 10770.69058 | P109: 17013.9743 | Q109: =VLOOKUP($B109,'RCV & totex projections'!$B$10:$AK$29,34,FALSE) -> 6243.283721 | R109: =VLOOKUP($C109,'RCV & totex projections'!$B$10:$AK$29,34,FALSE) -> 10770.69058 | S109: 17013.9743
B110: WSH | C110: SES | D110: WSHSES | E110: =VLOOKUP($B110,'RCV & totex projections'!$B$10:$AK$29,14,FALSE) -> 6243.283721 | F110: =VLOOKUP($C110,'RCV & totex projections'!$B$10:$AK$29,14,FALSE) -> 279.0526761 | G110: 6522.336397 | H110: =VLOOKUP($B110,'RCV & totex projections'!$B$10:$AK$29,19,FALSE) -> 6243.283721 | I110: =VLOOKUP($C110,'RCV & totex projections'!$B$10:$AK$29,19,FALSE) -> 279.0526761 | J110: 6522.336397 | K110: =VLOOKUP($B110,'RCV & totex projections'!$B$10:$AK$29,24,FALSE) -> 6243.283721 | L110: =VLOOKUP($C110,'RCV & totex projections'!$B$10:$AK$29,24,FALSE) -> 279.0526761 | M110: 6522.336397 | N110: =VLOOKUP($B110,'RCV & totex projections'!$B$10:$AK$29,29,FALSE) -> 6243.283721 | O110: =VLOOKUP($C110,'RCV & totex projections'!$B$10:$AK$29,29,FALSE) -> 279.0526761 | P110: 6522.336397 | Q110: =VLOOKUP($B110,'RCV & totex projections'!$B$10:$AK$29,34,FALSE) -> 6243.283721 | R110: =VLOOKUP($C110,'RCV & totex projections'!$B$10:$AK$29,34,FALSE) -> 279.0526761 | S110: 6522.336397
B111: WSH | C111: ANH | D111: WSHANH | E111: =VLOOKUP($B111,'RCV & totex projections'!$B$10:$AK$29,14,FALSE) -> 6243.283721 | F111: =VLOOKUP($C111,'RCV & totex projections'!$B$10:$AK$29,14,FALSE) -> 8866.071504 | G111: 15109.35523 | H111: =VLOOKUP($B111,'RCV & totex projections'!$B$10:$AK$29,19,FALSE) -> 6243.283721 | I111: =VLOOKUP($C111,'RCV & totex projections'!$B$10:$AK$29,19,FALSE) -> 8866.071504 | J111: 15109.35523 | K111: =VLOOKUP($B111,'RCV & totex projections'!$B$10:$AK$29,24,FALSE) -> 6243.283721 | L111: =VLOOKUP($C111,'RCV & totex projections'!$B$10:$AK$29,24,FALSE) -> 8866.071504 | M111: 15109.35523 | N111: =VLOOKUP($B111,'RCV & totex projections'!$B$10:$AK$29,29,FALSE) -> 6243.283721 | O111: =VLOOKUP($C111,'RCV & totex projections'!$B$10:$AK$29,29,FALSE) -> 8866.071504 | P111: 15109.35523 | Q111: =VLOOKUP($B111,'RCV & totex projections'!$B$10:$AK$29,34,FALSE) -> 6243.283721 | R111: =VLOOKUP($C111,'RCV & totex projections'!$B$10:$AK$29,34,FALSE) -> 8866.071504 | S111: 15109.35523
B112: WSH | C112: SEW | D112: WSHSEW | E112: =VLOOKUP($B112,'RCV & totex projections'!$B$10:$AK$29,14,FALSE) -> 6243.283721 | F112: =VLOOKUP($C112,'RCV & totex projections'!$B$10:$AK$29,14,FALSE) -> 1449.209445 | G112: 7692.493166 | H112: =VLOOKUP($B112,'RCV & totex projections'!$B$10:$AK$29,19,FALSE) -> 6243.283721 | I112: =VLOOKUP($C112,'RCV & totex projections'!$B$10:$AK$29,19,FALSE) -> 1449.209445 | J112: 7692.493166 | K112: =VLOOKUP($B112,'RCV & totex projections'!$B$10:$AK$29,24,FALSE) -> 6243.283721 | L112: =VLOOKUP($C112,'RCV & totex projections'!$B$10:$AK$29,24,FALSE) -> 1449.209445 | M112: 7692.493166 | N112: =VLOOKUP($B112,'RCV & totex projections'!$B$10:$AK$29,29,FALSE) -> 6243.283721 | O112: =VLOOKUP($C112,'RCV & totex projections'!$B$10:$AK$29,29,FALSE) -> 1449.209445 | P112: 7692.493166 | Q112: =VLOOKUP($B112,'RCV & totex projections'!$B$10:$AK$29,34,FALSE) -> 6243.283721 | R112: =VLOOKUP($C112,'RCV & totex projections'!$B$10:$AK$29,34,FALSE) -> 1449.209445 | S112: 7692.493166
B113: WSH | C113: SSC | D113: WSHSSC | E113: =VLOOKUP($B113,'RCV & totex projections'!$B$10:$AK$29,14,FALSE) -> 6243.283721 | F113: =VLOOKUP($C113,'RCV & totex projections'!$B$10:$AK$29,14,FALSE) -> 451.5233645 | G113: 6694.807085 | H113: =VLOOKUP($B113,'RCV & totex projections'!$B$10:$AK$29,19,FALSE) -> 6243.283721 | I113: =VLOOKUP($C113,'RCV & totex projections'!$B$10:$AK$29,19,FALSE) -> 451.5233645 | J113: 6694.807085 | K113: =VLOOKUP($B113,'RCV & totex projections'!$B$10:$AK$29,24,FALSE) -> 6243.283721 | L113: =VLOOKUP($C113,'RCV & totex projections'!$B$10:$AK$29,24,FALSE) -> 451.5233645 | M113: 6694.807085 | N113: =VLOOKUP($B113,'RCV & totex projections'!$B$10:$AK$29,29,FALSE) -> 6243.283721 | O113: =VLOOKUP($C113,'RCV & totex projections'!$B$10:$AK$29,29,FALSE) -> 451.5233645 | P113: 6694.807085 | Q113: =VLOOKUP($B113,'RCV & totex projections'!$B$10:$AK$29,34,FALSE) -> 6243.283721 | R113: =VLOOKUP($C113,'RCV & totex projections'!$B$10:$AK$29,34,FALSE) -> 451.5233645 | S113: 6694.807085
B114: WSH | C114: SVE | D114: WSHSVE | E114: =VLOOKUP($B114,'RCV & totex projections'!$B$10:$AK$29,14,FALSE) -> 6243.283721 | F114: =VLOOKUP($C114,'RCV & totex projections'!$B$10:$AK$29,14,FALSE) -> 9051.903159 | G114: 15295.18688 | H114: =VLOOKUP($B114,'RCV & totex projections'!$B$10:$AK$29,19,FALSE) -> 6243.283721 | I114: =VLOOKUP($C114,'RCV & totex projections'!$B$10:$AK$29,19,FALSE) -> 9051.903159 | J114: 15295.18688 | K114: =VLOOKUP($B114,'RCV & totex projections'!$B$10:$AK$29,24,FALSE) -> 6243.283721 | L114: =VLOOKUP($C114,'RCV & totex projections'!$B$10:$AK$29,24,FALSE) -> 9051.903159 | M114: 15295.18688 | N114: =VLOOKUP($B114,'RCV & totex projections'!$B$10:$AK$29,29,FALSE) -> 6243.283721 | O114: =VLOOKUP($C114,'RCV & totex projections'!$B$10:$AK$29,29,FALSE) -> 9051.903159 | P114: 15295.18688 | Q114: =VLOOKUP($B114,'RCV & totex projections'!$B$10:$AK$29,34,FALSE) -> 6243.283721 | R114: =VLOOKUP($C114,'RCV & totex projections'!$B$10:$AK$29,34,FALSE) -> 9051.903159 | S114: 15295.18688
B115: WSH | C115: WSX | D115: WSHWSX | E115: =VLOOKUP($B115,'RCV & totex projections'!$B$10:$AK$29,14,FALSE) -> 6243.283721 | F115: =VLOOKUP($C115,'RCV & totex projections'!$B$10:$AK$29,14,FALSE) -> 3472.985755 | G115: 9716.269476 | H115: =VLOOKUP($B115,'RCV & totex projections'!$B$10:$AK$29,19,FALSE) -> 6243.283721 | I115: =VLOOKUP($C115,'RCV & totex projections'!$B$10:$AK$29,19,FALSE) -> 3472.985755 | J115: 9716.269476 | K115: =VLOOKUP($B115,'RCV & totex projections'!$B$10:$AK$29,24,FALSE) -> 6243.283721 | L115: =VLOOKUP($C115,'RCV & totex projections'!$B$10:$AK$29,24,FALSE) -> 3472.985755 | M115: 9716.269476 | N115: =VLOOKUP($B115,'RCV & totex projections'!$B$10:$AK$29,29,FALSE) -> 6243.283721 | O115: =VLOOKUP($C115,'RCV & totex projections'!$B$10:$AK$29,29,FALSE) -> 3472.985755 | P115: 9716.269476 | Q115: =VLOOKUP($B115,'RCV & totex projections'!$B$10:$AK$29,34,FALSE) -> 6243.283721 | R115: =VLOOKUP($C115,'RCV & totex projections'!$B$10:$AK$29,34,FALSE) -> 3472.985755 | S115: 9716.269476
B116: WSH | C116: SRN | D116: WSHSRN | E116: =VLOOKUP($B116,'RCV & totex projections'!$B$10:$AK$29,14,FALSE) -> 6243.283721 | F116: =VLOOKUP($C116,'RCV & totex projections'!$B$10:$AK$29,14,FALSE) -> 5440.553595 | G116: 11683.83732 | H116: =VLOOKUP($B116,'RCV & totex projections'!$B$10:$AK$29,19,FALSE) -> 6243.283721 | I116: =VLOOKUP($C116,'RCV & totex projections'!$B$10:$AK$29,19,FALSE) -> 5440.553595 | J116: 11683.83732 | K116: =VLOOKUP($B116,'RCV & totex projections'!$B$10:$AK$29,24,FALSE) -> 6243.283721 | L116: =VLOOKUP($C116,'RCV & totex projections'!$B$10:$AK$29,24,FALSE) -> 5440.553595 | M116: 11683.83732 | N116: =VLOOKUP($B116,'RCV & totex projections'!$B$10:$AK$29,29,FALSE) -> 6243.283721 | O116: =VLOOKUP($C116,'RCV & totex projections'!$B$10:$AK$29,29,FALSE) -> 5440.553595 | P116: 11683.83732 | Q116: =VLOOKUP($B116,'RCV & totex projections'!$B$10:$AK$29,34,FALSE) -> 6243.283721 | R116: =VLOOKUP($C116,'RCV & totex projections'!$B$10:$AK$29,34,FALSE) -> 5440.553595 | S116: 11683.83732
B117: WSH | C117: BRL | D117: WSHBRL | E117: =VLOOKUP($B117,'RCV & totex projections'!$B$10:$AK$29,14,FALSE) -> 6243.283721 | F117: =VLOOKUP($C117,'RCV & totex projections'!$B$10:$AK$29,14,FALSE) -> 521.9686441 | G117: 6765.252365 | H117: =VLOOKUP($B117,'RCV & totex projections'!$B$10:$AK$29,19,FALSE) -> 6243.283721 | I117: =VLOOKUP($C117,'RCV & totex projections'!$B$10:$AK$29,19,FALSE) -> 521.9686441 | J117: 6765.252365 | K117: =VLOOKUP($B117,'RCV & totex projections'!$B$10:$AK$29,24,FALSE) -> 6243.283721 | L117: =VLOOKUP($C117,'RCV & totex projections'!$B$10:$AK$29,24,FALSE) -> 521.9686441 | M117: 6765.252365 | N117: =VLOOKUP($B117,'RCV & totex projections'!$B$10:$AK$29,29,FALSE) -> 6243.283721 | O117: =VLOOKUP($C117,'RCV & totex projections'!$B$10:$AK$29,29,FALSE) -> 521.9686441 | P117: 6765.252365 | Q117: =VLOOKUP($B117,'RCV & totex projections'!$B$10:$AK$29,34,FALSE) -> 6243.283721 | R117: =VLOOKUP($C117,'RCV & totex projections'!$B$10:$AK$29,34,FALSE) -> 521.9686441 | S117: 6765.252365
B118: UUW | C118: SWB | D118: UUWSWB | E118: =VLOOKUP($B118,'RCV & totex projections'!$B$10:$AK$29,14,FALSE) -> 10770.69058 | F118: =VLOOKUP($C118,'RCV & totex projections'!$B$10:$AK$29,14,FALSE) -> 3207.822635 | G118: 13978.51321 | H118: =VLOOKUP($B118,'RCV & totex projections'!$B$10:$AK$29,19,FALSE) -> 10770.69058 | I118: =VLOOKUP($C118,'RCV & totex projections'!$B$10:$AK$29,19,FALSE) -> 3207.822635 | J118: 13978.51321 | K118: =VLOOKUP($B118,'RCV & totex projections'!$B$10:$AK$29,24,FALSE) -> 10770.69058 | L118: =VLOOKUP($C118,'RCV & totex projections'!$B$10:$AK$29,24,FALSE) -> 3207.822635 | M118: 13978.51321 | N118: =VLOOKUP($B118,'RCV & totex projections'!$B$10:$AK$29,29,FALSE) -> 10770.69058 | O118: =VLOOKUP($C118,'RCV & totex projections'!$B$10:$AK$29,29,FALSE) -> 3207.822635 | P118: 13978.51321 | Q118: =VLOOKUP($B118,'RCV & totex projections'!$B$10:$AK$29,34,FALSE) -> 10770.69058 | R118: =VLOOKUP($C118,'RCV & totex projections'!$B$10:$AK$29,34,FALSE) -> 3207.822635 | S118: 13978.51321
B119: UUW | C119: YKY | D119: UUWYKY | E119: =VLOOKUP($B119,'RCV & totex projections'!$B$10:$AK$29,14,FALSE) -> 10770.69058 | F119: =VLOOKUP($C119,'RCV & totex projections'!$B$10:$AK$29,14,FALSE) -> 7424.879132 | G119: 18195.56971 | H119: =VLOOKUP($B119,'RCV & totex projections'!$B$10:$AK$29,19,FALSE) -> 10770.69058 | I119: =VLOOKUP($C119,'RCV & totex projections'!$B$10:$AK$29,19,FALSE) -> 7424.879132 | J119: 18195.56971 | K119: =VLOOKUP($B119,'RCV & totex projections'!$B$10:$AK$29,24,FALSE) -> 10770.69058 | L119: =VLOOKUP($C119,'RCV & totex projections'!$B$10:$AK$29,24,FALSE) -> 7424.879132 | M119: 18195.56971 | N119: =VLOOKUP($B119,'RCV & totex projections'!$B$10:$AK$29,29,FALSE) -> 10770.69058 | O119: =VLOOKUP($C119,'RCV & totex projections'!$B$10:$AK$29,29,FALSE) -> 7424.879132 | P119: 18195.56971 | Q119: =VLOOKUP($B119,'RCV & totex projections'!$B$10:$AK$29,34,FALSE) -> 10770.69058 | R119: =VLOOKUP($C119,'RCV & totex projections'!$B$10:$AK$29,34,FALSE) -> 7424.879132 | S119: 18195.56971
B120: UUW | C120: AFW | D120: UUWAFW | E120: =VLOOKUP($B120,'RCV & totex projections'!$B$10:$AK$29,14,FALSE) -> 10770.69058 | F120: =VLOOKUP($C120,'RCV & totex projections'!$B$10:$AK$29,14,FALSE) -> 1324.461347 | G120: 12095.15192 | H120: =VLOOKUP($B120,'RCV & totex projections'!$B$10:$AK$29,19,FALSE) -> 10770.69058 | I120: =VLOOKUP($C120,'RCV & totex projections'!$B$10:$AK$29,19,FALSE) -> 1324.461347 | J120: 12095.15192 | K120: =VLOOKUP($B120,'RCV & totex projections'!$B$10:$AK$29,24,FALSE) -> 10770.69058 | L120: =VLOOKUP($C120,'RCV & totex projections'!$B$10:$AK$29,24,FALSE) -> 1324.461347 | M120: 12095.15192 | N120: =VLOOKUP($B120,'RCV & totex projections'!$B$10:$AK$29,29,FALSE) -> 10770.69058 | O120: =VLOOKUP($C120,'RCV & totex projections'!$B$10:$AK$29,29,FALSE) -> 1324.461347 | P120: 12095.15192 | Q120: =VLOOKUP($B120,'RCV & totex projections'!$B$10:$AK$29,34,FALSE) -> 10770.69058 | R120: =VLOOKUP($C120,'RCV & totex projections'!$B$10:$AK$29,34,FALSE) -> 1324.461347 | S120: 12095.15192
B121: UUW | C121: TMS | D121: UUWTMS | E121: =VLOOKUP($B121,'RCV & totex projections'!$B$10:$AK$29,14,FALSE) -> 10770.69058 | F121: =VLOOKUP($C121,'RCV & totex projections'!$B$10:$AK$29,14,FALSE) -> 16820.92531 | G121: 27591.61589 | H121: =VLOOKUP($B121,'RCV & totex projections'!$B$10:$AK$29,19,FALSE) -> 10770.69058 | I121: =VLOOKUP($C121,'RCV & totex projections'!$B$10:$AK$29,19,FALSE) -> 16820.92531 | J121: 27591.61589 | K121: =VLOOKUP($B121,'RCV & totex projections'!$B$10:$AK$29,24,FALSE) -> 10770.69058 | L121: =VLOOKUP($C121,'RCV & totex projections'!$B$10:$AK$29,24,FALSE) -> 16820.92531 | M121: 27591.61589 | N121: =VLOOKUP($B121,'RCV & totex projections'!$B$10:$AK$29,29,FALSE) -> 10770.69058 | O121: =VLOOKUP($C121,'RCV & totex projections'!$B$10:$AK$29,29,FALSE) -> 16820.92531 | P121: 27591.61589 | Q121: =VLOOKUP($B121,'RCV & totex projections'!$B$10:$AK$29,34,FALSE) -> 10770.69058 | R121: =VLOOKUP($C121,'RCV & totex projections'!$B$10:$AK$29,34,FALSE) -> 16820.92531 | S121: 27591.61589
B122: UUW | C122: PRT | D122: UUWPRT | E122: =VLOOKUP($B122,'RCV & totex projections'!$B$10:$AK$29,14,FALSE) -> 10770.69058 | F122: =VLOOKUP($C122,'RCV & totex projections'!$B$10:$AK$29,14,FALSE) -> 220.2655931 | G122: 10990.95617 | H122: =VLOOKUP($B122,'RCV & totex projections'!$B$10:$AK$29,19,FALSE) -> 10770.69058 | I122: =VLOOKUP($C122,'RCV & totex projections'!$B$10:$AK$29,19,FALSE) -> 220.2655931 | J122: 10990.95617 | K122: =VLOOKUP($B122,'RCV & totex projections'!$B$10:$AK$29,24,FALSE) -> 10770.69058 | L122: =VLOOKUP($C122,'RCV & totex projections'!$B$10:$AK$29,24,FALSE) -> 220.2655931 | M122: 10990.95617 | N122: =VLOOKUP($B122,'RCV & totex projections'!$B$10:$AK$29,29,FALSE) -> 10770.69058 | O122: =VLOOKUP($C122,'RCV & totex projections'!$B$10:$AK$29,29,FALSE) -> 220.2655931 | P122: 10990.95617 | Q122: =VLOOKUP($B122,'RCV & totex projections'!$B$10:$AK$29,34,FALSE) -> 10770.69058 | R122: =VLOOKUP($C122,'RCV & totex projections'!$B$10:$AK$29,34,FALSE) -> 220.2655931 | S122: 10990.95617
B123: UUW | C123: NES | D123: UUWNES | E123: =VLOOKUP($B123,'RCV & totex projections'!$B$10:$AK$29,14,FALSE) -> 10770.69058 | F123: =VLOOKUP($C123,'RCV & totex projections'!$B$10:$AK$29,14,FALSE) -> 4360.035263 | G123: 15130.72584 | H123: =VLOOKUP($B123,'RCV & totex projections'!$B$10:$AK$29,19,FALSE) -> 10770.69058 | I123: =VLOOKUP($C123,'RCV & totex projections'!$B$10:$AK$29,19,FALSE) -> 4360.035263 | J123: 15130.72584 | K123: =VLOOKUP($B123,'RCV & totex projections'!$B$10:$AK$29,24,FALSE) -> 10770.69058 | L123: =VLOOKUP($C123,'RCV & totex projections'!$B$10:$AK$29,24,FALSE) -> 4360.035263 | M123: 15130.72584 | N123: =VLOOKUP($B123,'RCV & totex projections'!$B$10:$AK$29,29,FALSE) -> 10770.69058 | O123: =VLOOKUP($C123,'RCV & totex projections'!$B$10:$AK$29,29,FALSE) -> 4360.035263 | P123: 15130.72584 | Q123: =VLOOKUP($B123,'RCV & totex projections'!$B$10:$AK$29,34,FALSE) -> 10770.69058 | R123: =VLOOKUP($C123,'RCV & totex projections'!$B$10:$AK$29,34,FALSE) -> 4360.035263 | S123: 15130.72584
B124: UUW | C124: WSH | D124: UUWWSH | E124: =VLOOKUP($B124,'RCV & totex projections'!$B$10:$AK$29,14,FALSE) -> 10770.69058 | F124: =VLOOKUP($C124,'RCV & totex projections'!$B$10:$AK$29,14,FALSE) -> 6243.283721 | G124: 17013.9743 | H124: =VLOOKUP($B124,'RCV & totex projections'!$B$10:$AK$29,19,FALSE) -> 10770.69058 | I124: =VLOOKUP($C124,'RCV & totex projections'!$B$10:$AK$29,19,FALSE) -> 6243.283721 | J124: 17013.9743 | K124: =VLOOKUP($B124,'RCV & totex projections'!$B$10:$AK$29,24,FALSE) -> 10770.69058 | L124: =VLOOKUP($C124,'RCV & totex projections'!$B$10:$AK$29,24,FALSE) -> 6243.283721 | M124: 17013.9743 | N124: =VLOOKUP($B124,'RCV & totex projections'!$B$10:$AK$29,29,FALSE) -> 10770.69058 | O124: =VLOOKUP($C124,'RCV & totex projections'!$B$10:$AK$29,29,FALSE) -> 6243.283721 | P124: 17013.9743 | Q124: =VLOOKUP($B124,'RCV & totex projections'!$B$10:$AK$29,34,FALSE) -> 10770.69058 | R124: =VLOOKUP($C124,'RCV & totex projections'!$B$10:$AK$29,34,FALSE) -> 6243.283721 | S124: 17013.9743
B125: UUW | C125: UUW | D125: UUWUUW | E125: =VLOOKUP($B125,'RCV & totex projections'!$B$10:$AK$29,14,FALSE) -> 10770.69058 | F125: =VLOOKUP($C125,'RCV & totex projections'!$B$10:$AK$29,14,FALSE) -> 10770.69058 | G125: 21541.38115 | H125: =VLOOKUP($B125,'RCV & totex projections'!$B$10:$AK$29,19,FALSE) -> 10770.69058 | I125: =VLOOKUP($C125,'RCV & totex projections'!$B$10:$AK$29,19,FALSE) -> 10770.69058 | J125: 21541.38115 | K125: =VLOOKUP($B125,'RCV & totex projections'!$B$10:$AK$29,24,FALSE) -> 10770.69058 | L125: =VLOOKUP($C125,'RCV & totex projections'!$B$10:$AK$29,24,FALSE) -> 10770.69058 | M125: 21541.38115 | N125: =VLOOKUP($B125,'RCV & totex projections'!$B$10:$AK$29,29,FALSE) -> 10770.69058 | O125: =VLOOKUP($C125,'RCV & totex projections'!$B$10:$AK$29,29,FALSE) -> 10770.69058 | P125: 21541.38115 | Q125: =VLOOKUP($B125,'RCV & totex projections'!$B$10:$AK$29,34,FALSE) -> 10770.69058 | R125: =VLOOKUP($C125,'RCV & totex projections'!$B$10:$AK$29,34,FALSE) -> 10770.69058 | S125: 21541.38115
B126: UUW | C126: SES | D126: UUWSES | E126: =VLOOKUP($B126,'RCV & totex projections'!$B$10:$AK$29,14,FALSE) -> 10770.69058 | F126: =VLOOKUP($C126,'RCV & totex projections'!$B$10:$AK$29,14,FALSE) -> 279.0526761 | G126: 11049.74325 | H126: =VLOOKUP($B126,'RCV & totex projections'!$B$10:$AK$29,19,FALSE) -> 10770.69058 | I126: =VLOOKUP($C126,'RCV & totex projections'!$B$10:$AK$29,19,FALSE) -> 279.0526761 | J126: 11049.74325 | K126: =VLOOKUP($B126,'RCV & totex projections'!$B$10:$AK$29,24,FALSE) -> 10770.69058 | L126: =VLOOKUP($C126,'RCV & totex projections'!$B$10:$AK$29,24,FALSE) -> 279.0526761 | M126: 11049.74325 | N126: =VLOOKUP($B126,'RCV & totex projections'!$B$10:$AK$29,29,FALSE) -> 10770.69058 | O126: =VLOOKUP($C126,'RCV & totex projections'!$B$10:$AK$29,29,FALSE) -> 279.0526761 | P126: 11049.74325 | Q126: =VLOOKUP($B126,'RCV & totex projections'!$B$10:$AK$29,34,FALSE) -> 10770.69058 | R126: =VLOOKUP($C126,'RCV & totex projections'!$B$10:$AK$29,34,FALSE) -> 279.0526761 | S126: 11049.74325
B127: UUW | C127: ANH | D127: UUWANH | E127: =VLOOKUP($B127,'RCV & totex projections'!$B$10:$AK$29,14,FALSE) -> 10770.69058 | F127: =VLOOKUP($C127,'RCV & totex projections'!$B$10:$AK$29,14,FALSE) -> 8866.071504 | G127: 19636.76208 | H127: =VLOOKUP($B127,'RCV & totex projections'!$B$10:$AK$29,19,FALSE) -> 10770.69058 | I127: =VLOOKUP($C127,'RCV & totex projections'!$B$10:$AK$29,19,FALSE) -> 8866.071504 | J127: 19636.76208 | K127: =VLOOKUP($B127,'RCV & totex projections'!$B$10:$AK$29,24,FALSE) -> 10770.69058 | L127: =VLOOKUP($C127,'RCV & totex projections'!$B$10:$AK$29,24,FALSE) -> 8866.071504 | M127: 19636.76208 | N127: =VLOOKUP($B127,'RCV & totex projections'!$B$10:$AK$29,29,FALSE) -> 10770.69058 | O127: =VLOOKUP($C127,'RCV & totex projections'!$B$10:$AK$29,29,FALSE) -> 8866.071504 | P127: 19636.76208 | Q127: =VLOOKUP($B127,'RCV & totex projections'!$B$10:$AK$29,34,FALSE) -> 10770.69058 | R127: =VLOOKUP($C127,'RCV & totex projections'!$B$10:$AK$29,34,FALSE) -> 8866.071504 | S127: 19636.76208
B128: UUW | C128: SEW | D128: UUWSEW | E128: =VLOOKUP($B128,'RCV & totex projections'!$B$10:$AK$29,14,FALSE) -> 10770.69058 | F128: =VLOOKUP($C128,'RCV & totex projections'!$B$10:$AK$29,14,FALSE) -> 1449.209445 | G128: 12219.90002 | H128: =VLOOKUP($B128,'RCV & totex projections'!$B$10:$AK$29,19,FALSE) -> 10770.69058 | I128: =VLOOKUP($C128,'RCV & totex projections'!$B$10:$AK$29,19,FALSE) -> 1449.209445 | J128: 12219.90002 | K128: =VLOOKUP($B128,'RCV & totex projections'!$B$10:$AK$29,24,FALSE) -> 10770.69058 | L128: =VLOOKUP($C128,'RCV & totex projections'!$B$10:$AK$29,24,FALSE) -> 1449.209445 | M128: 12219.90002 | N128: =VLOOKUP($B128,'RCV & totex projections'!$B$10:$AK$29,29,FALSE) -> 10770.69058 | O128: =VLOOKUP($C128,'RCV & totex projections'!$B$10:$AK$29,29,FALSE) -> 1449.209445 | P128: 12219.90002 | Q128: =VLOOKUP($B128,'RCV & totex projections'!$B$10:$AK$29,34,FALSE) -> 10770.69058 | R128: =VLOOKUP($C128,'RCV & totex projections'!$B$10:$AK$29,34,FALSE) -> 1449.209445 | S128: 12219.90002
B129: UUW | C129: SSC | D129: UUWSSC | E129: =VLOOKUP($B129,'RCV & totex projections'!$B$10:$AK$29,14,FALSE) -> 10770.69058 | F129: =VLOOKUP($C129,'RCV & totex projections'!$B$10:$AK$29,14,FALSE) -> 451.5233645 | G129: 11222.21394 | H129: =VLOOKUP($B129,'RCV & totex projections'!$B$10:$AK$29,19,FALSE) -> 10770.69058 | I129: =VLOOKUP($C129,'RCV & totex projections'!$B$10:$AK$29,19,FALSE) -> 451.5233645 | J129: 11222.21394 | K129: =VLOOKUP($B129,'RCV & totex projections'!$B$10:$AK$29,24,FALSE) -> 10770.69058 | L129: =VLOOKUP($C129,'RCV & totex projections'!$B$10:$AK$29,24,FALSE) -> 451.5233645 | M129: 11222.21394 | N129: =VLOOKUP($B129,'RCV & totex projections'!$B$10:$AK$29,29,FALSE) -> 10770.69058 | O129: =VLOOKUP($C129,'RCV & totex projections'!$B$10:$AK$29,29,FALSE) -> 451.5233645 | P129: 11222.21394 | Q129: =VLOOKUP($B129,'RCV & totex projections'!$B$10:$AK$29,34,FALSE) -> 10770.69058 | R129: =VLOOKUP($C129,'RCV & totex projections'!$B$10:$AK$29,34,FALSE) -> 451.5233645 | S129: 11222.21394
B130: UUW | C130: SVE | D130: UUWSVE | E130: =VLOOKUP($B130,'RCV & totex projections'!$B$10:$AK$29,14,FALSE) -> 10770.69058 | F130: =VLOOKUP($C130,'RCV & totex projections'!$B$10:$AK$29,14,FALSE) -> 9051.903159 | G130: 19822.59373 | H130: =VLOOKUP($B130,'RCV & totex projections'!$B$10:$AK$29,19,FALSE) -> 10770.69058 | I130: =VLOOKUP($C130,'RCV & totex projections'!$B$10:$AK$29,19,FALSE) -> 9051.903159 | J130: 19822.59373 | K130: =VLOOKUP($B130,'RCV & totex projections'!$B$10:$AK$29,24,FALSE) -> 10770.69058 | L130: =VLOOKUP($C130,'RCV & totex projections'!$B$10:$AK$29,24,FALSE) -> 9051.903159 | M130: 19822.59373 | N130: =VLOOKUP($B130,'RCV & totex projections'!$B$10:$AK$29,29,FALSE) -> 10770.69058 | O130: =VLOOKUP($C130,'RCV & totex projections'!$B$10:$AK$29,29,FALSE) -> 9051.903159 | P130: 19822.59373 | Q130: =VLOOKUP($B130,'RCV & totex projections'!$B$10:$AK$29,34,FALSE) -> 10770.69058 | R130: =VLOOKUP($C130,'RCV & totex projections'!$B$10:$AK$29,34,FALSE) -> 9051.903159 | S130: 19822.59373
B131: UUW | C131: WSX | D131: UUWWSX | E131: =VLOOKUP($B131,'RCV & totex projections'!$B$10:$AK$29,14,FALSE) -> 10770.69058 | F131: =VLOOKUP($C131,'RCV & totex projections'!$B$10:$AK$29,14,FALSE) -> 3472.985755 | G131: 14243.67633 | H131: =VLOOKUP($B131,'RCV & totex projections'!$B$10:$AK$29,19,FALSE) -> 10770.69058 | I131: =VLOOKUP($C131,'RCV & totex projections'!$B$10:$AK$29,19,FALSE) -> 3472.985755 | J131: 14243.67633 | K131: =VLOOKUP($B131,'RCV & totex projections'!$B$10:$AK$29,24,FALSE) -> 10770.69058 | L131: =VLOOKUP($C131,'RCV & totex projections'!$B$10:$AK$29,24,FALSE) -> 3472.985755 | M131: 14243.67633 | N131: =VLOOKUP($B131,'RCV & totex projections'!$B$10:$AK$29,29,FALSE) -> 10770.69058 | O131: =VLOOKUP($C131,'RCV & totex projections'!$B$10:$AK$29,29,FALSE) -> 3472.985755 | P131: 14243.67633 | Q131: =VLOOKUP($B131,'RCV & totex projections'!$B$10:$AK$29,34,FALSE) -> 10770.69058 | R131: =VLOOKUP($C131,'RCV & totex projections'!$B$10:$AK$29,34,FALSE) -> 3472.985755 | S131: 14243.67633
B132: UUW | C132: SRN | D132: UUWSRN | E132: =VLOOKUP($B132,'RCV & totex projections'!$B$10:$AK$29,14,FALSE) -> 10770.69058 | F132: =VLOOKUP($C132,'RCV & totex projections'!$B$10:$AK$29,14,FALSE) -> 5440.553595 | G132: 16211.24417 | H132: =VLOOKUP($B132,'RCV & totex projections'!$B$10:$AK$29,19,FALSE) -> 10770.69058 | I132: =VLOOKUP($C132,'RCV & totex projections'!$B$10:$AK$29,19,FALSE) -> 5440.553595 | J132: 16211.24417 | K132: =VLOOKUP($B132,'RCV & totex projections'!$B$10:$AK$29,24,FALSE) -> 10770.69058 | L132: =VLOOKUP($C132,'RCV & totex projections'!$B$10:$AK$29,24,FALSE) -> 5440.553595 | M132: 16211.24417 | N132: =VLOOKUP($B132,'RCV & totex projections'!$B$10:$AK$29,29,FALSE) -> 10770.69058 | O132: =VLOOKUP($C132,'RCV & totex projections'!$B$10:$AK$29,29,FALSE) -> 5440.553595 | P132: 16211.24417 | Q132: =VLOOKUP($B132,'RCV & totex projections'!$B$10:$AK$29,34,FALSE) -> 10770.69058 | R132: =VLOOKUP($C132,'RCV & totex projections'!$B$10:$AK$29,34,FALSE) -> 5440.553595 | S132: 16211.24417
B133: UUW | C133: BRL | D133: UUWBRL | E133: =VLOOKUP($B133,'RCV & totex projections'!$B$10:$AK$29,14,FALSE) -> 10770.69058 | F133: =VLOOKUP($C133,'RCV & totex projections'!$B$10:$AK$29,14,FALSE) -> 521.9686441 | G133: 11292.65922 | H133: =VLOOKUP($B133,'RCV & totex projections'!$B$10:$AK$29,19,FALSE) -> 10770.69058 | I133: =VLOOKUP($C133,'RCV & totex projections'!$B$10:$AK$29,19,FALSE) -> 521.9686441 | J133: 11292.65922 | K133: =VLOOKUP($B133,'RCV & totex projections'!$B$10:$AK$29,24,FALSE) -> 10770.69058 | L133: =VLOOKUP($C133,'RCV & totex projections'!$B$10:$AK$29,24,FALSE) -> 521.9686441 | M133: 11292.65922 | N133: =VLOOKUP($B133,'RCV & totex projections'!$B$10:$AK$29,29,FALSE) -> 10770.69058 | O133: =VLOOKUP($C133,'RCV & totex projections'!$B$10:$AK$29,29,FALSE) -> 521.9686441 | P133: 11292.65922 | Q133: =VLOOKUP($B133,'RCV & totex projections'!$B$10:$AK$29,34,FALSE) -> 10770.69058 | R133: =VLOOKUP($C133,'RCV & totex projections'!$B$10:$AK$29,34,FALSE) -> 521.9686441 | S133: 11292.65922
B134: SES | C134: SWB | D134: =CONCATENATE(B134,C134) -> SESSWB | E134: =VLOOKUP($B134,'RCV & totex projections'!$B$10:$AK$29,14,FALSE) -> 279.0526761 | F134: =VLOOKUP($C134,'RCV & totex projections'!$B$10:$AK$29,14,FALSE) -> 3207.822635 | G134: 3486.875311 | H134: =VLOOKUP($B134,'RCV & totex projections'!$B$10:$AK$29,19,FALSE) -> 279.0526761 | I134: =VLOOKUP($C134,'RCV & totex projections'!$B$10:$AK$29,19,FALSE) -> 3207.822635 | J134: 3486.875311 | K134: =VLOOKUP($B134,'RCV & totex projections'!$B$10:$AK$29,24,FALSE) -> 279.0526761 | L134: =VLOOKUP($C134,'RCV & totex projections'!$B$10:$AK$29,24,FALSE) -> 3207.822635 | M134: 3486.875311 | N134: =VLOOKUP($B134,'RCV & totex projections'!$B$10:$AK$29,29,FALSE) -> 279.0526761 | O134: =VLOOKUP($C134,'RCV & totex projections'!$B$10:$AK$29,29,FALSE) -> 3207.822635 | P134: 3486.875311 | Q134: =VLOOKUP($B134,'RCV & totex projections'!$B$10:$AK$29,34,FALSE) -> 279.0526761 | R134: =VLOOKUP($C134,'RCV & totex projections'!$B$10:$AK$29,34,FALSE) -> 3207.822635 | S134: 3486.875311
B135: SES | C135: YKY | D135: SESYKY | E135: =VLOOKUP($B135,'RCV & totex projections'!$B$10:$AK$29,14,FALSE) -> 279.0526761 | F135: =VLOOKUP($C135,'RCV & totex projections'!$B$10:$AK$29,14,FALSE) -> 7424.879132 | G135: =E135+F135 -> 7703.931808 | H135: =VLOOKUP($B135,'RCV & totex projections'!$B$10:$AK$29,19,FALSE) -> 279.0526761 | I135: =VLOOKUP($C135,'RCV & totex projections'!$B$10:$AK$29,19,FALSE) -> 7424.879132 | J135: =H135+I135 -> 7703.931808 | K135: =VLOOKUP($B135,'RCV & totex projections'!$B$10:$AK$29,24,FALSE) -> 279.0526761 | L135: =VLOOKUP($C135,'RCV & totex projections'!$B$10:$AK$29,24,FALSE) -> 7424.879132 | M135: =K135+L135 -> 7703.931808 | N135: =VLOOKUP($B135,'RCV & totex projections'!$B$10:$AK$29,29,FALSE) -> 279.0526761 | O135: =VLOOKUP($C135,'RCV & totex projections'!$B$10:$AK$29,29,FALSE) -> 7424.879132 | P135: =N135+O135 -> 7703.931808 | Q135: =VLOOKUP($B135,'RCV & totex projections'!$B$10:$AK$29,34,FALSE) -> 279.0526761 | R135: =VLOOKUP($C135,'RCV & totex projections'!$B$10:$AK$29,34,FALSE) -> 7424.879132 | S135: =Q135+R135 -> 7703.931808
B136: SES | C136: AFW | D136: SESAFW | E136: =VLOOKUP($B136,'RCV & totex projections'!$B$10:$AK$29,14,FALSE) -> 279.0526761 | F136: =VLOOKUP($C136,'RCV & totex projections'!$B$10:$AK$29,14,FALSE) -> 1324.461347 | G136: 1603.514023 | H136: =VLOOKUP($B136,'RCV & totex projections'!$B$10:$AK$29,19,FALSE) -> 279.0526761 | I136: =VLOOKUP($C136,'RCV & totex projections'!$B$10:$AK$29,19,FALSE) -> 1324.461347 | J136: 1603.514023 | K136: =VLOOKUP($B136,'RCV & totex projections'!$B$10:$AK$29,24,FALSE) -> 279.0526761 | L136: =VLOOKUP($C136,'RCV & totex projections'!$B$10:$AK$29,24,FALSE) -> 1324.461347 | M136: 1603.514023 | N136: =VLOOKUP($B136,'RCV & totex projections'!$B$10:$AK$29,29,FALSE) -> 279.0526761 | O136: =VLOOKUP($C136,'RCV & totex projections'!$B$10:$AK$29,29,FALSE) -> 1324.461347 | P136: 1603.514023 | Q136: =VLOOKUP($B136,'RCV & totex projections'!$B$10:$AK$29,34,FALSE) -> 279.0526761 | R136: =VLOOKUP($C136,'RCV & totex projections'!$B$10:$AK$29,34,FALSE) -> 1324.461347 | S136: 1603.514023
B137: SES | C137: TMS | D137: SESTMS | E137: =VLOOKUP($B137,'RCV & totex projections'!$B$10:$AK$29,14,FALSE) -> 279.0526761 | F137: =VLOOKUP($C137,'RCV & totex projections'!$B$10:$AK$29,14,FALSE) -> 16820.92531 | G137: 17099.97799 | H137: =VLOOKUP($B137,'RCV & totex projections'!$B$10:$AK$29,19,FALSE) -> 279.0526761 | I137: =VLOOKUP($C137,'RCV & totex projections'!$B$10:$AK$29,19,FALSE) -> 16820.92531 | J137: 17099.97799 | K137: =VLOOKUP($B137,'RCV & totex projections'!$B$10:$AK$29,24,FALSE) -> 279.0526761 | L137: =VLOOKUP($C137,'RCV & totex projections'!$B$10:$AK$29,24,FALSE) -> 16820.92531 | M137: 17099.97799 | N137: =VLOOKUP($B137,'RCV & totex projections'!$B$10:$AK$29,29,FALSE) -> 279.0526761 | O137: =VLOOKUP($C137,'RCV & totex projections'!$B$10:$AK$29,29,FALSE) -> 16820.92531 | P137: 17099.97799 | Q137: =VLOOKUP($B137,'RCV & totex projections'!$B$10:$AK$29,34,FALSE) -> 279.0526761 | R137: =VLOOKUP($C137,'RCV & totex projections'!$B$10:$AK$29,34,FALSE) -> 16820.92531 | S137: 17099.97799
B138: SES | C138: PRT | D138: SESPRT | E138: =VLOOKUP($B138,'RCV & totex projections'!$B$10:$AK$29,14,FALSE) -> 279.0526761 | F138: =VLOOKUP($C138,'RCV & totex projections'!$B$10:$AK$29,14,FALSE) -> 220.2655931 | G138: 499.3182692 | H138: =VLOOKUP($B138,'RCV & totex projections'!$B$10:$AK$29,19,FALSE) -> 279.0526761 | I138: =VLOOKUP($C138,'RCV & totex projections'!$B$10:$AK$29,19,FALSE) -> 220.2655931 | J138: 499.3182692 | K138: =VLOOKUP($B138,'RCV & totex projections'!$B$10:$AK$29,24,FALSE) -> 279.0526761 | L138: =VLOOKUP($C138,'RCV & totex projections'!$B$10:$AK$29,24,FALSE) -> 220.2655931 | M138: 499.3182692 | N138: =VLOOKUP($B138,'RCV & totex projections'!$B$10:$AK$29,29,FALSE) -> 279.0526761 | O138: =VLOOKUP($C138,'RCV & totex projections'!$B$10:$AK$29,29,FALSE) -> 220.2655931 | P138: 499.3182692 | Q138: =VLOOKUP($B138,'RCV & totex projections'!$B$10:$AK$29,34,FALSE) -> 279.0526761 | R138: =VLOOKUP($C138,'RCV & totex projections'!$B$10:$AK$29,34,FALSE) -> 220.2655931 | S138: 499.3182692
B139: SES | C139: NES | D139: SESNES | E139: =VLOOKUP($B139,'RCV & totex projections'!$B$10:$AK$29,14,FALSE) -> 279.0526761 | F139: =VLOOKUP($C139,'RCV & totex projections'!$B$10:$AK$29,14,FALSE) -> 4360.035263 | G139: 4639.087939 | H139: =VLOOKUP($B139,'RCV & totex projections'!$B$10:$AK$29,19,FALSE) -> 279.0526761 | I139: =VLOOKUP($C139,'RCV & totex projections'!$B$10:$AK$29,19,FALSE) -> 4360.035263 | J139: 4639.087939 | K139: =VLOOKUP($B139,'RCV & totex projections'!$B$10:$AK$29,24,FALSE) -> 279.0526761 | L139: =VLOOKUP($C139,'RCV & totex projections'!$B$10:$AK$29,24,FALSE) -> 4360.035263 | M139: 4639.087939 | N139: =VLOOKUP($B139,'RCV & totex projections'!$B$10:$AK$29,29,FALSE) -> 279.0526761 | O139: =VLOOKUP($C139,'RCV & totex projections'!$B$10:$AK$29,29,FALSE) -> 4360.035263 | P139: 4639.087939 | Q139: =VLOOKUP($B139,'RCV & totex projections'!$B$10:$AK$29,34,FALSE) -> 279.0526761 | R139: =VLOOKUP($C139,'RCV & totex projections'!$B$10:$AK$29,34,FALSE) -> 4360.035263 | S139: 4639.087939
B140: SES | C140: WSH | D140: SESWSH | E140: =VLOOKUP($B140,'RCV & totex projections'!$B$10:$AK$29,14,FALSE) -> 279.0526761 | F140: =VLOOKUP($C140,'RCV & totex projections'!$B$10:$AK$29,14,FALSE) -> 6243.283721 | G140: 6522.336397 | H140: =VLOOKUP($B140,'RCV & totex projections'!$B$10:$AK$29,19,FALSE) -> 279.0526761 | I140: =VLOOKUP($C140,'RCV & totex projections'!$B$10:$AK$29,19,FALSE) -> 6243.283721 | J140: 6522.336397 | K140: =VLOOKUP($B140,'RCV & totex projections'!$B$10:$AK$29,24,FALSE) -> 279.0526761 | L140: =VLOOKUP($C140,'RCV & totex projections'!$B$10:$AK$29,24,FALSE) -> 6243.283721 | M140: 6522.336397 | N140: =VLOOKUP($B140,'RCV & totex projections'!$B$10:$AK$29,29,FALSE) -> 279.0526761 | O140: =VLOOKUP($C140,'RCV & totex projections'!$B$10:$AK$29,29,FALSE) -> 6243.283721 | P140: 6522.336397 | Q140: =VLOOKUP($B140,'RCV & totex projections'!$B$10:$AK$29,34,FALSE) -> 279.0526761 | R140: =VLOOKUP($C140,'RCV & totex projections'!$B$10:$AK$29,34,FALSE) -> 6243.283721 | S140: 6522.336397
B141: SES | C141: UUW | D141: SESUUW | E141: =VLOOKUP($B141,'RCV & totex projections'!$B$10:$AK$29,14,FALSE) -> 279.0526761 | F141: =VLOOKUP($C141,'RCV & totex projections'!$B$10:$AK$29,14,FALSE) -> 10770.69058 | G141: 11049.74325 | H141: =VLOOKUP($B141,'RCV & totex projections'!$B$10:$AK$29,19,FALSE) -> 279.0526761 | I141: =VLOOKUP($C141,'RCV & totex projections'!$B$10:$AK$29,19,FALSE) -> 10770.69058 | J141: 11049.74325 | K141: =VLOOKUP($B141,'RCV & totex projections'!$B$10:$AK$29,24,FALSE) -> 279.0526761 | L141: =VLOOKUP($C141,'RCV & totex projections'!$B$10:$AK$29,24,FALSE) -> 10770.69058 | M141: 11049.74325 | N141: =VLOOKUP($B141,'RCV & totex projections'!$B$10:$AK$29,29,FALSE) -> 279.0526761 | O141: =VLOOKUP($C141,'RCV & totex projections'!$B$10:$AK$29,29,FALSE) -> 10770.69058 | P141: 11049.74325 | Q141: =VLOOKUP($B141,'RCV & totex projections'!$B$10:$AK$29,34,FALSE) -> 279.0526761 | R141: =VLOOKUP($C141,'RCV & totex projections'!$B$10:$AK$29,34,FALSE) -> 10770.69058 | S141: 11049.74325
B142: SES | C142: SES | D142: SESSES | E142: =VLOOKUP($B142,'RCV & totex projections'!$B$10:$AK$29,14,FALSE) -> 279.0526761 | F142: =VLOOKUP($C142,'RCV & totex projections'!$B$10:$AK$29,14,FALSE) -> 279.0526761 | G142: 558.1053521 | H142: =VLOOKUP($B142,'RCV & totex projections'!$B$10:$AK$29,19,FALSE) -> 279.0526761 | I142: =VLOOKUP($C142,'RCV & totex projections'!$B$10:$AK$29,19,FALSE) -> 279.0526761 | J142: 558.1053521 | K142: =VLOOKUP($B142,'RCV & totex projections'!$B$10:$AK$29,24,FALSE) -> 279.0526761 | L142: =VLOOKUP($C142,'RCV & totex projections'!$B$10:$AK$29,24,FALSE) -> 279.0526761 | M142: 558.1053521 | N142: =VLOOKUP($B142,'RCV & totex projections'!$B$10:$AK$29,29,FALSE) -> 279.0526761 | O142: =VLOOKUP($C142,'RCV & totex projections'!$B$10:$AK$29,29,FALSE) -> 279.0526761 | P142: 558.1053521 | Q142: =VLOOKUP($B142,'RCV & totex projections'!$B$10:$AK$29,34,FALSE) -> 279.0526761 | R142: =VLOOKUP($C142,'RCV & totex projections'!$B$10:$AK$29,34,FALSE) -> 279.0526761 | S142: 558.1053521
B143: SES | C143: ANH | D143: SESANH | E143: =VLOOKUP($B143,'RCV & totex projections'!$B$10:$AK$29,14,FALSE) -> 279.0526761 | F143: =VLOOKUP($C143,'RCV & totex projections'!$B$10:$AK$29,14,FALSE) -> 8866.071504 | G143: 9145.12418 | H143: =VLOOKUP($B143,'RCV & totex projections'!$B$10:$AK$29,19,FALSE) -> 279.0526761 | I143: =VLOOKUP($C143,'RCV & totex projections'!$B$10:$AK$29,19,FALSE) -> 8866.071504 | J143: 9145.12418 | K143: =VLOOKUP($B143,'RCV & totex projections'!$B$10:$AK$29,24,FALSE) -> 279.0526761 | L143: =VLOOKUP($C143,'RCV & totex projections'!$B$10:$AK$29,24,FALSE) -> 8866.071504 | M143: 9145.12418 | N143: =VLOOKUP($B143,'RCV & totex projections'!$B$10:$AK$29,29,FALSE) -> 279.0526761 | O143: =VLOOKUP($C143,'RCV & totex projections'!$B$10:$AK$29,29,FALSE) -> 8866.071504 | P143: 9145.12418 | Q143: =VLOOKUP($B143,'RCV & totex projections'!$B$10:$AK$29,34,FALSE) -> 279.0526761 | R143: =VLOOKUP($C143,'RCV & totex projections'!$B$10:$AK$29,34,FALSE) -> 8866.071504 | S143: 9145.12418
B144: SES | C144: SEW | D144: SESSEW | E144: =VLOOKUP($B144,'RCV & totex projections'!$B$10:$AK$29,14,FALSE) -> 279.0526761 | F144: =VLOOKUP($C144,'RCV & totex projections'!$B$10:$AK$29,14,FALSE) -> 1449.209445 | G144: 1728.262121 | H144: =VLOOKUP($B144,'RCV & totex projections'!$B$10:$AK$29,19,FALSE) -> 279.0526761 | I144: =VLOOKUP($C144,'RCV & totex projections'!$B$10:$AK$29,19,FALSE) -> 1449.209445 | J144: 1728.262121 | K144: =VLOOKUP($B144,'RCV & totex projections'!$B$10:$AK$29,24,FALSE) -> 279.0526761 | L144: =VLOOKUP($C144,'RCV & totex projections'!$B$10:$AK$29,24,FALSE) -> 1449.209445 | M144: 1728.262121 | N144: =VLOOKUP($B144,'RCV & totex projections'!$B$10:$AK$29,29,FALSE) -> 279.0526761 | O144: =VLOOKUP($C144,'RCV & totex projections'!$B$10:$AK$29,29,FALSE) -> 1449.209445 | P144: 1728.262121 | Q144: =VLOOKUP($B144,'RCV & totex projections'!$B$10:$AK$29,34,FALSE) -> 279.0526761 | R144: =VLOOKUP($C144,'RCV & totex projections'!$B$10:$AK$29,34,FALSE) -> 1449.209445 | S144: 1728.262121
B145: SES | C145: SSC | D145: SESSSC | E145: =VLOOKUP($B145,'RCV & totex projections'!$B$10:$AK$29,14,FALSE) -> 279.0526761 | F145: =VLOOKUP($C145,'RCV & totex projections'!$B$10:$AK$29,14,FALSE) -> 451.5233645 | G145: 730.5760406 | H145: =VLOOKUP($B145,'RCV & totex projections'!$B$10:$AK$29,19,FALSE) -> 279.0526761 | I145: =VLOOKUP($C145,'RCV & totex projections'!$B$10:$AK$29,19,FALSE) -> 451.5233645 | J145: 730.5760406 | K145: =VLOOKUP($B145,'RCV & totex projections'!$B$10:$AK$29,24,FALSE) -> 279.0526761 | L145: =VLOOKUP($C145,'RCV & totex projections'!$B$10:$AK$29,24,FALSE) -> 451.5233645 | M145: 730.5760406 | N145: =VLOOKUP($B145,'RCV & totex projections'!$B$10:$AK$29,29,FALSE) -> 279.0526761 | O145: =VLOOKUP($C145,'RCV & totex projections'!$B$10:$AK$29,29,FALSE) -> 451.5233645 | P145: 730.5760406 | Q145: =VLOOKUP($B145,'RCV & totex projections'!$B$10:$AK$29,34,FALSE) -> 279.0526761 | R145: =VLOOKUP($C145,'RCV & totex projections'!$B$10:$AK$29,34,FALSE) -> 451.5233645 | S145: 730.5760406
B146: SES | C146: SVE | D146: SESSVE | E146: =VLOOKUP($B146,'RCV & totex projections'!$B$10:$AK$29,14,FALSE) -> 279.0526761 | F146: =VLOOKUP($C146,'RCV & totex projections'!$B$10:$AK$29,14,FALSE) -> 9051.903159 | G146: 9330.955835 | H146: =VLOOKUP($B146,'RCV & totex projections'!$B$10:$AK$29,19,FALSE) -> 279.0526761 | I146: =VLOOKUP($C146,'RCV & totex projections'!$B$10:$AK$29,19,FALSE) -> 9051.903159 | J146: 9330.955835 | K146: =VLOOKUP($B146,'RCV & totex projections'!$B$10:$AK$29,24,FALSE) -> 279.0526761 | L146: =VLOOKUP($C146,'RCV & totex projections'!$B$10:$AK$29,24,FALSE) -> 9051.903159 | M146: 9330.955835 | N146: =VLOOKUP($B146,'RCV & totex projections'!$B$10:$AK$29,29,FALSE) -> 279.0526761 | O146: =VLOOKUP($C146,'RCV & totex projections'!$B$10:$AK$29,29,FALSE) -> 9051.903159 | P146: 9330.955835 | Q146: =VLOOKUP($B146,'RCV & totex projections'!$B$10:$AK$29,34,FALSE) -> 279.0526761 | R146: =VLOOKUP($C146,'RCV & totex projections'!$B$10:$AK$29,34,FALSE) -> 9051.903159 | S146: 9330.955835
B147: SES | C147: WSX | D147: SESWSX | E147: =VLOOKUP($B147,'RCV & totex projections'!$B$10:$AK$29,14,FALSE) -> 279.0526761 | F147: =VLOOKUP($C147,'RCV & totex projections'!$B$10:$AK$29,14,FALSE) -> 3472.985755 | G147: 3752.038431 | H147: =VLOOKUP($B147,'RCV & totex projections'!$B$10:$AK$29,19,FALSE) -> 279.0526761 | I147: =VLOOKUP($C147,'RCV & totex projections'!$B$10:$AK$29,19,FALSE) -> 3472.985755 | J147: 3752.038431 | K147: =VLOOKUP($B147,'RCV & totex projections'!$B$10:$AK$29,24,FALSE) -> 279.0526761 | L147: =VLOOKUP($C147,'RCV & totex projections'!$B$10:$AK$29,24,FALSE) -> 3472.985755 | M147: 3752.038431 | N147: =VLOOKUP($B147,'RCV & totex projections'!$B$10:$AK$29,29,FALSE) -> 279.0526761 | O147: =VLOOKUP($C147,'RCV & totex projections'!$B$10:$AK$29,29,FALSE) -> 3472.985755 | P147: 3752.038431 | Q147: =VLOOKUP($B147,'RCV & totex projections'!$B$10:$AK$29,34,FALSE) -> 279.0526761 | R147: =VLOOKUP($C147,'RCV & totex projections'!$B$10:$AK$29,34,FALSE) -> 3472.985755 | S147: 3752.038431
B148: SES | C148: SRN | D148: SESSRN | E148: =VLOOKUP($B148,'RCV & totex projections'!$B$10:$AK$29,14,FALSE) -> 279.0526761 | F148: =VLOOKUP($C148,'RCV & totex projections'!$B$10:$AK$29,14,FALSE) -> 5440.553595 | G148: 5719.606271 | H148: =VLOOKUP($B148,'RCV & totex projections'!$B$10:$AK$29,19,FALSE) -> 279.0526761 | I148: =VLOOKUP($C148,'RCV & totex projections'!$B$10:$AK$29,19,FALSE) -> 5440.553595 | J148: 5719.606271 | K148: =VLOOKUP($B148,'RCV & totex projections'!$B$10:$AK$29,24,FALSE) -> 279.0526761 | L148: =VLOOKUP($C148,'RCV & totex projections'!$B$10:$AK$29,24,FALSE) -> 5440.553595 | M148: 5719.606271 | N148: =VLOOKUP($B148,'RCV & totex projections'!$B$10:$AK$29,29,FALSE) -> 279.0526761 | O148: =VLOOKUP($C148,'RCV & totex projections'!$B$10:$AK$29,29,FALSE) -> 5440.553595 | P148: 5719.606271 | Q148: =VLOOKUP($B148,'RCV & totex projections'!$B$10:$AK$29,34,FALSE) -> 279.0526761 | R148: =VLOOKUP($C148,'RCV & totex projections'!$B$10:$AK$29,34,FALSE) -> 5440.553595 | S148: 5719.606271
B149: SES | C149: BRL | D149: SESBRL | E149: =VLOOKUP($B149,'RCV & totex projections'!$B$10:$AK$29,14,FALSE) -> 279.0526761 | F149: =VLOOKUP($C149,'RCV & totex projections'!$B$10:$AK$29,14,FALSE) -> 521.9686441 | G149: 801.0213202 | H149: =VLOOKUP($B149,'RCV & totex projections'!$B$10:$AK$29,19,FALSE) -> 279.0526761 | I149: =VLOOKUP($C149,'RCV & totex projections'!$B$10:$AK$29,19,FALSE) -> 521.9686441 | J149: 801.0213202 | K149: =VLOOKUP($B149,'RCV & totex projections'!$B$10:$AK$29,24,FALSE) -> 279.0526761 | L149: =VLOOKUP($C149,'RCV & totex projections'!$B$10:$AK$29,24,FALSE) -> 521.9686441 | M149: 801.0213202 | N149: =VLOOKUP($B149,'RCV & totex projections'!$B$10:$AK$29,29,FALSE) -> 279.0526761 | O149: =VLOOKUP($C149,'RCV & totex projections'!$B$10:$AK$29,29,FALSE) -> 521.9686441 | P149: 801.0213202 | Q149: =VLOOKUP($B149,'RCV & totex projections'!$B$10:$AK$29,34,FALSE) -> 279.0526761 | R149: =VLOOKUP($C149,'RCV & totex projections'!$B$10:$AK$29,34,FALSE) -> 521.9686441 | S149: 801.0213202
B150: ANH | C150: SWB | D150: ANHSWB | E150: =VLOOKUP($B150,'RCV & totex projections'!$B$10:$AK$29,14,FALSE) -> 8866.071504 | F150: =VLOOKUP($C150,'RCV & totex projections'!$B$10:$AK$29,14,FALSE) -> 3207.822635 | G150: 12073.89414 | H150: =VLOOKUP($B150,'RCV & totex projections'!$B$10:$AK$29,19,FALSE) -> 8866.071504 | I150: =VLOOKUP($C150,'RCV & totex projections'!$B$10:$AK$29,19,FALSE) -> 3207.822635 | J150: 12073.89414 | K150: =VLOOKUP($B150,'RCV & totex projections'!$B$10:$AK$29,24,FALSE) -> 8866.071504 | L150: =VLOOKUP($C150,'RCV & totex projections'!$B$10:$AK$29,24,FALSE) -> 3207.822635 | M150: 12073.89414 | N150: =VLOOKUP($B150,'RCV & totex projections'!$B$10:$AK$29,29,FALSE) -> 8866.071504 | O150: =VLOOKUP($C150,'RCV & totex projections'!$B$10:$AK$29,29,FALSE) -> 3207.822635 | P150: 12073.89414 | Q150: =VLOOKUP($B150,'RCV & totex projections'!$B$10:$AK$29,34,FALSE) -> 8866.071504 | R150: =VLOOKUP($C150,'RCV & totex projections'!$B$10:$AK$29,34,FALSE) -> 3207.822635 | S150: 12073.89414
B151: ANH | C151: YKY | D151: ANHYKY | E151: =VLOOKUP($B151,'RCV & totex projections'!$B$10:$AK$29,14,FALSE) -> 8866.071504 | F151: =VLOOKUP($C151,'RCV & totex projections'!$B$10:$AK$29,14,FALSE) -> 7424.879132 | G151: 16290.95064 | H151: =VLOOKUP($B151,'RCV & totex projections'!$B$10:$AK$29,19,FALSE) -> 8866.071504 | I151: =VLOOKUP($C151,'RCV & totex projections'!$B$10:$AK$29,19,FALSE) -> 7424.879132 | J151: 16290.95064 | K151: =VLOOKUP($B151,'RCV & totex projections'!$B$10:$AK$29,24,FALSE) -> 8866.071504 | L151: =VLOOKUP($C151,'RCV & totex projections'!$B$10:$AK$29,24,FALSE) -> 7424.879132 | M151: 16290.95064 | N151: =VLOOKUP($B151,'RCV & totex projections'!$B$10:$AK$29,29,FALSE) -> 8866.071504 | O151: =VLOOKUP($C151,'RCV & totex projections'!$B$10:$AK$29,29,FALSE) -> 7424.879132 | P151: 16290.95064 | Q151: =VLOOKUP($B151,'RCV & totex projections'!$B$10:$AK$29,34,FALSE) -> 8866.071504 | R151: =VLOOKUP($C151,'RCV & totex projections'!$B$10:$AK$29,34,FALSE) -> 7424.879132 | S151: 16290.95064
B152: ANH | C152: AFW | D152: ANHAFW | E152: =VLOOKUP($B152,'RCV & totex projections'!$B$10:$AK$29,14,FALSE) -> 8866.071504 | F152: =VLOOKUP($C152,'RCV & totex projections'!$B$10:$AK$29,14,FALSE) -> 1324.461347 | G152: 10190.53285 | H152: =VLOOKUP($B152,'RCV & totex projections'!$B$10:$AK$29,19,FALSE) -> 8866.071504 | I152: =VLOOKUP($C152,'RCV & totex projections'!$B$10:$AK$29,19,FALSE) -> 1324.461347 | J152: 10190.53285 | K152: =VLOOKUP($B152,'RCV & totex projections'!$B$10:$AK$29,24,FALSE) -> 8866.071504 | L152: =VLOOKUP($C152,'RCV & totex projections'!$B$10:$AK$29,24,FALSE) -> 1324.461347 | M152: 10190.53285 | N152: =VLOOKUP($B152,'RCV & totex projections'!$B$10:$AK$29,29,FALSE) -> 8866.071504 | O152: =VLOOKUP($C152,'RCV & totex projections'!$B$10:$AK$29,29,FALSE) -> 1324.461347 | P152: 10190.53285 | Q152: =VLOOKUP($B152,'RCV & totex projections'!$B$10:$AK$29,34,FALSE) -> 8866.071504 | R152: =VLOOKUP($C152,'RCV & totex projections'!$B$10:$AK$29,34,FALSE) -> 1324.461347 | S152: 10190.53285
B153: ANH | C153: TMS | D153: ANHTMS | E153: =VLOOKUP($B153,'RCV & totex projections'!$B$10:$AK$29,14,FALSE) -> 8866.071504 | F153: =VLOOKUP($C153,'RCV & totex projections'!$B$10:$AK$29,14,FALSE) -> 16820.92531 | G153: 25686.99682 | H153: =VLOOKUP($B153,'RCV & totex projections'!$B$10:$AK$29,19,FALSE) -> 8866.071504 | I153: =VLOOKUP($C153,'RCV & totex projections'!$B$10:$AK$29,19,FALSE) -> 16820.92531 | J153: 25686.99682 | K153: =VLOOKUP($B153,'RCV & totex projections'!$B$10:$AK$29,24,FALSE) -> 8866.071504 | L153: =VLOOKUP($C153,'RCV & totex projections'!$B$10:$AK$29,24,FALSE) -> 16820.92531 | M153: 25686.99682 | N153: =VLOOKUP($B153,'RCV & totex projections'!$B$10:$AK$29,29,FALSE) -> 8866.071504 | O153: =VLOOKUP($C153,'RCV & totex projections'!$B$10:$AK$29,29,FALSE) -> 16820.92531 | P153: 25686.99682 | Q153: =VLOOKUP($B153,'RCV & totex projections'!$B$10:$AK$29,34,FALSE) -> 8866.071504 | R153: =VLOOKUP($C153,'RCV & totex projections'!$B$10:$AK$29,34,FALSE) -> 16820.92531 | S153: 25686.99682
B154: ANH | C154: PRT | D154: ANHPRT | E154: =VLOOKUP($B154,'RCV & totex projections'!$B$10:$AK$29,14,FALSE) -> 8866.071504 | F154: =VLOOKUP($C154,'RCV & totex projections'!$B$10:$AK$29,14,FALSE) -> 220.2655931 | G154: 9086.337098 | H154: =VLOOKUP($B154,'RCV & totex projections'!$B$10:$AK$29,19,FALSE) -> 8866.071504 | I154: =VLOOKUP($C154,'RCV & totex projections'!$B$10:$AK$29,19,FALSE) -> 220.2655931 | J154: 9086.337098 | K154: =VLOOKUP($B154,'RCV & totex projections'!$B$10:$AK$29,24,FALSE) -> 8866.071504 | L154: =VLOOKUP($C154,'RCV & totex projections'!$B$10:$AK$29,24,FALSE) -> 220.2655931 | M154: 9086.337098 | N154: =VLOOKUP($B154,'RCV & totex projections'!$B$10:$AK$29,29,FALSE) -> 8866.071504 | O154: =VLOOKUP($C154,'RCV & totex projections'!$B$10:$AK$29,29,FALSE) -> 220.2655931 | P154: 9086.337098 | Q154: =VLOOKUP($B154,'RCV & totex projections'!$B$10:$AK$29,34,FALSE) -> 8866.071504 | R154: =VLOOKUP($C154,'RCV & totex projections'!$B$10:$AK$29,34,FALSE) -> 220.2655931 | S154: 9086.337098
B155: ANH | C155: NES | D155: ANHNES | E155: =VLOOKUP($B155,'RCV & totex projections'!$B$10:$AK$29,14,FALSE) -> 8866.071504 | F155: =VLOOKUP($C155,'RCV & totex projections'!$B$10:$AK$29,14,FALSE) -> 4360.035263 | G155: 13226.10677 | H155: =VLOOKUP($B155,'RCV & totex projections'!$B$10:$AK$29,19,FALSE) -> 8866.071504 | I155: =VLOOKUP($C155,'RCV & totex projections'!$B$10:$AK$29,19,FALSE) -> 4360.035263 | J155: 13226.10677 | K155: =VLOOKUP($B155,'RCV & totex projections'!$B$10:$AK$29,24,FALSE) -> 8866.071504 | L155: =VLOOKUP($C155,'RCV & totex projections'!$B$10:$AK$29,24,FALSE) -> 4360.035263 | M155: 13226.10677 | N155: =VLOOKUP($B155,'RCV & totex projections'!$B$10:$AK$29,29,FALSE) -> 8866.071504 | O155: =VLOOKUP($C155,'RCV & totex projections'!$B$10:$AK$29,29,FALSE) -> 4360.035263 | P155: 13226.10677 | Q155: =VLOOKUP($B155,'RCV & totex projections'!$B$10:$AK$29,34,FALSE) -> 8866.071504 | R155: =VLOOKUP($C155,'RCV & totex projections'!$B$10:$AK$29,34,FALSE) -> 4360.035263 | S155: 13226.10677
B156: ANH | C156: WSH | D156: ANHWSH | E156: =VLOOKUP($B156,'RCV & totex projections'!$B$10:$AK$29,14,FALSE) -> 8866.071504 | F156: =VLOOKUP($C156,'RCV & totex projections'!$B$10:$AK$29,14,FALSE) -> 6243.283721 | G156: 15109.35523 | H156: =VLOOKUP($B156,'RCV & totex projections'!$B$10:$AK$29,19,FALSE) -> 8866.071504 | I156: =VLOOKUP($C156,'RCV & totex projections'!$B$10:$AK$29,19,FALSE) -> 6243.283721 | J156: 15109.35523 | K156: =VLOOKUP($B156,'RCV & totex projections'!$B$10:$AK$29,24,FALSE) -> 8866.071504 | L156: =VLOOKUP($C156,'RCV & totex projections'!$B$10:$AK$29,24,FALSE) -> 6243.283721 | M156: 15109.35523 | N156: =VLOOKUP($B156,'RCV & totex projections'!$B$10:$AK$29,29,FALSE) -> 8866.071504 | O156: =VLOOKUP($C156,'RCV & totex projections'!$B$10:$AK$29,29,FALSE) -> 6243.283721 | P156: 15109.35523 | Q156: =VLOOKUP($B156,'RCV & totex projections'!$B$10:$AK$29,34,FALSE) -> 8866.071504 | R156: =VLOOKUP($C156,'RCV & totex projections'!$B$10:$AK$29,34,FALSE) -> 6243.283721 | S156: 15109.35523
B157: ANH | C157: UUW | D157: ANHUUW | E157: =VLOOKUP($B157,'RCV & totex projections'!$B$10:$AK$29,14,FALSE) -> 8866.071504 | F157: =VLOOKUP($C157,'RCV & totex projections'!$B$10:$AK$29,14,FALSE) -> 10770.69058 | G157: 19636.76208 | H157: =VLOOKUP($B157,'RCV & totex projections'!$B$10:$AK$29,19,FALSE) -> 8866.071504 | I157: =VLOOKUP($C157,'RCV & totex projections'!$B$10:$AK$29,19,FALSE) -> 10770.69058 | J157: 19636.76208 | K157: =VLOOKUP($B157,'RCV & totex projections'!$B$10:$AK$29,24,FALSE) -> 8866.071504 | L157: =VLOOKUP($C157,'RCV & totex projections'!$B$10:$AK$29,24,FALSE) -> 10770.69058 | M157: 19636.76208 | N157: =VLOOKUP($B157,'RCV & totex projections'!$B$10:$AK$29,29,FALSE) -> 8866.071504 | O157: =VLOOKUP($C157,'RCV & totex projections'!$B$10:$AK$29,29,FALSE) -> 10770.69058 | P157: 19636.76208 | Q157: =VLOOKUP($B157,'RCV & totex projections'!$B$10:$AK$29,34,FALSE) -> 8866.071504 | R157: =VLOOKUP($C157,'RCV & totex projections'!$B$10:$AK$29,34,FALSE) -> 10770.69058 | S157: 19636.76208
B158: ANH | C158: SES | D158: ANHSES | E158: =VLOOKUP($B158,'RCV & totex projections'!$B$10:$AK$29,14,FALSE) -> 8866.071504 | F158: =VLOOKUP($C158,'RCV & totex projections'!$B$10:$AK$29,14,FALSE) -> 279.0526761 | G158: 9145.12418 | H158: =VLOOKUP($B158,'RCV & totex projections'!$B$10:$AK$29,19,FALSE) -> 8866.071504 | I158: =VLOOKUP($C158,'RCV & totex projections'!$B$10:$AK$29,19,FALSE) -> 279.0526761 | J158: 9145.12418 | K158: =VLOOKUP($B158,'RCV & totex projections'!$B$10:$AK$29,24,FALSE) -> 8866.071504 | L158: =VLOOKUP($C158,'RCV & totex projections'!$B$10:$AK$29,24,FALSE) -> 279.0526761 | M158: 9145.12418 | N158: =VLOOKUP($B158,'RCV & totex projections'!$B$10:$AK$29,29,FALSE) -> 8866.071504 | O158: =VLOOKUP($C158,'RCV & totex projections'!$B$10:$AK$29,29,FALSE) -> 279.0526761 | P158: 9145.12418 | Q158: =VLOOKUP($B158,'RCV & totex projections'!$B$10:$AK$29,34,FALSE) -> 8866.071504 | R158: =VLOOKUP($C158,'RCV & totex projections'!$B$10:$AK$29,34,FALSE) -> 279.0526761 | S158: 9145.12418
B159: ANH | C159: ANH | D159: ANHANH | E159: =VLOOKUP($B159,'RCV & totex projections'!$B$10:$AK$29,14,FALSE) -> 8866.071504 | F159: =VLOOKUP($C159,'RCV & totex projections'!$B$10:$AK$29,14,FALSE) -> 8866.071504 | G159: 17732.14301 | H159: =VLOOKUP($B159,'RCV & totex projections'!$B$10:$AK$29,19,FALSE) -> 8866.071504 | I159: =VLOOKUP($C159,'RCV & totex projections'!$B$10:$AK$29,19,FALSE) -> 8866.071504 | J159: 17732.14301 | K159: =VLOOKUP($B159,'RCV & totex projections'!$B$10:$AK$29,24,FALSE) -> 8866.071504 | L159: =VLOOKUP($C159,'RCV & totex projections'!$B$10:$AK$29,24,FALSE) -> 8866.071504 | M159: 17732.14301 | N159: =VLOOKUP($B159,'RCV & totex projections'!$B$10:$AK$29,29,FALSE) -> 8866.071504 | O159: =VLOOKUP($C159,'RCV & totex projections'!$B$10:$AK$29,29,FALSE) -> 8866.071504 | P159: 17732.14301 | Q159: =VLOOKUP($B159,'RCV & totex projections'!$B$10:$AK$29,34,FALSE) -> 8866.071504 | R159: =VLOOKUP($C159,'RCV & totex projections'!$B$10:$AK$29,34,FALSE) -> 8866.071504 | S159: 17732.14301
B160: ANH | C160: SEW | D160: ANHSEW | E160: =VLOOKUP($B160,'RCV & totex projections'!$B$10:$AK$29,14,FALSE) -> 8866.071504 | F160: =VLOOKUP($C160,'RCV & totex projections'!$B$10:$AK$29,14,FALSE) -> 1449.209445 | G160: 10315.28095 | H160: =VLOOKUP($B160,'RCV & totex projections'!$B$10:$AK$29,19,FALSE) -> 8866.071504 | I160: =VLOOKUP($C160,'RCV & totex projections'!$B$10:$AK$29,19,FALSE) -> 1449.209445 | J160: 10315.28095 | K160: =VLOOKUP($B160,'RCV & totex projections'!$B$10:$AK$29,24,FALSE) -> 8866.071504 | L160: =VLOOKUP($C160,'RCV & totex projections'!$B$10:$AK$29,24,FALSE) -> 1449.209445 | M160: 10315.28095 | N160: =VLOOKUP($B160,'RCV & totex projections'!$B$10:$AK$29,29,FALSE) -> 8866.071504 | O160: =VLOOKUP($C160,'RCV & totex projections'!$B$10:$AK$29,29,FALSE) -> 1449.209445 | P160: 10315.28095 | Q160: =VLOOKUP($B160,'RCV & totex projections'!$B$10:$AK$29,34,FALSE) -> 8866.071504 | R160: =VLOOKUP($C160,'RCV & totex projections'!$B$10:$AK$29,34,FALSE) -> 1449.209445 | S160: 10315.28095
B161: ANH | C161: SSC | D161: ANHSSC | E161: =VLOOKUP($B161,'RCV & totex projections'!$B$10:$AK$29,14,FALSE) -> 8866.071504 | F161: =VLOOKUP($C161,'RCV & totex projections'!$B$10:$AK$29,14,FALSE) -> 451.5233645 | G161: 9317.594869 | H161: =VLOOKUP($B161,'RCV & totex projections'!$B$10:$AK$29,19,FALSE) -> 8866.071504 | I161: =VLOOKUP($C161,'RCV & totex projections'!$B$10:$AK$29,19,FALSE) -> 451.5233645 | J161: 9317.594869 | K161: =VLOOKUP($B161,'RCV & totex projections'!$B$10:$AK$29,24,FALSE) -> 8866.071504 | L161: =VLOOKUP($C161,'RCV & totex projections'!$B$10:$AK$29,24,FALSE) -> 451.5233645 | M161: 9317.594869 | N161: =VLOOKUP($B161,'RCV & totex projections'!$B$10:$AK$29,29,FALSE) -> 8866.071504 | O161: =VLOOKUP($C161,'RCV & totex projections'!$B$10:$AK$29,29,FALSE) -> 451.5233645 | P161: 9317.594869 | Q161: =VLOOKUP($B161,'RCV & totex projections'!$B$10:$AK$29,34,FALSE) -> 8866.071504 | R161: =VLOOKUP($C161,'RCV & totex projections'!$B$10:$AK$29,34,FALSE) -> 451.5233645 | S161: 9317.594869
B162: ANH | C162: SVE | D162: ANHSVE | E162: =VLOOKUP($B162,'RCV & totex projections'!$B$10:$AK$29,14,FALSE) -> 8866.071504 | F162: =VLOOKUP($C162,'RCV & totex projections'!$B$10:$AK$29,14,FALSE) -> 9051.903159 | G162: 17917.97466 | H162: =VLOOKUP($B162,'RCV & totex projections'!$B$10:$AK$29,19,FALSE) -> 8866.071504 | I162: =VLOOKUP($C162,'RCV & totex projections'!$B$10:$AK$29,19,FALSE) -> 9051.903159 | J162: 17917.97466 | K162: =VLOOKUP($B162,'RCV & totex projections'!$B$10:$AK$29,24,FALSE) -> 8866.071504 | L162: =VLOOKUP($C162,'RCV & totex projections'!$B$10:$AK$29,24,FALSE) -> 9051.903159 | M162: 17917.97466 | N162: =VLOOKUP($B162,'RCV & totex projections'!$B$10:$AK$29,29,FALSE) -> 8866.071504 | O162: =VLOOKUP($C162,'RCV & totex projections'!$B$10:$AK$29,29,FALSE) -> 9051.903159 | P162: 17917.97466 | Q162: =VLOOKUP($B162,'RCV & totex projections'!$B$10:$AK$29,34,FALSE) -> 8866.071504 | R162: =VLOOKUP($C162,'RCV & totex projections'!$B$10:$AK$29,34,FALSE) -> 9051.903159 | S162: 17917.97466
B163: ANH | C163: WSX | D163: ANHWSX | E163: =VLOOKUP($B163,'RCV & totex projections'!$B$10:$AK$29,14,FALSE) -> 8866.071504 | F163: =VLOOKUP($C163,'RCV & totex projections'!$B$10:$AK$29,14,FALSE) -> 3472.985755 | G163: 12339.05726 | H163: =VLOOKUP($B163,'RCV & totex projections'!$B$10:$AK$29,19,FALSE) -> 8866.071504 | I163: =VLOOKUP($C163,'RCV & totex projections'!$B$10:$AK$29,19,FALSE) -> 3472.985755 | J163: 12339.05726 | K163: =VLOOKUP($B163,'RCV & totex projections'!$B$10:$AK$29,24,FALSE) -> 8866.071504 | L163: =VLOOKUP($C163,'RCV & totex projections'!$B$10:$AK$29,24,FALSE) -> 3472.985755 | M163: 12339.05726 | N163: =VLOOKUP($B163,'RCV & totex projections'!$B$10:$AK$29,29,FALSE) -> 8866.071504 | O163: =VLOOKUP($C163,'RCV & totex projections'!$B$10:$AK$29,29,FALSE) -> 3472.985755 | P163: 12339.05726 | Q163: =VLOOKUP($B163,'RCV & totex projections'!$B$10:$AK$29,34,FALSE) -> 8866.071504 | R163: =VLOOKUP($C163,'RCV & totex projections'!$B$10:$AK$29,34,FALSE) -> 3472.985755 | S163: 12339.05726
B164: ANH | C164: SRN | D164: ANHSRN | E164: =VLOOKUP($B164,'RCV & totex projections'!$B$10:$AK$29,14,FALSE) -> 8866.071504 | F164: =VLOOKUP($C164,'RCV & totex projections'!$B$10:$AK$29,14,FALSE) -> 5440.553595 | G164: 14306.6251 | H164: =VLOOKUP($B164,'RCV & totex projections'!$B$10:$AK$29,19,FALSE) -> 8866.071504 | I164: =VLOOKUP($C164,'RCV & totex projections'!$B$10:$AK$29,19,FALSE) -> 5440.553595 | J164: 14306.6251 | K164: =VLOOKUP($B164,'RCV & totex projections'!$B$10:$AK$29,24,FALSE) -> 8866.071504 | L164: =VLOOKUP($C164,'RCV & totex projections'!$B$10:$AK$29,24,FALSE) -> 5440.553595 | M164: 14306.6251 | N164: =VLOOKUP($B164,'RCV & totex projections'!$B$10:$AK$29,29,FALSE) -> 8866.071504 | O164: =VLOOKUP($C164,'RCV & totex projections'!$B$10:$AK$29,29,FALSE) -> 5440.553595 | P164: 14306.6251 | Q164: =VLOOKUP($B164,'RCV & totex projections'!$B$10:$AK$29,34,FALSE) -> 8866.071504 | R164: =VLOOKUP($C164,'RCV & totex projections'!$B$10:$AK$29,34,FALSE) -> 5440.553595 | S164: 14306.6251
B165: ANH | C165: BRL | D165: ANHBRL | E165: =VLOOKUP($B165,'RCV & totex projections'!$B$10:$AK$29,14,FALSE) -> 8866.071504 | F165: =VLOOKUP($C165,'RCV & totex projections'!$B$10:$AK$29,14,FALSE) -> 521.9686441 | G165: 9388.040148 | H165: =VLOOKUP($B165,'RCV & totex projections'!$B$10:$AK$29,19,FALSE) -> 8866.071504 | I165: =VLOOKUP($C165,'RCV & totex projections'!$B$10:$AK$29,19,FALSE) -> 521.9686441 | J165: 9388.040148 | K165: =VLOOKUP($B165,'RCV & totex projections'!$B$10:$AK$29,24,FALSE) -> 8866.071504 | L165: =VLOOKUP($C165,'RCV & totex projections'!$B$10:$AK$29,24,FALSE) -> 521.9686441 | M165: 9388.040148 | N165: =VLOOKUP($B165,'RCV & totex projections'!$B$10:$AK$29,29,FALSE) -> 8866.071504 | O165: =VLOOKUP($C165,'RCV & totex projections'!$B$10:$AK$29,29,FALSE) -> 521.9686441 | P165: 9388.040148 | Q165: =VLOOKUP($B165,'RCV & totex projections'!$B$10:$AK$29,34,FALSE) -> 8866.071504 | R165: =VLOOKUP($C165,'RCV & totex projections'!$B$10:$AK$29,34,FALSE) -> 521.9686441 | S165: 9388.040148
B166: SEW | C166: SWB | D166: SEWSWB | E166: =VLOOKUP($B166,'RCV & totex projections'!$B$10:$AK$29,14,FALSE) -> 1449.209445 | F166: =VLOOKUP($C166,'RCV & totex projections'!$B$10:$AK$29,14,FALSE) -> 3207.822635 | G166: 4657.03208 | H166: =VLOOKUP($B166,'RCV & totex projections'!$B$10:$AK$29,19,FALSE) -> 1449.209445 | I166: =VLOOKUP($C166,'RCV & totex projections'!$B$10:$AK$29,19,FALSE) -> 3207.822635 | J166: 4657.03208 | K166: =VLOOKUP($B166,'RCV & totex projections'!$B$10:$AK$29,24,FALSE) -> 1449.209445 | L166: =VLOOKUP($C166,'RCV & totex projections'!$B$10:$AK$29,24,FALSE) -> 3207.822635 | M166: 4657.03208 | N166: =VLOOKUP($B166,'RCV & totex projections'!$B$10:$AK$29,29,FALSE) -> 1449.209445 | O166: =VLOOKUP($C166,'RCV & totex projections'!$B$10:$AK$29,29,FALSE) -> 3207.822635 | P166: 4657.03208 | Q166: =VLOOKUP($B166,'RCV & totex projections'!$B$10:$AK$29,34,FALSE) -> 1449.209445 | R166: =VLOOKUP($C166,'RCV & totex projections'!$B$10:$AK$29,34,FALSE) -> 3207.822635 | S166: 4657.03208
B167: SEW | C167: YKY | D167: SEWYKY | E167: =VLOOKUP($B167,'RCV & totex projections'!$B$10:$AK$29,14,FALSE) -> 1449.209445 | F167: =VLOOKUP($C167,'RCV & totex projections'!$B$10:$AK$29,14,FALSE) -> 7424.879132 | G167: 8874.088577 | H167: =VLOOKUP($B167,'RCV & totex projections'!$B$10:$AK$29,19,FALSE) -> 1449.209445 | I167: =VLOOKUP($C167,'RCV & totex projections'!$B$10:$AK$29,19,FALSE) -> 7424.879132 | J167: 8874.088577 | K167: =VLOOKUP($B167,'RCV & totex projections'!$B$10:$AK$29,24,FALSE) -> 1449.209445 | L167: =VLOOKUP($C167,'RCV & totex projections'!$B$10:$AK$29,24,FALSE) -> 7424.879132 | M167: 8874.088577 | N167: =VLOOKUP($B167,'RCV & totex projections'!$B$10:$AK$29,29,FALSE) -> 1449.209445 | O167: =VLOOKUP($C167,'RCV & totex projections'!$B$10:$AK$29,29,FALSE) -> 7424.879132 | P167: 8874.088577 | Q167: =VLOOKUP($B167,'RCV & totex projections'!$B$10:$AK$29,34,FALSE) -> 1449.209445 | R167: =VLOOKUP($C167,'RCV & totex projections'!$B$10:$AK$29,34,FALSE) -> 7424.879132 | S167: 8874.088577
B168: SEW | C168: AFW | D168: SEWAFW | E168: =VLOOKUP($B168,'RCV & totex projections'!$B$10:$AK$29,14,FALSE) -> 1449.209445 | F168: =VLOOKUP($C168,'RCV & totex projections'!$B$10:$AK$29,14,FALSE) -> 1324.461347 | G168: 2773.670791 | H168: =VLOOKUP($B168,'RCV & totex projections'!$B$10:$AK$29,19,FALSE) -> 1449.209445 | I168: =VLOOKUP($C168,'RCV & totex projections'!$B$10:$AK$29,19,FALSE) -> 1324.461347 | J168: 2773.670791 | K168: =VLOOKUP($B168,'RCV & totex projections'!$B$10:$AK$29,24,FALSE) -> 1449.209445 | L168: =VLOOKUP($C168,'RCV & totex projections'!$B$10:$AK$29,24,FALSE) -> 1324.461347 | M168: 2773.670791 | N168: =VLOOKUP($B168,'RCV & totex projections'!$B$10:$AK$29,29,FALSE) -> 1449.209445 | O168: =VLOOKUP($C168,'RCV & totex projections'!$B$10:$AK$29,29,FALSE) -> 1324.461347 | P168: 2773.670791 | Q168: =VLOOKUP($B168,'RCV & totex projections'!$B$10:$AK$29,34,FALSE) -> 1449.209445 | R168: =VLOOKUP($C168,'RCV & totex projections'!$B$10:$AK$29,34,FALSE) -> 1324.461347 | S168: 2773.670791
B169: SEW | C169: TMS | D169: SEWTMS | E169: =VLOOKUP($B169,'RCV & totex projections'!$B$10:$AK$29,14,FALSE) -> 1449.209445 | F169: =VLOOKUP($C169,'RCV & totex projections'!$B$10:$AK$29,14,FALSE) -> 16820.92531 | G169: 18270.13476 | H169: =VLOOKUP($B169,'RCV & totex projections'!$B$10:$AK$29,19,FALSE) -> 1449.209445 | I169: =VLOOKUP($C169,'RCV & totex projections'!$B$10:$AK$29,19,FALSE) -> 16820.92531 | J169: 18270.13476 | K169: =VLOOKUP($B169,'RCV & totex projections'!$B$10:$AK$29,24,FALSE) -> 1449.209445 | L169: =VLOOKUP($C169,'RCV & totex projections'!$B$10:$AK$29,24,FALSE) -> 16820.92531 | M169: 18270.13476 | N169: =VLOOKUP($B169,'RCV & totex projections'!$B$10:$AK$29,29,FALSE) -> 1449.209445 | O169: =VLOOKUP($C169,'RCV & totex projections'!$B$10:$AK$29,29,FALSE) -> 16820.92531 | P169: 18270.13476 | Q169: =VLOOKUP($B169,'RCV & totex projections'!$B$10:$AK$29,34,FALSE) -> 1449.209445 | R169: =VLOOKUP($C169,'RCV & totex projections'!$B$10:$AK$29,34,FALSE) -> 16820.92531 | S169: 18270.13476
B170: SEW | C170: PRT | D170: SEWPRT | E170: =VLOOKUP($B170,'RCV & totex projections'!$B$10:$AK$29,14,FALSE) -> 1449.209445 | F170: =VLOOKUP($C170,'RCV & totex projections'!$B$10:$AK$29,14,FALSE) -> 220.2655931 | G170: 1669.475038 | H170: =VLOOKUP($B170,'RCV & totex projections'!$B$10:$AK$29,19,FALSE) -> 1449.209445 | I170: =VLOOKUP($C170,'RCV & totex projections'!$B$10:$AK$29,19,FALSE) -> 220.2655931 | J170: 1669.475038 | K170: =VLOOKUP($B170,'RCV & totex projections'!$B$10:$AK$29,24,FALSE) -> 1449.209445 | L170: =VLOOKUP($C170,'RCV & totex projections'!$B$10:$AK$29,24,FALSE) -> 220.2655931 | M170: 1669.475038 | N170: =VLOOKUP($B170,'RCV & totex projections'!$B$10:$AK$29,29,FALSE) -> 1449.209445 | O170: =VLOOKUP($C170,'RCV & totex projections'!$B$10:$AK$29,29,FALSE) -> 220.2655931 | P170: 1669.475038 | Q170: =VLOOKUP($B170,'RCV & totex projections'!$B$10:$AK$29,34,FALSE) -> 1449.209445 | R170: =VLOOKUP($C170,'RCV & totex projections'!$B$10:$AK$29,34,FALSE) -> 220.2655931 | S170: 1669.475038
B171: SEW | C171: NES | D171: SEWNES | E171: =VLOOKUP($B171,'RCV & totex projections'!$B$10:$AK$29,14,FALSE) -> 1449.209445 | F171: =VLOOKUP($C171,'RCV & totex projections'!$B$10:$AK$29,14,FALSE) -> 4360.035263 | G171: 5809.244708 | H171: =VLOOKUP($B171,'RCV & totex projections'!$B$10:$AK$29,19,FALSE) -> 1449.209445 | I171: =VLOOKUP($C171,'RCV & totex projections'!$B$10:$AK$29,19,FALSE) -> 4360.035263 | J171: 5809.244708 | K171: =VLOOKUP($B171,'RCV & totex projections'!$B$10:$AK$29,24,FALSE) -> 1449.209445 | L171: =VLOOKUP($C171,'RCV & totex projections'!$B$10:$AK$29,24,FALSE) -> 4360.035263 | M171: 5809.244708 | N171: =VLOOKUP($B171,'RCV & totex projections'!$B$10:$AK$29,29,FALSE) -> 1449.209445 | O171: =VLOOKUP($C171,'RCV & totex projections'!$B$10:$AK$29,29,FALSE) -> 4360.035263 | P171: 5809.244708 | Q171: =VLOOKUP($B171,'RCV & totex projections'!$B$10:$AK$29,34,FALSE) -> 1449.209445 | R171: =VLOOKUP($C171,'RCV & totex projections'!$B$10:$AK$29,34,FALSE) -> 4360.035263 | S171: 5809.244708
B172: SEW | C172: WSH | D172: SEWWSH | E172: =VLOOKUP($B172,'RCV & totex projections'!$B$10:$AK$29,14,FALSE) -> 1449.209445 | F172: =VLOOKUP($C172,'RCV & totex projections'!$B$10:$AK$29,14,FALSE) -> 6243.283721 | G172: 7692.493166 | H172: =VLOOKUP($B172,'RCV & totex projections'!$B$10:$AK$29,19,FALSE) -> 1449.209445 | I172: =VLOOKUP($C172,'RCV & totex projections'!$B$10:$AK$29,19,FALSE) -> 6243.283721 | J172: 7692.493166 | K172: =VLOOKUP($B172,'RCV & totex projections'!$B$10:$AK$29,24,FALSE) -> 1449.209445 | L172: =VLOOKUP($C172,'RCV & totex projections'!$B$10:$AK$29,24,FALSE) -> 6243.283721 | M172: 7692.493166 | N172: =VLOOKUP($B172,'RCV & totex projections'!$B$10:$AK$29,29,FALSE) -> 1449.209445 | O172: =VLOOKUP($C172,'RCV & totex projections'!$B$10:$AK$29,29,FALSE) -> 6243.283721 | P172: 7692.493166 | Q172: =VLOOKUP($B172,'RCV & totex projections'!$B$10:$AK$29,34,FALSE) -> 1449.209445 | R172: =VLOOKUP($C172,'RCV & totex projections'!$B$10:$AK$29,34,FALSE) -> 6243.283721 | S172: 7692.493166
B173: SEW | C173: UUW | D173: SEWUUW | E173: =VLOOKUP($B173,'RCV & totex projections'!$B$10:$AK$29,14,FALSE) -> 1449.209445 | F173: =VLOOKUP($C173,'RCV & totex projections'!$B$10:$AK$29,14,FALSE) -> 10770.69058 | G173: 12219.90002 | H173: =VLOOKUP($B173,'RCV & totex projections'!$B$10:$AK$29,19,FALSE) -> 1449.209445 | I173: =VLOOKUP($C173,'RCV & totex projections'!$B$10:$AK$29,19,FALSE) -> 10770.69058 | J173: 12219.90002 | K173: =VLOOKUP($B173,'RCV & totex projections'!$B$10:$AK$29,24,FALSE) -> 1449.209445 | L173: =VLOOKUP($C173,'RCV & totex projections'!$B$10:$AK$29,24,FALSE) -> 10770.69058 | M173: 12219.90002 | N173: =VLOOKUP($B173,'RCV & totex projections'!$B$10:$AK$29,29,FALSE) -> 1449.209445 | O173: =VLOOKUP($C173,'RCV & totex projections'!$B$10:$AK$29,29,FALSE) -> 10770.69058 | P173: 12219.90002 | Q173: =VLOOKUP($B173,'RCV & totex projections'!$B$10:$AK$29,34,FALSE) -> 1449.209445 | R173: =VLOOKUP($C173,'RCV & totex projections'!$B$10:$AK$29,34,FALSE) -> 10770.69058 | S173: 12219.90002
B174: SEW | C174: SES | D174: SEWSES | E174: =VLOOKUP($B174,'RCV & totex projections'!$B$10:$AK$29,14,FALSE) -> 1449.209445 | F174: =VLOOKUP($C174,'RCV & totex projections'!$B$10:$AK$29,14,FALSE) -> 279.0526761 | G174: 1728.262121 | H174: =VLOOKUP($B174,'RCV & totex projections'!$B$10:$AK$29,19,FALSE) -> 1449.209445 | I174: =VLOOKUP($C174,'RCV & totex projections'!$B$10:$AK$29,19,FALSE) -> 279.0526761 | J174: 1728.262121 | K174: =VLOOKUP($B174,'RCV & totex projections'!$B$10:$AK$29,24,FALSE) -> 1449.209445 | L174: =VLOOKUP($C174,'RCV & totex projections'!$B$10:$AK$29,24,FALSE) -> 279.0526761 | M174: 1728.262121 | N174: =VLOOKUP($B174,'RCV & totex projections'!$B$10:$AK$29,29,FALSE) -> 1449.209445 | O174: =VLOOKUP($C174,'RCV & totex projections'!$B$10:$AK$29,29,FALSE) -> 279.0526761 | P174: 1728.262121 | Q174: =VLOOKUP($B174,'RCV & totex projections'!$B$10:$AK$29,34,FALSE) -> 1449.209445 | R174: =VLOOKUP($C174,'RCV & totex projections'!$B$10:$AK$29,34,FALSE) -> 279.0526761 | S174: 1728.262121
B175: SEW | C175: ANH | D175: SEWANH | E175: =VLOOKUP($B175,'RCV & totex projections'!$B$10:$AK$29,14,FALSE) -> 1449.209445 | F175: =VLOOKUP($C175,'RCV & totex projections'!$B$10:$AK$29,14,FALSE) -> 8866.071504 | G175: 10315.28095 | H175: =VLOOKUP($B175,'RCV & totex projections'!$B$10:$AK$29,19,FALSE) -> 1449.209445 | I175: =VLOOKUP($C175,'RCV & totex projections'!$B$10:$AK$29,19,FALSE) -> 8866.071504 | J175: 10315.28095 | K175: =VLOOKUP($B175,'RCV & totex projections'!$B$10:$AK$29,24,FALSE) -> 1449.209445 | L175: =VLOOKUP($C175,'RCV & totex projections'!$B$10:$AK$29,24,FALSE) -> 8866.071504 | M175: 10315.28095 | N175: =VLOOKUP($B175,'RCV & totex projections'!$B$10:$AK$29,29,FALSE) -> 1449.209445 | O175: =VLOOKUP($C175,'RCV & totex projections'!$B$10:$AK$29,29,FALSE) -> 8866.071504 | P175: 10315.28095 | Q175: =VLOOKUP($B175,'RCV & totex projections'!$B$10:$AK$29,34,FALSE) -> 1449.209445 | R175: =VLOOKUP($C175,'RCV & totex projections'!$B$10:$AK$29,34,FALSE) -> 8866.071504 | S175: 10315.28095
B176: SEW | C176: SEW | D176: SEWSEW | E176: =VLOOKUP($B176,'RCV & totex projections'!$B$10:$AK$29,14,FALSE) -> 1449.209445 | F176: =VLOOKUP($C176,'RCV & totex projections'!$B$10:$AK$29,14,FALSE) -> 1449.209445 | G176: 2898.418889 | H176: =VLOOKUP($B176,'RCV & totex projections'!$B$10:$AK$29,19,FALSE) -> 1449.209445 | I176: =VLOOKUP($C176,'RCV & totex projections'!$B$10:$AK$29,19,FALSE) -> 1449.209445 | J176: 2898.418889 | K176: =VLOOKUP($B176,'RCV & totex projections'!$B$10:$AK$29,24,FALSE) -> 1449.209445 | L176: =VLOOKUP($C176,'RCV & totex projections'!$B$10:$AK$29,24,FALSE) -> 1449.209445 | M176: 2898.418889 | N176: =VLOOKUP($B176,'RCV & totex projections'!$B$10:$AK$29,29,FALSE) -> 1449.209445 | O176: =VLOOKUP($C176,'RCV & totex projections'!$B$10:$AK$29,29,FALSE) -> 1449.209445 | P176: 2898.418889 | Q176: =VLOOKUP($B176,'RCV & totex projections'!$B$10:$AK$29,34,FALSE) -> 1449.209445 | R176: =VLOOKUP($C176,'RCV & totex projections'!$B$10:$AK$29,34,FALSE) -> 1449.209445 | S176: 2898.418889
B177: SEW | C177: SSC | D177: SEWSSC | E177: =VLOOKUP($B177,'RCV & totex projections'!$B$10:$AK$29,14,FALSE) -> 1449.209445 | F177: =VLOOKUP($C177,'RCV & totex projections'!$B$10:$AK$29,14,FALSE) -> 451.5233645 | G177: 1900.732809 | H177: =VLOOKUP($B177,'RCV & totex projections'!$B$10:$AK$29,19,FALSE) -> 1449.209445 | I177: =VLOOKUP($C177,'RCV & totex projections'!$B$10:$AK$29,19,FALSE) -> 451.5233645 | J177: 1900.732809 | K177: =VLOOKUP($B177,'RCV & totex projections'!$B$10:$AK$29,24,FALSE) -> 1449.209445 | L177: =VLOOKUP($C177,'RCV & totex projections'!$B$10:$AK$29,24,FALSE) -> 451.5233645 | M177: 1900.732809 | N177: =VLOOKUP($B177,'RCV & totex projections'!$B$10:$AK$29,29,FALSE) -> 1449.209445 | O177: =VLOOKUP($C177,'RCV & totex projections'!$B$10:$AK$29,29,FALSE) -> 451.5233645 | P177: 1900.732809 | Q177: =VLOOKUP($B177,'RCV & totex projections'!$B$10:$AK$29,34,FALSE) -> 1449.209445 | R177: =VLOOKUP($C177,'RCV & totex projections'!$B$10:$AK$29,34,FALSE) -> 451.5233645 | S177: 1900.732809
B178: SEW | C178: SVE | D178: SEWSVE | E178: =VLOOKUP($B178,'RCV & totex projections'!$B$10:$AK$29,14,FALSE) -> 1449.209445 | F178: =VLOOKUP($C178,'RCV & totex projections'!$B$10:$AK$29,14,FALSE) -> 9051.903159 | G178: 10501.1126 | H178: =VLOOKUP($B178,'RCV & totex projections'!$B$10:$AK$29,19,FALSE) -> 1449.209445 | I178: =VLOOKUP($C178,'RCV & totex projections'!$B$10:$AK$29,19,FALSE) -> 9051.903159 | J178: 10501.1126 | K178: =VLOOKUP($B178,'RCV & totex projections'!$B$10:$AK$29,24,FALSE) -> 1449.209445 | L178: =VLOOKUP($C178,'RCV & totex projections'!$B$10:$AK$29,24,FALSE) -> 9051.903159 | M178: 10501.1126 | N178: =VLOOKUP($B178,'RCV & totex projections'!$B$10:$AK$29,29,FALSE) -> 1449.209445 | O178: =VLOOKUP($C178,'RCV & totex projections'!$B$10:$AK$29,29,FALSE) -> 9051.903159 | P178: 10501.1126 | Q178: =VLOOKUP($B178,'RCV & totex projections'!$B$10:$AK$29,34,FALSE) -> 1449.209445 | R178: =VLOOKUP($C178,'RCV & totex projections'!$B$10:$AK$29,34,FALSE) -> 9051.903159 | S178: 10501.1126
B179: SEW | C179: WSX | D179: SEWWSX | E179: =VLOOKUP($B179,'RCV & totex projections'!$B$10:$AK$29,14,FALSE) -> 1449.209445 | F179: =VLOOKUP($C179,'RCV & totex projections'!$B$10:$AK$29,14,FALSE) -> 3472.985755 | G179: 4922.1952 | H179: =VLOOKUP($B179,'RCV & totex projections'!$B$10:$AK$29,19,FALSE) -> 1449.209445 | I179: =VLOOKUP($C179,'RCV & totex projections'!$B$10:$AK$29,19,FALSE) -> 3472.985755 | J179: 4922.1952 | K179: =VLOOKUP($B179,'RCV & totex projections'!$B$10:$AK$29,24,FALSE) -> 1449.209445 | L179: =VLOOKUP($C179,'RCV & totex projections'!$B$10:$AK$29,24,FALSE) -> 3472.985755 | M179: 4922.1952 | N179: =VLOOKUP($B179,'RCV & totex projections'!$B$10:$AK$29,29,FALSE) -> 1449.209445 | O179: =VLOOKUP($C179,'RCV & totex projections'!$B$10:$AK$29,29,FALSE) -> 3472.985755 | P179: 4922.1952 | Q179: =VLOOKUP($B179,'RCV & totex projections'!$B$10:$AK$29,34,FALSE) -> 1449.209445 | R179: =VLOOKUP($C179,'RCV & totex projections'!$B$10:$AK$29,34,FALSE) -> 3472.985755 | S179: 4922.1952
B180: SEW | C180: SRN | D180: SEWSRN | E180: =VLOOKUP($B180,'RCV & totex projections'!$B$10:$AK$29,14,FALSE) -> 1449.209445 | F180: =VLOOKUP($C180,'RCV & totex projections'!$B$10:$AK$29,14,FALSE) -> 5440.553595 | G180: 6889.76304 | H180: =VLOOKUP($B180,'RCV & totex projections'!$B$10:$AK$29,19,FALSE) -> 1449.209445 | I180: =VLOOKUP($C180,'RCV & totex projections'!$B$10:$AK$29,19,FALSE) -> 5440.553595 | J180: 6889.76304 | K180: =VLOOKUP($B180,'RCV & totex projections'!$B$10:$AK$29,24,FALSE) -> 1449.209445 | L180: =VLOOKUP($C180,'RCV & totex projections'!$B$10:$AK$29,24,FALSE) -> 5440.553595 | M180: 6889.76304 | N180: =VLOOKUP($B180,'RCV & totex projections'!$B$10:$AK$29,29,FALSE) -> 1449.209445 | O180: =VLOOKUP($C180,'RCV & totex projections'!$B$10:$AK$29,29,FALSE) -> 5440.553595 | P180: 6889.76304 | Q180: =VLOOKUP($B180,'RCV & totex projections'!$B$10:$AK$29,34,FALSE) -> 1449.209445 | R180: =VLOOKUP($C180,'RCV & totex projections'!$B$10:$AK$29,34,FALSE) -> 5440.553595 | S180: 6889.76304
B181: SEW | C181: BRL | D181: SEWBRL | E181: =VLOOKUP($B181,'RCV & totex projections'!$B$10:$AK$29,14,FALSE) -> 1449.209445 | F181: =VLOOKUP($C181,'RCV & totex projections'!$B$10:$AK$29,14,FALSE) -> 521.9686441 | G181: 1971.178089 | H181: =VLOOKUP($B181,'RCV & totex projections'!$B$10:$AK$29,19,FALSE) -> 1449.209445 | I181: =VLOOKUP($C181,'RCV & totex projections'!$B$10:$AK$29,19,FALSE) -> 521.9686441 | J181: 1971.178089 | K181: =VLOOKUP($B181,'RCV & totex projections'!$B$10:$AK$29,24,FALSE) -> 1449.209445 | L181: =VLOOKUP($C181,'RCV & totex projections'!$B$10:$AK$29,24,FALSE) -> 521.9686441 | M181: 1971.178089 | N181: =VLOOKUP($B181,'RCV & totex projections'!$B$10:$AK$29,29,FALSE) -> 1449.209445 | O181: =VLOOKUP($C181,'RCV & totex projections'!$B$10:$AK$29,29,FALSE) -> 521.9686441 | P181: 1971.178089 | Q181: =VLOOKUP($B181,'RCV & totex projections'!$B$10:$AK$29,34,FALSE) -> 1449.209445 | R181: =VLOOKUP($C181,'RCV & totex projections'!$B$10:$AK$29,34,FALSE) -> 521.9686441 | S181: 1971.178089
B182: SSC | C182: SWB | D182: SSCSWB | E182: =VLOOKUP($B182,'RCV & totex projections'!$B$10:$AK$29,14,FALSE) -> 451.5233645 | F182: =VLOOKUP($C182,'RCV & totex projections'!$B$10:$AK$29,14,FALSE) -> 3207.822635 | G182: 3659.346 | H182: =VLOOKUP($B182,'RCV & totex projections'!$B$10:$AK$29,19,FALSE) -> 451.5233645 | I182: =VLOOKUP($C182,'RCV & totex projections'!$B$10:$AK$29,19,FALSE) -> 3207.822635 | J182: 3659.346 | K182: =VLOOKUP($B182,'RCV & totex projections'!$B$10:$AK$29,24,FALSE) -> 451.5233645 | L182: =VLOOKUP($C182,'RCV & totex projections'!$B$10:$AK$29,24,FALSE) -> 3207.822635 | M182: 3659.346 | N182: =VLOOKUP($B182,'RCV & totex projections'!$B$10:$AK$29,29,FALSE) -> 451.5233645 | O182: =VLOOKUP($C182,'RCV & totex projections'!$B$10:$AK$29,29,FALSE) -> 3207.822635 | P182: 3659.346 | Q182: =VLOOKUP($B182,'RCV & totex projections'!$B$10:$AK$29,34,FALSE) -> 451.5233645 | R182: =VLOOKUP($C182,'RCV & totex projections'!$B$10:$AK$29,34,FALSE) -> 3207.822635 | S182: 3659.346
B183: SSC | C183: YKY | D183: SSCYKY | E183: =VLOOKUP($B183,'RCV & totex projections'!$B$10:$AK$29,14,FALSE) -> 451.5233645 | F183: =VLOOKUP($C183,'RCV & totex projections'!$B$10:$AK$29,14,FALSE) -> 7424.879132 | G183: 7876.402496 | H183: =VLOOKUP($B183,'RCV & totex projections'!$B$10:$AK$29,19,FALSE) -> 451.5233645 | I183: =VLOOKUP($C183,'RCV & totex projections'!$B$10:$AK$29,19,FALSE) -> 7424.879132 | J183: 7876.402496 | K183: =VLOOKUP($B183,'RCV & totex projections'!$B$10:$AK$29,24,FALSE) -> 451.5233645 | L183: =VLOOKUP($C183,'RCV & totex projections'!$B$10:$AK$29,24,FALSE) -> 7424.879132 | M183: 7876.402496 | N183: =VLOOKUP($B183,'RCV & totex projections'!$B$10:$AK$29,29,FALSE) -> 451.5233645 | O183: =VLOOKUP($C183,'RCV & totex projections'!$B$10:$AK$29,29,FALSE) -> 7424.879132 | P183: 7876.402496 | Q183: =VLOOKUP($B183,'RCV & totex projections'!$B$10:$AK$29,34,FALSE) -> 451.5233645 | R183: =VLOOKUP($C183,'RCV & totex projections'!$B$10:$AK$29,34,FALSE) -> 7424.879132 | S183: 7876.402496
B184: SSC | C184: AFW | D184: SSCAFW | E184: =VLOOKUP($B184,'RCV & totex projections'!$B$10:$AK$29,14,FALSE) -> 451.5233645 | F184: =VLOOKUP($C184,'RCV & totex projections'!$B$10:$AK$29,14,FALSE) -> 1324.461347 | G184: 1775.984711 | H184: =VLOOKUP($B184,'RCV & totex projections'!$B$10:$AK$29,19,FALSE) -> 451.5233645 | I184: =VLOOKUP($C184,'RCV & totex projections'!$B$10:$AK$29,19,FALSE) -> 1324.461347 | J184: 1775.984711 | K184: =VLOOKUP($B184,'RCV & totex projections'!$B$10:$AK$29,24,FALSE) -> 451.5233645 | L184: =VLOOKUP($C184,'RCV & totex projections'!$B$10:$AK$29,24,FALSE) -> 1324.461347 | M184: 1775.984711 | N184: =VLOOKUP($B184,'RCV & totex projections'!$B$10:$AK$29,29,FALSE) -> 451.5233645 | O184: =VLOOKUP($C184,'RCV & totex projections'!$B$10:$AK$29,29,FALSE) -> 1324.461347 | P184: 1775.984711 | Q184: =VLOOKUP($B184,'RCV & totex projections'!$B$10:$AK$29,34,FALSE) -> 451.5233645 | R184: =VLOOKUP($C184,'RCV & totex projections'!$B$10:$AK$29,34,FALSE) -> 1324.461347 | S184: 1775.984711
B185: SSC | C185: TMS | D185: SSCTMS | E185: =VLOOKUP($B185,'RCV & totex projections'!$B$10:$AK$29,14,FALSE) -> 451.5233645 | F185: =VLOOKUP($C185,'RCV & totex projections'!$B$10:$AK$29,14,FALSE) -> 16820.92531 | G185: 17272.44868 | H185: =VLOOKUP($B185,'RCV & totex projections'!$B$10:$AK$29,19,FALSE) -> 451.5233645 | I185: =VLOOKUP($C185,'RCV & totex projections'!$B$10:$AK$29,19,FALSE) -> 16820.92531 | J185: 17272.44868 | K185: =VLOOKUP($B185,'RCV & totex projections'!$B$10:$AK$29,24,FALSE) -> 451.5233645 | L185: =VLOOKUP($C185,'RCV & totex projections'!$B$10:$AK$29,24,FALSE) -> 16820.92531 | M185: 17272.44868 | N185: =VLOOKUP($B185,'RCV & totex projections'!$B$10:$AK$29,29,FALSE) -> 451.5233645 | O185: =VLOOKUP($C185,'RCV & totex projections'!$B$10:$AK$29,29,FALSE) -> 16820.92531 | P185: 17272.44868 | Q185: =VLOOKUP($B185,'RCV & totex projections'!$B$10:$AK$29,34,FALSE) -> 451.5233645 | R185: =VLOOKUP($C185,'RCV & totex projections'!$B$10:$AK$29,34,FALSE) -> 16820.92531 | S185: 17272.44868
B186: SSC | C186: PRT | D186: SSCPRT | E186: =VLOOKUP($B186,'RCV & totex projections'!$B$10:$AK$29,14,FALSE) -> 451.5233645 | F186: =VLOOKUP($C186,'RCV & totex projections'!$B$10:$AK$29,14,FALSE) -> 220.2655931 | G186: 671.7889576 | H186: =VLOOKUP($B186,'RCV & totex projections'!$B$10:$AK$29,19,FALSE) -> 451.5233645 | I186: =VLOOKUP($C186,'RCV & totex projections'!$B$10:$AK$29,19,FALSE) -> 220.2655931 | J186: 671.7889576 | K186: =VLOOKUP($B186,'RCV & totex projections'!$B$10:$AK$29,24,FALSE) -> 451.5233645 | L186: =VLOOKUP($C186,'RCV & totex projections'!$B$10:$AK$29,24,FALSE) -> 220.2655931 | M186: 671.7889576 | N186: =VLOOKUP($B186,'RCV & totex projections'!$B$10:$AK$29,29,FALSE) -> 451.5233645 | O186: =VLOOKUP($C186,'RCV & totex projections'!$B$10:$AK$29,29,FALSE) -> 220.2655931 | P186: 671.7889576 | Q186: =VLOOKUP($B186,'RCV & totex projections'!$B$10:$AK$29,34,FALSE) -> 451.5233645 | R186: =VLOOKUP($C186,'RCV & totex projections'!$B$10:$AK$29,34,FALSE) -> 220.2655931 | S186: 671.7889576
B187: SSC | C187: NES | D187: SSCNES | E187: =VLOOKUP($B187,'RCV & totex projections'!$B$10:$AK$29,14,FALSE) -> 451.5233645 | F187: =VLOOKUP($C187,'RCV & totex projections'!$B$10:$AK$29,14,FALSE) -> 4360.035263 | G187: 4811.558627 | H187: =VLOOKUP($B187,'RCV & totex projections'!$B$10:$AK$29,19,FALSE) -> 451.5233645 | I187: =VLOOKUP($C187,'RCV & totex projections'!$B$10:$AK$29,19,FALSE) -> 4360.035263 | J187: 4811.558627 | K187: =VLOOKUP($B187,'RCV & totex projections'!$B$10:$AK$29,24,FALSE) -> 451.5233645 | L187: =VLOOKUP($C187,'RCV & totex projections'!$B$10:$AK$29,24,FALSE) -> 4360.035263 | M187: 4811.558627 | N187: =VLOOKUP($B187,'RCV & totex projections'!$B$10:$AK$29,29,FALSE) -> 451.5233645 | O187: =VLOOKUP($C187,'RCV & totex projections'!$B$10:$AK$29,29,FALSE) -> 4360.035263 | P187: 4811.558627 | Q187: =VLOOKUP($B187,'RCV & totex projections'!$B$10:$AK$29,34,FALSE) -> 451.5233645 | R187: =VLOOKUP($C187,'RCV & totex projections'!$B$10:$AK$29,34,FALSE) -> 4360.035263 | S187: 4811.558627
B188: SSC | C188: WSH | D188: SSCWSH | E188: =VLOOKUP($B188,'RCV & totex projections'!$B$10:$AK$29,14,FALSE) -> 451.5233645 | F188: =VLOOKUP($C188,'RCV & totex projections'!$B$10:$AK$29,14,FALSE) -> 6243.283721 | G188: 6694.807085 | H188: =VLOOKUP($B188,'RCV & totex projections'!$B$10:$AK$29,19,FALSE) -> 451.5233645 | I188: =VLOOKUP($C188,'RCV & totex projections'!$B$10:$AK$29,19,FALSE) -> 6243.283721 | J188: 6694.807085 | K188: =VLOOKUP($B188,'RCV & totex projections'!$B$10:$AK$29,24,FALSE) -> 451.5233645 | L188: =VLOOKUP($C188,'RCV & totex projections'!$B$10:$AK$29,24,FALSE) -> 6243.283721 | M188: 6694.807085 | N188: =VLOOKUP($B188,'RCV & totex projections'!$B$10:$AK$29,29,FALSE) -> 451.5233645 | O188: =VLOOKUP($C188,'RCV & totex projections'!$B$10:$AK$29,29,FALSE) -> 6243.283721 | P188: 6694.807085 | Q188: =VLOOKUP($B188,'RCV & totex projections'!$B$10:$AK$29,34,FALSE) -> 451.5233645 | R188: =VLOOKUP($C188,'RCV & totex projections'!$B$10:$AK$29,34,FALSE) -> 6243.283721 | S188: 6694.807085
B189: SSC | C189: UUW | D189: SSCUUW | E189: =VLOOKUP($B189,'RCV & totex projections'!$B$10:$AK$29,14,FALSE) -> 451.5233645 | F189: =VLOOKUP($C189,'RCV & totex projections'!$B$10:$AK$29,14,FALSE) -> 10770.69058 | G189: 11222.21394 | H189: =VLOOKUP($B189,'RCV & totex projections'!$B$10:$AK$29,19,FALSE) -> 451.5233645 | I189: =VLOOKUP($C189,'RCV & totex projections'!$B$10:$AK$29,19,FALSE) -> 10770.69058 | J189: 11222.21394 | K189: =VLOOKUP($B189,'RCV & totex projections'!$B$10:$AK$29,24,FALSE) -> 451.5233645 | L189: =VLOOKUP($C189,'RCV & totex projections'!$B$10:$AK$29,24,FALSE) -> 10770.69058 | M189: 11222.21394 | N189: =VLOOKUP($B189,'RCV & totex projections'!$B$10:$AK$29,29,FALSE) -> 451.5233645 | O189: =VLOOKUP($C189,'RCV & totex projections'!$B$10:$AK$29,29,FALSE) -> 10770.69058 | P189: 11222.21394 | Q189: =VLOOKUP($B189,'RCV & totex projections'!$B$10:$AK$29,34,FALSE) -> 451.5233645 | R189: =VLOOKUP($C189,'RCV & totex projections'!$B$10:$AK$29,34,FALSE) -> 10770.69058 | S189: 11222.21394
B190: SSC | C190: SES | D190: SSCSES | E190: =VLOOKUP($B190,'RCV & totex projections'!$B$10:$AK$29,14,FALSE) -> 451.5233645 | F190: =VLOOKUP($C190,'RCV & totex projections'!$B$10:$AK$29,14,FALSE) -> 279.0526761 | G190: 730.5760406 | H190: =VLOOKUP($B190,'RCV & totex projections'!$B$10:$AK$29,19,FALSE) -> 451.5233645 | I190: =VLOOKUP($C190,'RCV & totex projections'!$B$10:$AK$29,19,FALSE) -> 279.0526761 | J190: 730.5760406 | K190: =VLOOKUP($B190,'RCV & totex projections'!$B$10:$AK$29,24,FALSE) -> 451.5233645 | L190: =VLOOKUP($C190,'RCV & totex projections'!$B$10:$AK$29,24,FALSE) -> 279.0526761 | M190: 730.5760406 | N190: =VLOOKUP($B190,'RCV & totex projections'!$B$10:$AK$29,29,FALSE) -> 451.5233645 | O190: =VLOOKUP($C190,'RCV & totex projections'!$B$10:$AK$29,29,FALSE) -> 279.0526761 | P190: 730.5760406 | Q190: =VLOOKUP($B190,'RCV & totex projections'!$B$10:$AK$29,34,FALSE) -> 451.5233645 | R190: =VLOOKUP($C190,'RCV & totex projections'!$B$10:$AK$29,34,FALSE) -> 279.0526761 | S190: 730.5760406
B191: SSC | C191: ANH | D191: SSCANH | E191: =VLOOKUP($B191,'RCV & totex projections'!$B$10:$AK$29,14,FALSE) -> 451.5233645 | F191: =VLOOKUP($C191,'RCV & totex projections'!$B$10:$AK$29,14,FALSE) -> 8866.071504 | G191: 9317.594869 | H191: =VLOOKUP($B191,'RCV & totex projections'!$B$10:$AK$29,19,FALSE) -> 451.5233645 | I191: =VLOOKUP($C191,'RCV & totex projections'!$B$10:$AK$29,19,FALSE) -> 8866.071504 | J191: 9317.594869 | K191: =VLOOKUP($B191,'RCV & totex projections'!$B$10:$AK$29,24,FALSE) -> 451.5233645 | L191: =VLOOKUP($C191,'RCV & totex projections'!$B$10:$AK$29,24,FALSE) -> 8866.071504 | M191: 9317.594869 | N191: =VLOOKUP($B191,'RCV & totex projections'!$B$10:$AK$29,29,FALSE) -> 451.5233645 | O191: =VLOOKUP($C191,'RCV & totex projections'!$B$10:$AK$29,29,FALSE) -> 8866.071504 | P191: 9317.594869 | Q191: =VLOOKUP($B191,'RCV & totex projections'!$B$10:$AK$29,34,FALSE) -> 451.5233645 | R191: =VLOOKUP($C191,'RCV & totex projections'!$B$10:$AK$29,34,FALSE) -> 8866.071504 | S191: 9317.594869
B192: SSC | C192: SEW | D192: SSCSEW | E192: =VLOOKUP($B192,'RCV & totex projections'!$B$10:$AK$29,14,FALSE) -> 451.5233645 | F192: =VLOOKUP($C192,'RCV & totex projections'!$B$10:$AK$29,14,FALSE) -> 1449.209445 | G192: 1900.732809 | H192: =VLOOKUP($B192,'RCV & totex projections'!$B$10:$AK$29,19,FALSE) -> 451.5233645 | I192: =VLOOKUP($C192,'RCV & totex projections'!$B$10:$AK$29,19,FALSE) -> 1449.209445 | J192: 1900.732809 | K192: =VLOOKUP($B192,'RCV & totex projections'!$B$10:$AK$29,24,FALSE) -> 451.5233645 | L192: =VLOOKUP($C192,'RCV & totex projections'!$B$10:$AK$29,24,FALSE) -> 1449.209445 | M192: 1900.732809 | N192: =VLOOKUP($B192,'RCV & totex projections'!$B$10:$AK$29,29,FALSE) -> 451.5233645 | O192: =VLOOKUP($C192,'RCV & totex projections'!$B$10:$AK$29,29,FALSE) -> 1449.209445 | P192: 1900.732809 | Q192: =VLOOKUP($B192,'RCV & totex projections'!$B$10:$AK$29,34,FALSE) -> 451.5233645 | R192: =VLOOKUP($C192,'RCV & totex projections'!$B$10:$AK$29,34,FALSE) -> 1449.209445 | S192: 1900.732809
B193: SSC | C193: SSC | D193: SSCSSC | E193: =VLOOKUP($B193,'RCV & totex projections'!$B$10:$AK$29,14,FALSE) -> 451.5233645 | F193: =VLOOKUP($C193,'RCV & totex projections'!$B$10:$AK$29,14,FALSE) -> 451.5233645 | G193: 903.046729 | H193: =VLOOKUP($B193,'RCV & totex projections'!$B$10:$AK$29,19,FALSE) -> 451.5233645 | I193: =VLOOKUP($C193,'RCV & totex projections'!$B$10:$AK$29,19,FALSE) -> 451.5233645 | J193: 903.046729 | K193: =VLOOKUP($B193,'RCV & totex projections'!$B$10:$AK$29,24,FALSE) -> 451.5233645 | L193: =VLOOKUP($C193,'RCV & totex projections'!$B$10:$AK$29,24,FALSE) -> 451.5233645 | M193: 903.046729 | N193: =VLOOKUP($B193,'RCV & totex projections'!$B$10:$AK$29,29,FALSE) -> 451.5233645 | O193: =VLOOKUP($C193,'RCV & totex projections'!$B$10:$AK$29,29,FALSE) -> 451.5233645 | P193: 903.046729 | Q193: =VLOOKUP($B193,'RCV & totex projections'!$B$10:$AK$29,34,FALSE) -> 451.5233645 | R193: =VLOOKUP($C193,'RCV & totex projections'!$B$10:$AK$29,34,FALSE) -> 451.5233645 | S193: 903.046729
B194: SSC | C194: SVE | D194: SSCSVE | E194: =VLOOKUP($B194,'RCV & totex projections'!$B$10:$AK$29,14,FALSE) -> 451.5233645 | F194: =VLOOKUP($C194,'RCV & totex projections'!$B$10:$AK$29,14,FALSE) -> 9051.903159 | G194: 9503.426524 | H194: =VLOOKUP($B194,'RCV & totex projections'!$B$10:$AK$29,19,FALSE) -> 451.5233645 | I194: =VLOOKUP($C194,'RCV & totex projections'!$B$10:$AK$29,19,FALSE) -> 9051.903159 | J194: 9503.426524 | K194: =VLOOKUP($B194,'RCV & totex projections'!$B$10:$AK$29,24,FALSE) -> 451.5233645 | L194: =VLOOKUP($C194,'RCV & totex projections'!$B$10:$AK$29,24,FALSE) -> 9051.903159 | M194: 9503.426524 | N194: =VLOOKUP($B194,'RCV & totex projections'!$B$10:$AK$29,29,FALSE) -> 451.5233645 | O194: =VLOOKUP($C194,'RCV & totex projections'!$B$10:$AK$29,29,FALSE) -> 9051.903159 | P194: 9503.426524 | Q194: =VLOOKUP($B194,'RCV & totex projections'!$B$10:$AK$29,34,FALSE) -> 451.5233645 | R194: =VLOOKUP($C194,'RCV & totex projections'!$B$10:$AK$29,34,FALSE) -> 9051.903159 | S194: 9503.426524
B195: SSC | C195: WSX | D195: SSCWSX | E195: =VLOOKUP($B195,'RCV & totex projections'!$B$10:$AK$29,14,FALSE) -> 451.5233645 | F195: =VLOOKUP($C195,'RCV & totex projections'!$B$10:$AK$29,14,FALSE) -> 3472.985755 | G195: 3924.509119 | H195: =VLOOKUP($B195,'RCV & totex projections'!$B$10:$AK$29,19,FALSE) -> 451.5233645 | I195: =VLOOKUP($C195,'RCV & totex projections'!$B$10:$AK$29,19,FALSE) -> 3472.985755 | J195: 3924.509119 | K195: =VLOOKUP($B195,'RCV & totex projections'!$B$10:$AK$29,24,FALSE) -> 451.5233645 | L195: =VLOOKUP($C195,'RCV & totex projections'!$B$10:$AK$29,24,FALSE) -> 3472.985755 | M195: 3924.509119 | N195: =VLOOKUP($B195,'RCV & totex projections'!$B$10:$AK$29,29,FALSE) -> 451.5233645 | O195: =VLOOKUP($C195,'RCV & totex projections'!$B$10:$AK$29,29,FALSE) -> 3472.985755 | P195: 3924.509119 | Q195: =VLOOKUP($B195,'RCV & totex projections'!$B$10:$AK$29,34,FALSE) -> 451.5233645 | R195: =VLOOKUP($C195,'RCV & totex projections'!$B$10:$AK$29,34,FALSE) -> 3472.985755 | S195: 3924.509119
B196: SSC | C196: SRN | D196: SSCSRN | E196: =VLOOKUP($B196,'RCV & totex projections'!$B$10:$AK$29,14,FALSE) -> 451.5233645 | F196: =VLOOKUP($C196,'RCV & totex projections'!$B$10:$AK$29,14,FALSE) -> 5440.553595 | G196: 5892.07696 | H196: =VLOOKUP($B196,'RCV & totex projections'!$B$10:$AK$29,19,FALSE) -> 451.5233645 | I196: =VLOOKUP($C196,'RCV & totex projections'!$B$10:$AK$29,19,FALSE) -> 5440.553595 | J196: 5892.07696 | K196: =VLOOKUP($B196,'RCV & totex projections'!$B$10:$AK$29,24,FALSE) -> 451.5233645 | L196: =VLOOKUP($C196,'RCV & totex projections'!$B$10:$AK$29,24,FALSE) -> 5440.553595 | M196: 5892.07696 | N196: =VLOOKUP($B196,'RCV & totex projections'!$B$10:$AK$29,29,FALSE) -> 451.5233645 | O196: =VLOOKUP($C196,'RCV & totex projections'!$B$10:$AK$29,29,FALSE) -> 5440.553595 | P196: 5892.07696 | Q196: =VLOOKUP($B196,'RCV & totex projections'!$B$10:$AK$29,34,FALSE) -> 451.5233645 | R196: =VLOOKUP($C196,'RCV & totex projections'!$B$10:$AK$29,34,FALSE) -> 5440.553595 | S196: 5892.07696
B197: SSC | C197: BRL | D197: SSCBRL | E197: =VLOOKUP($B197,'RCV & totex projections'!$B$10:$AK$29,14,FALSE) -> 451.5233645 | F197: =VLOOKUP($C197,'RCV & totex projections'!$B$10:$AK$29,14,FALSE) -> 521.9686441 | G197: 973.4920086 | H197: =VLOOKUP($B197,'RCV & totex projections'!$B$10:$AK$29,19,FALSE) -> 451.5233645 | I197: =VLOOKUP($C197,'RCV & totex projections'!$B$10:$AK$29,19,FALSE) -> 521.9686441 | J197: 973.4920086 | K197: =VLOOKUP($B197,'RCV & totex projections'!$B$10:$AK$29,24,FALSE) -> 451.5233645 | L197: =VLOOKUP($C197,'RCV & totex projections'!$B$10:$AK$29,24,FALSE) -> 521.9686441 | M197: 973.4920086 | N197: =VLOOKUP($B197,'RCV & totex projections'!$B$10:$AK$29,29,FALSE) -> 451.5233645 | O197: =VLOOKUP($C197,'RCV & totex projections'!$B$10:$AK$29,29,FALSE) -> 521.9686441 | P197: 973.4920086 | Q197: =VLOOKUP($B197,'RCV & totex projections'!$B$10:$AK$29,34,FALSE) -> 451.5233645 | R197: =VLOOKUP($C197,'RCV & totex projections'!$B$10:$AK$29,34,FALSE) -> 521.9686441 | S197: 973.4920086
B198: SVE | C198: SWB | D198: =CONCATENATE(B198,C198) -> SVESWB | E198: =VLOOKUP($B198,'RCV & totex projections'!$B$10:$AK$29,14,FALSE) -> 9051.903159 | F198: =VLOOKUP($C198,'RCV & totex projections'!$B$10:$AK$29,14,FALSE) -> 3207.822635 | G198: 12259.72579 | H198: =VLOOKUP($B198,'RCV & totex projections'!$B$10:$AK$29,19,FALSE) -> 9051.903159 | I198: =VLOOKUP($C198,'RCV & totex projections'!$B$10:$AK$29,19,FALSE) -> 3207.822635 | J198: 12259.72579 | K198: =VLOOKUP($B198,'RCV & totex projections'!$B$10:$AK$29,24,FALSE) -> 9051.903159 | L198: =VLOOKUP($C198,'RCV & totex projections'!$B$10:$AK$29,24,FALSE) -> 3207.822635 | M198: 12259.72579 | N198: =VLOOKUP($B198,'RCV & totex projections'!$B$10:$AK$29,29,FALSE) -> 9051.903159 | O198: =VLOOKUP($C198,'RCV & totex projections'!$B$10:$AK$29,29,FALSE) -> 3207.822635 | P198: 12259.72579 | Q198: =VLOOKUP($B198,'RCV & totex projections'!$B$10:$AK$29,34,FALSE) -> 9051.903159 | R198: =VLOOKUP($C198,'RCV & totex projections'!$B$10:$AK$29,34,FALSE) -> 3207.822635 | S198: 12259.72579
B199: SVE | C199: YKY | D199: SVEYKY | E199: =VLOOKUP($B199,'RCV & totex projections'!$B$10:$AK$29,14,FALSE) -> 9051.903159 | F199: =VLOOKUP($C199,'RCV & totex projections'!$B$10:$AK$29,14,FALSE) -> 7424.879132 | G199: =E199+F199 -> 16476.78229 | H199: =VLOOKUP($B199,'RCV & totex projections'!$B$10:$AK$29,19,FALSE) -> 9051.903159 | I199: =VLOOKUP($C199,'RCV & totex projections'!$B$10:$AK$29,19,FALSE) -> 7424.879132 | J199: =H199+I199 -> 16476.78229 | K199: =VLOOKUP($B199,'RCV & totex projections'!$B$10:$AK$29,24,FALSE) -> 9051.903159 | L199: =VLOOKUP($C199,'RCV & totex projections'!$B$10:$AK$29,24,FALSE) -> 7424.879132 | M199: =K199+L199 -> 16476.78229 | N199: =VLOOKUP($B199,'RCV & totex projections'!$B$10:$AK$29,29,FALSE) -> 9051.903159 | O199: =VLOOKUP($C199,'RCV & totex projections'!$B$10:$AK$29,29,FALSE) -> 7424.879132 | P199: =N199+O199 -> 16476.78229 | Q199: =VLOOKUP($B199,'RCV & totex projections'!$B$10:$AK$29,34,FALSE) -> 9051.903159 | R199: =VLOOKUP($C199,'RCV & totex projections'!$B$10:$AK$29,34,FALSE) -> 7424.879132 | S199: =Q199+R199 -> 16476.78229
B200: SVE | C200: AFW | D200: SVEAFW | E200: =VLOOKUP($B200,'RCV & totex projections'!$B$10:$AK$29,14,FALSE) -> 9051.903159 | F200: =VLOOKUP($C200,'RCV & totex projections'!$B$10:$AK$29,14,FALSE) -> 1324.461347 | G200: 10376.36451 | H200: =VLOOKUP($B200,'RCV & totex projections'!$B$10:$AK$29,19,FALSE) -> 9051.903159 | I200: =VLOOKUP($C200,'RCV & totex projections'!$B$10:$AK$29,19,FALSE) -> 1324.461347 | J200: 10376.36451 | K200: =VLOOKUP($B200,'RCV & totex projections'!$B$10:$AK$29,24,FALSE) -> 9051.903159 | L200: =VLOOKUP($C200,'RCV & totex projections'!$B$10:$AK$29,24,FALSE) -> 1324.461347 | M200: 10376.36451 | N200: =VLOOKUP($B200,'RCV & totex projections'!$B$10:$AK$29,29,FALSE) -> 9051.903159 | O200: =VLOOKUP($C200,'RCV & totex projections'!$B$10:$AK$29,29,FALSE) -> 1324.461347 | P200: 10376.36451 | Q200: =VLOOKUP($B200,'RCV & totex projections'!$B$10:$AK$29,34,FALSE) -> 9051.903159 | R200: =VLOOKUP($C200,'RCV & totex projections'!$B$10:$AK$29,34,FALSE) -> 1324.461347 | S200: 10376.36451
... 61 more rows

Sheet Merger Weightings
A1: =RIGHT(CELL("filename", $A$1), LEN(CELL("filename", $A$1)) - SEARCH("]", CELL("filename", $A$1))) -> Merger Weightings
A2: This sheet is used to apply user-defined adjustment factors to the likelihood of particular mergers occurring.
A4: Number of companies | B4: ='Control sheet'!C74 -> 16
A5: Same company multiplier | B5: ='Control sheet'!C50 -> 0
A6: WaSC-WoC Multiplier | B6: ='Control sheet'!C51 -> 1
A7: Adjoining/within Multiplier | B7: ='Control sheet'!C52 -> 1 | Y7: WaSCs | Z7: WoCs
A8: Gearing >70% | B8: ='Control sheet'!C53 -> 1
A9: Small company merger multiplier | B9: ='Control sheet'!C54 -> 0 | Y9: WaSCs | Z9: WoCs | AA9: Small WoCs
W10: Checksum | Y10: SWB | Z10: AFW | AA10: PRT
C11: Company 1 | D11: WasC | E11: WoC | F11: Company 2 | G11: WasC | H11: WoC | I11: Small WoC | J11: Merged entity | K11: Same company | L11: WaSC-WoC? | M11: Adjoining/within? | N11: Gearing >70% | O11: Base probability | P11: Post 'Same company multiplier' | Q11: Post 'WaSC-WoC multiplier' | R11: Post 'Adjoining/within' multiplier | S11: Post 'Gearing >70%' multiplier | T11: Post 'Small WoC' multiplier | U11: Reweighted flag | V11: Overall weight (rebalanced) | Y11: YKY | Z11: PRT | AA11: SES
C12: SWB | D12: =COUNTIF($Y$10:$Y$19,C12) -> 1 | E12: =COUNTIF($Z$10:$Z$15,C12) -> 0 | F12: SWB | G12: =COUNTIF($Y$10:$Y$19,F12) -> 1 | H12: =COUNTIF($Z$10:$Z$15,F12) -> 0 | I12: =COUNTIF($AA$10:$AA$13,F12) -> 0 | J12: =CONCATENATE(C12,F12) -> SWBSWB | K12: =IF(C12=F12,1,0) -> 1 | L12: =D12*H12+E12*G12 -> 0 | M12: 1 | N12: =IF(VLOOKUP(F12,$Y$24:$Z$39,2,FALSE)>70%,1,0) -> 0 | O12: =1/$B$4 -> 0.0625 | P12: =IF(K12=1,O12*$B$5,O12) -> 0 | Q12: =IF(L12=1,P12*$B$6,P12) -> 0 | R12: =IF(M12=1,Q12*$B$6,Q12) -> 0 | S12: =IF(N12=1,R12*$B$8,R12) -> 0 | T12: =IF(I12=1,S12*$B$9,S12) -> 0 | U12: =IF(T12<>(1/$B$4),1,0) -> 1 | V12: =IF(U12=1,T12,(1-SUMIF($U$12:$U$27,1,$T$12:$T$27))/COUNTIF($U$12:$U$27,0)) -> 0 | Y12: TMS | Z12: SES | AA12: SSC
C13: SWB | D13: 1 | E13: 0 | F13: YKY | G13: 1 | H13: 0 | I13: =COUNTIF($AA$10:$AA$13,F13) -> 0 | J13: =CONCATENATE(C13,F13) -> SWBYKY | K13: 0 | L13: 0 | M13: 0 | N13: 1 | O13: =1/$B$4 -> 0.0625 | P13: 0.0625 | Q13: 0.0625 | R13: 0.0625 | S13: 0.0625 | T13: =IF(I13=1,S13*$B$9,S13) -> 0.0625 | U13: =IF(T13<>(1/$B$4),1,0) -> 0 | V13: =IF(U13=1,T13,(1-SUMIF($U$12:$U$27,1,$T$12:$T$27))/COUNTIF($U$12:$U$27,0)) -> 0.09090909091 | Y13: NES | Z13: SEW | AA13: BRL
C14: SWB | D14: 1 | E14: 0 | F14: AFW | G14: 0 | H14: 1 | I14: 0 | J14: SWBAFW | K14: 0 | L14: 1 | M14: 0 | N14: 1 | O14: 0.0625 | P14: 0.0625 | Q14: 0.0625 | R14: 0.0625 | S14: 0.0625 | T14: 0.0625 | U14: 0 | V14: 0.09090909091 | Y14: WSH | Z14: SSC
C15: SWB | D15: 1 | E15: 0 | F15: TMS | G15: 1 | H15: 0 | I15: 0 | J15: SWBTMS | K15: 0 | L15: 0 | M15: 0 | N15: 1 | O15: 0.0625 | P15: 0.0625 | Q15: 0.0625 | R15: 0.0625 | S15: 0.0625 | T15: 0.0625 | U15: 0 | V15: 0.09090909091 | Y15: UUW | Z15: BRL
C16: SWB | D16: 1 | E16: 0 | F16: PRT | G16: 0 | H16: 1 | I16: 1 | J16: SWBPRT | K16: 0 | L16: 1 | M16: 0 | N16: 0 | O16: 0.0625 | P16: 0.0625 | Q16: 0.0625 | R16: 0.0625 | S16: 0.0625 | T16: 0 | U16: 1 | V16: 0 | Y16: ANH
C17: SWB | D17: 1 | E17: 0 | F17: NES | G17: 1 | H17: 0 | I17: 0 | J17: SWBNES | K17: 0 | L17: 0 | M17: 0 | N17: 0 | O17: 0.0625 | P17: 0.0625 | Q17: 0.0625 | R17: 0.0625 | S17: 0.0625 | T17: 0.0625 | U17: 0 | V17: 0.09090909091 | Y17: SVE
C18: SWB | D18: 1 | E18: 0 | F18: WSH | G18: 1 | H18: 0 | I18: 0 | J18: SWBWSH | K18: 0 | L18: 0 | M18: 0 | N18: 0 | O18: 0.0625 | P18: 0.0625 | Q18: 0.0625 | R18: 0.0625 | S18: 0.0625 | T18: 0.0625 | U18: 0 | V18: 0.09090909091 | Y18: WSX
C19: SWB | D19: 1 | E19: 0 | F19: UUW | G19: 1 | H19: 0 | I19: 0 | J19: SWBUUW | K19: 0 | L19: 0 | M19: 0 | N19: 0 | O19: 0.0625 | P19: 0.0625 | Q19: 0.0625 | R19: 0.0625 | S19: 0.0625 | T19: 0.0625 | U19: 0 | V19: 0.09090909091 | Y19: SRN
C20: SWB | D20: 1 | E20: 0 | F20: SES | G20: 0 | H20: 1 | I20: 1 | J20: SWBSES | K20: 0 | L20: 1 | M20: 0 | N20: 1 | O20: 0.0625 | P20: 0.0625 | Q20: 0.0625 | R20: 0.0625 | S20: 0.0625 | T20: 0 | U20: 1 | V20: 0
C21: SWB | D21: 1 | E21: 0 | F21: ANH | G21: 1 | H21: 0 | I21: 0 | J21: SWBANH | K21: 0 | L21: 0 | M21: 0 | N21: 1 | O21: 0.0625 | P21: 0.0625 | Q21: 0.0625 | R21: 0.0625 | S21: 0.0625 | T21: 0.0625 | U21: 0 | V21: 0.09090909091
C22: SWB | D22: 1 | E22: 0 | F22: SEW | G22: 0 | H22: 1 | I22: 0 | J22: SWBSEW | K22: 0 | L22: 1 | M22: 0 | N22: 1 | O22: 0.0625 | P22: 0.0625 | Q22: 0.0625 | R22: 0.0625 | S22: 0.0625 | T22: 0.0625 | U22: 0 | V22: 0.09090909091
C23: SWB | D23: 1 | E23: 0 | F23: SSC | G23: 0 | H23: 1 | I23: 1 | J23: SWBSSC | K23: 0 | L23: 1 | M23: 0 | N23: 1 | O23: 0.0625 | P23: 0.0625 | Q23: 0.0625 | R23: 0.0625 | S23: 0.0625 | T23: 0 | U23: 1 | V23: 0 | Z23: 2017/18 gearing
C24: SWB | D24: 1 | E24: 0 | F24: SVE | G24: 1 | H24: 0 | I24: 0 | J24: SWBSVE | K24: 0 | L24: 0 | M24: 0 | N24: 0 | O24: 0.0625 | P24: 0.0625 | Q24: 0.0625 | R24: 0.0625 | S24: 0.0625 | T24: 0.0625 | U24: 0 | V24: 0.09090909091 | Y24: SWB | Z24: 0.6193
C25: SWB | D25: 1 | E25: 0 | F25: WSX | G25: 1 | H25: 0 | I25: 0 | J25: SWBWSX | K25: 0 | L25: 0 | M25: 1 | N25: 0 | O25: 0.0625 | P25: 0.0625 | Q25: 0.0625 | R25: 0.0625 | S25: 0.0625 | T25: 0.0625 | U25: 0 | V25: 0.09090909091 | Y25: YKY | Z25: 0.7432
C26: SWB | D26: 1 | E26: 0 | F26: SRN | G26: 1 | H26: 0 | I26: 0 | J26: SWBSRN | K26: 0 | L26: 0 | M26: 0 | N26: 1 | O26: 0.0625 | P26: 0.0625 | Q26: 0.0625 | R26: 0.0625 | S26: 0.0625 | T26: 0.0625 | U26: 0 | V26: 0.09090909091 | Y26: AFW | Z26: 0.7967
C27: SWB | D27: 1 | E27: 0 | F27: BRL | G27: 0 | H27: 1 | I27: 1 | J27: SWBBRL | K27: 0 | L27: 1 | M27: 0 | N27: 0 | O27: 0.0625 | P27: 0.0625 | Q27: 0.0625 | R27: 0.0625 | S27: 0.0625 | T27: 0 | U27: 1 | V27: =IF(U27=1,T27,(1-SUMIF($U$12:$U$27,1,$T$12:$T$27))/COUNTIF($U$12:$U$27,0)) -> 0 | W27: =SUM(V12:V27) -> 1 | Y27: TMS | Z27: 0.8293
C28: YKY | D28: 1 | E28: 0 | F28: SWB | G28: 1 | H28: 0 | I28: 0 | J28: YKYSWB | K28: 0 | L28: 0 | M28: 0 | N28: 0 | O28: 0.0625 | P28: 0.0625 | Q28: 0.0625 | R28: 0.0625 | S28: 0.0625 | T28: 0.0625 | U28: 0 | V28: =IF(U28=1,T28,(1-SUMIF($U$28:$U$43,1,$T$28:$T$43))/COUNTIF($U$28:$U$43,0)) -> 0.09090909091 | Y28: PRT | Z28: 0.636
C29: YKY | D29: 1 | E29: 0 | F29: YKY | G29: 1 | H29: 0 | I29: 0 | J29: YKYYKY | K29: 1 | L29: 0 | M29: 1 | N29: 1 | O29: 0.0625 | P29: 0 | Q29: 0 | R29: 0 | S29: 0 | T29: 0 | U29: 1 | V29: =IF(U29=1,T29,(1-SUMIF($U$28:$U$43,1,$T$28:$T$43))/COUNTIF($U$28:$U$43,0)) -> 0 | Y29: NES | Z29: 0.6569
C30: YKY | D30: 1 | E30: 0 | F30: AFW | G30: 0 | H30: 1 | I30: 0 | J30: YKYAFW | K30: 0 | L30: 1 | M30: 0 | N30: 1 | O30: 0.0625 | P30: 0.0625 | Q30: 0.0625 | R30: 0.0625 | S30: 0.0625 | T30: 0.0625 | U30: 0 | V30: 0.09090909091 | Y30: WSH | Z30: 0.5705
C31: YKY | D31: 1 | E31: 0 | F31: TMS | G31: 1 | H31: 0 | I31: 0 | J31: YKYTMS | K31: 0 | L31: 0 | M31: 0 | N31: 1 | O31: 0.0625 | P31: 0.0625 | Q31: 0.0625 | R31: 0.0625 | S31: 0.0625 | T31: 0.0625 | U31: 0 | V31: 0.09090909091 | Y31: UUW | Z31: 0.6569
C32: YKY | D32: 1 | E32: 0 | F32: PRT | G32: 0 | H32: 1 | I32: 1 | J32: YKYPRT | K32: 0 | L32: 1 | M32: 0 | N32: 0 | O32: 0.0625 | P32: 0.0625 | Q32: 0.0625 | R32: 0.0625 | S32: 0.0625 | T32: 0 | U32: 1 | V32: 0 | Y32: SES | Z32: 0.7707
C33: YKY | D33: 1 | E33: 0 | F33: NES | G33: 1 | H33: 0 | I33: 0 | J33: YKYNES | K33: 0 | L33: 0 | M33: 1 | N33: 0 | O33: 0.0625 | P33: 0.0625 | Q33: 0.0625 | R33: 0.0625 | S33: 0.0625 | T33: 0.0625 | U33: 0 | V33: 0.09090909091 | Y33: ANH | Z33: 0.7854
C34: YKY | D34: 1 | E34: 0 | F34: WSH | G34: 1 | H34: 0 | I34: 0 | J34: YKYWSH | K34: 0 | L34: 0 | M34: 0 | N34: 0 | O34: 0.0625 | P34: 0.0625 | Q34: 0.0625 | R34: 0.0625 | S34: 0.0625 | T34: 0.0625 | U34: 0 | V34: 0.09090909091 | Y34: SEW | Z34: 0.7774
C35: YKY | D35: 1 | E35: 0 | F35: UUW | G35: 1 | H35: 0 | I35: 0 | J35: YKYUUW | K35: 0 | L35: 0 | M35: 1 | N35: 0 | O35: 0.0625 | P35: 0.0625 | Q35: 0.0625 | R35: 0.0625 | S35: 0.0625 | T35: 0.0625 | U35: 0 | V35: 0.09090909091 | Y35: SSC | Z35: 0.7151
C36: YKY | D36: 1 | E36: 0 | F36: SES | G36: 0 | H36: 1 | I36: 1 | J36: YKYSES | K36: 0 | L36: 1 | M36: 0 | N36: 1 | O36: 0.0625 | P36: 0.0625 | Q36: 0.0625 | R36: 0.0625 | S36: 0.0625 | T36: 0 | U36: 1 | V36: 0 | Y36: SVE | Z36: 0.615
C37: YKY | D37: 1 | E37: 0 | F37: ANH | G37: 1 | H37: 0 | I37: 0 | J37: YKYANH | K37: 0 | L37: 0 | M37: 0 | N37: 1 | O37: 0.0625 | P37: 0.0625 | Q37: 0.0625 | R37: 0.0625 | S37: 0.0625 | T37: 0.0625 | U37: 0 | V37: 0.09090909091 | Y37: WSX | Z37: 0.639
C38: YKY | D38: 1 | E38: 0 | F38: SEW | G38: 0 | H38: 1 | I38: 0 | J38: YKYSEW | K38: 0 | L38: 1 | M38: 0 | N38: 1 | O38: 0.0625 | P38: 0.0625 | Q38: 0.0625 | R38: 0.0625 | S38: 0.0625 | T38: 0.0625 | U38: 0 | V38: 0.09090909091 | Y38: SRN | Z38: 0.7922
C39: YKY | D39: 1 | E39: 0 | F39: SSC | G39: 0 | H39: 1 | I39: 1 | J39: YKYSSC | K39: 0 | L39: 1 | M39: 0 | N39: 1 | O39: 0.0625 | P39: 0.0625 | Q39: 0.0625 | R39: 0.0625 | S39: 0.0625 | T39: 0 | U39: 1 | V39: 0 | Y39: BRL | Z39: 0.6396
C40: YKY | D40: 1 | E40: 0 | F40: SVE | G40: 1 | H40: 0 | I40: 0 | J40: YKYSVE | K40: 0 | L40: 0 | M40: 1 | N40: 0 | O40: 0.0625 | P40: 0.0625 | Q40: 0.0625 | R40: 0.0625 | S40: 0.0625 | T40: 0.0625 | U40: 0 | V40: 0.09090909091
C41: YKY | D41: 1 | E41: 0 | F41: WSX | G41: 1 | H41: 0 | I41: 0 | J41: YKYWSX | K41: 0 | L41: 0 | M41: 0 | N41: 0 | O41: 0.0625 | P41: 0.0625 | Q41: 0.0625 | R41: 0.0625 | S41: 0.0625 | T41: 0.0625 | U41: 0 | V41: 0.09090909091
C42: YKY | D42: 1 | E42: 0 | F42: SRN | G42: 1 | H42: 0 | I42: 0 | J42: YKYSRN | K42: 0 | L42: 0 | M42: 0 | N42: 1 | O42: 0.0625 | P42: 0.0625 | Q42: 0.0625 | R42: 0.0625 | S42: 0.0625 | T42: 0.0625 | U42: 0 | V42: 0.09090909091
C43: YKY | D43: 1 | E43: 0 | F43: BRL | G43: 0 | H43: 1 | I43: 1 | J43: YKYBRL | K43: 0 | L43: 1 | M43: 0 | N43: 0 | O43: 0.0625 | P43: 0.0625 | Q43: 0.0625 | R43: 0.0625 | S43: 0.0625 | T43: 0 | U43: 1 | V43: 0 | W43: =SUM(V28:V43) -> 1
C44: AFW | D44: 0 | E44: 1 | F44: SWB | G44: 1 | H44: 0 | I44: 0 | J44: AFWSWB | K44: 0 | L44: 1 | M44: 0 | N44: 0 | O44: 0.0625 | P44: 0.0625 | Q44: 0.0625 | R44: 0.0625 | S44: 0.0625 | T44: 0.0625 | U44: 0 | V44: =IF(U44=1,T44,(1-SUMIF($U$44:$U$59,1,$T$44:$T$59))/COUNTIF($U$44:$U$59,0)) -> 0.09090909091
C45: AFW | D45: 0 | E45: 1 | F45: YKY | G45: 1 | H45: 0 | I45: 0 | J45: AFWYKY | K45: 0 | L45: 1 | M45: 0 | N45: 1 | O45: 0.0625 | P45: 0.0625 | Q45: 0.0625 | R45: 0.0625 | S45: 0.0625 | T45: 0.0625 | U45: 0 | V45: =IF(U45=1,T45,(1-SUMIF($U$44:$U$59,1,$T$44:$T$59))/COUNTIF($U$44:$U$59,0)) -> 0.09090909091
C46: AFW | D46: 0 | E46: 1 | F46: AFW | G46: 0 | H46: 1 | I46: 0 | J46: AFWAFW | K46: 1 | L46: 0 | M46: 1 | N46: 1 | O46: 0.0625 | P46: 0 | Q46: 0 | R46: 0 | S46: 0 | T46: 0 | U46: 1 | V46: 0
C47: AFW | D47: 0 | E47: 1 | F47: TMS | G47: 1 | H47: 0 | I47: 0 | J47: AFWTMS | K47: 0 | L47: 1 | M47: 1 | N47: 1 | O47: 0.0625 | P47: 0.0625 | Q47: 0.0625 | R47: 0.0625 | S47: 0.0625 | T47: 0.0625 | U47: 0 | V47: 0.09090909091
C48: AFW | D48: 0 | E48: 1 | F48: PRT | G48: 0 | H48: 1 | I48: 1 | J48: AFWPRT | K48: 0 | L48: 0 | M48: 0 | N48: 0 | O48: 0.0625 | P48: 0.0625 | Q48: 0.0625 | R48: 0.0625 | S48: 0.0625 | T48: 0 | U48: 1 | V48: 0
C49: AFW | D49: 0 | E49: 1 | F49: NES | G49: 1 | H49: 0 | I49: 0 | J49: AFWNES | K49: 0 | L49: 1 | M49: 0 | N49: 0 | O49: 0.0625 | P49: 0.0625 | Q49: 0.0625 | R49: 0.0625 | S49: 0.0625 | T49: 0.0625 | U49: 0 | V49: 0.09090909091
C50: AFW | D50: 0 | E50: 1 | F50: WSH | G50: 1 | H50: 0 | I50: 0 | J50: AFWWSH | K50: 0 | L50: 1 | M50: 0 | N50: 0 | O50: 0.0625 | P50: 0.0625 | Q50: 0.0625 | R50: 0.0625 | S50: 0.0625 | T50: 0.0625 | U50: 0 | V50: 0.09090909091
C51: AFW | D51: 0 | E51: 1 | F51: UUW | G51: 1 | H51: 0 | I51: 0 | J51: AFWUUW | K51: 0 | L51: 1 | M51: 0 | N51: 0 | O51: 0.0625 | P51: 0.0625 | Q51: 0.0625 | R51: 0.0625 | S51: 0.0625 | T51: 0.0625 | U51: 0 | V51: 0.09090909091
C52: AFW | D52: 0 | E52: 1 | F52: SES | G52: 0 | H52: 1 | I52: 1 | J52: AFWSES | K52: 0 | L52: 0 | M52: 0 | N52: 1 | O52: 0.0625 | P52: 0.0625 | Q52: 0.0625 | R52: 0.0625 | S52: 0.0625 | T52: 0 | U52: 1 | V52: 0
C53: AFW | D53: 0 | E53: 1 | F53: ANH | G53: 1 | H53: 0 | I53: 0 | J53: AFWANH | K53: 0 | L53: 1 | M53: 1 | N53: 1 | O53: 0.0625 | P53: 0.0625 | Q53: 0.0625 | R53: 0.0625 | S53: 0.0625 | T53: 0.0625 | U53: 0 | V53: 0.09090909091
C54: AFW | D54: 0 | E54: 1 | F54: SEW | G54: 0 | H54: 1 | I54: 0 | J54: AFWSEW | K54: 0 | L54: 0 | M54: 1 | N54: 1 | O54: 0.0625 | P54: 0.0625 | Q54: 0.0625 | R54: 0.0625 | S54: 0.0625 | T54: 0.0625 | U54: 0 | V54: 0.09090909091
C55: AFW | D55: 0 | E55: 1 | F55: SSC | G55: 0 | H55: 1 | I55: 1 | J55: AFWSSC | K55: 0 | L55: 0 | M55: 1 | N55: 1 | O55: 0.0625 | P55: 0.0625 | Q55: 0.0625 | R55: 0.0625 | S55: 0.0625 | T55: 0 | U55: 1 | V55: 0
C56: AFW | D56: 0 | E56: 1 | F56: SVE | G56: 1 | H56: 0 | I56: 0 | J56: AFWSVE | K56: 0 | L56: 1 | M56: 0 | N56: 0 | O56: 0.0625 | P56: 0.0625 | Q56: 0.0625 | R56: 0.0625 | S56: 0.0625 | T56: 0.0625 | U56: 0 | V56: 0.09090909091
C57: AFW | D57: 0 | E57: 1 | F57: WSX | G57: 1 | H57: 0 | I57: 0 | J57: AFWWSX | K57: 0 | L57: 1 | M57: 0 | N57: 0 | O57: 0.0625 | P57: 0.0625 | Q57: 0.0625 | R57: 0.0625 | S57: 0.0625 | T57: 0.0625 | U57: 0 | V57: 0.09090909091
C58: AFW | D58: 0 | E58: 1 | F58: SRN | G58: 1 | H58: 0 | I58: 0 | J58: AFWSRN | K58: 0 | L58: 1 | M58: 1 | N58: 1 | O58: 0.0625 | P58: 0.0625 | Q58: 0.0625 | R58: 0.0625 | S58: 0.0625 | T58: 0.0625 | U58: 0 | V58: 0.09090909091
C59: AFW | D59: 0 | E59: 1 | F59: BRL | G59: 0 | H59: 1 | I59: 1 | J59: AFWBRL | K59: 0 | L59: 0 | M59: 0 | N59: 0 | O59: 0.0625 | P59: 0.0625 | Q59: 0.0625 | R59: 0.0625 | S59: 0.0625 | T59: 0 | U59: 1 | V59: 0 | W59: =SUM(V44:V59) -> 1
C60: TMS | D60: 1 | E60: 0 | F60: SWB | G60: 1 | H60: 0 | I60: 0 | J60: TMSSWB | K60: 0 | L60: 0 | M60: 0 | N60: 0 | O60: 0.0625 | P60: 0.0625 | Q60: 0.0625 | R60: 0.0625 | S60: 0.0625 | T60: 0.0625 | U60: 0 | V60: =IF(U60=1,T60,(1-SUMIF($U$60:$U$75,1,$T$60:$T$75))/COUNTIF($U$60:$U$75,0)) -> 0.09090909091
C61: TMS | D61: 1 | E61: 0 | F61: YKY | G61: 1 | H61: 0 | I61: 0 | J61: TMSYKY | K61: 0 | L61: 0 | M61: 0 | N61: 1 | O61: 0.0625 | P61: 0.0625 | Q61: 0.0625 | R61: 0.0625 | S61: 0.0625 | T61: 0.0625 | U61: 0 | V61: =IF(U61=1,T61,(1-SUMIF($U$60:$U$75,1,$T$60:$T$75))/COUNTIF($U$60:$U$75,0)) -> 0.09090909091
C62: TMS | D62: 1 | E62: 0 | F62: AFW | G62: 0 | H62: 1 | I62: 0 | J62: TMSAFW | K62: 0 | L62: 1 | M62: 1 | N62: 1 | O62: 0.0625 | P62: 0.0625 | Q62: 0.0625 | R62: 0.0625 | S62: 0.0625 | T62: 0.0625 | U62: 0 | V62: 0.09090909091
C63: TMS | D63: 1 | E63: 0 | F63: TMS | G63: 1 | H63: 0 | I63: 0 | J63: TMSTMS | K63: 1 | L63: 0 | M63: 1 | N63: 1 | O63: 0.0625 | P63: 0 | Q63: 0 | R63: 0 | S63: 0 | T63: 0 | U63: 1 | V63: 0
C64: TMS | D64: 1 | E64: 0 | F64: PRT | G64: 0 | H64: 1 | I64: 1 | J64: TMSPRT | K64: 0 | L64: 1 | M64: 0 | N64: 0 | O64: 0.0625 | P64: 0.0625 | Q64: 0.0625 | R64: 0.0625 | S64: 0.0625 | T64: 0 | U64: 1 | V64: 0
C65: TMS | D65: 1 | E65: 0 | F65: NES | G65: 1 | H65: 0 | I65: 0 | J65: TMSNES | K65: 0 | L65: 0 | M65: 0 | N65: 0 | O65: 0.0625 | P65: 0.0625 | Q65: 0.0625 | R65: 0.0625 | S65: 0.0625 | T65: 0.0625 | U65: 0 | V65: 0.09090909091
C66: TMS | D66: 1 | E66: 0 | F66: WSH | G66: 1 | H66: 0 | I66: 0 | J66: TMSWSH | K66: 0 | L66: 0 | M66: 0 | N66: 0 | O66: 0.0625 | P66: 0.0625 | Q66: 0.0625 | R66: 0.0625 | S66: 0.0625 | T66: 0.0625 | U66: 0 | V66: 0.09090909091
C67: TMS | D67: 1 | E67: 0 | F67: UUW | G67: 1 | H67: 0 | I67: 0 | J67: TMSUUW | K67: 0 | L67: 0 | M67: 0 | N67: 0 | O67: 0.0625 | P67: 0.0625 | Q67: 0.0625 | R67: 0.0625 | S67: 0.0625 | T67: 0.0625 | U67: 0 | V67: 0.09090909091
C68: TMS | D68: 1 | E68: 0 | F68: SES | G68: 0 | H68: 1 | I68: 1 | J68: TMSSES | K68: 0 | L68: 1 | M68: 1 | N68: 1 | O68: 0.0625 | P68: 0.0625 | Q68: 0.0625 | R68: 0.0625 | S68: 0.0625 | T68: 0 | U68: 1 | V68: 0
C69: TMS | D69: 1 | E69: 0 | F69: ANH | G69: 1 | H69: 0 | I69: 0 | J69: TMSANH | K69: 0 | L69: 0 | M69: 1 | N69: 1 | O69: 0.0625 | P69: 0.0625 | Q69: 0.0625 | R69: 0.0625 | S69: 0.0625 | T69: 0.0625 | U69: 0 | V69: 0.09090909091
C70: TMS | D70: 1 | E70: 0 | F70: SEW | G70: 0 | H70: 1 | I70: 0 | J70: TMSSEW | K70: 0 | L70: 1 | M70: 1 | N70: 1 | O70: 0.0625 | P70: 0.0625 | Q70: 0.0625 | R70: 0.0625 | S70: 0.0625 | T70: 0.0625 | U70: 0 | V70: 0.09090909091
C71: TMS | D71: 1 | E71: 0 | F71: SSC | G71: 0 | H71: 1 | I71: 1 | J71: TMSSSC | K71: 0 | L71: 1 | M71: 0 | N71: 1 | O71: 0.0625 | P71: 0.0625 | Q71: 0.0625 | R71: 0.0625 | S71: 0.0625 | T71: 0 | U71: 1 | V71: 0
C72: TMS | D72: 1 | E72: 0 | F72: SVE | G72: 1 | H72: 0 | I72: 0 | J72: TMSSVE | K72: 0 | L72: 0 | M72: 0 | N72: 0 | O72: 0.0625 | P72: 0.0625 | Q72: 0.0625 | R72: 0.0625 | S72: 0.0625 | T72: 0.0625 | U72: 0 | V72: 0.09090909091
C73: TMS | D73: 1 | E73: 0 | F73: WSX | G73: 1 | H73: 0 | I73: 0 | J73: TMSWSX | K73: 0 | L73: 0 | M73: 0 | N73: 0 | O73: 0.0625 | P73: 0.0625 | Q73: 0.0625 | R73: 0.0625 | S73: 0.0625 | T73: 0.0625 | U73: 0 | V73: 0.09090909091
C74: TMS | D74: 1 | E74: 0 | F74: SRN | G74: 1 | H74: 0 | I74: 0 | J74: TMSSRN | K74: 0 | L74: 0 | M74: 1 | N74: 1 | O74: 0.0625 | P74: 0.0625 | Q74: 0.0625 | R74: 0.0625 | S74: 0.0625 | T74: 0.0625 | U74: 0 | V74: 0.09090909091
C75: TMS | D75: 1 | E75: 0 | F75: BRL | G75: 0 | H75: 1 | I75: 1 | J75: TMSBRL | K75: 0 | L75: 1 | M75: 0 | N75: 0 | O75: 0.0625 | P75: 0.0625 | Q75: 0.0625 | R75: 0.0625 | S75: 0.0625 | T75: 0 | U75: 1 | V75: 0 | W75: =SUM(V60:V75) -> 1
C76: PRT | D76: =COUNTIF($Y$10:$Y$19,C76) -> 0 | E76: =COUNTIF($Z$10:$Z$15,C76) -> 1 | F76: SWB | G76: =COUNTIF($Y$10:$Y$19,F76) -> 1 | H76: =COUNTIF($Z$10:$Z$15,F76) -> 0 | I76: 0 | J76: PRTSWB | K76: =IF(C76=F76,1,0) -> 0 | L76: =D76*H76+E76*G76 -> 1 | M76: 0 | N76: =IF(VLOOKUP(F76,$Y$24:$Z$39,2,FALSE)>70%,1,0) -> 0 | O76: 0.0625 | P76: =IF(K76=1,O76*$B$5,O76) -> 0.0625 | Q76: =IF(L76=1,P76*$B$6,P76) -> 0.0625 | R76: =IF(M76=1,Q76*$B$6,Q76) -> 0.0625 | S76: =IF(N76=1,R76*$B$8,R76) -> 0.0625 | T76: 0.0625 | U76: 0 | V76: =IF(U76=1,T76,(1-SUMIF($U$76:$U$91,1,$T$76:$T$91))/COUNTIF($U$76:$U$91,0)) -> 0.08333333333
C77: PRT | D77: 0 | E77: 1 | F77: YKY | G77: 1 | H77: 0 | I77: =COUNTIF($AA$10:$AA$13,F77) -> 0 | J77: =CONCATENATE(C77,F77) -> PRTYKY | K77: 0 | L77: 1 | M77: 0 | N77: 1 | O77: =1/$B$4 -> 0.0625 | P77: 0.0625 | Q77: 0.0625 | R77: 0.0625 | S77: 0.0625 | T77: =IF(I77=1,S77*$B$9,S77) -> 0.0625 | U77: =IF(T77<>(1/$B$4),1,0) -> 0 | V77: =IF(U77=1,T77,(1-SUMIF($U$76:$U$91,1,$T$76:$T$91))/COUNTIF($U$76:$U$91,0)) -> 0.08333333333
C78: PRT | D78: 0 | E78: 1 | F78: AFW | G78: 0 | H78: 1 | I78: 0 | J78: PRTAFW | K78: 0 | L78: 0 | M78: 0 | N78: 1 | O78: 0.0625 | P78: 0.0625 | Q78: 0.0625 | R78: 0.0625 | S78: 0.0625 | T78: 0.0625 | U78: 0 | V78: 0.08333333333
C79: PRT | D79: 0 | E79: 1 | F79: TMS | G79: 1 | H79: 0 | I79: 0 | J79: PRTTMS | K79: 0 | L79: 1 | M79: 0 | N79: 1 | O79: 0.0625 | P79: 0.0625 | Q79: 0.0625 | R79: 0.0625 | S79: 0.0625 | T79: 0.0625 | U79: 0 | V79: 0.08333333333
C80: PRT | D80: 0 | E80: 1 | F80: PRT | G80: 0 | H80: 1 | I80: 1 | J80: PRTPRT | K80: 1 | L80: 0 | M80: 1 | N80: 0 | O80: 0.0625 | P80: 0 | Q80: 0 | R80: 0 | S80: 0 | T80: 0 | U80: 1 | V80: 0
C81: PRT | D81: 0 | E81: 1 | F81: NES | G81: 1 | H81: 0 | I81: 0 | J81: PRTNES | K81: 0 | L81: 1 | M81: 0 | N81: 0 | O81: 0.0625 | P81: 0.0625 | Q81: 0.0625 | R81: 0.0625 | S81: 0.0625 | T81: 0.0625 | U81: 0 | V81: 0.08333333333
C82: PRT | D82: 0 | E82: 1 | F82: WSH | G82: 1 | H82: 0 | I82: 0 | J82: PRTWSH | K82: 0 | L82: 1 | M82: 0 | N82: 0 | O82: 0.0625 | P82: 0.0625 | Q82: 0.0625 | R82: 0.0625 | S82: 0.0625 | T82: 0.0625 | U82: 0 | V82: 0.08333333333
C83: PRT | D83: 0 | E83: 1 | F83: UUW | G83: 1 | H83: 0 | I83: 0 | J83: PRTUUW | K83: 0 | L83: 1 | M83: 0 | N83: 0 | O83: 0.0625 | P83: 0.0625 | Q83: 0.0625 | R83: 0.0625 | S83: 0.0625 | T83: 0.0625 | U83: 0 | V83: 0.08333333333
C84: PRT | D84: 0 | E84: 1 | F84: SES | G84: 0 | H84: 1 | I84: 1 | J84: PRTSES | K84: 0 | L84: 0 | M84: 0 | N84: 1 | O84: 0.0625 | P84: 0.0625 | Q84: 0.0625 | R84: 0.0625 | S84: 0.0625 | T84: 0 | U84: 1 | V84: 0
C85: PRT | D85: 0 | E85: 1 | F85: ANH | G85: 1 | H85: 0 | I85: 0 | J85: PRTANH | K85: 0 | L85: 1 | M85: 0 | N85: 1 | O85: 0.0625 | P85: 0.0625 | Q85: 0.0625 | R85: 0.0625 | S85: 0.0625 | T85: 0.0625 | U85: 0 | V85: 0.08333333333
C86: PRT | D86: 0 | E86: 1 | F86: SEW | G86: 0 | H86: 1 | I86: 0 | J86: PRTSEW | K86: 0 | L86: 0 | M86: 1 | N86: 1 | O86: 0.0625 | P86: 0.0625 | Q86: 0.0625 | R86: 0.0625 | S86: 0.0625 | T86: 0.0625 | U86: 0 | V86: 0.08333333333
C87: PRT | D87: 0 | E87: 1 | F87: SSC | G87: 0 | H87: 1 | I87: 1 | J87: PRTSSC | K87: 0 | L87: 0 | M87: 0 | N87: 1 | O87: 0.0625 | P87: 0.0625 | Q87: 0.0625 | R87: 0.0625 | S87: 0.0625 | T87: 0 | U87: 1 | V87: 0
C88: PRT | D88: 0 | E88: 1 | F88: SVE | G88: 1 | H88: 0 | I88: 0 | J88: PRTSVE | K88: 0 | L88: 1 | M88: 0 | N88: 0 | O88: 0.0625 | P88: 0.0625 | Q88: 0.0625 | R88: 0.0625 | S88: 0.0625 | T88: 0.0625 | U88: 0 | V88: 0.08333333333
C89: PRT | D89: 0 | E89: 1 | F89: WSX | G89: 1 | H89: 0 | I89: 0 | J89: PRTWSX | K89: 0 | L89: 1 | M89: 0 | N89: 0 | O89: 0.0625 | P89: 0.0625 | Q89: 0.0625 | R89: 0.0625 | S89: 0.0625 | T89: 0.0625 | U89: 0 | V89: 0.08333333333
C90: PRT | D90: 0 | E90: 1 | F90: SRN | G90: 1 | H90: 0 | I90: 0 | J90: PRTSRN | K90: 0 | L90: 1 | M90: 1 | N90: 1 | O90: 0.0625 | P90: 0.0625 | Q90: 0.0625 | R90: 0.0625 | S90: 0.0625 | T90: 0.0625 | U90: 0 | V90: 0.08333333333
C91: PRT | D91: 0 | E91: 1 | F91: BRL | G91: 0 | H91: 1 | I91: 1 | J91: PRTBRL | K91: 0 | L91: 0 | M91: 0 | N91: 0 | O91: 0.0625 | P91: 0.0625 | Q91: 0.0625 | R91: 0.0625 | S91: 0.0625 | T91: 0 | U91: 1 | V91: 0 | W91: =SUM(V76:V91) -> 1
C92: NES | D92: 1 | E92: 0 | F92: SWB | G92: 1 | H92: 0 | I92: 0 | J92: NESSWB | K92: 0 | L92: 0 | M92: 0 | N92: 0 | O92: 0.0625 | P92: 0.0625 | Q92: 0.0625 | R92: 0.0625 | S92: 0.0625 | T92: 0.0625 | U92: 0 | V92: =IF(U92=1,T92,(1-SUMIF($U$92:$U$107,1,$T$92:$T$107))/COUNTIF($U$92:$U$107,0)) -> 0.09090909091
C93: NES | D93: 1 | E93: 0 | F93: YKY | G93: 1 | H93: 0 | I93: 0 | J93: NESYKY | K93: 0 | L93: 0 | M93: 1 | N93: 1 | O93: 0.0625 | P93: 0.0625 | Q93: 0.0625 | R93: 0.0625 | S93: 0.0625 | T93: 0.0625 | U93: 0 | V93: =IF(U93=1,T93,(1-SUMIF($U$92:$U$107,1,$T$92:$T$107))/COUNTIF($U$92:$U$107,0)) -> 0.09090909091
C94: NES | D94: 1 | E94: 0 | F94: AFW | G94: 0 | H94: 1 | I94: 0 | J94: NESAFW | K94: 0 | L94: 1 | M94: 0 | N94: 1 | O94: 0.0625 | P94: 0.0625 | Q94: 0.0625 | R94: 0.0625 | S94: 0.0625 | T94: 0.0625 | U94: 0 | V94: 0.09090909091
C95: NES | D95: 1 | E95: 0 | F95: TMS | G95: 1 | H95: 0 | I95: 0 | J95: NESTMS | K95: 0 | L95: 0 | M95: 0 | N95: 1 | O95: 0.0625 | P95: 0.0625 | Q95: 0.0625 | R95: 0.0625 | S95: 0.0625 | T95: 0.0625 | U95: 0 | V95: 0.09090909091
C96: NES | D96: 1 | E96: 0 | F96: PRT | G96: 0 | H96: 1 | I96: 1 | J96: NESPRT | K96: 0 | L96: 1 | M96: 0 | N96: 0 | O96: 0.0625 | P96: 0.0625 | Q96: 0.0625 | R96: 0.0625 | S96: 0.0625 | T96: 0 | U96: 1 | V96: 0
C97: NES | D97: 1 | E97: 0 | F97: NES | G97: 1 | H97: 0 | I97: 0 | J97: NESNES | K97: 1 | L97: 0 | M97: 1 | N97: 0 | O97: 0.0625 | P97: 0 | Q97: 0 | R97: 0 | S97: 0 | T97: 0 | U97: 1 | V97: 0
C98: NES | D98: 1 | E98: 0 | F98: WSH | G98: 1 | H98: 0 | I98: 0 | J98: NESWSH | K98: 0 | L98: 0 | M98: 0 | N98: 0 | O98: 0.0625 | P98: 0.0625 | Q98: 0.0625 | R98: 0.0625 | S98: 0.0625 | T98: 0.0625 | U98: 0 | V98: 0.09090909091
C99: NES | D99: 1 | E99: 0 | F99: UUW | G99: 1 | H99: 0 | I99: 0 | J99: NESUUW | K99: 0 | L99: 0 | M99: 1 | N99: 0 | O99: 0.0625 | P99: 0.0625 | Q99: 0.0625 | R99: 0.0625 | S99: 0.0625 | T99: 0.0625 | U99: 0 | V99: 0.09090909091
C100: NES | D100: 1 | E100: 0 | F100: SES | G100: 0 | H100: 1 | I100: 1 | J100: NESSES | K100: 0 | L100: 1 | M100: 0 | N100: 1 | O100: 0.0625 | P100: 0.0625 | Q100: 0.0625 | R100: 0.0625 | S100: 0.0625 | T100: 0 | U100: 1 | V100: 0
C101: NES | D101: 1 | E101: 0 | F101: ANH | G101: 1 | H101: 0 | I101: 0 | J101: NESANH | K101: 0 | L101: 0 | M101: 0 | N101: 1 | O101: 0.0625 | P101: 0.0625 | Q101: 0.0625 | R101: 0.0625 | S101: 0.0625 | T101: 0.0625 | U101: 0 | V101: 0.09090909091
C102: NES | D102: 1 | E102: 0 | F102: SEW | G102: 0 | H102: 1 | I102: 0 | J102: NESSEW | K102: 0 | L102: 1 | M102: 0 | N102: 1 | O102: 0.0625 | P102: 0.0625 | Q102: 0.0625 | R102: 0.0625 | S102: 0.0625 | T102: 0.0625 | U102: 0 | V102: 0.09090909091
C103: NES | D103: 1 | E103: 0 | F103: SSC | G103: 0 | H103: 1 | I103: 1 | J103: NESSSC | K103: 0 | L103: 1 | M103: 0 | N103: 1 | O103: 0.0625 | P103: 0.0625 | Q103: 0.0625 | R103: 0.0625 | S103: 0.0625 | T103: 0 | U103: 1 | V103: 0
C104: NES | D104: 1 | E104: 0 | F104: SVE | G104: 1 | H104: 0 | I104: 0 | J104: NESSVE | K104: 0 | L104: 0 | M104: 0 | N104: 0 | O104: 0.0625 | P104: 0.0625 | Q104: 0.0625 | R104: 0.0625 | S104: 0.0625 | T104: 0.0625 | U104: 0 | V104: 0.09090909091
C105: NES | D105: 1 | E105: 0 | F105: WSX | G105: 1 | H105: 0 | I105: 0 | J105: NESWSX | K105: 0 | L105: 0 | M105: 0 | N105: 0 | O105: 0.0625 | P105: 0.0625 | Q105: 0.0625 | R105: 0.0625 | S105: 0.0625 | T105: 0.0625 | U105: 0 | V105: 0.09090909091
C106: NES | D106: 1 | E106: 0 | F106: SRN | G106: 1 | H106: 0 | I106: 0 | J106: NESSRN | K106: 0 | L106: 0 | M106: 0 | N106: 1 | O106: 0.0625 | P106: 0.0625 | Q106: 0.0625 | R106: 0.0625 | S106: 0.0625 | T106: 0.0625 | U106: 0 | V106: 0.09090909091
C107: NES | D107: 1 | E107: 0 | F107: BRL | G107: 0 | H107: 1 | I107: 1 | J107: NESBRL | K107: 0 | L107: 1 | M107: 0 | N107: 0 | O107: 0.0625 | P107: 0.0625 | Q107: 0.0625 | R107: 0.0625 | S107: 0.0625 | T107: 0 | U107: 1 | V107: 0 | W107: =SUM(V92:V107) -> 1
C108: WSH | D108: 1 | E108: 0 | F108: SWB | G108: 1 | H108: 0 | I108: 0 | J108: WSHSWB | K108: 0 | L108: 0 | M108: 0 | N108: 0 | O108: 0.0625 | P108: 0.0625 | Q108: 0.0625 | R108: 0.0625 | S108: 0.0625 | T108: 0.0625 | U108: 0 | V108: =IF(U108=1,T108,(1-SUMIF($U$108:$U$123,1,$T$108:$T$123))/COUNTIF($U$108:$U$123,0)) -> 0.09090909091
C109: WSH | D109: 1 | E109: 0 | F109: YKY | G109: 1 | H109: 0 | I109: 0 | J109: WSHYKY | K109: 0 | L109: 0 | M109: 0 | N109: 1 | O109: 0.0625 | P109: 0.0625 | Q109: 0.0625 | R109: 0.0625 | S109: 0.0625 | T109: 0.0625 | U109: 0 | V109: =IF(U109=1,T109,(1-SUMIF($U$108:$U$123,1,$T$108:$T$123))/COUNTIF($U$108:$U$123,0)) -> 0.09090909091
C110: WSH | D110: 1 | E110: 0 | F110: AFW | G110: 0 | H110: 1 | I110: 0 | J110: WSHAFW | K110: 0 | L110: 1 | M110: 0 | N110: 1 | O110: 0.0625 | P110: 0.0625 | Q110: 0.0625 | R110: 0.0625 | S110: 0.0625 | T110: 0.0625 | U110: 0 | V110: 0.09090909091
C111: WSH | D111: 1 | E111: 0 | F111: TMS | G111: 1 | H111: 0 | I111: 0 | J111: WSHTMS | K111: 0 | L111: 0 | M111: 0 | N111: 1 | O111: 0.0625 | P111: 0.0625 | Q111: 0.0625 | R111: 0.0625 | S111: 0.0625 | T111: 0.0625 | U111: 0 | V111: 0.09090909091
C112: WSH | D112: 1 | E112: 0 | F112: PRT | G112: 0 | H112: 1 | I112: 1 | J112: WSHPRT | K112: 0 | L112: 1 | M112: 0 | N112: 0 | O112: 0.0625 | P112: 0.0625 | Q112: 0.0625 | R112: 0.0625 | S112: 0.0625 | T112: 0 | U112: 1 | V112: 0
C113: WSH | D113: 1 | E113: 0 | F113: NES | G113: 1 | H113: 0 | I113: 0 | J113: WSHNES | K113: 0 | L113: 0 | M113: 0 | N113: 0 | O113: 0.0625 | P113: 0.0625 | Q113: 0.0625 | R113: 0.0625 | S113: 0.0625 | T113: 0.0625 | U113: 0 | V113: 0.09090909091
C114: WSH | D114: 1 | E114: 0 | F114: WSH | G114: 1 | H114: 0 | I114: 0 | J114: WSHWSH | K114: 1 | L114: 0 | M114: 1 | N114: 0 | O114: 0.0625 | P114: 0 | Q114: 0 | R114: 0 | S114: 0 | T114: 0 | U114: 1 | V114: 0
C115: WSH | D115: 1 | E115: 0 | F115: UUW | G115: 1 | H115: 0 | I115: 0 | J115: WSHUUW | K115: 0 | L115: 0 | M115: 1 | N115: 0 | O115: 0.0625 | P115: 0.0625 | Q115: 0.0625 | R115: 0.0625 | S115: 0.0625 | T115: 0.0625 | U115: 0 | V115: 0.09090909091
C116: WSH | D116: 1 | E116: 0 | F116: SES | G116: 0 | H116: 1 | I116: 1 | J116: WSHSES | K116: 0 | L116: 1 | M116: 0 | N116: 1 | O116: 0.0625 | P116: 0.0625 | Q116: 0.0625 | R116: 0.0625 | S116: 0.0625 | T116: 0 | U116: 1 | V116: 0
